Workbook

Sheet Biểu 01CH (hidden)
A1: Biểu 01/CH
A2: HIỆN TRẠNG SỬ DỤNG ĐẤT NĂM 2018 CỦA HUYỆN QUẢNG TRẠCH - TỈNH QUẢNG BÌNH
M3: Đơn vị tính: ha
A4: STT | B4: Chỉ tiêu sử dụng đất | C4: Mã | D4: Diện tích | E4: Phân theo đơn vị hành chính
E5: =HIENTRANG!E3 -> Cảnh Dương | F5: =HIENTRANG!F3 -> Cảnh Hóa | G5: =HIENTRANG!G3 -> Phù Hóa | H5: =HIENTRANG!H3 -> Quảng Châu | I5: =HIENTRANG!I3 -> Quảng Đông | J5: =HIENTRANG!J3 -> Quảng Hợp | K5: =HIENTRANG!K3 -> Quảng Hưng | L5: =HIENTRANG!L3 -> Quảng Kim | M5: =HIENTRANG!M3 -> Quảng Liên | N5: =HIENTRANG!N3 -> Quảng Lưu | O5: =HIENTRANG!O3 -> Quảng Phú | P5: =HIENTRANG!P3 -> Quảng Phương | Q5: =HIENTRANG!Q3 -> Quảng Thạch | R5: =HIENTRANG!R3 -> Quảng Thanh | S5: =HIENTRANG!S3 -> Quảng Tiến | T5: =HIENTRANG!T3 -> Quảng Trường | U5: =HIENTRANG!U3 -> Quảng Tùng | V5: =HIENTRANG!V3 -> Quảng Xuân
A6: -1 | B6: -2 | C6: -3 | D6: (4)=(5)+(6)+...(22) | E6: -5 | F6: -6 | G6: -7 | H6: -8 | I6: -9 | J6: -10 | K6: -11 | L6: -12 | M6: -13 | N6: -14 | O6: -15 | P6: -16 | Q6: -17 | R6: -18 | S6: -19 | T6: -20 | U6: -21 | V6: -22 | Y6: %
B7: TỔNG DIỆN TÍCH TỰ NHIÊN | D7: =SUM(E7:V7) -> 44787.864 | E7: =E8+E19+E46 -> 156.193 | F7: =F8+F19+F46 -> 773.84 | G7: 364.892 | H7: 4100.461 | I7: 2648.48 | J7: 11455.251 | K7: 2101.209 | L7: 3766.377 | M7: 1818.523 | N7: 3927.099 | O7: 1998.255 | P7: 2397.11 | Q7: 4634.326 | R7: 386.453 | S7: 1321.53 | T7: 761.32 | U7: 1010.904 | V7: 1165.641
A8: 1 | B8: Đất nông nghiệp | C8: NNP | D8: 35383.962 | E8: =VLOOKUP($C8,HIENTRANG!$C$5:$V$59,'Biểu 01CH'!E$51,0) -> 8.188 | F8: =VLOOKUP($C8,HIENTRANG!$C$5:$V$59,'Biểu 01CH'!F$51,0) -> 602.754 | G8: =VLOOKUP($C8,HIENTRANG!$C$5:$V$59,'Biểu 01CH'!G$51,0) -> 201.833 | H8: =VLOOKUP($C8,HIENTRANG!$C$5:$V$59,'Biểu 01CH'!H$51,0) -> 3149.874 | I8: =VLOOKUP($C8,HIENTRANG!$C$5:$V$59,'Biểu 01CH'!I$51,0) -> 1606.837 | J8: =VLOOKUP($C8,HIENTRANG!$C$5:$V$59,'Biểu 01CH'!J$51,0) -> 10332.441 | K8: =VLOOKUP($C8,HIENTRANG!$C$5:$V$59,'Biểu 01CH'!K$51,0) -> 1117.632 | L8: =VLOOKUP($C8,HIENTRANG!$C$5:$V$59,'Biểu 01CH'!L$51,0) -> 3316.86 | M8: =VLOOKUP($C8,HIENTRANG!$C$5:$V$59,'Biểu 01CH'!M$51,0) -> 1493.036 | N8: =VLOOKUP($C8,HIENTRANG!$C$5:$V$59,'Biểu 01CH'!N$51,0) -> 2801.264 | O8: =VLOOKUP($C8,HIENTRANG!$C$5:$V$59,'Biểu 01CH'!O$51,0) -> 1418.12 | P8: =VLOOKUP($C8,HIENTRANG!$C$5:$V$59,'Biểu 01CH'!P$51,0) -> 1711.542 | Q8: =VLOOKUP($C8,HIENTRANG!$C$5:$V$59,'Biểu 01CH'!Q$51,0) -> 4326.073 | R8: =VLOOKUP($C8,HIENTRANG!$C$5:$V$59,'Biểu 01CH'!R$51,0) -> 242.784 | S8: =VLOOKUP($C8,HIENTRANG!$C$5:$V$59,'Biểu 01CH'!S$51,0) -> 1140.162 | T8: =VLOOKUP($C8,HIENTRANG!$C$5:$V$59,'Biểu 01CH'!T$51,0) -> 478.963 | U8: =VLOOKUP($C8,HIENTRANG!$C$5:$V$59,'Biểu 01CH'!U$51,0) -> 660.652 | V8: =VLOOKUP($C8,HIENTRANG!$C$5:$V$59,'Biểu 01CH'!V$51,0) -> 774.947
A9: 1.1 | B9: Đất trồng lúa | C9: LUA | D9: 3753.738 | E9: =VLOOKUP($C9,HIENTRANG!$C$5:$V$59,'Biểu 01CH'!E$51,0) -> 0 | F9: =VLOOKUP($C9,HIENTRANG!$C$5:$V$59,'Biểu 01CH'!F$51,0) -> 57.02 | G9: =VLOOKUP($C9,HIENTRANG!$C$5:$V$59,'Biểu 01CH'!G$51,0) -> 102.701 | H9: =VLOOKUP($C9,HIENTRANG!$C$5:$V$59,'Biểu 01CH'!H$51,0) -> 397.551 | I9: =VLOOKUP($C9,HIENTRANG!$C$5:$V$59,'Biểu 01CH'!I$51,0) -> 113.963 | J9: =VLOOKUP($C9,HIENTRANG!$C$5:$V$59,'Biểu 01CH'!J$51,0) -> 225.201 | K9: =VLOOKUP($C9,HIENTRANG!$C$5:$V$59,'Biểu 01CH'!K$51,0) -> 353.694 | L9: =VLOOKUP($C9,HIENTRANG!$C$5:$V$59,'Biểu 01CH'!L$51,0) -> 234.401 | M9: =VLOOKUP($C9,HIENTRANG!$C$5:$V$59,'Biểu 01CH'!M$51,0) -> 105.504 | N9: =VLOOKUP($C9,HIENTRANG!$C$5:$V$59,'Biểu 01CH'!N$51,0) -> 336.721 | O9: =VLOOKUP($C9,HIENTRANG!$C$5:$V$59,'Biểu 01CH'!O$51,0) -> 297.511 | P9: =VLOOKUP($C9,HIENTRANG!$C$5:$V$59,'Biểu 01CH'!P$51,0) -> 536.262 | Q9: =VLOOKUP($C9,HIENTRANG!$C$5:$V$59,'Biểu 01CH'!Q$51,0) -> 102.453 | R9: =VLOOKUP($C9,HIENTRANG!$C$5:$V$59,'Biểu 01CH'!R$51,0) -> 151.53 | S9: =VLOOKUP($C9,HIENTRANG!$C$5:$V$59,'Biểu 01CH'!S$51,0) -> 55.232 | T9: =VLOOKUP($C9,HIENTRANG!$C$5:$V$59,'Biểu 01CH'!T$51,0) -> 115.192 | U9: =VLOOKUP($C9,HIENTRANG!$C$5:$V$59,'Biểu 01CH'!U$51,0) -> 307.571 | V9: =VLOOKUP($C9,HIENTRANG!$C$5:$V$59,'Biểu 01CH'!V$51,0) -> 261.231
B10: Trong đó: Đất chuyên trồng lúa nước | C10: LUC | D10: 3462.241 | E10: =VLOOKUP($C10,HIENTRANG!$C$5:$V$59,'Biểu 01CH'!E$51,0) -> 0 | F10: =VLOOKUP($C10,HIENTRANG!$C$5:$V$59,'Biểu 01CH'!F$51,0) -> 57.02 | G10: =VLOOKUP($C10,HIENTRANG!$C$5:$V$59,'Biểu 01CH'!G$51,0) -> 102.701 | H10: =VLOOKUP($C10,HIENTRANG!$C$5:$V$59,'Biểu 01CH'!H$51,0) -> 397.551 | I10: =VLOOKUP($C10,HIENTRANG!$C$5:$V$59,'Biểu 01CH'!I$51,0) -> 36.411 | J10: =VLOOKUP($C10,HIENTRANG!$C$5:$V$59,'Biểu 01CH'!J$51,0) -> 134.251 | K10: =VLOOKUP($C10,HIENTRANG!$C$5:$V$59,'Biểu 01CH'!K$51,0) -> 342.301 | L10: =VLOOKUP($C10,HIENTRANG!$C$5:$V$59,'Biểu 01CH'!L$51,0) -> 234.401 | M10: =VLOOKUP($C10,HIENTRANG!$C$5:$V$59,'Biểu 01CH'!M$51,0) -> 105.504 | N10: =VLOOKUP($C10,HIENTRANG!$C$5:$V$59,'Biểu 01CH'!N$51,0) -> 330.201 | O10: =VLOOKUP($C10,HIENTRANG!$C$5:$V$59,'Biểu 01CH'!O$51,0) -> 280.821 | P10: =VLOOKUP($C10,HIENTRANG!$C$5:$V$59,'Biểu 01CH'!P$51,0) -> 486.921 | Q10: =VLOOKUP($C10,HIENTRANG!$C$5:$V$59,'Biểu 01CH'!Q$51,0) -> 101.412 | R10: =VLOOKUP($C10,HIENTRANG!$C$5:$V$59,'Biểu 01CH'!R$51,0) -> 151.53 | S10: =VLOOKUP($C10,HIENTRANG!$C$5:$V$59,'Biểu 01CH'!S$51,0) -> 22.772 | T10: =VLOOKUP($C10,HIENTRANG!$C$5:$V$59,'Biểu 01CH'!T$51,0) -> 115.192 | U10: =VLOOKUP($C10,HIENTRANG!$C$5:$V$59,'Biểu 01CH'!U$51,0) -> 307.571 | V10: =VLOOKUP($C10,HIENTRANG!$C$5:$V$59,'Biểu 01CH'!V$51,0) -> 255.681
A11: 1.2 | B11: Đất trồng cây hàng năm khác | C11: HNK | D11: 2957.842 | E11: =VLOOKUP($C11,HIENTRANG!$C$5:$V$59,'Biểu 01CH'!E$51,0) -> 4.724 | F11: =VLOOKUP($C11,HIENTRANG!$C$5:$V$59,'Biểu 01CH'!F$51,0) -> 92.942 | G11: =VLOOKUP($C11,HIENTRANG!$C$5:$V$59,'Biểu 01CH'!G$51,0) -> 71.654 | H11: =VLOOKUP($C11,HIENTRANG!$C$5:$V$59,'Biểu 01CH'!H$51,0) -> 337.01 | I11: =VLOOKUP($C11,HIENTRANG!$C$5:$V$59,'Biểu 01CH'!I$51,0) -> 216.256 | J11: =VLOOKUP($C11,HIENTRANG!$C$5:$V$59,'Biểu 01CH'!J$51,0) -> 488.536 | K11: =VLOOKUP($C11,HIENTRANG!$C$5:$V$59,'Biểu 01CH'!K$51,0) -> 274.03 | L11: =VLOOKUP($C11,HIENTRANG!$C$5:$V$59,'Biểu 01CH'!L$51,0) -> 146.245 | M11: =VLOOKUP($C11,HIENTRANG!$C$5:$V$59,'Biểu 01CH'!M$51,0) -> 30.374 | N11: =VLOOKUP($C11,HIENTRANG!$C$5:$V$59,'Biểu 01CH'!N$51,0) -> 273.856 | O11: =VLOOKUP($C11,HIENTRANG!$C$5:$V$59,'Biểu 01CH'!O$51,0) -> 304.029 | P11: =VLOOKUP($C11,HIENTRANG!$C$5:$V$59,'Biểu 01CH'!P$51,0) -> 225.91 | Q11: =VLOOKUP($C11,HIENTRANG!$C$5:$V$59,'Biểu 01CH'!Q$51,0) -> 55.564 | R11: =VLOOKUP($C11,HIENTRANG!$C$5:$V$59,'Biểu 01CH'!R$51,0) -> 33.21 | S11: =VLOOKUP($C11,HIENTRANG!$C$5:$V$59,'Biểu 01CH'!S$51,0) -> 35.866 | T11: =VLOOKUP($C11,HIENTRANG!$C$5:$V$59,'Biểu 01CH'!T$51,0) -> 81.436 | U11: =VLOOKUP($C11,HIENTRANG!$C$5:$V$59,'Biểu 01CH'!U$51,0) -> 110.77 | V11: =VLOOKUP($C11,HIENTRANG!$C$5:$V$59,'Biểu 01CH'!V$51,0) -> 175.43
A12: 1.3 | B12: Đất trồng cây lâu năm | C12: CLN | D12: 1497.134 | E12: =VLOOKUP($C12,HIENTRANG!$C$5:$V$59,'Biểu 01CH'!E$51,0) -> 0 | F12: =VLOOKUP($C12,HIENTRANG!$C$5:$V$59,'Biểu 01CH'!F$51,0) -> 4.35 | G12: =VLOOKUP($C12,HIENTRANG!$C$5:$V$59,'Biểu 01CH'!G$51,0) -> 10.714 | H12: =VLOOKUP($C12,HIENTRANG!$C$5:$V$59,'Biểu 01CH'!H$51,0) -> 289.524 | I12: =VLOOKUP($C12,HIENTRANG!$C$5:$V$59,'Biểu 01CH'!I$51,0) -> 36.818 | J12: =VLOOKUP($C12,HIENTRANG!$C$5:$V$59,'Biểu 01CH'!J$51,0) -> 52.328 | K12: =VLOOKUP($C12,HIENTRANG!$C$5:$V$59,'Biểu 01CH'!K$51,0) -> 207.982 | L12: =VLOOKUP($C12,HIENTRANG!$C$5:$V$59,'Biểu 01CH'!L$51,0) -> 0.021 | M12: =VLOOKUP($C12,HIENTRANG!$C$5:$V$59,'Biểu 01CH'!M$51,0) -> 62.85 | N12: =VLOOKUP($C12,HIENTRANG!$C$5:$V$59,'Biểu 01CH'!N$51,0) -> 157.876 | O12: =VLOOKUP($C12,HIENTRANG!$C$5:$V$59,'Biểu 01CH'!O$51,0) -> 40.728 | P12: =VLOOKUP($C12,HIENTRANG!$C$5:$V$59,'Biểu 01CH'!P$51,0) -> 122.651 | Q12: =VLOOKUP($C12,HIENTRANG!$C$5:$V$59,'Biểu 01CH'!Q$51,0) -> 222.601 | R12: =VLOOKUP($C12,HIENTRANG!$C$5:$V$59,'Biểu 01CH'!R$51,0) -> 0.95 | S12: =VLOOKUP($C12,HIENTRANG!$C$5:$V$59,'Biểu 01CH'!S$51,0) -> 250.584 | T12: =VLOOKUP($C12,HIENTRANG!$C$5:$V$59,'Biểu 01CH'!T$51,0) -> 0.77 | U12: =VLOOKUP($C12,HIENTRANG!$C$5:$V$59,'Biểu 01CH'!U$51,0) -> 1.686 | V12: =VLOOKUP($C12,HIENTRANG!$C$5:$V$59,'Biểu 01CH'!V$51,0) -> 34.701
A13: 1.4 | B13: Đất rừng phòng hộ | C13: RPH | D13: 11063.286 | E13: =VLOOKUP($C13,HIENTRANG!$C$5:$V$59,'Biểu 01CH'!E$51,0) -> 3.464 | F13: =VLOOKUP($C13,HIENTRANG!$C$5:$V$59,'Biểu 01CH'!F$51,0) -> 0 | G13: =VLOOKUP($C13,HIENTRANG!$C$5:$V$59,'Biểu 01CH'!G$51,0) -> 0 | H13: =VLOOKUP($C13,HIENTRANG!$C$5:$V$59,'Biểu 01CH'!H$51,0) -> 479.624 | I13: =VLOOKUP($C13,HIENTRANG!$C$5:$V$59,'Biểu 01CH'!I$51,0) -> 357.258 | J13: =VLOOKUP($C13,HIENTRANG!$C$5:$V$59,'Biểu 01CH'!J$51,0) -> 5087.318 | K13: =VLOOKUP($C13,HIENTRANG!$C$5:$V$59,'Biểu 01CH'!K$51,0) -> 38.4 | L13: =VLOOKUP($C13,HIENTRANG!$C$5:$V$59,'Biểu 01CH'!L$51,0) -> 1415.93 | M13: =VLOOKUP($C13,HIENTRANG!$C$5:$V$59,'Biểu 01CH'!M$51,0) -> 0 | N13: =VLOOKUP($C13,HIENTRANG!$C$5:$V$59,'Biểu 01CH'!N$51,0) -> 1004.486 | O13: =VLOOKUP($C13,HIENTRANG!$C$5:$V$59,'Biểu 01CH'!O$51,0) -> 20.81 | P13: =VLOOKUP($C13,HIENTRANG!$C$5:$V$59,'Biểu 01CH'!P$51,0) -> 293.82 | Q13: =VLOOKUP($C13,HIENTRANG!$C$5:$V$59,'Biểu 01CH'!Q$51,0) -> 2098.486 | R13: =VLOOKUP($C13,HIENTRANG!$C$5:$V$59,'Biểu 01CH'!R$51,0) -> 0 | S13: =VLOOKUP($C13,HIENTRANG!$C$5:$V$59,'Biểu 01CH'!S$51,0) -> 0 | T13: =VLOOKUP($C13,HIENTRANG!$C$5:$V$59,'Biểu 01CH'!T$51,0) -> 0 | U13: =VLOOKUP($C13,HIENTRANG!$C$5:$V$59,'Biểu 01CH'!U$51,0) -> 3.31 | V13: =VLOOKUP($C13,HIENTRANG!$C$5:$V$59,'Biểu 01CH'!V$51,0) -> 260.38 | X13: =D13+D14+D15 -> 26909.111
A14: 1.5 | B14: Đất rừng đặc dụng | C14: RDD | D14: 0 | E14: =VLOOKUP($C14,HIENTRANG!$C$5:$V$59,'Biểu 01CH'!E$51,0) -> 0 | F14: =VLOOKUP($C14,HIENTRANG!$C$5:$V$59,'Biểu 01CH'!F$51,0) -> 0 | G14: =VLOOKUP($C14,HIENTRANG!$C$5:$V$59,'Biểu 01CH'!G$51,0) -> 0 | H14: =VLOOKUP($C14,HIENTRANG!$C$5:$V$59,'Biểu 01CH'!H$51,0) -> 0 | I14: =VLOOKUP($C14,HIENTRANG!$C$5:$V$59,'Biểu 01CH'!I$51,0) -> 0 | J14: =VLOOKUP($C14,HIENTRANG!$C$5:$V$59,'Biểu 01CH'!J$51,0) -> 0 | K14: =VLOOKUP($C14,HIENTRANG!$C$5:$V$59,'Biểu 01CH'!K$51,0) -> 0 | L14: =VLOOKUP($C14,HIENTRANG!$C$5:$V$59,'Biểu 01CH'!L$51,0) -> 0 | M14: =VLOOKUP($C14,HIENTRANG!$C$5:$V$59,'Biểu 01CH'!M$51,0) -> 0 | N14: =VLOOKUP($C14,HIENTRANG!$C$5:$V$59,'Biểu 01CH'!N$51,0) -> 0 | O14: =VLOOKUP($C14,HIENTRANG!$C$5:$V$59,'Biểu 01CH'!O$51,0) -> 0 | P14: =VLOOKUP($C14,HIENTRANG!$C$5:$V$59,'Biểu 01CH'!P$51,0) -> 0 | Q14: =VLOOKUP($C14,HIENTRANG!$C$5:$V$59,'Biểu 01CH'!Q$51,0) -> 0 | R14: =VLOOKUP($C14,HIENTRANG!$C$5:$V$59,'Biểu 01CH'!R$51,0) -> 0 | S14: =VLOOKUP($C14,HIENTRANG!$C$5:$V$59,'Biểu 01CH'!S$51,0) -> 0 | T14: =VLOOKUP($C14,HIENTRANG!$C$5:$V$59,'Biểu 01CH'!T$51,0) -> 0 | U14: =VLOOKUP($C14,HIENTRANG!$C$5:$V$59,'Biểu 01CH'!U$51,0) -> 0 | V14: =VLOOKUP($C14,HIENTRANG!$C$5:$V$59,'Biểu 01CH'!V$51,0) -> 0
A15: 1.6 | B15: Đất rừng sản xuất | C15: RSX | D15: 15845.825 | E15: =VLOOKUP($C15,HIENTRANG!$C$5:$V$59,'Biểu 01CH'!E$51,0) -> 0 | F15: =VLOOKUP($C15,HIENTRANG!$C$5:$V$59,'Biểu 01CH'!F$51,0) -> 448.442 | G15: =VLOOKUP($C15,HIENTRANG!$C$5:$V$59,'Biểu 01CH'!G$51,0) -> 0 | H15: =VLOOKUP($C15,HIENTRANG!$C$5:$V$59,'Biểu 01CH'!H$51,0) -> 1629.256 | I15: =VLOOKUP($C15,HIENTRANG!$C$5:$V$59,'Biểu 01CH'!I$51,0) -> 881.07 | J15: =VLOOKUP($C15,HIENTRANG!$C$5:$V$59,'Biểu 01CH'!J$51,0) -> 4477.859 | K15: =VLOOKUP($C15,HIENTRANG!$C$5:$V$59,'Biểu 01CH'!K$51,0) -> 219.916 | L15: =VLOOKUP($C15,HIENTRANG!$C$5:$V$59,'Biểu 01CH'!L$51,0) -> 1517.294 | M15: =VLOOKUP($C15,HIENTRANG!$C$5:$V$59,'Biểu 01CH'!M$51,0) -> 1288.144 | N15: =VLOOKUP($C15,HIENTRANG!$C$5:$V$59,'Biểu 01CH'!N$51,0) -> 1024.426 | O15: =VLOOKUP($C15,HIENTRANG!$C$5:$V$59,'Biểu 01CH'!O$51,0) -> 666.289 | P15: =VLOOKUP($C15,HIENTRANG!$C$5:$V$59,'Biểu 01CH'!P$51,0) -> 526.399 | Q15: =VLOOKUP($C15,HIENTRANG!$C$5:$V$59,'Biểu 01CH'!Q$51,0) -> 1845.219 | R15: =VLOOKUP($C15,HIENTRANG!$C$5:$V$59,'Biểu 01CH'!R$51,0) -> 51.739 | S15: =VLOOKUP($C15,HIENTRANG!$C$5:$V$59,'Biểu 01CH'!S$51,0) -> 797.39 | T15: =VLOOKUP($C15,HIENTRANG!$C$5:$V$59,'Biểu 01CH'!T$51,0) -> 247.72 | U15: =VLOOKUP($C15,HIENTRANG!$C$5:$V$59,'Biểu 01CH'!U$51,0) -> 221.27 | V15: =VLOOKUP($C15,HIENTRANG!$C$5:$V$59,'Biểu 01CH'!V$51,0) -> 3.392 | Y15: =D15*100/$D$8 -> 44.78250627
A16: 1.7 | B16: Đất nuôi trồng thuỷ sản | C16: NTS | D16: 160.969 | E16: =VLOOKUP($C16,HIENTRANG!$C$5:$V$59,'Biểu 01CH'!E$51,0) -> 0 | F16: =VLOOKUP($C16,HIENTRANG!$C$5:$V$59,'Biểu 01CH'!F$51,0) -> 0 | G16: =VLOOKUP($C16,HIENTRANG!$C$5:$V$59,'Biểu 01CH'!G$51,0) -> 16.764 | H16: =VLOOKUP($C16,HIENTRANG!$C$5:$V$59,'Biểu 01CH'!H$51,0) -> 16.909 | I16: =VLOOKUP($C16,HIENTRANG!$C$5:$V$59,'Biểu 01CH'!I$51,0) -> 1.472 | J16: =VLOOKUP($C16,HIENTRANG!$C$5:$V$59,'Biểu 01CH'!J$51,0) -> 1.199 | K16: =VLOOKUP($C16,HIENTRANG!$C$5:$V$59,'Biểu 01CH'!K$51,0) -> 9.625 | L16: =VLOOKUP($C16,HIENTRANG!$C$5:$V$59,'Biểu 01CH'!L$51,0) -> 2.969 | M16: =VLOOKUP($C16,HIENTRANG!$C$5:$V$59,'Biểu 01CH'!M$51,0) -> 6.164 | N16: =VLOOKUP($C16,HIENTRANG!$C$5:$V$59,'Biểu 01CH'!N$51,0) -> 3.899 | O16: =VLOOKUP($C16,HIENTRANG!$C$5:$V$59,'Biểu 01CH'!O$51,0) -> 15.189 | P16: =VLOOKUP($C16,HIENTRANG!$C$5:$V$59,'Biểu 01CH'!P$51,0) -> 6.5 | Q16: =VLOOKUP($C16,HIENTRANG!$C$5:$V$59,'Biểu 01CH'!Q$51,0) -> 1.75 | R16: =VLOOKUP($C16,HIENTRANG!$C$5:$V$59,'Biểu 01CH'!R$51,0) -> 5.355 | S16: =VLOOKUP($C16,HIENTRANG!$C$5:$V$59,'Biểu 01CH'!S$51,0) -> 1.09 | T16: =VLOOKUP($C16,HIENTRANG!$C$5:$V$59,'Biểu 01CH'!T$51,0) -> 33.845 | U16: =VLOOKUP($C16,HIENTRANG!$C$5:$V$59,'Biểu 01CH'!U$51,0) -> 11.12 | V16: =VLOOKUP($C16,HIENTRANG!$C$5:$V$59,'Biểu 01CH'!V$51,0) -> 27.119 | Y16: =D16*100/$D$8 -> 0.4549207915
A17: 1.8 | B17: Đất làm muối | C17: LMU | D17: 73.564 | E17: =VLOOKUP($C17,HIENTRANG!$C$5:$V$59,'Biểu 01CH'!E$51,0) -> 0 | F17: =VLOOKUP($C17,HIENTRANG!$C$5:$V$59,'Biểu 01CH'!F$51,0) -> 0 | G17: =VLOOKUP($C17,HIENTRANG!$C$5:$V$59,'Biểu 01CH'!G$51,0) -> 0 | H17: =VLOOKUP($C17,HIENTRANG!$C$5:$V$59,'Biểu 01CH'!H$51,0) -> 0 | I17: =VLOOKUP($C17,HIENTRANG!$C$5:$V$59,'Biểu 01CH'!I$51,0) -> 0 | J17: =VLOOKUP($C17,HIENTRANG!$C$5:$V$59,'Biểu 01CH'!J$51,0) -> 0 | K17: =VLOOKUP($C17,HIENTRANG!$C$5:$V$59,'Biểu 01CH'!K$51,0) -> 0 | L17: =VLOOKUP($C17,HIENTRANG!$C$5:$V$59,'Biểu 01CH'!L$51,0) -> 0 | M17: =VLOOKUP($C17,HIENTRANG!$C$5:$V$59,'Biểu 01CH'!M$51,0) -> 0 | N17: =VLOOKUP($C17,HIENTRANG!$C$5:$V$59,'Biểu 01CH'!N$51,0) -> 0 | O17: =VLOOKUP($C17,HIENTRANG!$C$5:$V$59,'Biểu 01CH'!O$51,0) -> 73.564 | P17: =VLOOKUP($C17,HIENTRANG!$C$5:$V$59,'Biểu 01CH'!P$51,0) -> 0 | Q17: =VLOOKUP($C17,HIENTRANG!$C$5:$V$59,'Biểu 01CH'!Q$51,0) -> 0 | R17: =VLOOKUP($C17,HIENTRANG!$C$5:$V$59,'Biểu 01CH'!R$51,0) -> 0 | S17: =VLOOKUP($C17,HIENTRANG!$C$5:$V$59,'Biểu 01CH'!S$51,0) -> 0 | T17: =VLOOKUP($C17,HIENTRANG!$C$5:$V$59,'Biểu 01CH'!T$51,0) -> 0 | U17: =VLOOKUP($C17,HIENTRANG!$C$5:$V$59,'Biểu 01CH'!U$51,0) -> 0 | V17: =VLOOKUP($C17,HIENTRANG!$C$5:$V$59,'Biểu 01CH'!V$51,0) -> 0
A18: 1.9 | B18: Đất nông nghiệp khác | C18: NKH | D18: 31.604 | E18: =VLOOKUP($C18,HIENTRANG!$C$5:$V$59,'Biểu 01CH'!E$51,0) -> 0 | F18: =VLOOKUP($C18,HIENTRANG!$C$5:$V$59,'Biểu 01CH'!F$51,0) -> 0 | G18: =VLOOKUP($C18,HIENTRANG!$C$5:$V$59,'Biểu 01CH'!G$51,0) -> 0 | H18: =VLOOKUP($C18,HIENTRANG!$C$5:$V$59,'Biểu 01CH'!H$51,0) -> 0 | I18: =VLOOKUP($C18,HIENTRANG!$C$5:$V$59,'Biểu 01CH'!I$51,0) -> 0 | J18: =VLOOKUP($C18,HIENTRANG!$C$5:$V$59,'Biểu 01CH'!J$51,0) -> 0 | K18: =VLOOKUP($C18,HIENTRANG!$C$5:$V$59,'Biểu 01CH'!K$51,0) -> 13.985 | L18: =VLOOKUP($C18,HIENTRANG!$C$5:$V$59,'Biểu 01CH'!L$51,0) -> 0 | M18: =VLOOKUP($C18,HIENTRANG!$C$5:$V$59,'Biểu 01CH'!M$51,0) -> 0 | N18: =VLOOKUP($C18,HIENTRANG!$C$5:$V$59,'Biểu 01CH'!N$51,0) -> 0 | O18: =VLOOKUP($C18,HIENTRANG!$C$5:$V$59,'Biểu 01CH'!O$51,0) -> 0 | P18: =VLOOKUP($C18,HIENTRANG!$C$5:$V$59,'Biểu 01CH'!P$51,0) -> 0 | Q18: =VLOOKUP($C18,HIENTRANG!$C$5:$V$59,'Biểu 01CH'!Q$51,0) -> 0 | R18: =VLOOKUP($C18,HIENTRANG!$C$5:$V$59,'Biểu 01CH'!R$51,0) -> 0 | S18: =VLOOKUP($C18,HIENTRANG!$C$5:$V$59,'Biểu 01CH'!S$51,0) -> 0 | T18: =VLOOKUP($C18,HIENTRANG!$C$5:$V$59,'Biểu 01CH'!T$51,0) -> 0 | U18: =VLOOKUP($C18,HIENTRANG!$C$5:$V$59,'Biểu 01CH'!U$51,0) -> 4.925 | V18: =VLOOKUP($C18,HIENTRANG!$C$5:$V$59,'Biểu 01CH'!V$51,0) -> 12.694
A19: 2 | B19: Đất phi nông nghiệp | C19: PNN | D19: 7529.349 | E19: =VLOOKUP($C19,HIENTRANG!$C$5:$V$59,'Biểu 01CH'!E$51,0) -> 118.7 | F19: =VLOOKUP($C19,HIENTRANG!$C$5:$V$59,'Biểu 01CH'!F$51,0) -> 166.586 | G19: =VLOOKUP($C19,HIENTRANG!$C$5:$V$59,'Biểu 01CH'!G$51,0) -> 161.21 | H19: =VLOOKUP($C19,HIENTRANG!$C$5:$V$59,'Biểu 01CH'!H$51,0) -> 860.927 | I19: =VLOOKUP($C19,HIENTRANG!$C$5:$V$59,'Biểu 01CH'!I$51,0) -> 910.655 | J19: =VLOOKUP($C19,HIENTRANG!$C$5:$V$59,'Biểu 01CH'!J$51,0) -> 967.502 | K19: =VLOOKUP($C19,HIENTRANG!$C$5:$V$59,'Biểu 01CH'!K$51,0) -> 349.627 | L19: =VLOOKUP($C19,HIENTRANG!$C$5:$V$59,'Biểu 01CH'!L$51,0) -> 399.803 | M19: =VLOOKUP($C19,HIENTRANG!$C$5:$V$59,'Biểu 01CH'!M$51,0) -> 308.743 | N19: =VLOOKUP($C19,HIENTRANG!$C$5:$V$59,'Biểu 01CH'!N$51,0) -> 1093.141 | O19: =VLOOKUP($C19,HIENTRANG!$C$5:$V$59,'Biểu 01CH'!O$51,0) -> 421.823 | P19: =VLOOKUP($C19,HIENTRANG!$C$5:$V$59,'Biểu 01CH'!P$51,0) -> 464.314 | Q19: =VLOOKUP($C19,HIENTRANG!$C$5:$V$59,'Biểu 01CH'!Q$51,0) -> 267.199 | R19: =VLOOKUP($C19,HIENTRANG!$C$5:$V$59,'Biểu 01CH'!R$51,0) -> 136.475 | S19: =VLOOKUP($C19,HIENTRANG!$C$5:$V$59,'Biểu 01CH'!S$51,0) -> 105.946 | T19: =VLOOKUP($C19,HIENTRANG!$C$5:$V$59,'Biểu 01CH'!T$51,0) -> 264.377 | U19: =VLOOKUP($C19,HIENTRANG!$C$5:$V$59,'Biểu 01CH'!U$51,0) -> 303.587 | V19: =VLOOKUP($C19,HIENTRANG!$C$5:$V$59,'Biểu 01CH'!V$51,0) -> 228.734 | Y19: =D19*100/$D$19 -> 100
A20: 2.1 | B20: Đất quốc phòng | C20: CQP | D20: 1305.95 | E20: =VLOOKUP($C20,HIENTRANG!$C$5:$V$59,'Biểu 01CH'!E$51,0) -> 0.312 | F20: =VLOOKUP($C20,HIENTRANG!$C$5:$V$59,'Biểu 01CH'!F$51,0) -> 0 | G20: =VLOOKUP($C20,HIENTRANG!$C$5:$V$59,'Biểu 01CH'!G$51,0) -> 0 | H20: =VLOOKUP($C20,HIENTRANG!$C$5:$V$59,'Biểu 01CH'!H$51,0) -> 99.752 | I20: =VLOOKUP($C20,HIENTRANG!$C$5:$V$59,'Biểu 01CH'!I$51,0) -> 242.766 | J20: =VLOOKUP($C20,HIENTRANG!$C$5:$V$59,'Biểu 01CH'!J$51,0) -> 36.802 | K20: =VLOOKUP($C20,HIENTRANG!$C$5:$V$59,'Biểu 01CH'!K$51,0) -> 0 | L20: =VLOOKUP($C20,HIENTRANG!$C$5:$V$59,'Biểu 01CH'!L$51,0) -> 0 | M20: =VLOOKUP($C20,HIENTRANG!$C$5:$V$59,'Biểu 01CH'!M$51,0) -> 0 | N20: =VLOOKUP($C20,HIENTRANG!$C$5:$V$59,'Biểu 01CH'!N$51,0) -> 858.56 | O20: =VLOOKUP($C20,HIENTRANG!$C$5:$V$59,'Biểu 01CH'!O$51,0) -> 5 | P20: =VLOOKUP($C20,HIENTRANG!$C$5:$V$59,'Biểu 01CH'!P$51,0) -> 2.468 | Q20: =VLOOKUP($C20,HIENTRANG!$C$5:$V$59,'Biểu 01CH'!Q$51,0) -> 43.5 | R20: =VLOOKUP($C20,HIENTRANG!$C$5:$V$59,'Biểu 01CH'!R$51,0) -> 0 | S20: =VLOOKUP($C20,HIENTRANG!$C$5:$V$59,'Biểu 01CH'!S$51,0) -> 0 | T20: =VLOOKUP($C20,HIENTRANG!$C$5:$V$59,'Biểu 01CH'!T$51,0) -> 15.58 | U20: =VLOOKUP($C20,HIENTRANG!$C$5:$V$59,'Biểu 01CH'!U$51,0) -> 1.21 | V20: =VLOOKUP($C20,HIENTRANG!$C$5:$V$59,'Biểu 01CH'!V$51,0) -> 0 | Y20: =D20*100/$D$19 -> 17.34479302
A21: 2.2 | B21: Đất an ninh | C21: CAN | D21: 3.562 | E21: =VLOOKUP($C21,HIENTRANG!$C$5:$V$59,'Biểu 01CH'!E$51,0) -> 0 | F21: =VLOOKUP($C21,HIENTRANG!$C$5:$V$59,'Biểu 01CH'!F$51,0) -> 0 | G21: =VLOOKUP($C21,HIENTRANG!$C$5:$V$59,'Biểu 01CH'!G$51,0) -> 0 | H21: =VLOOKUP($C21,HIENTRANG!$C$5:$V$59,'Biểu 01CH'!H$51,0) -> 0 | I21: =VLOOKUP($C21,HIENTRANG!$C$5:$V$59,'Biểu 01CH'!I$51,0) -> 0.526 | J21: =VLOOKUP($C21,HIENTRANG!$C$5:$V$59,'Biểu 01CH'!J$51,0) -> 0 | K21: =VLOOKUP($C21,HIENTRANG!$C$5:$V$59,'Biểu 01CH'!K$51,0) -> 0 | L21: =VLOOKUP($C21,HIENTRANG!$C$5:$V$59,'Biểu 01CH'!L$51,0) -> 0 | M21: =VLOOKUP($C21,HIENTRANG!$C$5:$V$59,'Biểu 01CH'!M$51,0) -> 0 | N21: =VLOOKUP($C21,HIENTRANG!$C$5:$V$59,'Biểu 01CH'!N$51,0) -> 0 | O21: =VLOOKUP($C21,HIENTRANG!$C$5:$V$59,'Biểu 01CH'!O$51,0) -> 0 | P21: =VLOOKUP($C21,HIENTRANG!$C$5:$V$59,'Biểu 01CH'!P$51,0) -> 3.036 | Q21: =VLOOKUP($C21,HIENTRANG!$C$5:$V$59,'Biểu 01CH'!Q$51,0) -> 0 | R21: =VLOOKUP($C21,HIENTRANG!$C$5:$V$59,'Biểu 01CH'!R$51,0) -> 0 | S21: =VLOOKUP($C21,HIENTRANG!$C$5:$V$59,'Biểu 01CH'!S$51,0) -> 0 | T21: =VLOOKUP($C21,HIENTRANG!$C$5:$V$59,'Biểu 01CH'!T$51,0) -> 0 | U21: =VLOOKUP($C21,HIENTRANG!$C$5:$V$59,'Biểu 01CH'!U$51,0) -> 0 | V21: =VLOOKUP($C21,HIENTRANG!$C$5:$V$59,'Biểu 01CH'!V$51,0) -> 0 | Y21: =D21*100/$D$19 -> 0.04730820686
A22: 2.3 | B22: Đất khu công nghiệp | C22: SKK | D22: 104.572 | E22: =VLOOKUP($C22,HIENTRANG!$C$5:$V$59,'Biểu 01CH'!E$51,0) -> 0 | F22: =VLOOKUP($C22,HIENTRANG!$C$5:$V$59,'Biểu 01CH'!F$51,0) -> 0 | G22: =VLOOKUP($C22,HIENTRANG!$C$5:$V$59,'Biểu 01CH'!G$51,0) -> 0 | H22: =VLOOKUP($C22,HIENTRANG!$C$5:$V$59,'Biểu 01CH'!H$51,0) -> 0 | I22: =VLOOKUP($C22,HIENTRANG!$C$5:$V$59,'Biểu 01CH'!I$51,0) -> 104.572 | J22: =VLOOKUP($C22,HIENTRANG!$C$5:$V$59,'Biểu 01CH'!J$51,0) -> 0 | K22: =VLOOKUP($C22,HIENTRANG!$C$5:$V$59,'Biểu 01CH'!K$51,0) -> 0 | L22: =VLOOKUP($C22,HIENTRANG!$C$5:$V$59,'Biểu 01CH'!L$51,0) -> 0 | M22: =VLOOKUP($C22,HIENTRANG!$C$5:$V$59,'Biểu 01CH'!M$51,0) -> 0 | N22: =VLOOKUP($C22,HIENTRANG!$C$5:$V$59,'Biểu 01CH'!N$51,0) -> 0 | O22: =VLOOKUP($C22,HIENTRANG!$C$5:$V$59,'Biểu 01CH'!O$51,0) -> 0 | P22: =VLOOKUP($C22,HIENTRANG!$C$5:$V$59,'Biểu 01CH'!P$51,0) -> 0 | Q22: =VLOOKUP($C22,HIENTRANG!$C$5:$V$59,'Biểu 01CH'!Q$51,0) -> 0 | R22: =VLOOKUP($C22,HIENTRANG!$C$5:$V$59,'Biểu 01CH'!R$51,0) -> 0 | S22: =VLOOKUP($C22,HIENTRANG!$C$5:$V$59,'Biểu 01CH'!S$51,0) -> 0 | T22: =VLOOKUP($C22,HIENTRANG!$C$5:$V$59,'Biểu 01CH'!T$51,0) -> 0 | U22: =VLOOKUP($C22,HIENTRANG!$C$5:$V$59,'Biểu 01CH'!U$51,0) -> 0 | V22: =VLOOKUP($C22,HIENTRANG!$C$5:$V$59,'Biểu 01CH'!V$51,0) -> 0 | Y22: 1.388858452
A23: 2.4 | B23: Đất khu chế xuất | C23: SKT | D23: 0 | E23: =VLOOKUP($C23,HIENTRANG!$C$5:$V$59,'Biểu 01CH'!E$51,0) -> 0 | F23: =VLOOKUP($C23,HIENTRANG!$C$5:$V$59,'Biểu 01CH'!F$51,0) -> 0 | G23: =VLOOKUP($C23,HIENTRANG!$C$5:$V$59,'Biểu 01CH'!G$51,0) -> 0 | H23: =VLOOKUP($C23,HIENTRANG!$C$5:$V$59,'Biểu 01CH'!H$51,0) -> 0 | I23: =VLOOKUP($C23,HIENTRANG!$C$5:$V$59,'Biểu 01CH'!I$51,0) -> 0 | J23: =VLOOKUP($C23,HIENTRANG!$C$5:$V$59,'Biểu 01CH'!J$51,0) -> 0 | K23: =VLOOKUP($C23,HIENTRANG!$C$5:$V$59,'Biểu 01CH'!K$51,0) -> 0 | L23: =VLOOKUP($C23,HIENTRANG!$C$5:$V$59,'Biểu 01CH'!L$51,0) -> 0 | M23: =VLOOKUP($C23,HIENTRANG!$C$5:$V$59,'Biểu 01CH'!M$51,0) -> 0 | N23: =VLOOKUP($C23,HIENTRANG!$C$5:$V$59,'Biểu 01CH'!N$51,0) -> 0 | O23: =VLOOKUP($C23,HIENTRANG!$C$5:$V$59,'Biểu 01CH'!O$51,0) -> 0 | P23: =VLOOKUP($C23,HIENTRANG!$C$5:$V$59,'Biểu 01CH'!P$51,0) -> 0 | Q23: =VLOOKUP($C23,HIENTRANG!$C$5:$V$59,'Biểu 01CH'!Q$51,0) -> 0 | R23: =VLOOKUP($C23,HIENTRANG!$C$5:$V$59,'Biểu 01CH'!R$51,0) -> 0 | S23: =VLOOKUP($C23,HIENTRANG!$C$5:$V$59,'Biểu 01CH'!S$51,0) -> 0 | T23: =VLOOKUP($C23,HIENTRANG!$C$5:$V$59,'Biểu 01CH'!T$51,0) -> 0 | U23: =VLOOKUP($C23,HIENTRANG!$C$5:$V$59,'Biểu 01CH'!U$51,0) -> 0 | V23: =VLOOKUP($C23,HIENTRANG!$C$5:$V$59,'Biểu 01CH'!V$51,0) -> 0 | Y23: 0
A24: 2.5 | B24: Đất cụm công nghiệp | C24: SKN | D24: 0 | E24: =VLOOKUP($C24,HIENTRANG!$C$5:$V$59,'Biểu 01CH'!E$51,0) -> 0 | F24: =VLOOKUP($C24,HIENTRANG!$C$5:$V$59,'Biểu 01CH'!F$51,0) -> 0 | G24: =VLOOKUP($C24,HIENTRANG!$C$5:$V$59,'Biểu 01CH'!G$51,0) -> 0 | H24: =VLOOKUP($C24,HIENTRANG!$C$5:$V$59,'Biểu 01CH'!H$51,0) -> 0 | I24: =VLOOKUP($C24,HIENTRANG!$C$5:$V$59,'Biểu 01CH'!I$51,0) -> 0 | J24: =VLOOKUP($C24,HIENTRANG!$C$5:$V$59,'Biểu 01CH'!J$51,0) -> 0 | K24: =VLOOKUP($C24,HIENTRANG!$C$5:$V$59,'Biểu 01CH'!K$51,0) -> 0 | L24: =VLOOKUP($C24,HIENTRANG!$C$5:$V$59,'Biểu 01CH'!L$51,0) -> 0 | M24: =VLOOKUP($C24,HIENTRANG!$C$5:$V$59,'Biểu 01CH'!M$51,0) -> 0 | N24: =VLOOKUP($C24,HIENTRANG!$C$5:$V$59,'Biểu 01CH'!N$51,0) -> 0 | O24: =VLOOKUP($C24,HIENTRANG!$C$5:$V$59,'Biểu 01CH'!O$51,0) -> 0 | P24: =VLOOKUP($C24,HIENTRANG!$C$5:$V$59,'Biểu 01CH'!P$51,0) -> 0 | Q24: =VLOOKUP($C24,HIENTRANG!$C$5:$V$59,'Biểu 01CH'!Q$51,0) -> 0 | R24: =VLOOKUP($C24,HIENTRANG!$C$5:$V$59,'Biểu 01CH'!R$51,0) -> 0 | S24: =VLOOKUP($C24,HIENTRANG!$C$5:$V$59,'Biểu 01CH'!S$51,0) -> 0 | T24: =VLOOKUP($C24,HIENTRANG!$C$5:$V$59,'Biểu 01CH'!T$51,0) -> 0 | U24: =VLOOKUP($C24,HIENTRANG!$C$5:$V$59,'Biểu 01CH'!U$51,0) -> 0 | V24: =VLOOKUP($C24,HIENTRANG!$C$5:$V$59,'Biểu 01CH'!V$51,0) -> 0 | Y24: 0
A25: 2.6 | B25: Đất thương mại dịch vụ | C25: TMD | D25: 81.326 | E25: =VLOOKUP($C25,HIENTRANG!$C$5:$V$59,'Biểu 01CH'!E$51,0) -> 0 | F25: =VLOOKUP($C25,HIENTRANG!$C$5:$V$59,'Biểu 01CH'!F$51,0) -> 0.248 | G25: =VLOOKUP($C25,HIENTRANG!$C$5:$V$59,'Biểu 01CH'!G$51,0) -> 0 | H25: =VLOOKUP($C25,HIENTRANG!$C$5:$V$59,'Biểu 01CH'!H$51,0) -> 0.06 | I25: =VLOOKUP($C25,HIENTRANG!$C$5:$V$59,'Biểu 01CH'!I$51,0) -> 69.964 | J25: =VLOOKUP($C25,HIENTRANG!$C$5:$V$59,'Biểu 01CH'!J$51,0) -> 0 | K25: =VLOOKUP($C25,HIENTRANG!$C$5:$V$59,'Biểu 01CH'!K$51,0) -> 0.496 | L25: =VLOOKUP($C25,HIENTRANG!$C$5:$V$59,'Biểu 01CH'!L$51,0) -> 0 | M25: =VLOOKUP($C25,HIENTRANG!$C$5:$V$59,'Biểu 01CH'!M$51,0) -> 0.578 | N25: =VLOOKUP($C25,HIENTRANG!$C$5:$V$59,'Biểu 01CH'!N$51,0) -> 0 | O25: =VLOOKUP($C25,HIENTRANG!$C$5:$V$59,'Biểu 01CH'!O$51,0) -> 0 | P25: =VLOOKUP($C25,HIENTRANG!$C$5:$V$59,'Biểu 01CH'!P$51,0) -> 3.91 | Q25: =VLOOKUP($C25,HIENTRANG!$C$5:$V$59,'Biểu 01CH'!Q$51,0) -> 0.7 | R25: =VLOOKUP($C25,HIENTRANG!$C$5:$V$59,'Biểu 01CH'!R$51,0) -> 0 | S25: =VLOOKUP($C25,HIENTRANG!$C$5:$V$59,'Biểu 01CH'!S$51,0) -> 0.73 | T25: =VLOOKUP($C25,HIENTRANG!$C$5:$V$59,'Biểu 01CH'!T$51,0) -> 0 | U25: =VLOOKUP($C25,HIENTRANG!$C$5:$V$59,'Biểu 01CH'!U$51,0) -> 4.64 | V25: =VLOOKUP($C25,HIENTRANG!$C$5:$V$59,'Biểu 01CH'!V$51,0) -> 0 | Y25: 1.080119941
A26: 2.7 | B26: Đất cơ sở sản xuất phi nông nghiệp | C26: SKC | D26: 91.862 | E26: =VLOOKUP($C26,HIENTRANG!$C$5:$V$59,'Biểu 01CH'!E$51,0) -> 6.405 | F26: =VLOOKUP($C26,HIENTRANG!$C$5:$V$59,'Biểu 01CH'!F$51,0) -> 8.802 | G26: =VLOOKUP($C26,HIENTRANG!$C$5:$V$59,'Biểu 01CH'!G$51,0) -> 0 | H26: =VLOOKUP($C26,HIENTRANG!$C$5:$V$59,'Biểu 01CH'!H$51,0) -> 0.112 | I26: =VLOOKUP($C26,HIENTRANG!$C$5:$V$59,'Biểu 01CH'!I$51,0) -> 7.591 | J26: =VLOOKUP($C26,HIENTRANG!$C$5:$V$59,'Biểu 01CH'!J$51,0) -> 0 | K26: =VLOOKUP($C26,HIENTRANG!$C$5:$V$59,'Biểu 01CH'!K$51,0) -> 2.264 | L26: =VLOOKUP($C26,HIENTRANG!$C$5:$V$59,'Biểu 01CH'!L$51,0) -> 0 | M26: =VLOOKUP($C26,HIENTRANG!$C$5:$V$59,'Biểu 01CH'!M$51,0) -> 2.853 | N26: =VLOOKUP($C26,HIENTRANG!$C$5:$V$59,'Biểu 01CH'!N$51,0) -> 0 | O26: =VLOOKUP($C26,HIENTRANG!$C$5:$V$59,'Biểu 01CH'!O$51,0) -> 46.388 | P26: =VLOOKUP($C26,HIENTRANG!$C$5:$V$59,'Biểu 01CH'!P$51,0) -> 0.26 | Q26: =VLOOKUP($C26,HIENTRANG!$C$5:$V$59,'Biểu 01CH'!Q$51,0) -> 0 | R26: =VLOOKUP($C26,HIENTRANG!$C$5:$V$59,'Biểu 01CH'!R$51,0) -> 4.056 | S26: =VLOOKUP($C26,HIENTRANG!$C$5:$V$59,'Biểu 01CH'!S$51,0) -> 0.14 | T26: =VLOOKUP($C26,HIENTRANG!$C$5:$V$59,'Biểu 01CH'!T$51,0) -> 2.351 | U26: =VLOOKUP($C26,HIENTRANG!$C$5:$V$59,'Biểu 01CH'!U$51,0) -> 4.34 | V26: =VLOOKUP($C26,HIENTRANG!$C$5:$V$59,'Biểu 01CH'!V$51,0) -> 6.3 | Y26: 1.220052358
A27: 2.8 | B27: Đất sử dụng cho hoạt động khoáng sản | C27: SKS | D27: 5.141 | E27: =VLOOKUP($C27,HIENTRANG!$C$5:$V$59,'Biểu 01CH'!E$51,0) -> 0 | F27: =VLOOKUP($C27,HIENTRANG!$C$5:$V$59,'Biểu 01CH'!F$51,0) -> 0 | G27: =VLOOKUP($C27,HIENTRANG!$C$5:$V$59,'Biểu 01CH'!G$51,0) -> 0 | H27: =VLOOKUP($C27,HIENTRANG!$C$5:$V$59,'Biểu 01CH'!H$51,0) -> 0 | I27: =VLOOKUP($C27,HIENTRANG!$C$5:$V$59,'Biểu 01CH'!I$51,0) -> 5.141 | J27: =VLOOKUP($C27,HIENTRANG!$C$5:$V$59,'Biểu 01CH'!J$51,0) -> 0 | K27: =VLOOKUP($C27,HIENTRANG!$C$5:$V$59,'Biểu 01CH'!K$51,0) -> 0 | L27: =VLOOKUP($C27,HIENTRANG!$C$5:$V$59,'Biểu 01CH'!L$51,0) -> 0 | M27: =VLOOKUP($C27,HIENTRANG!$C$5:$V$59,'Biểu 01CH'!M$51,0) -> 0 | N27: =VLOOKUP($C27,HIENTRANG!$C$5:$V$59,'Biểu 01CH'!N$51,0) -> 0 | O27: =VLOOKUP($C27,HIENTRANG!$C$5:$V$59,'Biểu 01CH'!O$51,0) -> 0 | P27: =VLOOKUP($C27,HIENTRANG!$C$5:$V$59,'Biểu 01CH'!P$51,0) -> 0 | Q27: =VLOOKUP($C27,HIENTRANG!$C$5:$V$59,'Biểu 01CH'!Q$51,0) -> 0 | R27: =VLOOKUP($C27,HIENTRANG!$C$5:$V$59,'Biểu 01CH'!R$51,0) -> 0 | S27: =VLOOKUP($C27,HIENTRANG!$C$5:$V$59,'Biểu 01CH'!S$51,0) -> 0 | T27: =VLOOKUP($C27,HIENTRANG!$C$5:$V$59,'Biểu 01CH'!T$51,0) -> 0 | U27: =VLOOKUP($C27,HIENTRANG!$C$5:$V$59,'Biểu 01CH'!U$51,0) -> 0 | V27: =VLOOKUP($C27,HIENTRANG!$C$5:$V$59,'Biểu 01CH'!V$51,0) -> 0 | Y27: 0.06827947542
A28: 2.9 | B28: Đất phát triển hạ tầng cấp quốc gia, cấp tỉnh, cấp huyện, cấp xã | C28: DHT | D28: 3187.368 | E28: =VLOOKUP($C28,HIENTRANG!$C$5:$V$59,'Biểu 01CH'!E$51,0) -> 19.333 | F28: =VLOOKUP($C28,HIENTRANG!$C$5:$V$59,'Biểu 01CH'!F$51,0) -> 44.158 | G28: =VLOOKUP($C28,HIENTRANG!$C$5:$V$59,'Biểu 01CH'!G$51,0) -> 28.38 | H28: =VLOOKUP($C28,HIENTRANG!$C$5:$V$59,'Biểu 01CH'!H$51,0) -> 441.586 | I28: =VLOOKUP($C28,HIENTRANG!$C$5:$V$59,'Biểu 01CH'!I$51,0) -> 264.918 | J28: =VLOOKUP($C28,HIENTRANG!$C$5:$V$59,'Biểu 01CH'!J$51,0) -> 747.221 | K28: =VLOOKUP($C28,HIENTRANG!$C$5:$V$59,'Biểu 01CH'!K$51,0) -> 161.379 | L28: =VLOOKUP($C28,HIENTRANG!$C$5:$V$59,'Biểu 01CH'!L$51,0) -> 261.937 | M28: =VLOOKUP($C28,HIENTRANG!$C$5:$V$59,'Biểu 01CH'!M$51,0) -> 181.21 | N28: =VLOOKUP($C28,HIENTRANG!$C$5:$V$59,'Biểu 01CH'!N$51,0) -> 106.752 | O28: =VLOOKUP($C28,HIENTRANG!$C$5:$V$59,'Biểu 01CH'!O$51,0) -> 177.563 | P28: =VLOOKUP($C28,HIENTRANG!$C$5:$V$59,'Biểu 01CH'!P$51,0) -> 253.737 | Q28: =VLOOKUP($C28,HIENTRANG!$C$5:$V$59,'Biểu 01CH'!Q$51,0) -> 141.639 | R28: =VLOOKUP($C28,HIENTRANG!$C$5:$V$59,'Biểu 01CH'!R$51,0) -> 48.935 | S28: =VLOOKUP($C28,HIENTRANG!$C$5:$V$59,'Biểu 01CH'!S$51,0) -> 51.018 | T28: =VLOOKUP($C28,HIENTRANG!$C$5:$V$59,'Biểu 01CH'!T$51,0) -> 55.134 | U28: =VLOOKUP($C28,HIENTRANG!$C$5:$V$59,'Biểu 01CH'!U$51,0) -> 94.284 | V28: =VLOOKUP($C28,HIENTRANG!$C$5:$V$59,'Biểu 01CH'!V$51,0) -> 108.184 | Y28: 42.33258413
A29: 2.10 | B29: Đất có di tích lịch sử - văn hóa | C29: DDT | D29: 2.83 | E29: =VLOOKUP($C29,HIENTRANG!$C$5:$V$59,'Biểu 01CH'!E$51,0) -> 0 | F29: =VLOOKUP($C29,HIENTRANG!$C$5:$V$59,'Biểu 01CH'!F$51,0) -> 0.134 | G29: =VLOOKUP($C29,HIENTRANG!$C$5:$V$59,'Biểu 01CH'!G$51,0) -> 0 | H29: =VLOOKUP($C29,HIENTRANG!$C$5:$V$59,'Biểu 01CH'!H$51,0) -> 0 | I29: =VLOOKUP($C29,HIENTRANG!$C$5:$V$59,'Biểu 01CH'!I$51,0) -> 1.07 | J29: =VLOOKUP($C29,HIENTRANG!$C$5:$V$59,'Biểu 01CH'!J$51,0) -> 0 | K29: =VLOOKUP($C29,HIENTRANG!$C$5:$V$59,'Biểu 01CH'!K$51,0) -> 0 | L29: =VLOOKUP($C29,HIENTRANG!$C$5:$V$59,'Biểu 01CH'!L$51,0) -> 0 | M29: =VLOOKUP($C29,HIENTRANG!$C$5:$V$59,'Biểu 01CH'!M$51,0) -> 0 | N29: =VLOOKUP($C29,HIENTRANG!$C$5:$V$59,'Biểu 01CH'!N$51,0) -> 0.052 | O29: =VLOOKUP($C29,HIENTRANG!$C$5:$V$59,'Biểu 01CH'!O$51,0) -> 0.29 | P29: =VLOOKUP($C29,HIENTRANG!$C$5:$V$59,'Biểu 01CH'!P$51,0) -> 0.524 | Q29: =VLOOKUP($C29,HIENTRANG!$C$5:$V$59,'Biểu 01CH'!Q$51,0) -> 0 | R29: =VLOOKUP($C29,HIENTRANG!$C$5:$V$59,'Biểu 01CH'!R$51,0) -> 0.09 | S29: =VLOOKUP($C29,HIENTRANG!$C$5:$V$59,'Biểu 01CH'!S$51,0) -> 0 | T29: =VLOOKUP($C29,HIENTRANG!$C$5:$V$59,'Biểu 01CH'!T$51,0) -> 0 | U29: =VLOOKUP($C29,HIENTRANG!$C$5:$V$59,'Biểu 01CH'!U$51,0) -> 0.67 | V29: =VLOOKUP($C29,HIENTRANG!$C$5:$V$59,'Biểu 01CH'!V$51,0) -> 0 | Y29: 0.03758625082
A30: 2.11 | B30: Đất danh lam thắng cảnh | C30: DDL | D30: 0 | E30: =VLOOKUP($C30,HIENTRANG!$C$5:$V$59,'Biểu 01CH'!E$51,0) -> 0 | F30: =VLOOKUP($C30,HIENTRANG!$C$5:$V$59,'Biểu 01CH'!F$51,0) -> 0 | G30: =VLOOKUP($C30,HIENTRANG!$C$5:$V$59,'Biểu 01CH'!G$51,0) -> 0 | H30: =VLOOKUP($C30,HIENTRANG!$C$5:$V$59,'Biểu 01CH'!H$51,0) -> 0 | I30: =VLOOKUP($C30,HIENTRANG!$C$5:$V$59,'Biểu 01CH'!I$51,0) -> 0 | J30: =VLOOKUP($C30,HIENTRANG!$C$5:$V$59,'Biểu 01CH'!J$51,0) -> 0 | K30: =VLOOKUP($C30,HIENTRANG!$C$5:$V$59,'Biểu 01CH'!K$51,0) -> 0 | L30: =VLOOKUP($C30,HIENTRANG!$C$5:$V$59,'Biểu 01CH'!L$51,0) -> 0 | M30: =VLOOKUP($C30,HIENTRANG!$C$5:$V$59,'Biểu 01CH'!M$51,0) -> 0 | N30: =VLOOKUP($C30,HIENTRANG!$C$5:$V$59,'Biểu 01CH'!N$51,0) -> 0 | O30: =VLOOKUP($C30,HIENTRANG!$C$5:$V$59,'Biểu 01CH'!O$51,0) -> 0 | P30: =VLOOKUP($C30,HIENTRANG!$C$5:$V$59,'Biểu 01CH'!P$51,0) -> 0 | Q30: =VLOOKUP($C30,HIENTRANG!$C$5:$V$59,'Biểu 01CH'!Q$51,0) -> 0 | R30: =VLOOKUP($C30,HIENTRANG!$C$5:$V$59,'Biểu 01CH'!R$51,0) -> 0 | S30: =VLOOKUP($C30,HIENTRANG!$C$5:$V$59,'Biểu 01CH'!S$51,0) -> 0 | T30: =VLOOKUP($C30,HIENTRANG!$C$5:$V$59,'Biểu 01CH'!T$51,0) -> 0 | U30: =VLOOKUP($C30,HIENTRANG!$C$5:$V$59,'Biểu 01CH'!U$51,0) -> 0 | V30: =VLOOKUP($C30,HIENTRANG!$C$5:$V$59,'Biểu 01CH'!V$51,0) -> 0 | Y30: 0
A31: 2.12 | B31: Đất bải thải, xử lý chất thải | C31: DRA | D31: 15.454 | E31: =VLOOKUP($C31,HIENTRANG!$C$5:$V$59,'Biểu 01CH'!E$51,0) -> 0 | F31: =VLOOKUP($C31,HIENTRANG!$C$5:$V$59,'Biểu 01CH'!F$51,0) -> 0 | G31: =VLOOKUP($C31,HIENTRANG!$C$5:$V$59,'Biểu 01CH'!G$51,0) -> 0 | H31: =VLOOKUP($C31,HIENTRANG!$C$5:$V$59,'Biểu 01CH'!H$51,0) -> 1.896 | I31: =VLOOKUP($C31,HIENTRANG!$C$5:$V$59,'Biểu 01CH'!I$51,0) -> 0 | J31: =VLOOKUP($C31,HIENTRANG!$C$5:$V$59,'Biểu 01CH'!J$51,0) -> 0 | K31: =VLOOKUP($C31,HIENTRANG!$C$5:$V$59,'Biểu 01CH'!K$51,0) -> 0 | L31: =VLOOKUP($C31,HIENTRANG!$C$5:$V$59,'Biểu 01CH'!L$51,0) -> 0 | M31: =VLOOKUP($C31,HIENTRANG!$C$5:$V$59,'Biểu 01CH'!M$51,0) -> 0 | N31: =VLOOKUP($C31,HIENTRANG!$C$5:$V$59,'Biểu 01CH'!N$51,0) -> 13.474 | O31: =VLOOKUP($C31,HIENTRANG!$C$5:$V$59,'Biểu 01CH'!O$51,0) -> 0.084 | P31: =VLOOKUP($C31,HIENTRANG!$C$5:$V$59,'Biểu 01CH'!P$51,0) -> 0 | Q31: =VLOOKUP($C31,HIENTRANG!$C$5:$V$59,'Biểu 01CH'!Q$51,0) -> 0 | R31: =VLOOKUP($C31,HIENTRANG!$C$5:$V$59,'Biểu 01CH'!R$51,0) -> 0 | S31: =VLOOKUP($C31,HIENTRANG!$C$5:$V$59,'Biểu 01CH'!S$51,0) -> 0 | T31: =VLOOKUP($C31,HIENTRANG!$C$5:$V$59,'Biểu 01CH'!T$51,0) -> 0 | U31: =VLOOKUP($C31,HIENTRANG!$C$5:$V$59,'Biểu 01CH'!U$51,0) -> 0 | V31: =VLOOKUP($C31,HIENTRANG!$C$5:$V$59,'Biểu 01CH'!V$51,0) -> 0 | Y31: 0.2052501485
A32: 2.13 | B32: Đất ở tại nông thôn | C32: ONT | D32: 888.164 | E32: =VLOOKUP($C32,HIENTRANG!$C$5:$V$59,'Biểu 01CH'!E$51,0) -> 35.013 | F32: =VLOOKUP($C32,HIENTRANG!$C$5:$V$59,'Biểu 01CH'!F$51,0) -> 25.95 | G32: =VLOOKUP($C32,HIENTRANG!$C$5:$V$59,'Biểu 01CH'!G$51,0) -> 23.27 | H32: =VLOOKUP($C32,HIENTRANG!$C$5:$V$59,'Biểu 01CH'!H$51,0) -> 86.02 | I32: =VLOOKUP($C32,HIENTRANG!$C$5:$V$59,'Biểu 01CH'!I$51,0) -> 89.892 | J32: =VLOOKUP($C32,HIENTRANG!$C$5:$V$59,'Biểu 01CH'!J$51,0) -> 55.575 | K32: =VLOOKUP($C32,HIENTRANG!$C$5:$V$59,'Biểu 01CH'!K$51,0) -> 54.14 | L32: =VLOOKUP($C32,HIENTRANG!$C$5:$V$59,'Biểu 01CH'!L$51,0) -> 33.004 | M32: =VLOOKUP($C32,HIENTRANG!$C$5:$V$59,'Biểu 01CH'!M$51,0) -> 44.9 | N32: =VLOOKUP($C32,HIENTRANG!$C$5:$V$59,'Biểu 01CH'!N$51,0) -> 42.024 | O32: =VLOOKUP($C32,HIENTRANG!$C$5:$V$59,'Biểu 01CH'!O$51,0) -> 72.92 | P32: =VLOOKUP($C32,HIENTRANG!$C$5:$V$59,'Biểu 01CH'!P$51,0) -> 72.41 | Q32: =VLOOKUP($C32,HIENTRANG!$C$5:$V$59,'Biểu 01CH'!Q$51,0) -> 36.33 | R32: =VLOOKUP($C32,HIENTRANG!$C$5:$V$59,'Biểu 01CH'!R$51,0) -> 24.216 | S32: =VLOOKUP($C32,HIENTRANG!$C$5:$V$59,'Biểu 01CH'!S$51,0) -> 32.24 | T32: =VLOOKUP($C32,HIENTRANG!$C$5:$V$59,'Biểu 01CH'!T$51,0) -> 32.56 | U32: =VLOOKUP($C32,HIENTRANG!$C$5:$V$59,'Biểu 01CH'!U$51,0) -> 68.94 | V32: =VLOOKUP($C32,HIENTRANG!$C$5:$V$59,'Biểu 01CH'!V$51,0) -> 58.76 | Y32: 11.79602646
A33: 2.14 | B33: Đất ở tại đô thị | C33: ODT | D33: 0 | E33: =VLOOKUP($C33,HIENTRANG!$C$5:$V$59,'Biểu 01CH'!E$51,0) -> 0 | F33: =VLOOKUP($C33,HIENTRANG!$C$5:$V$59,'Biểu 01CH'!F$51,0) -> 0 | G33: =VLOOKUP($C33,HIENTRANG!$C$5:$V$59,'Biểu 01CH'!G$51,0) -> 0 | H33: =VLOOKUP($C33,HIENTRANG!$C$5:$V$59,'Biểu 01CH'!H$51,0) -> 0 | I33: =VLOOKUP($C33,HIENTRANG!$C$5:$V$59,'Biểu 01CH'!I$51,0) -> 0 | J33: =VLOOKUP($C33,HIENTRANG!$C$5:$V$59,'Biểu 01CH'!J$51,0) -> 0 | K33: =VLOOKUP($C33,HIENTRANG!$C$5:$V$59,'Biểu 01CH'!K$51,0) -> 0 | L33: =VLOOKUP($C33,HIENTRANG!$C$5:$V$59,'Biểu 01CH'!L$51,0) -> 0 | M33: =VLOOKUP($C33,HIENTRANG!$C$5:$V$59,'Biểu 01CH'!M$51,0) -> 0 | N33: =VLOOKUP($C33,HIENTRANG!$C$5:$V$59,'Biểu 01CH'!N$51,0) -> 0 | O33: =VLOOKUP($C33,HIENTRANG!$C$5:$V$59,'Biểu 01CH'!O$51,0) -> 0 | P33: =VLOOKUP($C33,HIENTRANG!$C$5:$V$59,'Biểu 01CH'!P$51,0) -> 0 | Q33: =VLOOKUP($C33,HIENTRANG!$C$5:$V$59,'Biểu 01CH'!Q$51,0) -> 0 | R33: =VLOOKUP($C33,HIENTRANG!$C$5:$V$59,'Biểu 01CH'!R$51,0) -> 0 | S33: =VLOOKUP($C33,HIENTRANG!$C$5:$V$59,'Biểu 01CH'!S$51,0) -> 0 | T33: =VLOOKUP($C33,HIENTRANG!$C$5:$V$59,'Biểu 01CH'!T$51,0) -> 0 | U33: =VLOOKUP($C33,HIENTRANG!$C$5:$V$59,'Biểu 01CH'!U$51,0) -> 0 | V33: =VLOOKUP($C33,HIENTRANG!$C$5:$V$59,'Biểu 01CH'!V$51,0) -> 0 | Y33: 0
A34: 2.15 | B34: Đất xây dựng trụ sở cơ quan | C34: TSC | D34: 13.762 | E34: =VLOOKUP($C34,HIENTRANG!$C$5:$V$59,'Biểu 01CH'!E$51,0) -> 0.202 | F34: =VLOOKUP($C34,HIENTRANG!$C$5:$V$59,'Biểu 01CH'!F$51,0) -> 0.39 | G34: =VLOOKUP($C34,HIENTRANG!$C$5:$V$59,'Biểu 01CH'!G$51,0) -> 0.214 | H34: =VLOOKUP($C34,HIENTRANG!$C$5:$V$59,'Biểu 01CH'!H$51,0) -> 0.114 | I34: =VLOOKUP($C34,HIENTRANG!$C$5:$V$59,'Biểu 01CH'!I$51,0) -> 0.95 | J34: =VLOOKUP($C34,HIENTRANG!$C$5:$V$59,'Biểu 01CH'!J$51,0) -> 0.365 | K34: =VLOOKUP($C34,HIENTRANG!$C$5:$V$59,'Biểu 01CH'!K$51,0) -> 0.494 | L34: =VLOOKUP($C34,HIENTRANG!$C$5:$V$59,'Biểu 01CH'!L$51,0) -> 0.334 | M34: =VLOOKUP($C34,HIENTRANG!$C$5:$V$59,'Biểu 01CH'!M$51,0) -> 0.322 | N34: =VLOOKUP($C34,HIENTRANG!$C$5:$V$59,'Biểu 01CH'!N$51,0) -> 0.143 | O34: =VLOOKUP($C34,HIENTRANG!$C$5:$V$59,'Biểu 01CH'!O$51,0) -> 0.27 | P34: =VLOOKUP($C34,HIENTRANG!$C$5:$V$59,'Biểu 01CH'!P$51,0) -> 7.69 | Q34: =VLOOKUP($C34,HIENTRANG!$C$5:$V$59,'Biểu 01CH'!Q$51,0) -> 0.434 | R34: =VLOOKUP($C34,HIENTRANG!$C$5:$V$59,'Biểu 01CH'!R$51,0) -> 0.08 | S34: =VLOOKUP($C34,HIENTRANG!$C$5:$V$59,'Biểu 01CH'!S$51,0) -> 0.57 | T34: =VLOOKUP($C34,HIENTRANG!$C$5:$V$59,'Biểu 01CH'!T$51,0) -> 0.25 | U34: =VLOOKUP($C34,HIENTRANG!$C$5:$V$59,'Biểu 01CH'!U$51,0) -> 0.42 | V34: =VLOOKUP($C34,HIENTRANG!$C$5:$V$59,'Biểu 01CH'!V$51,0) -> 0.52 | Y34: 0.1827780861
A35: 2.16 | B35: Đất xây dựng trụ sở của tổ chức sự nghiệp | C35: DTS | D35: 0.03 | E35: =VLOOKUP($C35,HIENTRANG!$C$5:$V$59,'Biểu 01CH'!E$51,0) -> 0.03 | F35: =VLOOKUP($C35,HIENTRANG!$C$5:$V$59,'Biểu 01CH'!F$51,0) -> 0 | G35: =VLOOKUP($C35,HIENTRANG!$C$5:$V$59,'Biểu 01CH'!G$51,0) -> 0 | H35: =VLOOKUP($C35,HIENTRANG!$C$5:$V$59,'Biểu 01CH'!H$51,0) -> 0 | I35: =VLOOKUP($C35,HIENTRANG!$C$5:$V$59,'Biểu 01CH'!I$51,0) -> 0 | J35: =VLOOKUP($C35,HIENTRANG!$C$5:$V$59,'Biểu 01CH'!J$51,0) -> 0 | K35: =VLOOKUP($C35,HIENTRANG!$C$5:$V$59,'Biểu 01CH'!K$51,0) -> 0 | L35: =VLOOKUP($C35,HIENTRANG!$C$5:$V$59,'Biểu 01CH'!L$51,0) -> 0 | M35: =VLOOKUP($C35,HIENTRANG!$C$5:$V$59,'Biểu 01CH'!M$51,0) -> 0 | N35: =VLOOKUP($C35,HIENTRANG!$C$5:$V$59,'Biểu 01CH'!N$51,0) -> 0 | O35: =VLOOKUP($C35,HIENTRANG!$C$5:$V$59,'Biểu 01CH'!O$51,0) -> 0 | P35: =VLOOKUP($C35,HIENTRANG!$C$5:$V$59,'Biểu 01CH'!P$51,0) -> 0 | Q35: =VLOOKUP($C35,HIENTRANG!$C$5:$V$59,'Biểu 01CH'!Q$51,0) -> 0 | R35: =VLOOKUP($C35,HIENTRANG!$C$5:$V$59,'Biểu 01CH'!R$51,0) -> 0 | S35: =VLOOKUP($C35,HIENTRANG!$C$5:$V$59,'Biểu 01CH'!S$51,0) -> 0 | T35: =VLOOKUP($C35,HIENTRANG!$C$5:$V$59,'Biểu 01CH'!T$51,0) -> 0 | U35: =VLOOKUP($C35,HIENTRANG!$C$5:$V$59,'Biểu 01CH'!U$51,0) -> 0 | V35: =VLOOKUP($C35,HIENTRANG!$C$5:$V$59,'Biểu 01CH'!V$51,0) -> 0 | Y35: 0.0003984408214
A36: 2.17 | B36: Đất xây dựng cơ sở ngoại giao | C36: DNG | D36: 0 | E36: =VLOOKUP($C36,HIENTRANG!$C$5:$V$59,'Biểu 01CH'!E$51,0) -> 0 | F36: =VLOOKUP($C36,HIENTRANG!$C$5:$V$59,'Biểu 01CH'!F$51,0) -> 0 | G36: =VLOOKUP($C36,HIENTRANG!$C$5:$V$59,'Biểu 01CH'!G$51,0) -> 0 | H36: =VLOOKUP($C36,HIENTRANG!$C$5:$V$59,'Biểu 01CH'!H$51,0) -> 0 | I36: =VLOOKUP($C36,HIENTRANG!$C$5:$V$59,'Biểu 01CH'!I$51,0) -> 0 | J36: =VLOOKUP($C36,HIENTRANG!$C$5:$V$59,'Biểu 01CH'!J$51,0) -> 0 | K36: =VLOOKUP($C36,HIENTRANG!$C$5:$V$59,'Biểu 01CH'!K$51,0) -> 0 | L36: =VLOOKUP($C36,HIENTRANG!$C$5:$V$59,'Biểu 01CH'!L$51,0) -> 0 | M36: =VLOOKUP($C36,HIENTRANG!$C$5:$V$59,'Biểu 01CH'!M$51,0) -> 0 | N36: =VLOOKUP($C36,HIENTRANG!$C$5:$V$59,'Biểu 01CH'!N$51,0) -> 0 | O36: =VLOOKUP($C36,HIENTRANG!$C$5:$V$59,'Biểu 01CH'!O$51,0) -> 0 | P36: =VLOOKUP($C36,HIENTRANG!$C$5:$V$59,'Biểu 01CH'!P$51,0) -> 0 | Q36: =VLOOKUP($C36,HIENTRANG!$C$5:$V$59,'Biểu 01CH'!Q$51,0) -> 0 | R36: =VLOOKUP($C36,HIENTRANG!$C$5:$V$59,'Biểu 01CH'!R$51,0) -> 0 | S36: =VLOOKUP($C36,HIENTRANG!$C$5:$V$59,'Biểu 01CH'!S$51,0) -> 0 | T36: =VLOOKUP($C36,HIENTRANG!$C$5:$V$59,'Biểu 01CH'!T$51,0) -> 0 | U36: =VLOOKUP($C36,HIENTRANG!$C$5:$V$59,'Biểu 01CH'!U$51,0) -> 0 | V36: =VLOOKUP($C36,HIENTRANG!$C$5:$V$59,'Biểu 01CH'!V$51,0) -> 0 | Y36: 0
A37: 2.18 | B37: Đất cơ sở tôn giáo | C37: TON | D37: 10.559 | E37: =VLOOKUP($C37,HIENTRANG!$C$5:$V$59,'Biểu 01CH'!E$51,0) -> 0.04 | F37: =VLOOKUP($C37,HIENTRANG!$C$5:$V$59,'Biểu 01CH'!F$51,0) -> 2.074 | G37: =VLOOKUP($C37,HIENTRANG!$C$5:$V$59,'Biểu 01CH'!G$51,0) -> 0.504 | H37: =VLOOKUP($C37,HIENTRANG!$C$5:$V$59,'Biểu 01CH'!H$51,0) -> 0 | I37: =VLOOKUP($C37,HIENTRANG!$C$5:$V$59,'Biểu 01CH'!I$51,0) -> 0 | J37: =VLOOKUP($C37,HIENTRANG!$C$5:$V$59,'Biểu 01CH'!J$51,0) -> 0.901 | K37: =VLOOKUP($C37,HIENTRANG!$C$5:$V$59,'Biểu 01CH'!K$51,0) -> 0 | L37: =VLOOKUP($C37,HIENTRANG!$C$5:$V$59,'Biểu 01CH'!L$51,0) -> 0 | M37: =VLOOKUP($C37,HIENTRANG!$C$5:$V$59,'Biểu 01CH'!M$51,0) -> 0.62 | N37: =VLOOKUP($C37,HIENTRANG!$C$5:$V$59,'Biểu 01CH'!N$51,0) -> 0 | O37: =VLOOKUP($C37,HIENTRANG!$C$5:$V$59,'Biểu 01CH'!O$51,0) -> 0.45 | P37: =VLOOKUP($C37,HIENTRANG!$C$5:$V$59,'Biểu 01CH'!P$51,0) -> 3.79 | Q37: =VLOOKUP($C37,HIENTRANG!$C$5:$V$59,'Biểu 01CH'!Q$51,0) -> 0 | R37: =VLOOKUP($C37,HIENTRANG!$C$5:$V$59,'Biểu 01CH'!R$51,0) -> 0.31 | S37: =VLOOKUP($C37,HIENTRANG!$C$5:$V$59,'Biểu 01CH'!S$51,0) -> 0 | T37: =VLOOKUP($C37,HIENTRANG!$C$5:$V$59,'Biểu 01CH'!T$51,0) -> 0.65 | U37: =VLOOKUP($C37,HIENTRANG!$C$5:$V$59,'Biểu 01CH'!U$51,0) -> 0 | V37: =VLOOKUP($C37,HIENTRANG!$C$5:$V$59,'Biểu 01CH'!V$51,0) -> 1.22 | Y37: 0.1402378878
A38: 2.19 | B38: Đất làm nghĩa trang, nghĩa địa, nhà tang lễ, nhà hỏa táng | C38: NTD | D38: 597.721 | E38: =VLOOKUP($C38,HIENTRANG!$C$5:$V$59,'Biểu 01CH'!E$51,0) -> 27.216 | F38: =VLOOKUP($C38,HIENTRANG!$C$5:$V$59,'Biểu 01CH'!F$51,0) -> 8.046 | G38: =VLOOKUP($C38,HIENTRANG!$C$5:$V$59,'Biểu 01CH'!G$51,0) -> 8.306 | H38: =VLOOKUP($C38,HIENTRANG!$C$5:$V$59,'Biểu 01CH'!H$51,0) -> 72.206 | I38: =VLOOKUP($C38,HIENTRANG!$C$5:$V$59,'Biểu 01CH'!I$51,0) -> 51.71 | J38: =VLOOKUP($C38,HIENTRANG!$C$5:$V$59,'Biểu 01CH'!J$51,0) -> 19.076 | K38: =VLOOKUP($C38,HIENTRANG!$C$5:$V$59,'Biểu 01CH'!K$51,0) -> 50.18 | L38: =VLOOKUP($C38,HIENTRANG!$C$5:$V$59,'Biểu 01CH'!L$51,0) -> 47.03 | M38: =VLOOKUP($C38,HIENTRANG!$C$5:$V$59,'Biểu 01CH'!M$51,0) -> 33.845 | N38: =VLOOKUP($C38,HIENTRANG!$C$5:$V$59,'Biểu 01CH'!N$51,0) -> 24.414 | O38: =VLOOKUP($C38,HIENTRANG!$C$5:$V$59,'Biểu 01CH'!O$51,0) -> 37.88 | P38: =VLOOKUP($C38,HIENTRANG!$C$5:$V$59,'Biểu 01CH'!P$51,0) -> 90.83 | Q38: =VLOOKUP($C38,HIENTRANG!$C$5:$V$59,'Biểu 01CH'!Q$51,0) -> 6.684 | R38: =VLOOKUP($C38,HIENTRANG!$C$5:$V$59,'Biểu 01CH'!R$51,0) -> 23.47 | S38: =VLOOKUP($C38,HIENTRANG!$C$5:$V$59,'Biểu 01CH'!S$51,0) -> 13.36 | T38: =VLOOKUP($C38,HIENTRANG!$C$5:$V$59,'Biểu 01CH'!T$51,0) -> 21.734 | U38: =VLOOKUP($C38,HIENTRANG!$C$5:$V$59,'Biểu 01CH'!U$51,0) -> 41.164 | V38: =VLOOKUP($C38,HIENTRANG!$C$5:$V$59,'Biểu 01CH'!V$51,0) -> 20.57 | Y38: 7.938548206
A39: 2.20 | B39: Đất sản xuất vật liệu xây dựng, làm đồ gốm | C39: SKX | D39: 73.366 | E39: =VLOOKUP($C39,HIENTRANG!$C$5:$V$59,'Biểu 01CH'!E$51,0) -> 0 | F39: =VLOOKUP($C39,HIENTRANG!$C$5:$V$59,'Biểu 01CH'!F$51,0) -> 0.09 | G39: =VLOOKUP($C39,HIENTRANG!$C$5:$V$59,'Biểu 01CH'!G$51,0) -> 0 | H39: =VLOOKUP($C39,HIENTRANG!$C$5:$V$59,'Biểu 01CH'!H$51,0) -> 2.409 | I39: =VLOOKUP($C39,HIENTRANG!$C$5:$V$59,'Biểu 01CH'!I$51,0) -> 48.491 | J39: =VLOOKUP($C39,HIENTRANG!$C$5:$V$59,'Biểu 01CH'!J$51,0) -> 0 | K39: =VLOOKUP($C39,HIENTRANG!$C$5:$V$59,'Biểu 01CH'!K$51,0) -> 0 | L39: =VLOOKUP($C39,HIENTRANG!$C$5:$V$59,'Biểu 01CH'!L$51,0) -> 0 | M39: =VLOOKUP($C39,HIENTRANG!$C$5:$V$59,'Biểu 01CH'!M$51,0) -> 0 | N39: =VLOOKUP($C39,HIENTRANG!$C$5:$V$59,'Biểu 01CH'!N$51,0) -> 0.48 | O39: =VLOOKUP($C39,HIENTRANG!$C$5:$V$59,'Biểu 01CH'!O$51,0) -> 0 | P39: =VLOOKUP($C39,HIENTRANG!$C$5:$V$59,'Biểu 01CH'!P$51,0) -> 0 | Q39: =VLOOKUP($C39,HIENTRANG!$C$5:$V$59,'Biểu 01CH'!Q$51,0) -> 0 | R39: =VLOOKUP($C39,HIENTRANG!$C$5:$V$59,'Biểu 01CH'!R$51,0) -> 0 | S39: =VLOOKUP($C39,HIENTRANG!$C$5:$V$59,'Biểu 01CH'!S$51,0) -> 0 | T39: =VLOOKUP($C39,HIENTRANG!$C$5:$V$59,'Biểu 01CH'!T$51,0) -> 0 | U39: =VLOOKUP($C39,HIENTRANG!$C$5:$V$59,'Biểu 01CH'!U$51,0) -> 7.611 | V39: =VLOOKUP($C39,HIENTRANG!$C$5:$V$59,'Biểu 01CH'!V$51,0) -> 14.285 | Y39: 0.97440031
A40: 2.21 | B40: Đất sinh hoạt cộng đồng | C40: DSH | D40: 16.447 | E40: =VLOOKUP($C40,HIENTRANG!$C$5:$V$59,'Biểu 01CH'!E$51,0) -> 0.489 | F40: =VLOOKUP($C40,HIENTRANG!$C$5:$V$59,'Biểu 01CH'!F$51,0) -> 0.68 | G40: =VLOOKUP($C40,HIENTRANG!$C$5:$V$59,'Biểu 01CH'!G$51,0) -> 0.444 | H40: =VLOOKUP($C40,HIENTRANG!$C$5:$V$59,'Biểu 01CH'!H$51,0) -> 1.449 | I40: =VLOOKUP($C40,HIENTRANG!$C$5:$V$59,'Biểu 01CH'!I$51,0) -> 3.419 | J40: =VLOOKUP($C40,HIENTRANG!$C$5:$V$59,'Biểu 01CH'!J$51,0) -> 0.916 | K40: =VLOOKUP($C40,HIENTRANG!$C$5:$V$59,'Biểu 01CH'!K$51,0) -> 1.351 | L40: =VLOOKUP($C40,HIENTRANG!$C$5:$V$59,'Biểu 01CH'!L$51,0) -> 0.33 | M40: =VLOOKUP($C40,HIENTRANG!$C$5:$V$59,'Biểu 01CH'!M$51,0) -> 0.524 | N40: =VLOOKUP($C40,HIENTRANG!$C$5:$V$59,'Biểu 01CH'!N$51,0) -> 1.114 | O40: =VLOOKUP($C40,HIENTRANG!$C$5:$V$59,'Biểu 01CH'!O$51,0) -> 1.014 | P40: =VLOOKUP($C40,HIENTRANG!$C$5:$V$59,'Biểu 01CH'!P$51,0) -> 1.74 | Q40: =VLOOKUP($C40,HIENTRANG!$C$5:$V$59,'Biểu 01CH'!Q$51,0) -> 0.664 | R40: =VLOOKUP($C40,HIENTRANG!$C$5:$V$59,'Biểu 01CH'!R$51,0) -> 0.204 | S40: =VLOOKUP($C40,HIENTRANG!$C$5:$V$59,'Biểu 01CH'!S$51,0) -> 0.164 | T40: =VLOOKUP($C40,HIENTRANG!$C$5:$V$59,'Biểu 01CH'!T$51,0) -> 0.61 | U40: =VLOOKUP($C40,HIENTRANG!$C$5:$V$59,'Biểu 01CH'!U$51,0) -> 0.45 | V40: =VLOOKUP($C40,HIENTRANG!$C$5:$V$59,'Biểu 01CH'!V$51,0) -> 0.885 | Y40: 0.2184385396
A41: 2.22 | B41: Đất khu vui chơi giải trí công cộng | C41: DKV | D41: 2.7 | E41: =VLOOKUP($C41,HIENTRANG!$C$5:$V$59,'Biểu 01CH'!E$51,0) -> 0 | F41: =VLOOKUP($C41,HIENTRANG!$C$5:$V$59,'Biểu 01CH'!F$51,0) -> 0 | G41: =VLOOKUP($C41,HIENTRANG!$C$5:$V$59,'Biểu 01CH'!G$51,0) -> 0 | H41: =VLOOKUP($C41,HIENTRANG!$C$5:$V$59,'Biểu 01CH'!H$51,0) -> 0 | I41: =VLOOKUP($C41,HIENTRANG!$C$5:$V$59,'Biểu 01CH'!I$51,0) -> 0 | J41: =VLOOKUP($C41,HIENTRANG!$C$5:$V$59,'Biểu 01CH'!J$51,0) -> 0 | K41: =VLOOKUP($C41,HIENTRANG!$C$5:$V$59,'Biểu 01CH'!K$51,0) -> 0 | L41: =VLOOKUP($C41,HIENTRANG!$C$5:$V$59,'Biểu 01CH'!L$51,0) -> 0 | M41: =VLOOKUP($C41,HIENTRANG!$C$5:$V$59,'Biểu 01CH'!M$51,0) -> 0 | N41: =VLOOKUP($C41,HIENTRANG!$C$5:$V$59,'Biểu 01CH'!N$51,0) -> 0 | O41: =VLOOKUP($C41,HIENTRANG!$C$5:$V$59,'Biểu 01CH'!O$51,0) -> 0 | P41: =VLOOKUP($C41,HIENTRANG!$C$5:$V$59,'Biểu 01CH'!P$51,0) -> 2.7 | Q41: =VLOOKUP($C41,HIENTRANG!$C$5:$V$59,'Biểu 01CH'!Q$51,0) -> 0 | R41: =VLOOKUP($C41,HIENTRANG!$C$5:$V$59,'Biểu 01CH'!R$51,0) -> 0 | S41: =VLOOKUP($C41,HIENTRANG!$C$5:$V$59,'Biểu 01CH'!S$51,0) -> 0 | T41: =VLOOKUP($C41,HIENTRANG!$C$5:$V$59,'Biểu 01CH'!T$51,0) -> 0 | U41: =VLOOKUP($C41,HIENTRANG!$C$5:$V$59,'Biểu 01CH'!U$51,0) -> 0 | V41: =VLOOKUP($C41,HIENTRANG!$C$5:$V$59,'Biểu 01CH'!V$51,0) -> 0 | Y41: 0.03585967392
A42: 2.23 | B42: Đất cơ sở tín ngưỡng | C42: TIN | D42: 4.252 | E42: =VLOOKUP($C42,HIENTRANG!$C$5:$V$59,'Biểu 01CH'!E$51,0) -> 0.038 | F42: =VLOOKUP($C42,HIENTRANG!$C$5:$V$59,'Biểu 01CH'!F$51,0) -> 0.106 | G42: =VLOOKUP($C42,HIENTRANG!$C$5:$V$59,'Biểu 01CH'!G$51,0) -> 0.586 | H42: =VLOOKUP($C42,HIENTRANG!$C$5:$V$59,'Biểu 01CH'!H$51,0) -> 0.181 | I42: =VLOOKUP($C42,HIENTRANG!$C$5:$V$59,'Biểu 01CH'!I$51,0) -> 0.3 | J42: =VLOOKUP($C42,HIENTRANG!$C$5:$V$59,'Biểu 01CH'!J$51,0) -> 0.16 | K42: =VLOOKUP($C42,HIENTRANG!$C$5:$V$59,'Biểu 01CH'!K$51,0) -> 0.32 | L42: =VLOOKUP($C42,HIENTRANG!$C$5:$V$59,'Biểu 01CH'!L$51,0) -> 0 | M42: =VLOOKUP($C42,HIENTRANG!$C$5:$V$59,'Biểu 01CH'!M$51,0) -> 0.05 | N42: =VLOOKUP($C42,HIENTRANG!$C$5:$V$59,'Biểu 01CH'!N$51,0) -> 0 | O42: =VLOOKUP($C42,HIENTRANG!$C$5:$V$59,'Biểu 01CH'!O$51,0) -> 0.06 | P42: =VLOOKUP($C42,HIENTRANG!$C$5:$V$59,'Biểu 01CH'!P$51,0) -> 0.801 | Q42: =VLOOKUP($C42,HIENTRANG!$C$5:$V$59,'Biểu 01CH'!Q$51,0) -> 0 | R42: =VLOOKUP($C42,HIENTRANG!$C$5:$V$59,'Biểu 01CH'!R$51,0) -> 0.01 | S42: =VLOOKUP($C42,HIENTRANG!$C$5:$V$59,'Biểu 01CH'!S$51,0) -> 0.03 | T42: =VLOOKUP($C42,HIENTRANG!$C$5:$V$59,'Biểu 01CH'!T$51,0) -> 0.05 | U42: =VLOOKUP($C42,HIENTRANG!$C$5:$V$59,'Biểu 01CH'!U$51,0) -> 0.69 | V42: =VLOOKUP($C42,HIENTRANG!$C$5:$V$59,'Biểu 01CH'!V$51,0) -> 0.87 | Y42: 0.05647234575
A43: 2.24 | B43: Đất sông, ngòi, kênh, rạch, suối | C43: SON | D43: 992.66 | E43: =VLOOKUP($C43,HIENTRANG!$C$5:$V$59,'Biểu 01CH'!E$51,0) -> 25.996 | F43: =VLOOKUP($C43,HIENTRANG!$C$5:$V$59,'Biểu 01CH'!F$51,0) -> 75.574 | G43: =VLOOKUP($C43,HIENTRANG!$C$5:$V$59,'Biểu 01CH'!G$51,0) -> 99.506 | H43: =VLOOKUP($C43,HIENTRANG!$C$5:$V$59,'Biểu 01CH'!H$51,0) -> 145.556 | I43: =VLOOKUP($C43,HIENTRANG!$C$5:$V$59,'Biểu 01CH'!I$51,0) -> 18.106 | J43: =VLOOKUP($C43,HIENTRANG!$C$5:$V$59,'Biểu 01CH'!J$51,0) -> 106.486 | K43: =VLOOKUP($C43,HIENTRANG!$C$5:$V$59,'Biểu 01CH'!K$51,0) -> 42.477 | L43: =VLOOKUP($C43,HIENTRANG!$C$5:$V$59,'Biểu 01CH'!L$51,0) -> 53.644 | M43: =VLOOKUP($C43,HIENTRANG!$C$5:$V$59,'Biểu 01CH'!M$51,0) -> 41.551 | N43: =VLOOKUP($C43,HIENTRANG!$C$5:$V$59,'Biểu 01CH'!N$51,0) -> 6.644 | O43: =VLOOKUP($C43,HIENTRANG!$C$5:$V$59,'Biểu 01CH'!O$51,0) -> 79.904 | P43: =VLOOKUP($C43,HIENTRANG!$C$5:$V$59,'Biểu 01CH'!P$51,0) -> 7.594 | Q43: =VLOOKUP($C43,HIENTRANG!$C$5:$V$59,'Biểu 01CH'!Q$51,0) -> 34.684 | R43: =VLOOKUP($C43,HIENTRANG!$C$5:$V$59,'Biểu 01CH'!R$51,0) -> 32.724 | S43: =VLOOKUP($C43,HIENTRANG!$C$5:$V$59,'Biểu 01CH'!S$51,0) -> 5.14 | T43: =VLOOKUP($C43,HIENTRANG!$C$5:$V$59,'Biểu 01CH'!T$51,0) -> 131.194 | U43: =VLOOKUP($C43,HIENTRANG!$C$5:$V$59,'Biểu 01CH'!U$51,0) -> 71.904 | V43: =VLOOKUP($C43,HIENTRANG!$C$5:$V$59,'Biểu 01CH'!V$51,0) -> 13.976 | Y43: 13.18387552
A44: 2.25 | B44: Đất có mặt nước chuyên dùng | C44: MNC | D44: 131.623 | E44: =VLOOKUP($C44,HIENTRANG!$C$5:$V$59,'Biểu 01CH'!E$51,0) -> 3.626 | F44: =VLOOKUP($C44,HIENTRANG!$C$5:$V$59,'Biểu 01CH'!F$51,0) -> 0.334 | G44: =VLOOKUP($C44,HIENTRANG!$C$5:$V$59,'Biểu 01CH'!G$51,0) -> 0 | H44: =VLOOKUP($C44,HIENTRANG!$C$5:$V$59,'Biểu 01CH'!H$51,0) -> 9.586 | I44: =VLOOKUP($C44,HIENTRANG!$C$5:$V$59,'Biểu 01CH'!I$51,0) -> 1.239 | J44: =VLOOKUP($C44,HIENTRANG!$C$5:$V$59,'Biểu 01CH'!J$51,0) -> 0 | K44: =VLOOKUP($C44,HIENTRANG!$C$5:$V$59,'Biểu 01CH'!K$51,0) -> 36.526 | L44: =VLOOKUP($C44,HIENTRANG!$C$5:$V$59,'Biểu 01CH'!L$51,0) -> 3.524 | M44: =VLOOKUP($C44,HIENTRANG!$C$5:$V$59,'Biểu 01CH'!M$51,0) -> 2.29 | N44: =VLOOKUP($C44,HIENTRANG!$C$5:$V$59,'Biểu 01CH'!N$51,0) -> 39.484 | O44: =VLOOKUP($C44,HIENTRANG!$C$5:$V$59,'Biểu 01CH'!O$51,0) -> 0 | P44: =VLOOKUP($C44,HIENTRANG!$C$5:$V$59,'Biểu 01CH'!P$51,0) -> 12.824 | Q44: =VLOOKUP($C44,HIENTRANG!$C$5:$V$59,'Biểu 01CH'!Q$51,0) -> 2.564 | R44: =VLOOKUP($C44,HIENTRANG!$C$5:$V$59,'Biểu 01CH'!R$51,0) -> 2.38 | S44: =VLOOKUP($C44,HIENTRANG!$C$5:$V$59,'Biểu 01CH'!S$51,0) -> 2.554 | T44: =VLOOKUP($C44,HIENTRANG!$C$5:$V$59,'Biểu 01CH'!T$51,0) -> 4.264 | U44: =VLOOKUP($C44,HIENTRANG!$C$5:$V$59,'Biểu 01CH'!U$51,0) -> 7.264 | V44: =VLOOKUP($C44,HIENTRANG!$C$5:$V$59,'Biểu 01CH'!V$51,0) -> 3.164 | Y44: 1.748132541
A45: 2.26 | B45: Đất phi nông nghiệp khác | C45: PNK | D45: 0 | E45: =VLOOKUP($C45,HIENTRANG!$C$5:$V$59,'Biểu 01CH'!E$51,0) -> 0 | F45: =VLOOKUP($C45,HIENTRANG!$C$5:$V$59,'Biểu 01CH'!F$51,0) -> 0 | G45: =VLOOKUP($C45,HIENTRANG!$C$5:$V$59,'Biểu 01CH'!G$51,0) -> 0 | H45: =VLOOKUP($C45,HIENTRANG!$C$5:$V$59,'Biểu 01CH'!H$51,0) -> 0 | I45: =VLOOKUP($C45,HIENTRANG!$C$5:$V$59,'Biểu 01CH'!I$51,0) -> 0 | J45: =VLOOKUP($C45,HIENTRANG!$C$5:$V$59,'Biểu 01CH'!J$51,0) -> 0 | K45: =VLOOKUP($C45,HIENTRANG!$C$5:$V$59,'Biểu 01CH'!K$51,0) -> 0 | L45: =VLOOKUP($C45,HIENTRANG!$C$5:$V$59,'Biểu 01CH'!L$51,0) -> 0 | M45: =VLOOKUP($C45,HIENTRANG!$C$5:$V$59,'Biểu 01CH'!M$51,0) -> 0 | N45: =VLOOKUP($C45,HIENTRANG!$C$5:$V$59,'Biểu 01CH'!N$51,0) -> 0 | O45: =VLOOKUP($C45,HIENTRANG!$C$5:$V$59,'Biểu 01CH'!O$51,0) -> 0 | P45: =VLOOKUP($C45,HIENTRANG!$C$5:$V$59,'Biểu 01CH'!P$51,0) -> 0 | Q45: =VLOOKUP($C45,HIENTRANG!$C$5:$V$59,'Biểu 01CH'!Q$51,0) -> 0 | R45: =VLOOKUP($C45,HIENTRANG!$C$5:$V$59,'Biểu 01CH'!R$51,0) -> 0 | S45: =VLOOKUP($C45,HIENTRANG!$C$5:$V$59,'Biểu 01CH'!S$51,0) -> 0 | T45: =VLOOKUP($C45,HIENTRANG!$C$5:$V$59,'Biểu 01CH'!T$51,0) -> 0 | U45: =VLOOKUP($C45,HIENTRANG!$C$5:$V$59,'Biểu 01CH'!U$51,0) -> 0 | V45: =VLOOKUP($C45,HIENTRANG!$C$5:$V$59,'Biểu 01CH'!V$51,0) -> 0 | Y45: 0
A46: 3 | B46: Đất chưa sử dụng | C46: CSD | D46: 1874.553 | E46: =VLOOKUP($C46,HIENTRANG!$C$5:$V$59,'Biểu 01CH'!E$51,0) -> 29.305 | F46: =VLOOKUP($C46,HIENTRANG!$C$5:$V$59,'Biểu 01CH'!F$51,0) -> 4.5 | G46: =VLOOKUP($C46,HIENTRANG!$C$5:$V$59,'Biểu 01CH'!G$51,0) -> 1.849 | H46: =VLOOKUP($C46,HIENTRANG!$C$5:$V$59,'Biểu 01CH'!H$51,0) -> 89.66 | I46: =VLOOKUP($C46,HIENTRANG!$C$5:$V$59,'Biểu 01CH'!I$51,0) -> 130.988 | J46: =VLOOKUP($C46,HIENTRANG!$C$5:$V$59,'Biểu 01CH'!J$51,0) -> 155.308 | K46: =VLOOKUP($C46,HIENTRANG!$C$5:$V$59,'Biểu 01CH'!K$51,0) -> 633.95 | L46: =VLOOKUP($C46,HIENTRANG!$C$5:$V$59,'Biểu 01CH'!L$51,0) -> 49.714 | M46: =VLOOKUP($C46,HIENTRANG!$C$5:$V$59,'Biểu 01CH'!M$51,0) -> 16.744 | N46: =VLOOKUP($C46,HIENTRANG!$C$5:$V$59,'Biểu 01CH'!N$51,0) -> 32.694 | O46: =VLOOKUP($C46,HIENTRANG!$C$5:$V$59,'Biểu 01CH'!O$51,0) -> 158.312 | P46: =VLOOKUP($C46,HIENTRANG!$C$5:$V$59,'Biểu 01CH'!P$51,0) -> 221.254 | Q46: =VLOOKUP($C46,HIENTRANG!$C$5:$V$59,'Biểu 01CH'!Q$51,0) -> 41.054 | R46: =VLOOKUP($C46,HIENTRANG!$C$5:$V$59,'Biểu 01CH'!R$51,0) -> 7.194 | S46: =VLOOKUP($C46,HIENTRANG!$C$5:$V$59,'Biểu 01CH'!S$51,0) -> 75.422 | T46: =VLOOKUP($C46,HIENTRANG!$C$5:$V$59,'Biểu 01CH'!T$51,0) -> 17.98 | U46: =VLOOKUP($C46,HIENTRANG!$C$5:$V$59,'Biểu 01CH'!U$51,0) -> 46.665 | V46: =VLOOKUP($C46,HIENTRANG!$C$5:$V$59,'Biểu 01CH'!V$51,0) -> 161.96 | Y46: =D46*100/D7 -> 4.185403885
A47: 4 | B47: Đất khu công nghệ cao* | C47: KCN | D47: 0
A48: 5 | B48: Đất khu kinh tế* | C48: KKT | D48: 9080.682 | E48: =HIENTRANG!E61 -> 156.193 | I48: =HIENTRANG!I61 -> 2648.48 | K48: =HIENTRANG!K61 -> 2101.209 | O48: =HIENTRANG!O61 -> 1998.255 | U48: =HIENTRANG!U61 -> 1010.904 | V48: =HIENTRANG!V61 -> 1165.641
A49: 6 | B49: Đất đô thị* | C49: KDT | D49: 0
B50: Ghi chú: * Không tổng hợp khi tính tổng diện tích tự nhiên
E51: 3 | F51: 4 | G51: 5 | H51: 6 | I51: 7 | J51: 8 | K51: 9 | L51: 10 | M51: 11 | N51: 12 | O51: 13 | P51: 14 | Q51: 15 | R51: 16 | S51: 17 | T51: 18 | U51: 19 | V51: 20

Sheet HIENTRANG (hidden)
A1: HIENTRANG
B2: Nhập năm điều tra vào ô bên phải | C2: 2015 | E2: 1 | F2: 2 | G2: 3 | H2: 4 | I2: 5 | J2: 6 | K2: 7 | L2: 8 | M2: 9 | N2: 10 | O2: 11 | P2: 12 | Q2: 13 | R2: 14 | S2: 15 | T2: 16 | U2: 17 | V2: 18
A3: STT | B3: Loại đất | C3: Ký hiệu | D3: Tổng diện tích toàn huyện | E3: ='!'!E4 -> Cảnh Dương | F3: ='!'!F4 -> Cảnh Hóa | G3: ='!'!G4 -> Phù Hóa | H3: ='!'!H4 -> Quảng Châu | I3: ='!'!I4 -> Quảng Đông | J3: ='!'!J4 -> Quảng Hợp | K3: ='!'!K4 -> Quảng Hưng | L3: ='!'!L4 -> Quảng Kim | M3: ='!'!M4 -> Quảng Liên | N3: ='!'!N4 -> Quảng Lưu | O3: ='!'!O4 -> Quảng Phú | P3: ='!'!P4 -> Quảng Phương | Q3: ='!'!Q4 -> Quảng Thạch | R3: ='!'!R4 -> Quảng Thanh | S3: ='!'!S4 -> Quảng Tiến | T3: ='!'!T4 -> Quảng Trường | U3: ='!'!U4 -> Quảng Tùng | V3: ='!'!V4 -> Quảng Xuân
B4: Tổng diện tích đất của đơn vị hành chính | D4: =D5+D18+D56 -> 44787.864 | E4: 156.193 | F4: 773.84 | G4: 364.892 | H4: 4100.461 | I4: 2648.48 | J4: 11455.251 | K4: 2101.209 | L4: 3766.377 | M4: 1818.523 | N4: 3927.099 | O4: 1998.255 | P4: 2397.11 | Q4: 4634.326 | R4: 386.453 | S4: 1321.53 | T4: 761.32 | U4: 1010.904 | V4: 1165.641
B5: Đất nông nghiệp | C5: NNP | D5: =D6+SUM(D10:D17) -> 35383.962 | E5: 8.188 | F5: 602.754 | G5: 201.833 | H5: 3149.874 | I5: 1606.837 | J5: 10332.441 | K5: 1117.632 | L5: 3316.86 | M5: 1493.036 | N5: 2801.264 | O5: 1418.12 | P5: 1711.542 | Q5: 4326.073 | R5: 242.784 | S5: 1140.162 | T5: 478.963 | U5: 660.652 | V5: 774.947
B6: Đất trồng lúa | C6: LUA | D6: =D7+D8+D9 -> 3753.738 | E6: 0 | F6: 57.02 | G6: 102.701 | H6: 397.551 | I6: 113.963 | J6: 225.201 | K6: 353.694 | L6: 234.401 | M6: 105.504 | N6: 336.721 | O6: 297.511 | P6: 536.262 | Q6: 102.453 | R6: 151.53 | S6: 55.232 | T6: 115.192 | U6: 307.571 | V6: 261.231
B7: Đất chuyên trồng lúa nước | C7: LUC | D7: =SUM(E7:V7) -> 3462.241 | E7: 0 | F7: 57.02 | G7: 102.701 | H7: 397.551 | I7: 36.411 | J7: 134.251 | K7: 342.301 | L7: 234.401 | M7: 105.504 | N7: 330.201 | O7: 280.821 | P7: 486.921 | Q7: 101.412 | R7: 151.53 | S7: 22.772 | T7: 115.192 | U7: =307.891-0.32 -> 307.571 | V7: 255.681
B8: Đất trồng lúa nương | C8: LUN | D8: 0 | E8: 0 | F8: 0 | G8: 0 | H8: 0 | I8: 0 | J8: 0 | K8: 0 | L8: 0 | M8: 0 | N8: 0 | O8: 0 | P8: 0 | Q8: 0 | R8: 0 | S8: 0 | T8: 0 | U8: 0 | V8: 0
B9: Đất trồng lúa nước còn lại | C9: LUK | D9: 291.497 | E9: 0 | F9: 0 | G9: 0 | H9: 0 | I9: 77.552 | J9: 90.95 | K9: 11.393 | L9: 0 | M9: 0 | N9: 6.52 | O9: 16.69 | P9: 49.341 | Q9: 1.041 | R9: 0 | S9: 32.46 | T9: 0 | U9: 0 | V9: 5.55
B10: Đất trồng cây hàng năm khác | C10: HNK | D10: 2957.842 | E10: =4.804-0.08 -> 4.724 | F10: 92.942 | G10: 71.654 | H10: =337.03-0.02 -> 337.01 | I10: =216.268-0.012 -> 216.256 | J10: 488.536 | K10: =274.09-0.06 -> 274.03 | L10: 146.245 | M10: 30.374 | N10: 273.856 | O10: =307.44-0.29-3.121 -> 304.029 | P10: =225.94-0.03 -> 225.91 | Q10: 55.564 | R10: =33.216-0.006 -> 33.21 | S10: =36.056-0.19 -> 35.866 | T10: 81.436 | U10: =111.32-0.55 -> 110.77 | V10: =175.67-0.24 -> 175.43
B11: Đất trồng cây lâu năm | C11: CLN | D11: 1497.134 | E11: 0 | F11: 4.35 | G11: 10.714 | H11: 289.524 | I11: 36.818 | J11: =52.358-0.03 -> 52.328 | K11: =208.012-0.03 -> 207.982 | L11: 0.021 | M11: =64.456-0.02+0.004-1.59 -> 62.85 | N11: 157.876 | O11: =40.758-0.03 -> 40.728 | P11: 122.651 | Q11: 222.601 | R11: 0.95 | S11: =250.714-0.1-0.03 -> 250.584 | T11: =1.641-0.871 -> 0.77 | U11: 1.686 | V11: 34.701
B12: Đất rừng phòng hộ | C12: RPH | D12: 11063.286 | E12: 3.464 | F12: 0 | G12: 0 | H12: 479.624 | I12: 357.258 | J12: 5087.318 | K12: 38.4 | L12: 1415.93 | M12: 0 | N12: 1004.486 | O12: 20.81 | P12: 293.82 | Q12: 2098.486 | R12: 0 | S12: 0 | T12: 0 | U12: 3.31 | V12: 260.38
B13: Đất rừng đặc dụng | C13: RDD | D13: 0 | E13: 0 | F13: 0 | G13: 0 | H13: 0 | I13: 0 | J13: 0 | K13: 0 | L13: 0 | M13: 0 | N13: 0 | O13: 0 | P13: 0 | Q13: 0 | R13: 0 | S13: 0 | T13: 0 | U13: 0 | V13: 0
B14: Đất rừng sản xuất | C14: RSX | D14: 15845.825 | F14: 448.442 | G14: 0 | H14: 1629.256 | I14: 881.07 | J14: 4477.859 | K14: 219.916 | L14: 1517.294 | M14: 1288.144 | N14: 1024.426 | O14: 666.289 | P14: =528.119-1.72 -> 526.399 | Q14: 1845.219 | R14: 51.739 | S14: 797.39 | T14: 247.72 | U14: 221.27 | V14: 3.392
B15: Đất nuôi trồng thuỷ sản | C15: NTS | D15: 160.969 | E15: 0 | F15: 0 | G15: 16.764 | H15: 16.909 | I15: 1.472 | J15: 1.199 | K15: 9.625 | L15: 2.969 | M15: 6.164 | N15: 3.899 | O15: 15.189 | P15: 6.5 | Q15: 1.75 | R15: 5.355 | S15: 1.09 | T15: 33.845 | U15: 11.12 | V15: 27.119
B16: Đất làm muối | C16: LMU | D16: 73.564 | E16: 0 | F16: 0 | G16: 0 | H16: 0 | I16: 0 | J16: 0 | K16: 0 | L16: 0 | M16: 0 | N16: 0 | O16: 73.564 | P16: 0 | Q16: 0 | R16: 0 | S16: 0 | T16: 0 | U16: 0 | V16: 0
B17: Đất nông nghiệp khác | C17: NKH | D17: 31.604 | E17: 0 | F17: 0 | G17: 0 | H17: 0 | I17: 0 | J17: 0 | K17: 13.985 | L17: 0 | M17: 0 | N17: 0 | O17: 0 | P17: 0 | Q17: 0 | R17: 0 | S17: 0 | T17: 0 | U17: 4.925 | V17: 12.694
B18: Đất phi nông nghiệp | C18: PNN | D18: =SUM(D19:D27)+SUM(D39:D55) -> 7529.349 | E18: 118.7 | F18: 166.586 | G18: 161.21 | H18: 860.927 | I18: 910.655 | J18: 967.502 | K18: 349.627 | L18: 399.803 | M18: 308.743 | N18: 1093.141 | O18: 421.823 | P18: 464.314 | Q18: 267.199 | R18: 136.475 | S18: 105.946 | T18: 264.377 | U18: 303.587 | V18: 228.734
B19: Đất quốc phòng | C19: CQP | D19: =SUM(E19:V19) -> 1305.95 | E19: 0.312 | F19: 0 | G19: 0 | H19: 99.752 | I19: 242.766 | J19: 36.802 | K19: 0 | L19: 0 | M19: 0 | N19: 858.56 | O19: 5 | P19: 2.468 | Q19: 43.5 | R19: 0 | S19: 0 | T19: 15.58 | U19: 1.21 | V19: 0
B20: Đất an ninh | C20: CAN | D20: 3.562 | E20: 0 | F20: 0 | G20: 0 | H20: 0 | I20: 0.526 | J20: 0 | K20: 0 | L20: 0 | M20: 0 | N20: 0 | O20: 0 | P20: 3.036 | Q20: 0 | R20: 0 | S20: 0 | T20: 0 | U20: 0 | V20: 0
B21: Đất khu công nghiệp | C21: SKK | D21: 104.572 | E21: 0 | F21: 0 | G21: 0 | H21: 0 | I21: 104.572 | J21: 0 | K21: 0 | L21: 0 | M21: 0 | N21: 0 | O21: 0 | P21: 0 | Q21: 0 | R21: 0 | S21: 0 | T21: 0 | U21: 0 | V21: 0
B22: Đất cụm công nghiệp | C22: SKN | D22: 0 | E22: 0 | F22: 0 | G22: 0 | H22: 0 | I22: 0 | J22: 0 | K22: 0 | L22: 0 | M22: 0 | N22: 0 | O22: 0 | P22: 0 | Q22: 0 | R22: 0 | S22: 0 | T22: 0 | U22: 0 | V22: 0
B23: Đất khu chế xuất | C23: SKT | D23: 0 | E23: 0 | F23: 0 | G23: 0 | H23: 0 | I23: 0 | J23: 0 | K23: 0 | L23: 0 | M23: 0 | N23: 0 | O23: 0 | P23: 0 | Q23: 0 | R23: 0 | S23: 0 | T23: 0 | U23: 0 | V23: 0
B24: Đất thương mại, dịch vụ | C24: TMD | D24: 81.326 | E24: 0 | F24: 0.248 | G24: 0 | H24: 0.06 | I24: 69.964 | K24: 0.496 | L24: 0 | M24: 0.578 | N24: 0 | O24: 0 | P24: 3.91 | Q24: 0.7 | R24: 0 | S24: 0.73 | T24: 0 | U24: 4.64 | V24: 0
B25: Đất cơ sở sản xuất phi nông nghiệp | C25: SKC | D25: 91.862 | E25: 6.405 | F25: 8.802 | G25: 0 | H25: 0.112 | I25: 7.591 | J25: 0 | K25: 2.264 | L25: 0 | M25: 2.853 | N25: 0 | O25: 46.388 | P25: 0.26 | Q25: 0 | R25: 4.056 | S25: 0.14 | T25: =1.48+0.871 -> 2.351 | U25: 4.34 | V25: 6.3
B26: Đất sử dụng cho hoạt động khoáng sản | C26: SKS | D26: 5.141 | E26: 0 | F26: 0 | G26: 0 | H26: 0 | I26: 5.141 | J26: 0 | K26: 0 | L26: 0 | M26: 0 | N26: 0 | O26: 0 | P26: 0 | Q26: 0 | R26: 0 | S26: 0 | T26: 0 | U26: 0 | V26: 0
B27: Đất phát triển hạ tầng | C27: DHT | D27: =SUM(D28:D38) -> 3187.368 | E27: =SUM(E28:E38) -> 19.333 | F27: 44.158 | G27: 28.38 | H27: 441.586 | I27: 264.918 | J27: 747.221 | K27: 161.379 | L27: 261.937 | M27: 181.21 | N27: 106.752 | O27: 177.563 | P27: 253.737 | Q27: 141.639 | R27: 48.935 | S27: 51.018 | T27: 55.134 | U27: 94.284 | V27: 108.184
A28: 1 | B28: Đất giao thông | C28: DGT | D28: =SUM(E28:V28) -> 1392.685 | E28: 14.626 | F28: 31.634 | G28: 24.326 | H28: 127.75 | I28: 130.778 | J28: 98.206 | K28: 126.898 | L28: 83.316 | M28: 32.366 | N28: 66.654 | O28: =137.714+3.121 -> 140.835 | P28: 174.024 | Q28: 76.044 | R28: 35.354 | S28: 41.9 | T28: 44.984 | U28: 66.53 | V28: 76.46
A29: 2 | B29: Đất thuỷ lợi | C29: DTL | D29: 1449.725 | E29: 0.056 | F29: 7.404 | G29: 1.716 | H29: 233.146 | I29: 33.422 | J29: 583.127 | K29: 26.172 | L29: 173.322 | M29: 145.322 | N29: 33.244 | O29: 24.424 | P29: 63.882 | Q29: 60.054 | R29: 10.58 | S29: 4.27 | T29: 7.57 | U29: 19.72 | V29: 22.294
A30: 3 | B30: Đất công trình năng lượng | C30: DNL | D30: 225.718 | E30: 0.014 | F30: 0.15 | G30: 0 | H30: 72.89 | I30: 92.534 | J30: 57.55 | K30: 0.26 | L30: 0 | M30: 0.14 | N30: 1.49 | O30: 0.064 | P30: 0.306 | Q30: 0.02 | R30: 0.05 | S30: 0.09 | T30: 0 | U30: 0.15 | V30: 0.01
A31: 4 | B31: Đất công trình bưu chính viễn thông | C31: DBV | D31: 3.728 | E31: 0.01 | F31: 0.056 | G31: 0.02 | H31: 0.01 | I31: 0.146 | J31: 0.056 | K31: 0.01 | L31: 0.02 | M31: 0.01 | N31: 0.02 | O31: =0.02+2.13 -> 2.15 | P31: 0 | Q31: 0.02 | R31: 0 | S31: 0 | T31: 0 | U31: 0.18 | V31: 1.02
A32: 5 | B32: Đất cơ sở văn hoá | C32: DVH | D32: 2.76 | E32: 0.14 | F32: 0.33 | G32: 0 | H32: 0 | I32: 0 | J32: 0.05 | K32: 0 | L32: 0.134 | M32: 0 | N32: 0 | P32: 1.526 | Q32: 0 | R32: 0 | S32: 0.58 | T32: 0 | U32: 0 | V32: 0
A33: 6 | B33: Đất cơ sở y tế | C33: DYT | D33: 3.164 | E33: 0.15 | F33: 0.08 | G33: 0.11 | H33: 0.24 | I33: 0.134 | J33: 0.248 | K33: 0.178 | L33: 0.118 | M33: 0.128 | N33: 0.138 | O33: 0.25 | P33: 0.11 | Q33: 0.46 | R33: 0.23 | S33: 0.2 | T33: 0.17 | U33: 0.1 | V33: 0.12
A34: 7 | B34: Đất cơ sở giáo dục - đào tạo | C34: DGD | D34: 65.732 | E34: 3.05 | F34: 3.22 | G34: 1.53 | H34: 3.64 | I34: 4.81 | J34: 4.33 | K34: 5.11 | L34: 1.3 | M34: 2.164 | N34: 3.18 | O34: 6.67 | P34: 9.304 | Q34: 3.02 | R34: 1.72 | S34: 2.65 | T34: 1.53 | U34: 3.624 | V34: 4.88
A35: 8 | B35: Đất cơ sở thể dục - thể thao | C35: DTT | D35: 31.403 | E35: 0.633 | F35: 0 | G35: 0.494 | H35: 3.2 | I35: 3.094 | J35: 3.4 | K35: 2.5 | L35: 3.326 | M35: 0.68 | N35: 1.29 | O35: 2.292 | P35: 1.474 | Q35: 1.78 | R35: 0.72 | S35: 0.81 | T35: 0.66 | U35: 2.41 | V35: 2.64
A36: 9 | B36: Đất cơ sở nghiên cứu khoa học | C36: DKH | D36: 0 | E36: 0 | F36: 0 | G36: 0 | H36: 0 | I36: 0 | J36: 0 | K36: 0 | L36: 0 | M36: 0 | N36: 0 | O36: 0 | P36: 0 | Q36: 0 | R36: 0 | S36: 0 | T36: 0 | U36: 0 | V36: 0
A37: 10 | B37: Đất cơ sở dịch vụ về xã hội | C37: DXH | D37: 0.45 | E37: 0 | F37: 0 | G37: 0 | H37: 0 | I37: 0 | J37: 0 | K37: 0 | L37: 0 | M37: 0 | N37: 0 | O37: 0 | P37: 0 | Q37: 0 | R37: 0 | S37: 0 | T37: 0 | U37: 0 | V37: 0.45
A38: 11 | B38: Đất chợ | C38: DCH | D38: 12.003 | E38: 0.654 | F38: 1.284 | G38: 0.184 | H38: 0.71 | I38: 0 | J38: 0.254 | K38: 0.251 | L38: 0.401 | M38: 0.4 | N38: 0.736 | O38: 0.878 | P38: 3.111 | Q38: 0.241 | R38: 0.281 | S38: 0.518 | T38: 0.22 | U38: 1.57 | V38: 0.31
B39: Đất có di tích lịch sử - văn hóa | C39: DDT | D39: 2.83 | E39: 0 | F39: 0.134 | G39: 0 | H39: 0 | I39: 1.07 | J39: 0 | K39: 0 | L39: 0 | M39: 0 | N39: 0.052 | O39: 0.29 | P39: 0.524 | Q39: 0 | R39: 0.09 | S39: 0 | T39: 0 | U39: 0.67 | V39: 0
B40: Đất danh lam thắng cảnh | C40: DDL | D40: 0 | E40: 0 | F40: 0 | G40: 0 | H40: 0 | I40: 0 | J40: 0 | K40: 0 | L40: 0 | M40: 0 | N40: 0 | O40: 0 | P40: 0 | Q40: 0 | R40: 0 | S40: 0 | T40: 0 | U40: 0 | V40: 0
B41: Đất bãi thải, xử lý chất thải | C41: DRA | D41: 15.454 | E41: 0 | F41: 0 | G41: 0 | H41: 1.896 | I41: 0 | J41: 0 | K41: 0 | L41: 0 | M41: 0 | N41: 13.474 | O41: 0.084 | P41: 0 | Q41: 0 | R41: 0 | S41: 0 | T41: 0 | U41: 0 | V41: 0
B42: Đất ở tại nông thôn | C42: ONT | D42: 888.164 | E42: =34.933+0.08 -> 35.013 | F42: 25.95 | G42: 23.27 | H42: =86+0.02 -> 86.02 | I42: =89.85+0.03+0.012 -> 89.892 | J42: =55.285+0.03+0.26 -> 55.575 | K42: =54.05+0.06+0.03 -> 54.14 | L42: =32.924+0.08 -> 33.004 | M42: =43.29+0.02+1.59 -> 44.9 | N42: 42.024 | O42: =72.46+0.29+0.17 -> 72.92 | P42: =70.66+0.03+1.72 -> 72.41 | Q42: 36.33 | R42: =24.21+0.006 -> 24.216 | S42: =32.02+0.19+0.03 -> 32.24 | T42: 32.56 | U42: =68.07+0.55+0.32 -> 68.94 | V42: =58.52+0.24 -> 58.76
B43: Đất ở tại đô thị | C43: ODT | D43: 0 | E43: 0 | F43: 0 | G43: 0 | H43: 0 | I43: 0 | J43: 0 | K43: 0 | L43: 0 | M43: 0 | N43: 0 | O43: 0 | P43: 0 | Q43: 0 | R43: 0 | S43: 0 | T43: 0 | U43: 0 | V43: 0
B44: Đất xây dựng trụ sở cơ quan | C44: TSC | D44: 13.762 | E44: 0.202 | F44: 0.39 | G44: 0.214 | H44: 0.114 | I44: 0.95 | J44: 0.365 | K44: 0.494 | L44: 0.334 | M44: 0.322 | N44: 0.143 | O44: 0.27 | P44: 7.69 | Q44: 0.434 | R44: 0.08 | S44: 0.57 | T44: 0.25 | U44: 0.42 | V44: 0.52
B45: Đất xây dựng trụ sở của tổ chức sự nghiệp | C45: DTS | D45: 0.03 | E45: 0.03 | F45: 0 | G45: 0 | H45: 0 | I45: 0 | J45: 0 | K45: 0 | L45: 0 | M45: 0 | N45: 0 | P45: 0 | Q45: 0 | R45: 0 | S45: 0 | T45: 0 | U45: 0 | V45: 0
B46: Đất xây dựng cơ sở ngoại giao | C46: DNG | D46: 0 | E46: 0 | F46: 0 | G46: 0 | H46: 0 | I46: 0 | J46: 0 | K46: 0 | L46: 0 | M46: 0 | N46: 0 | P46: 0 | Q46: 0 | R46: 0 | S46: 0 | T46: 0 | U46: 0 | V46: 0
B47: Đất cơ sở tôn giáo | C47: TON | D47: 10.559 | E47: 0.04 | F47: 2.074 | G47: 0.504 | H47: 0 | I47: 0 | J47: 0.901 | K47: 0 | L47: 0 | M47: 0.62 | N47: 0 | O47: 0.45 | P47: 3.79 | Q47: 0 | R47: 0.31 | S47: 0 | T47: 0.65 | U47: 0 | V47: 1.22
B48: Đất làm nghĩa trang, nghĩa địa, nhà tang lễ, nhà hỏa táng | C48: NTD | D48: 597.721 | E48: 27.216 | F48: 8.046 | G48: 8.306 | H48: 72.206 | I48: 51.71 | J48: 19.076 | K48: 50.18 | L48: 47.03 | M48: 33.845 | N48: 24.414 | O48: 37.88 | P48: 90.83 | Q48: 6.684 | R48: 23.47 | S48: 13.36 | T48: 21.734 | U48: 41.164 | V48: 20.57
B49: Đất sản xuất vật liệu xây dựng, làm đồ gốm | C49: SKX | D49: 73.366 | E49: 0 | F49: 0.09 | G49: 0 | H49: 2.409 | I49: 48.491 | J49: 0 | K49: 0 | L49: 0 | M49: 0 | N49: 0.48 | O49: 0 | P49: 0 | Q49: 0 | R49: 0 | S49: 0 | T49: 0 | U49: 7.611 | V49: 14.285
B50: Đất sinh hoạt cộng đồng | C50: DSH | D50: 16.447 | E50: 0.489 | F50: 0.68 | G50: 0.444 | H50: 1.449 | I50: 3.419 | J50: 0.916 | K50: 1.351 | L50: 0.33 | M50: 0.524 | N50: 1.114 | O50: 1.014 | P50: 1.74 | Q50: 0.664 | R50: 0.204 | S50: 0.164 | T50: 0.61 | U50: 0.45 | V50: 0.885
B51: Đất khu vui chơi, giải trí công cộng | C51: DKV | D51: 2.7 | E51: 0 | F51: 0 | G51: 0 | H51: 0 | I51: 0 | J51: 0 | K51: 0 | L51: 0 | M51: 0 | N51: 0 | O51: 0 | P51: 2.7 | Q51: 0 | R51: 0 | S51: 0 | T51: 0 | U51: 0 | V51: 0
B52: Đất cơ sở tín ngưỡng | C52: TIN | D52: 4.252 | E52: 0.038 | F52: 0.106 | G52: 0.586 | H52: 0.181 | I52: 0.3 | J52: 0.16 | K52: 0.32 | L52: 0 | M52: 0.05 | N52: 0 | O52: 0.06 | P52: 0.801 | Q52: 0 | R52: 0.01 | S52: 0.03 | T52: 0.05 | U52: 0.69 | V52: 0.87
B53: Đất sông, ngòi, kênh, rạch, suối | C53: SON | D53: 992.66 | E53: 25.996 | F53: 75.574 | G53: 99.506 | H53: 145.556 | I53: 18.106 | J53: 106.486 | K53: 42.477 | L53: 53.644 | M53: 41.551 | N53: 6.644 | O53: 79.904 | P53: 7.594 | Q53: 34.684 | R53: 32.724 | S53: 5.14 | T53: 131.194 | U53: 71.904 | V53: 13.976
B54: Đất có mặt nước chuyên dùng | C54: MNC | D54: 131.623 | E54: 3.626 | F54: 0.334 | G54: 0 | H54: 9.586 | I54: 1.239 | J54: 0 | K54: 36.526 | L54: 3.524 | M54: 2.29 | N54: 39.484 | O54: 0 | P54: 12.824 | Q54: 2.564 | R54: 2.38 | S54: 2.554 | T54: 4.264 | U54: 7.264 | V54: 3.164
B55: Đất phi nông nghiệp khác | C55: PNK | D55: 0 | E55: 0 | F55: 0 | G55: 0 | H55: 0 | I55: 0 | J55: 0 | K55: 0 | L55: 0 | M55: 0 | N55: 0 | O55: 0 | P55: 0 | Q55: 0 | R55: 0 | S55: 0 | T55: 0 | U55: 0 | V55: 0
B56: Đất chưa sử dụng | C56: CSD | D56: =D57+D58+D59 -> 1874.553 | E56: =E57+E58+E59 -> 29.305 | F56: 4.5 | G56: 1.849 | H56: 89.66 | I56: 130.988 | J56: 155.308 | K56: 633.95 | L56: 49.714 | M56: 16.744 | N56: 32.694 | O56: 158.312 | P56: 221.254 | Q56: 41.054 | R56: 7.194 | S56: 75.422 | T56: 17.98 | U56: 46.665 | V56: 161.96
B57: Đất bằng chưa sử dụng | C57: BCS | D57: =SUM(E57:V57) -> 1673.335 | E57: 29.305 | F57: 4.5 | G57: 1.849 | H57: 89.66 | I57: 114.68 | J57: =107.364-0.26 -> 107.104 | K57: 633.95 | L57: =49.794-0.08 -> 49.714 | M57: 16.744 | N57: 32.534 | O57: =41.596-0.02-0.17 -> 41.406 | P57: 221.254 | Q57: 41.054 | R57: 7.194 | S57: 55.782 | T57: 17.98 | U57: 46.665 | V57: 161.96
B58: Đất đồi núi chưa sử dụng | C58: DCS | D58: =SUM(E58:V58) -> 190.634 | E58: 0 | F58: 0 | G58: 0 | H58: 0 | I58: 5.724 | J58: 48.204 | K58: 0 | L58: 0 | M58: 0 | N58: 0.16 | O58: 116.906 | P58: 0 | Q58: 0 | R58: 0 | S58: 19.64 | T58: 0 | U58: 0 | V58: 0
B59: Núi đá không có rừng cây | C59: NCS | D59: =SUM(E59:V59) -> 10.584 | E59: 0 | F59: 0 | G59: 0 | H59: 0 | I59: 10.584 | K59: 0 | L59: 0 | M59: 0 | N59: 0 | O59: 0 | P59: 0 | Q59: 0 | R59: 0 | S59: 0 | T59: 0 | U59: 0 | V59: 0
B60: Đất khu công nghệ cao* | C60: KCN
B61: Đất khu kinh tế* | C61: KKT | D61: =SUM(E61:V61) -> 9080.682 | E61: =E4 -> 156.193 | I61: =I4 -> 2648.48 | K61: =K4 -> 2101.209 | O61: =O4 -> 1998.255 | U61: =U4 -> 1010.904 | V61: =V4 -> 1165.641
B62: Đất đô thị* | C62: KDT
B63: KHU CHỨC NĂNG*
B64: Khu vực chuyên trồng lúa nước | C64: KVL
B65: Khu vực chuyên trồng cây công nghiệp lâu năm | C65: KVN
B66: Khu vực rừng phòng hộ | C66: KPH
B67: Khu vực rừng đặc dụng | C67: KDD
B68: Khu vực rừng sản xuất | C68: KSX
B69: Khu vực công nghiệp, cụm công nghiệp | C69: KKN
B70: Khu đô thị-thương mại - dịch vụ | C70: KDV
B71: Khu du lịch | C71: KDL
B72: Khu ở, làng nghề, sản xuất phi nông nghiệp nông thôn | C72: KON
B74: Ghi chú: * Không tổng hợp khi tính tổng diện tích tự nhiên

Sheet Biểu 02 CH (hidden)
A1: Biểu 02 CH
A2: KẾT QUẢ THỰC HIỆN KẾ HOẠCH SỬ DỤNG ĐẤT NĂM 2018 CỦA HUYỆN QUẢNG TRẠCH - TỈNH QUẢNG BÌNH
A4: STT | B4: Chỉ tiêu sử dụng đất | C4: Mã | D4: Diện tích KH được duyệt (ha) | E4: Kết quả thực hiện
E5: Diện tích hiện trạng (ha) | F5: So sánh
F6: Tăng (+) giảm (-) (ha) | G6: Tỷ lệ (%)
A7: -1 | B7: -2 | C7: -3 | D7: -4 | E7: -5 | F7: -6 | G7: -7
B8: TỔNG DIỆN TÍCH TỰ NHIÊN | D8: =D9+D20+D47 -> 44787.86 | E8: =E9+E20+E47 -> 44787.864
A9: 1 | B9: Đất nông nghiệp | C9: NNP | D9: 34678.04 | E9: =VLOOKUP(C9,HIENTRANG!$C$4:$D$62,2,0) -> 35383.962 | F9: =E9-D9 -> 705.922 | G9: =IF(D9=0,"-",E9*100/D9) -> 102.0356456
A10: 1.1 | B10: Đất trồng lúa | C10: LUA | D10: 3709.79 | E10: =VLOOKUP(C10,HIENTRANG!$C$4:$D$62,2,0) -> 3753.738 | F10: =E10-D10 -> 43.948 | G10: =IF(D10=0,"-",E10*100/D10) -> 101.1846493
B11: Trong đó: Đất chuyên trồng lúa nước | C11: LUC | D11: 3417.71 | E11: =VLOOKUP(C11,HIENTRANG!$C$4:$D$62,2,0) -> 3462.241 | F11: 44.531 | G11: 101.3029485
A12: 1.2 | B12: Đất trồng cây hàng năm khác | C12: HNK | D12: 2892.72 | E12: =VLOOKUP(C12,HIENTRANG!$C$4:$D$62,2,0) -> 2957.842 | F12: 65.122 | G12: 102.2512376
A13: 1.3 | B13: Đất trồng cây lâu năm | C13: CLN | D13: 1151.78 | E13: =VLOOKUP(C13,HIENTRANG!$C$4:$D$62,2,0) -> 1497.134 | F13: 345.354 | G13: 129.984372
A14: 1.4 | B14: Đất rừng phòng hộ | C14: RPH | D14: 11061.61 | E14: =VLOOKUP(C14,HIENTRANG!$C$4:$D$62,2,0) -> 11063.286 | F14: 1.676 | G14: 100.0151515
A15: 1.5 | B15: Đất rừng đặc dụng | C15: RDD | D15: 0 | E15: =VLOOKUP(C15,HIENTRANG!$C$4:$D$62,2,0) -> 0 | F15: 0 | G15: -
A16: 1.6 | B16: Đất rừng sản xuất | C16: RSX | D16: 15431.19 | E16: =VLOOKUP(C16,HIENTRANG!$C$4:$D$62,2,0) -> 15845.825 | F16: 414.635 | G16: 102.686993
A17: 1.7 | B17: Đất nuôi trồng thuỷ sản | C17: NTS | D17: 179.81 | E17: =VLOOKUP(C17,HIENTRANG!$C$4:$D$62,2,0) -> 160.969 | F17: -18.841 | G17: 89.52171737
A18: 1.8 | B18: Đất làm muối | C18: LMU | D18: 70.17 | E18: =VLOOKUP(C18,HIENTRANG!$C$4:$D$62,2,0) -> 73.564 | F18: 3.394 | G18: 104.8368249
A19: 1.9 | B19: Đất nông nghiệp khác | C19: NKH | D19: 180.97 | E19: =VLOOKUP(C19,HIENTRANG!$C$4:$D$62,2,0) -> 31.604 | F19: -149.366 | G19: 17.46366801
A20: 2 | B20: Đất phi nông nghiệp | C20: PNN | D20: 8462.5 | E20: =VLOOKUP(C20,HIENTRANG!$C$4:$D$62,2,0) -> 7529.349 | F20: -933.151 | G20: 88.97310487
A21: 2.1 | B21: Đất quốc phòng | C21: CQP | D21: 1318.94 | E21: =VLOOKUP(C21,HIENTRANG!$C$4:$D$62,2,0) -> 1305.95 | F21: -12.99 | G21: 99.0151182
A22: 2.2 | B22: Đất an ninh | C22: CAN | D22: 15.47 | E22: =VLOOKUP(C22,HIENTRANG!$C$4:$D$62,2,0) -> 3.562 | F22: -11.908 | G22: 23.02521008
A23: 2.3 | B23: Đất khu công nghiệp | C23: SKK | D23: 199.85 | E23: =VLOOKUP(C23,HIENTRANG!$C$4:$D$62,2,0) -> 104.572 | F23: -95.278 | G23: 52.32524393
A24: 2.4 | B24: Đất khu chế xuất | C24: SKT | D24: 0 | E24: =VLOOKUP(C24,HIENTRANG!$C$4:$D$62,2,0) -> 0 | F24: 0 | G24: -
A25: 2.5 | B25: Đất cụm công nghiệp | C25: SKN | D25: 20 | E25: =VLOOKUP(C25,HIENTRANG!$C$4:$D$62,2,0) -> 0 | F25: -20 | G25: 0
A26: 2.6 | B26: Đất thương mại dịch vụ | C26: TMD | D26: 192.6 | E26: =VLOOKUP(C26,HIENTRANG!$C$4:$D$62,2,0) -> 81.326 | F26: -111.274 | G26: 42.22533749
A27: 2.7 | B27: Đất cơ sở sản xuất phi nông nghiệp | C27: SKC | D27: 176.61 | E27: =VLOOKUP(C27,HIENTRANG!$C$4:$D$62,2,0) -> 91.862 | F27: -84.748 | G27: 52.01404224
A28: 2.8 | B28: Đất sử dụng cho hoạt động khoáng sản | C28: SKS | D28: 5.14 | E28: =VLOOKUP(C28,HIENTRANG!$C$4:$D$62,2,0) -> 5.141 | F28: 0.001 | G28: 100.0194553
A29: 2.9 | B29: Đất phát triển hạ tầng cấp quốc gia, cấp tỉnh, cấp huyện, cấp xã | C29: DHT | D29: 3556.76 | E29: =VLOOKUP(C29,HIENTRANG!$C$4:$D$62,2,0) -> 3187.368 | F29: -369.392 | G29: 89.61436813
A30: 2.10 | B30: Đất có di tích lịch sử - văn hóa | C30: DDT | D30: 41.23 | E30: =VLOOKUP(C30,HIENTRANG!$C$4:$D$62,2,0) -> 2.83 | F30: -38.4 | G30: 6.863934029
A31: 2.11 | B31: Đất danh lam thắng cảnh | C31: DDL | D31: 0 | E31: =VLOOKUP(C31,HIENTRANG!$C$4:$D$62,2,0) -> 0 | F31: 0 | G31: -
A32: 2.12 | B32: Đất bải thải, xử lý chất thải | C32: DRA | D32: 25.78 | E32: =VLOOKUP(C32,HIENTRANG!$C$4:$D$62,2,0) -> 15.454 | F32: -10.326 | G32: 59.94569434
A33: 2.13 | B33: Đất ở tại nông thôn | C33: ONT | D33: 988.15 | E33: =VLOOKUP(C33,HIENTRANG!$C$4:$D$62,2,0) -> 888.164 | F33: -99.986 | G33: 89.88149572
A34: 2.14 | B34: Đất ở tại đô thị | C34: ODT | D34: 0 | E34: =VLOOKUP(C34,HIENTRANG!$C$4:$D$62,2,0) -> 0 | F34: 0 | G34: -
A35: 2.15 | B35: Đất xây dựng trụ sở cơ quan | C35: TSC | D35: 14.97 | E35: =VLOOKUP(C35,HIENTRANG!$C$4:$D$62,2,0) -> 13.762 | F35: -1.208 | G35: 91.93052772
A36: 2.16 | B36: Đất xây dựng trụ sở của tổ chức sự nghiệp | C36: DTS | D36: 5.34 | E36: =VLOOKUP(C36,HIENTRANG!$C$4:$D$62,2,0) -> 0.03 | F36: -5.31 | G36: 0.5617977528
A37: 2.17 | B37: Đất xây dựng cơ sở ngoại giao | C37: DNG | D37: 0 | E37: =VLOOKUP(C37,HIENTRANG!$C$4:$D$62,2,0) -> 0 | F37: 0 | G37: -
A38: 2.18 | B38: Đất cơ sở tôn giáo | C38: TON | D38: 12.24 | E38: =VLOOKUP(C38,HIENTRANG!$C$4:$D$62,2,0) -> 10.559 | F38: -1.681 | G38: 86.26633987
A39: 2.19 | B39: Đất làm nghĩa trang, nghĩa địa, nhà tang lễ, nhà hỏa táng | C39: NTD | D39: 614.88 | E39: =VLOOKUP(C39,HIENTRANG!$C$4:$D$62,2,0) -> 597.721 | F39: -17.159 | G39: 97.20937419
A40: 2.20 | B40: Đất sản xuất vật liệu xây dựng, làm đồ gốm | C40: SKX | D40: 196.98 | E40: =VLOOKUP(C40,HIENTRANG!$C$4:$D$62,2,0) -> 73.366 | F40: -123.614 | G40: 37.24540562
A41: 2.21 | B41: Đất sinh hoạt cộng đồng | C41: DSH | D41: 19.87 | E41: =VLOOKUP(C41,HIENTRANG!$C$4:$D$62,2,0) -> 16.447 | F41: -3.423 | G41: 82.77302466
A42: 2.22 | B42: Đất khu vui chơi giải trí công cộng | C42: DKV | D42: 3.98 | E42: =VLOOKUP(C42,HIENTRANG!$C$4:$D$62,2,0) -> 2.7 | F42: -1.28 | G42: 67.83919598
A43: 2.23 | B43: Đất cơ sở tín ngưỡng | C43: TIN | D43: 5.08 | E43: =VLOOKUP(C43,HIENTRANG!$C$4:$D$62,2,0) -> 4.252 | F43: -0.828 | G43: 83.7007874
A44: 2.24 | B44: Đất sông, ngòi, kênh, rạch, suối | C44: SON | D44: 925.42 | E44: =VLOOKUP(C44,HIENTRANG!$C$4:$D$62,2,0) -> 992.66 | F44: 67.24 | G44: 107.2658901
A45: 2.25 | B45: Đất có mặt nước chuyên dùng | C45: MNC | D45: 122.86 | E45: =VLOOKUP(C45,HIENTRANG!$C$4:$D$62,2,0) -> 131.623 | F45: 8.763 | G45: 107.1325085
A46: 2.26 | B46: Đất phi nông nghiệp khác | C46: PNK | D46: 0.35 | E46: =VLOOKUP(C46,HIENTRANG!$C$4:$D$62,2,0) -> 0 | F46: -0.35 | G46: 0
A47: 3 | B47: Đất chưa sử dụng | C47: CSD | D47: 1647.32 | E47: =VLOOKUP(C47,HIENTRANG!$C$4:$D$62,2,0) -> 1874.553 | F47: 227.233 | G47: 113.7941019

Sheet Biểu 03 CH (hidden)
A1: Biểu 03 CH
A2: ĐIỀU CHỈNH QUY HOẠCH SỬ DỤNG ĐẤT ĐẾN NĂM 2020 CỦA HUYỆN …. - TỈNH QUẢNG BÌNH
M3: Đơn vị tính: ha
A4: STT | B4: Chỉ tiêu sử dụng đất | C4: Mã | D4: Tông diện tích | E4: Diện tích phân theo đơn vị hành chính
E5: =HIENTRANG!E3 -> Cảnh Dương | F5: =HIENTRANG!F3 -> Cảnh Hóa | G5: =HIENTRANG!G3 -> Phù Hóa | H5: =HIENTRANG!H3 -> Quảng Châu | I5: =HIENTRANG!I3 -> Quảng Đông | J5: =HIENTRANG!J3 -> Quảng Hợp | K5: =HIENTRANG!K3 -> Quảng Hưng | L5: =HIENTRANG!L3 -> Quảng Kim | M5: =HIENTRANG!M3 -> Quảng Liên | N5: =HIENTRANG!N3 -> Quảng Lưu | O5: =HIENTRANG!O3 -> Quảng Phú | P5: =HIENTRANG!P3 -> Quảng Phương | Q5: =HIENTRANG!Q3 -> Quảng Thạch | R5: =HIENTRANG!R3 -> Quảng Thanh | S5: =HIENTRANG!S3 -> Quảng Tiến | T5: =HIENTRANG!T3 -> Quảng Trường | U5: =HIENTRANG!U3 -> Quảng Tùng | V5: =HIENTRANG!V3 -> Quảng Xuân | W5: =HIENTRANG!#REF! ->  | X5: =HIENTRANG!#REF! -> 
A6: -1 | B6: -2 | C6: -3 | D6: (4)=(5)+..+(34) | E6: -5 | F6: -6 | G6: -7 | H6: -8 | I6: -9 | J6: -10 | K6: -11 | L6: -12 | M6: -13 | N6: -14 | O6: -15 | P6: -16 | Q6: -17 | R6: -18 | S6: -19 | T6: -20 | U6: -21 | V6: -22 | W6: -23 | X6: -24
B7: TỔNG DIỆN TÍCH TỰ NHIÊN | D7: =D8+D19+D46 ->  | E7: =E8+E19+E46 -> 156.193 | F7: 773.84 | G7: 364.892 | H7: 4100.461 | I7: 2648.48 | J7: 11455.251 | K7: 2101.209 | L7: 3766.377 | M7: 1818.523 | N7: 3927.099 | O7: 1998.255 | P7: 2397.11 | Q7: 4634.326 | R7: 386.453 | S7: 1321.53 | T7: 761.32 | U7: 1010.904 | V7: 1165.641
A8: 1 | B8: Đất nông nghiệp | C8: NNP | D8: =SUM(E8:X8) ->  | E8: =IF(E$5="","",VLOOKUP($C8,INDIRECT("'"&E$5&"'"&"!$C$7:$BJ$61"),60,0)) -> 8.188 | F8: 602.754 | G8: 201.833 | H8: 3149.874 | I8: 1606.837 | J8: 10332.441 | K8: 1117.632 | L8: 3316.86 | M8: 1493.036 | N8: 2801.264 | O8: =IF(O$5="","",VLOOKUP($C8,INDIRECT("'"&O$5&"'"&"!$C$7:$BJ$61"),60,0)) -> 1418.12 | P8: 1711.542 | Q8: 4326.073 | R8: 242.784 | S8: 1140.162 | T8: 478.963 | U8: 660.652 | V8: 774.947
A9: 1.1 | B9: Đất trồng lúa | C9: LUA | E9: 0 | F9: 57.02 | G9: 102.701 | H9: 397.551 | I9: 113.963 | J9: 225.201 | K9: 353.694 | L9: 234.401 | M9: 105.504 | N9: 336.721 | O9: 297.511 | P9: 536.262 | Q9: 102.453 | R9: 151.53 | S9: 55.232 | T9: 115.192 | U9: 307.571 | V9: 261.231
B10: Trong đó: Đất chuyên trồng lúa nước | C10: LUC | E10: 0 | F10: 57.02 | G10: 102.701 | H10: 397.551 | I10: 36.411 | J10: 134.251 | K10: 342.301 | L10: 234.401 | M10: 105.504 | N10: 330.201 | O10: 280.821 | P10: 486.921 | Q10: 101.412 | R10: 151.53 | S10: 22.772 | T10: 115.192 | U10: 307.571 | V10: 255.681
A11: 1.2 | B11: Đất trồng cây hàng năm khác | C11: HNK | E11: 4.724 | F11: 92.942 | G11: 71.654 | H11: 337.01 | I11: 216.256 | J11: 488.536 | K11: 274.03 | L11: 146.245 | M11: 30.374 | N11: 273.856 | O11: 304.029 | P11: 225.91 | Q11: 55.564 | R11: 33.21 | S11: 35.866 | T11: 81.436 | U11: 110.77 | V11: 175.43
A12: 1.3 | B12: Đất trồng cây lâu năm | C12: CLN | E12: 0 | F12: 4.35 | G12: 10.714 | H12: 289.524 | I12: 36.818 | J12: 52.328 | K12: 207.982 | L12: 0.021 | M12: 62.85 | N12: 157.876 | O12: 40.728 | P12: 122.651 | Q12: 222.601 | R12: 0.95 | S12: 250.584 | T12: 0.77 | U12: 1.686 | V12: 34.701
A13: 1.4 | B13: Đất rừng phòng hộ | C13: RPH | E13: 3.464 | F13: 0 | G13: 0 | H13: 479.624 | I13: 357.258 | J13: 5087.318 | K13: 38.4 | L13: 1415.93 | M13: 0 | N13: 1004.486 | O13: 20.81 | P13: 293.82 | Q13: 2098.486 | R13: 0 | S13: 0 | T13: 0 | U13: 3.31 | V13: 260.38
A14: 1.5 | B14: Đất rừng đặc dụng | C14: RDD | E14: 0 | F14: 0 | G14: 0 | H14: 0 | I14: 0 | J14: 0 | K14: 0 | L14: 0 | M14: 0 | N14: 0 | O14: 0 | P14: 0 | Q14: 0 | R14: 0 | S14: 0 | T14: 0 | U14: 0 | V14: 0
A15: 1.6 | B15: Đất rừng sản xuất | C15: RSX | E15: 0 | F15: 448.442 | G15: 0 | H15: 1629.256 | I15: 881.07 | J15: 4477.859 | K15: 219.916 | L15: 1517.294 | M15: 1288.144 | N15: 1024.426 | O15: 666.289 | P15: 526.399 | Q15: 1845.219 | R15: 51.739 | S15: 797.39 | T15: 247.72 | U15: 221.27 | V15: 3.392
A16: 1.7 | B16: Đất nuôi trồng thuỷ sản | C16: NTS | E16: 0 | F16: 0 | G16: 16.764 | H16: 16.909 | I16: 1.472 | J16: 1.199 | K16: 9.625 | L16: 2.969 | M16: 6.164 | N16: 3.899 | O16: 15.189 | P16: 6.5 | Q16: 1.75 | R16: 5.355 | S16: 1.09 | T16: 33.845 | U16: 11.12 | V16: 27.119
A17: 1.8 | B17: Đất làm muối | C17: LMU | E17: 0 | F17: 0 | G17: 0 | H17: 0 | I17: 0 | J17: 0 | K17: 0 | L17: 0 | M17: 0 | N17: 0 | O17: 73.564 | P17: 0 | Q17: 0 | R17: 0 | S17: 0 | T17: 0 | U17: 0 | V17: 0
A18: 1.9 | B18: Đất nông nghiệp khác | C18: NKH | E18: =IF(E$5="","",VLOOKUP($C18,INDIRECT("'"&E$5&"'"&"!$C$7:$BJ$61"),60,0)) -> 0 | F18: 0 | G18: 0 | H18: 0 | I18: 0 | J18: 0 | K18: 13.985 | L18: 0 | M18: 0 | N18: 0 | O18: =IF(O$5="","",VLOOKUP($C18,INDIRECT("'"&O$5&"'"&"!$C$7:$BJ$61"),60,0)) -> 0 | P18: 0 | Q18: 0 | R18: 0 | S18: 0 | T18: 0 | U18: 4.925 | V18: 12.694
A19: 2 | B19: Đất phi nông nghiệp | C19: PNN | E19: 118.7 | F19: 166.586 | G19: 161.21 | H19: 860.927 | I19: 910.655 | J19: 967.502 | K19: 349.627 | L19: 399.803 | M19: 308.743 | N19: 1093.141 | O19: 421.823 | P19: 464.314 | Q19: 267.199 | R19: 136.475 | S19: 105.946 | T19: 264.377 | U19: 303.587 | V19: 228.734
A20: 2.1 | B20: Đất quốc phòng | C20: CQP | E20: 0.312 | F20: 0 | G20: 0 | H20: 99.752 | I20: 242.766 | J20: 36.802 | K20: 0 | L20: 0 | M20: 0 | N20: 858.56 | O20: 5 | P20: 2.468 | Q20: 43.5 | R20: 0 | S20: 0 | T20: 15.58 | U20: 1.21 | V20: 0
A21: 2.2 | B21: Đất an ninh | C21: CAN | E21: 0 | F21: 0 | G21: 0 | H21: 0 | I21: 0.526 | J21: 0 | K21: 0 | L21: 0 | M21: 0 | N21: 0 | O21: 0 | P21: 3.036 | Q21: 0 | R21: 0 | S21: 0 | T21: 0 | U21: 0 | V21: 0
A22: 2.3 | B22: Đất khu công nghiệp | C22: SKK | E22: 0 | F22: 0 | G22: 0 | H22: 0 | I22: 104.572 | J22: 0 | K22: 0 | L22: 0 | M22: 0 | N22: 0 | O22: 0 | P22: 0 | Q22: 0 | R22: 0 | S22: 0 | T22: 0 | U22: 0 | V22: 0
A23: 2.4 | B23: Đất khu chế xuất | C23: SKT | E23: 0 | F23: 0 | G23: 0 | H23: 0 | I23: 0 | J23: 0 | K23: 0 | L23: 0 | M23: 0 | N23: 0 | O23: 0 | P23: 0 | Q23: 0 | R23: 0 | S23: 0 | T23: 0 | U23: 0 | V23: 0
A24: 2.5 | B24: Đất cụm công nghiệp | C24: SKN | E24: 0 | F24: 0 | G24: 0 | H24: 0 | I24: 0 | J24: 0 | K24: 0 | L24: 0 | M24: 0 | N24: 0 | O24: 0 | P24: 0 | Q24: 0 | R24: 0 | S24: 0 | T24: 0 | U24: 0 | V24: 0
A25: 2.6 | B25: Đất thương mại dịch vụ | C25: TMD | E25: 0 | F25: 0.248 | G25: 0 | H25: 0.06 | I25: 69.964 | J25: 0 | K25: 0.496 | L25: 0 | M25: 0.578 | N25: 0 | O25: 0 | P25: 3.91 | Q25: 0.7 | R25: 0 | S25: 0.73 | T25: 0 | U25: 4.64 | V25: 0
A26: 2.7 | B26: Đất cơ sở sản xuất phi nông nghiệp | C26: SKC | E26: 6.405 | F26: 8.802 | G26: 0 | H26: 0.112 | I26: 7.591 | J26: 0 | K26: 2.264 | L26: 0 | M26: 2.853 | N26: 0 | O26: 46.388 | P26: 0.26 | Q26: 0 | R26: 4.056 | S26: 0.14 | T26: 2.351 | U26: 4.34 | V26: 6.3
A27: 2.8 | B27: Đất sử dụng cho hoạt động khoáng sản | C27: SKS | E27: 0 | F27: 0 | G27: 0 | H27: 0 | I27: 5.141 | J27: 0 | K27: 0 | L27: 0 | M27: 0 | N27: 0 | O27: 0 | P27: 0 | Q27: 0 | R27: 0 | S27: 0 | T27: 0 | U27: 0 | V27: 0
A28: 2.9 | B28: Đất phát triển hạ tầng cấp quốc gia, cấp tỉnh, cấp huyện, cấp xã | C28: DHT | E28: =IF(E$5="","",VLOOKUP($C28,INDIRECT("'"&E$5&"'"&"!$C$7:$BJ$61"),60,0)) -> 19.333 | F28: 44.158 | G28: 28.38 | H28: 441.586 | I28: 264.918 | J28: 747.221 | K28: 161.379 | L28: 261.937 | M28: 181.21 | N28: 106.752 | O28: =IF(O$5="","",VLOOKUP($C28,INDIRECT("'"&O$5&"'"&"!$C$7:$BJ$61"),60,0)) -> 177.563 | P28: 253.737 | Q28: 141.639 | R28: 48.935 | S28: 51.018 | T28: 55.134 | U28: 94.284 | V28: 108.184
A29: 2.10 | B29: Đất có di tích lịch sử - văn hóa | C29: DDT | E29: 0 | F29: 0.134 | G29: 0 | H29: 0 | I29: 1.07 | J29: 0 | K29: 0 | L29: 0 | M29: 0 | N29: 0.052 | O29: 0.29 | P29: 0.524 | Q29: 0 | R29: 0.09 | S29: 0 | T29: 0 | U29: 0.67 | V29: 0
A30: 2.11 | B30: Đất danh lam thắng cảnh | C30: DDL | E30: 0 | F30: 0 | G30: 0 | H30: 0 | I30: 0 | J30: 0 | K30: 0 | L30: 0 | M30: 0 | N30: 0 | O30: 0 | P30: 0 | Q30: 0 | R30: 0 | S30: 0 | T30: 0 | U30: 0 | V30: 0
A31: 2.12 | B31: Đất bải thải, xử lý chất thải | C31: DRA | E31: 0 | F31: 0 | G31: 0 | H31: 1.896 | I31: 0 | J31: 0 | K31: 0 | L31: 0 | M31: 0 | N31: 13.474 | O31: 0.084 | P31: 0 | Q31: 0 | R31: 0 | S31: 0 | T31: 0 | U31: 0 | V31: 0
A32: 2.13 | B32: Đất ở tại nông thôn | C32: ONT | E32: 35.013 | F32: 25.95 | G32: 23.27 | H32: 86.02 | I32: 89.892 | J32: 55.575 | K32: 54.14 | L32: 33.004 | M32: 44.9 | N32: 42.024 | O32: 72.92 | P32: 72.41 | Q32: 36.33 | R32: 24.216 | S32: 32.24 | T32: 32.56 | U32: 68.94 | V32: 58.76
A33: 2.14 | B33: Đất ở tại đô thị | C33: ODT | E33: 0 | F33: 0 | G33: 0 | H33: 0 | I33: 0 | J33: 0 | K33: 0 | L33: 0 | M33: 0 | N33: 0 | O33: 0 | P33: 0 | Q33: 0 | R33: 0 | S33: 0 | T33: 0 | U33: 0 | V33: 0
A34: 2.15 | B34: Đất xây dựng trụ sở cơ quan | C34: TSC | E34: 0.202 | F34: 0.39 | G34: 0.214 | H34: 0.114 | I34: 0.95 | J34: 0.365 | K34: 0.494 | L34: 0.334 | M34: 0.322 | N34: 0.143 | O34: 0.27 | P34: 7.69 | Q34: 0.434 | R34: 0.08 | S34: 0.57 | T34: 0.25 | U34: 0.42 | V34: 0.52
A35: 2.16 | B35: Đất xây dựng trụ sở của tổ chức sự nghiệp | C35: DTS | E35: 0.03 | F35: 0 | G35: 0 | H35: 0 | I35: 0 | J35: 0 | K35: 0 | L35: 0 | M35: 0 | N35: 0 | O35: 0 | P35: 0 | Q35: 0 | R35: 0 | S35: 0 | T35: 0 | U35: 0 | V35: 0
A36: 2.17 | B36: Đất xây dựng cơ sở ngoại giao | C36: DNG | E36: 0 | F36: 0 | G36: 0 | H36: 0 | I36: 0 | J36: 0 | K36: 0 | L36: 0 | M36: 0 | N36: 0 | O36: 0 | P36: 0 | Q36: 0 | R36: 0 | S36: 0 | T36: 0 | U36: 0 | V36: 0
A37: 2.18 | B37: Đất cơ sở tôn giáo | C37: TON | E37: 0.04 | F37: 2.074 | G37: 0.504 | H37: 0 | I37: 0 | J37: 0.901 | K37: 0 | L37: 0 | M37: 0.62 | N37: 0 | O37: 0.45 | P37: 3.79 | Q37: 0 | R37: 0.31 | S37: 0 | T37: 0.65 | U37: 0 | V37: 1.22
A38: 2.19 | B38: Đất làm nghĩa trang, nghĩa địa, nhà tang lễ, nhà hỏa táng | C38: NTD | E38: =IF(E$5="","",VLOOKUP($C38,INDIRECT("'"&E$5&"'"&"!$C$7:$BJ$61"),60,0)) -> 27.216 | F38: 8.046 | G38: 8.306 | H38: 72.206 | I38: 51.71 | J38: 19.076 | K38: 50.18 | L38: 47.03 | M38: 33.845 | N38: 24.414 | O38: =IF(O$5="","",VLOOKUP($C38,INDIRECT("'"&O$5&"'"&"!$C$7:$BJ$61"),60,0)) -> 37.88 | P38: 90.83 | Q38: 6.684 | R38: 23.47 | S38: 13.36 | T38: 21.734 | U38: 41.164 | V38: 20.57
A39: 2.20 | B39: Đất sản xuất vật liệu xây dựng, làm đồ gốm | C39: SKX | E39: 0 | F39: 0.09 | G39: 0 | H39: 2.409 | I39: 48.491 | J39: 0 | K39: 0 | L39: 0 | M39: 0 | N39: 0.48 | O39: 0 | P39: 0 | Q39: 0 | R39: 0 | S39: 0 | T39: 0 | U39: 7.611 | V39: 14.285
A40: 2.21 | B40: Đất sinh hoạt cộng đồng | C40: DSH | E40: 0.489 | F40: 0.68 | G40: 0.444 | H40: 1.449 | I40: 3.419 | J40: 0.916 | K40: 1.351 | L40: 0.33 | M40: 0.524 | N40: 1.114 | O40: 1.014 | P40: 1.74 | Q40: 0.664 | R40: 0.204 | S40: 0.164 | T40: 0.61 | U40: 0.45 | V40: 0.885
A41: 2.22 | B41: Đất khu vui chơi giải trí công cộng | C41: DKV | E41: 0 | F41: 0 | G41: 0 | H41: 0 | I41: 0 | J41: 0 | K41: 0 | L41: 0 | M41: 0 | N41: 0 | O41: 0 | P41: 2.7 | Q41: 0 | R41: 0 | S41: 0 | T41: 0 | U41: 0 | V41: 0
A42: 2.23 | B42: Đất cơ sở tín ngưỡng | C42: TIN | E42: 0.038 | F42: 0.106 | G42: 0.586 | H42: 0.181 | I42: 0.3 | J42: 0.16 | K42: 0.32 | L42: 0 | M42: 0.05 | N42: 0 | O42: 0.06 | P42: 0.801 | Q42: 0 | R42: 0.01 | S42: 0.03 | T42: 0.05 | U42: 0.69 | V42: 0.87
A43: 2.24 | B43: Đất sông, ngòi, kênh, rạch, suối | C43: SON | E43: 25.996 | F43: 75.574 | G43: 99.506 | H43: 145.556 | I43: 18.106 | J43: 106.486 | K43: 42.477 | L43: 53.644 | M43: 41.551 | N43: 6.644 | O43: 79.904 | P43: 7.594 | Q43: 34.684 | R43: 32.724 | S43: 5.14 | T43: 131.194 | U43: 71.904 | V43: 13.976
A44: 2.25 | B44: Đất có mặt nước chuyên dùng | C44: MNC | E44: 3.626 | F44: 0.334 | G44: 0 | H44: 9.586 | I44: 1.239 | J44: 0 | K44: 36.526 | L44: 3.524 | M44: 2.29 | N44: 39.484 | O44: 0 | P44: 12.824 | Q44: 2.564 | R44: 2.38 | S44: 2.554 | T44: 4.264 | U44: 7.264 | V44: 3.164
A45: 2.26 | B45: Đất phi nông nghiệp khác | C45: PNK | E45: 0 | F45: 0 | G45: 0 | H45: 0 | I45: 0 | J45: 0 | K45: 0 | L45: 0 | M45: 0 | N45: 0 | O45: 0 | P45: 0 | Q45: 0 | R45: 0 | S45: 0 | T45: 0 | U45: 0 | V45: 0
A46: 3 | B46: Đất chưa sử dụng | C46: CSD | E46: 29.305 | F46: 4.5 | G46: 1.849 | H46: 89.66 | I46: 130.988 | J46: 155.308 | K46: 633.95 | L46: 49.714 | M46: 16.744 | N46: 32.694 | O46: 158.312 | P46: 221.254 | Q46: 41.054 | R46: 7.194 | S46: 75.422 | T46: 17.98 | U46: 46.665 | V46: 161.96
A47: 4 | B47: Đất khu công nghệ cao* | C47: KCN | D47: 0
A48: 5 | B48: Đất khu kinh tế* | C48: KKT | D48: 0
A49: 6 | B49: Đất đô thị* | C49: KDT | E49: =IF(E33>0,E8+E19+E46,"") ->  | F49: =IF(F33>0,F8+F19+F46,"") -> 
A50: II | B50: KHU CHỨC NĂNG*
A51: 1 | B51: Khu vực chuyên trồng lúa nước | C51: KVL | D51: =SUM(E51:X51) ->  | E51: =E10 -> 0 | F51: =F10 -> 57.02 | G51: =G10 -> 102.701 | H51: =H10 -> 397.551 | I51: 36.411 | J51: 134.251 | K51: 342.301 | L51: 234.401 | M51: 105.504 | N51: 330.201 | O51: 280.821 | P51: 486.921 | Q51: 101.412 | R51: 151.53 | S51: 22.772 | T51: 115.192 | U51: 307.571 | V51: 255.681
A52: 2 | B52: Khu vực chuyên trồng cây công nghiệp lâu năm | C52: KVN | D52: =SUM(E52:X52) ->  | E52: =E12 -> 0 | F52: =F12 -> 4.35 | G52: =G12 -> 10.714 | H52: =H12 -> 289.524 | I52: 36.818 | J52: 52.328 | K52: 207.982 | L52: 0.021 | M52: 62.85 | N52: 157.876 | O52: 40.728 | P52: 122.651 | Q52: 222.601 | R52: 0.95 | S52: 250.584 | T52: 0.77 | U52: 1.686 | V52: 34.701
A53: 3 | B53: Khu vực rừng phòng hộ | C53: KPH | F53: =F13 -> 0 | G53: =G13 -> 0 | H53: =H13 -> 479.624 | I53: 357.258 | J53: 5087.318 | K53: 38.4 | L53: 1415.93 | M53: 0 | N53: 1004.486 | O53: 20.81 | P53: 293.82 | Q53: 2098.486 | R53: 0 | S53: 0 | T53: 0 | U53: 3.31 | V53: 260.38
A54: 4 | B54: Khu vực rừng đặc dụng | C54: KDD | D54: 0
A55: 5 | B55: Khu vực rừng sản xuất | C55: KSX | E55: =E15 -> 0 | F55: =F15 -> 448.442 | G55: =G15 -> 0 | H55: =H15 -> 1629.256 | I55: 881.07 | J55: 4477.859 | K55: 219.916 | L55: 1517.294 | M55: 1288.144 | N55: 1024.426 | O55: 666.289 | P55: 526.399 | Q55: 1845.219 | R55: 51.739 | S55: 797.39 | T55: 247.72 | U55: 221.27 | V55: 3.392
A56: 6 | B56: Khu vực công nghiệp, cụm công nghiệp | C56: KKN | D56: 0
A57: 7 | B57: Khu đô thị - thương mại - dịch vụ | C57: KDV | E57: =E25 -> 0 | F57: =F25 -> 0.248 | G57: =G25 -> 0 | H57: =H25 -> 0.06 | I57: 69.964 | J57: 0 | K57: 0.496 | L57: 0 | M57: 0.578 | N57: 0 | O57: 0 | P57: 3.91 | Q57: 0.7 | R57: 0 | S57: 0.73 | T57: 0 | U57: 4.64 | V57: 0
A58: 8 | B58: Khu du lịch | C58: KDL | D58: 0
A59: 9 | B59: Khu ở, làng nghề, sản xuất phi nông nghiệp nông thôn | C59: KON | E59: =E32+E26 -> 41.418 | F59: =F32+F26+F16+F11 -> 127.694 | G59: =G32+G26+G16+G11 -> 111.688 | H59: 440.051 | I59: =I32+I26+I16+I11 -> 315.211 | J59: 545.31 | K59: 340.059 | L59: =L32+L26+L16+L11 -> 182.218 | M59: 84.291 | N59: 319.779 | O59: =O32+O26+O16+O11 -> 438.526 | P59: 305.08 | Q59: =Q32+Q26+Q16+Q11 -> 93.644 | R59: 66.837 | S59: 69.336 | T59: =T32+T26+T16+T11 -> 150.192 | U59: 195.17 | V59: 267.609 | W59: =W32+W26+W16+W11 -> 

Sheet Biểu 04 CH (hidden)
A1: Biểu 04 CH
A2: DIỆN TÍCH ĐẤT CHUYỂN MỤC ĐÍCH SỬ DỤNG TRONG KỲ ….. PHÂN BỔ ĐẾN TỪNG ĐƠN VỊ HÀNH CHÍNH CẤP XÃ HUYỆN ….. - TỈNH QUẢNG BÌNH
A3: CỦA HUYỆN QUẢNG TRẠCH - TỈNH QUẢNG BÌNH | M3: Đơn vị tính: ha
A4: STT | B4: Chỉ tiêu | C4: Mã | D4: Tổng diện tích | E4: Diện tích phân theo đơn vị hành chính
E5: =HIENTRANG!E3 -> Cảnh Dương | F5: =HIENTRANG!F3 -> Cảnh Hóa | G5: =HIENTRANG!G3 -> Phù Hóa | H5: =HIENTRANG!H3 -> Quảng Châu | I5: =HIENTRANG!I3 -> Quảng Đông | J5: =HIENTRANG!J3 -> Quảng Hợp | K5: =HIENTRANG!K3 -> Quảng Hưng | L5: =HIENTRANG!L3 -> Quảng Kim | M5: =HIENTRANG!M3 -> Quảng Liên | N5: =HIENTRANG!N3 -> Quảng Lưu | O5: =HIENTRANG!O3 -> Quảng Phú | P5: =HIENTRANG!P3 -> Quảng Phương | Q5: =HIENTRANG!Q3 -> Quảng Thạch | R5: =HIENTRANG!R3 -> Quảng Thanh | S5: =HIENTRANG!S3 -> Quảng Tiến | T5: =HIENTRANG!T3 -> Quảng Trường | U5: =HIENTRANG!U3 -> Quảng Tùng | V5: =HIENTRANG!V3 -> Quảng Xuân | W5: =HIENTRANG!#REF! ->  | X5: =HIENTRANG!#REF! -> 
A6: -1 | B6: -2 | C6: -3 | D6: (4)=(5)+(6)+..+(24) | E6: -5 | F6: -6 | G6: -7 | H6: -8 | I6: -9 | J6: -10 | K6: -11 | L6: -12 | M6: -13 | N6: -14 | O6: -15 | P6: -16 | Q6: -17 | R6: -18 | S6: -19 | T6: -20 | U6: -21 | V6: -22 | W6: -23 | X6: -24
A7: 1 | B7: Đất nông nghiệp chuyển sang đất phi nông nghiệp | C7: NNP/PNN | D7: =SUM(E7:X7) ->  | E7: =IF(E$5="","",VLOOKUP(LEFT($C7,3),INDIRECT("'"&E$5&"'"&"!$C$7:$BJ$61"),16,0)) -> 0 | F7: =IF(F$5="","",VLOOKUP(LEFT($C7,3),INDIRECT("'"&F$5&"'"&"!$C$7:$BJ$61"),16,0)) -> 0 | G7: 0 | H7: 0 | I7: 0 | J7: 0 | K7: 0 | L7: 0 | M7: 0 | N7: 0 | O7: 0 | P7: 0 | Q7: 0 | R7: 0 | S7: 0 | T7: 0 | U7: 0 | V7: 0
A8: 1.1 | B8: Đất lúa nước | C8: LUA/PNN | E8: 0 | F8: 0 | G8: 0 | H8: 0 | I8: 0 | J8: 0 | K8: 0 | L8: 0 | M8: 0 | N8: 0 | O8: 0 | P8: 0 | Q8: 0 | R8: 0 | S8: 0 | T8: 0 | U8: 0 | V8: 0
B9: Trong đó: Đất chuyên trồng lúa nước | C9: LUC/PNN | E9: 0 | F9: =IF(F$5="","",VLOOKUP(LEFT($C9,3),INDIRECT("'"&F$5&"'"&"!$C$7:$BJ$61"),16,0)) -> 0 | G9: 0 | H9: 0 | I9: 0 | J9: 0 | K9: 0 | L9: 0 | M9: 0 | N9: 0 | O9: 0 | P9: 0 | Q9: 0 | R9: 0 | S9: 0 | T9: 0 | U9: 0 | V9: 0
A10: 1.2 | B10: Đất trồng cây hàng năm khác | C10: HNK/PNN | E10: 0 | F10: 0 | G10: 0 | H10: 0 | I10: 0 | J10: 0 | K10: 0 | L10: 0 | M10: 0 | N10: 0 | O10: 0 | P10: 0 | Q10: 0 | R10: 0 | S10: 0 | T10: 0 | U10: 0 | V10: 0
A11: 1.3 | B11: Đất trồng cây lâu năm | C11: CLN/PNN | E11: 0 | F11: 0 | G11: 0 | H11: 0 | I11: 0 | J11: 0 | K11: 0 | L11: 0 | M11: 0 | N11: 0 | O11: 0 | P11: 0 | Q11: 0 | R11: 0 | S11: 0 | T11: 0 | U11: 0 | V11: 0
A12: 1.4 | B12: Đất rừng phòng hộ | C12: RPH/PNN | E12: 0 | F12: 0 | G12: 0 | H12: 0 | I12: 0 | J12: 0 | K12: 0 | L12: 0 | M12: 0 | N12: 0 | O12: 0 | P12: 0 | Q12: 0 | R12: 0 | S12: 0 | T12: 0 | U12: 0 | V12: 0
A13: 1.5 | B13: Đất rừng đặc dụng | C13: RDD/PNN | E13: 0 | F13: 0 | G13: 0 | H13: 0 | I13: 0 | J13: 0 | K13: 0 | L13: 0 | M13: 0 | N13: 0 | O13: 0 | P13: 0 | Q13: 0 | R13: 0 | S13: 0 | T13: 0 | U13: 0 | V13: 0
A14: 1.6 | B14: Đất rừng sản xuất | C14: RSX/PNN | E14: 0 | F14: 0 | G14: 0 | H14: 0 | I14: 0 | J14: 0 | K14: 0 | L14: 0 | M14: 0 | N14: 0 | O14: 0 | P14: 0 | Q14: 0 | R14: 0 | S14: 0 | T14: 0 | U14: 0 | V14: 0
A15: 1.7 | B15: Đất nuôi trồng thuỷ sản | C15: NTS/PNN | E15: 0 | F15: 0 | G15: 0 | H15: 0 | I15: 0 | J15: 0 | K15: 0 | L15: 0 | M15: 0 | N15: 0 | O15: 0 | P15: 0 | Q15: 0 | R15: 0 | S15: 0 | T15: 0 | U15: 0 | V15: 0
A16: 1.8 | B16: Đất làm muối | C16: LMU/PNN | E16: 0 | F16: 0 | G16: 0 | H16: 0 | I16: 0 | J16: 0 | K16: 0 | L16: 0 | M16: 0 | N16: 0 | O16: =IF(O$5="","",VLOOKUP(LEFT($C16,3),INDIRECT("'"&O$5&"'"&"!$C$7:$BJ$61"),16,0)) -> 0 | P16: 0 | Q16: 0 | R16: 0 | S16: 0 | T16: 0 | U16: 0 | V16: 0
A17: 1.9 | B17: Đất nông nghiệp khác | C17: NKH/PNN | E17: 0 | F17: 0 | G17: 0 | H17: 0 | I17: 0 | J17: 0 | K17: 0 | L17: 0 | M17: 0 | N17: 0 | O17: 0 | P17: 0 | Q17: 0 | R17: 0 | S17: 0 | T17: 0 | U17: 0 | V17: 0
A18: 2 | B18: Chuyển đổi cơ cấu sử dụng đất trong nội bộ đất nông nghiệp
A19: 2.1 | B19: Đất chuyên trồng lúa chuyển sang đất trồng cây lâu năm | C19: LUA/CLN | D19: =SUM(E19:X19) ->  | E19: =IF(E$5="","",VLOOKUP(LEFT($C19,3),INDIRECT("'"&E$5&"'"&"!$C$7:$BJ$61"),9,0)) -> 0 | F19: =IF(F$5="","",VLOOKUP(LEFT($C19,3),INDIRECT("'"&F$5&"'"&"!$C$7:$BJ$61"),9,0)) -> 0 | G19: 0 | H19: 0 | I19: 0 | J19: 0 | K19: 0 | L19: 0 | M19: 0 | N19: 0 | O19: 0 | P19: 0 | Q19: 0 | R19: 0 | S19: 0 | T19: 0 | U19: 0 | V19: 0
A20: 2.2 | B20: Đất chuyên trồng lúa chuyển sang đất lâm nghiệp | C20: LUA/LNP | E20: =IF(E$5="","",SUM(INDIRECT("'"&E$5&"'"&"!$L$8:$N$8"))) -> 0 | F20: =IF(F$5="","",SUM(INDIRECT("'"&F$5&"'"&"!$L$8:$N$8"))) -> 0 | G20: 0 | H20: 0 | I20: 0 | J20: 0 | K20: 0 | L20: 0 | M20: 0 | N20: 0 | O20: 0 | P20: 0 | Q20: 0 | R20: 0 | S20: 0 | T20: 0 | U20: 0 | V20: 0
A21: 2.3 | B21: Đất chuyên trồng lúa chuyển sang đất nuôi trồng thuỷ sản | C21: LUA/NTS | E21: =IF(E$5="","",VLOOKUP(LEFT($C21,3),INDIRECT("'"&E$5&"'"&"!$C$7:$BJ$61"),13,0)) -> 0 | F21: =IF(F$5="","",VLOOKUP(LEFT($C21,3),INDIRECT("'"&F$5&"'"&"!$C$7:$BJ$61"),13,0)) -> 0 | G21: 0 | H21: 0 | I21: 0 | J21: 0 | K21: 0 | L21: 0 | M21: 0 | N21: 0 | O21: 0 | P21: 0 | Q21: 0 | R21: 0 | S21: 0 | T21: 0 | U21: 0 | V21: 0
A22: 2.4 | B22: Đất chuyên trồng lúa chuyển sang đất làm muối | C22: LUA/LMU | E22: =IF(E$5="","",VLOOKUP(LEFT($C22,3),INDIRECT("'"&E$5&"'"&"!$C$7:$BJ$61"),14,0)) -> 0 | F22: =IF(F$5="","",VLOOKUP(LEFT($C22,3),INDIRECT("'"&F$5&"'"&"!$C$7:$BJ$61"),14,0)) -> 0 | G22: 0 | H22: 0 | I22: 0 | J22: 0 | K22: 0 | L22: 0 | M22: 0 | N22: 0 | O22: 0 | P22: 0 | Q22: 0 | R22: 0 | S22: 0 | T22: 0 | U22: 0 | V22: 0
A23: 2.5 | B23: Đất trồng cây hàng năm khác chuyển sang đất nuôi trồng thủy sản | C23: HNK/NTS | E23: =IF(E$5="","",VLOOKUP(LEFT($C23,3),INDIRECT("'"&E$5&"'"&"!$C$7:$BJ$61"),13,0)) -> 0 | F23: =IF(F$5="","",VLOOKUP(LEFT($C23,3),INDIRECT("'"&F$5&"'"&"!$C$7:$BJ$61"),13,0)) -> 0 | G23: 0 | H23: 0 | I23: 0 | J23: 0 | K23: 0 | L23: 0 | M23: 0 | N23: 0 | O23: 0 | P23: 0 | Q23: 0 | R23: 0 | S23: 0 | T23: 0 | U23: 0 | V23: 0
A24: 2.6 | B24: Đất trồng cây hàng năm khác chuyển sang đất làm muối | C24: HNK/LMU | E24: =IF(E$5="","",VLOOKUP(LEFT($C24,3),INDIRECT("'"&E$5&"'"&"!$C$7:$BJ$61"),14,0)) -> 0 | F24: =IF(F$5="","",VLOOKUP(LEFT($C24,3),INDIRECT("'"&F$5&"'"&"!$C$7:$BJ$61"),14,0)) -> 0 | G24: 0 | H24: 0 | I24: 0 | J24: 0 | K24: 0 | L24: 0 | M24: 0 | N24: 0 | O24: 0 | P24: 0 | Q24: 0 | R24: 0 | S24: 0 | T24: 0 | U24: 0 | V24: 0
A25: 2.7 | B25: Đất rừng phòng hộ chuyển sang đất sản xuất nông nghiệp, đất nuôi trồng thủy sản, đất làm muối và đất nông nghiệp khác | C25: RPH/NKR(a) | E25: =IF(E$5="","",INDIRECT("'"&E$5&"'"&"!$E$14")-SUM(INDIRECT("'"&E$5&"'"&"!$L$14:$N$14"))) -> 0 | F25: =IF(F$5="","",INDIRECT("'"&F$5&"'"&"!$E$14")-SUM(INDIRECT("'"&F$5&"'"&"!$L$14:$N$14"))) -> 0 | G25: 0 | H25: 0 | I25: 0 | J25: 0 | K25: 0 | L25: 0 | M25: 0 | N25: 0 | O25: 0 | P25: 0 | Q25: 0 | R25: 0 | S25: 0 | T25: 0 | U25: 0 | V25: 0
A26: 2.8 | B26: Đất rừng đặc dụng chuyển sang đất sản xuất nông nghiệp, đất nuôi trồng thủy sản, đất làm muối và đất nông nghiệp khác | C26: RDD/NKR(a) | E26: =IF(E$5="","",INDIRECT("'"&E$5&"'"&"!$E$15")-SUM(INDIRECT("'"&E$5&"'"&"!$L$15:$N$15"))) -> 0 | F26: =IF(F$5="","",INDIRECT("'"&F$5&"'"&"!$E$15")-SUM(INDIRECT("'"&F$5&"'"&"!$L$15:$N$15"))) -> 0 | G26: 0 | H26: 0 | I26: 0 | J26: 0 | K26: 0 | L26: 0 | M26: 0 | N26: 0 | O26: 0 | P26: 0 | Q26: 0 | R26: 0 | S26: 0 | T26: 0 | U26: 0 | V26: 0
A27: 2.9 | B27: Đất rừng sản xuất chuyển sang đất sản xuất nông nghiệp, đất nuôi trồng thủy sản, đất làm muối và đất nông nghiệp khác | C27: RSX/NKR(a) | E27: =IF(E$5="","",INDIRECT("'"&E$5&"'"&"!$E$16")-SUM(INDIRECT("'"&E$5&"'"&"!$L$16:$N$16"))) -> 0 | F27: =IF(F$5="","",INDIRECT("'"&F$5&"'"&"!$E$16")-SUM(INDIRECT("'"&F$5&"'"&"!$L$16:$N$16"))) -> 0 | G27: 0 | H27: 0 | I27: 0 | J27: 0 | K27: 0 | L27: 0 | M27: 0 | N27: 0 | O27: 0 | P27: 0 | Q27: 0 | R27: 0 | S27: 0 | T27: 0 | U27: 0 | V27: 0
A28: 3 | B28: Đất phi nông nghiệp không phải là đất ở chuyển sang đất ở | C28: PKO/OTC | E28: =IF(E$5="","",SUM(INDIRECT("'"&E$5&"'"&"!$AP$20:$AQ$20"))-SUM(INDIRECT("'"&E$5&"'"&"!$AP$44:$AQ$45"))) -> 0 | F28: =IF(F$5="","",SUM(INDIRECT("'"&F$5&"'"&"!$AP$20:$AQ$20"))-SUM(INDIRECT("'"&F$5&"'"&"!$AP$44:$AQ$45"))) -> 0 | G28: 0 | H28: 0 | I28: 0 | J28: 0 | K28: 0 | L28: 0 | M28: 0 | N28: 0 | O28: 0 | P28: 0 | Q28: 0 | R28: 0 | S28: 0 | T28: 0 | U28: 0 | V28: 0
B29: Ghi chú: - (a) gồm đất sản xuất nông nghiệp, đất nuôi trồng thủy sản, đất làm muối và đất nông nghiệp khác - PKO là đất phi nông nghiệp không phải là đất ở.

Sheet Biểu 05 CH (hidden)
A1: Biểu 05 CH
A2: DIỆN TÍCH ĐẤT CHƯA SỬ DỤNG ĐƯA VÀO SỬ DỤNG TRONG KỲ ……. PHÂN BỐ ĐẾN TỪNG ĐƠN VỊ HÀNH CHÍNH CẤP XÃ CỦA HUYỆN TUYÊN HÓA - TỈNH QUẢNG BÌNH
M3: Đơn vị tính: ha
A4: STT | B4: Chỉ tiêu | C4: Mã | D4: Tổng diện tích | E4: Diện tích phân theo đơn vị hành chính
E5: =HIENTRANG!E3 -> Cảnh Dương | F5: =HIENTRANG!F3 -> Cảnh Hóa | G5: =HIENTRANG!G3 -> Phù Hóa | H5: =HIENTRANG!H3 -> Quảng Châu | I5: =HIENTRANG!I3 -> Quảng Đông | J5: =HIENTRANG!J3 -> Quảng Hợp | K5: =HIENTRANG!K3 -> Quảng Hưng | L5: =HIENTRANG!L3 -> Quảng Kim | M5: =HIENTRANG!M3 -> Quảng Liên | N5: =HIENTRANG!N3 -> Quảng Lưu | O5: =HIENTRANG!O3 -> Quảng Phú | P5: =HIENTRANG!P3 -> Quảng Phương | Q5: =HIENTRANG!Q3 -> Quảng Thạch | R5: =HIENTRANG!R3 -> Quảng Thanh | S5: =HIENTRANG!S3 -> Quảng Tiến | T5: =HIENTRANG!T3 -> Quảng Trường | U5: =HIENTRANG!U3 -> Quảng Tùng | V5: =HIENTRANG!V3 -> Quảng Xuân | W5: =HIENTRANG!#REF! ->  | X5: =HIENTRANG!#REF! -> 
A6: -1 | B6: -2 | C6: -3 | D6: (4)=(5)+(6)+...(24) | E6: -5 | F6: -6 | G6: -7 | H6: -8 | I6: -9 | J6: -10 | K6: -11 | L6: -12 | M6: -13 | N6: -14 | O6: -15 | P6: -16 | Q6: -17 | R6: -18 | S6: -19 | T6: -20 | U6: -21 | V6: -22 | W6: -23 | X6: -24
A7: 1 | B7: Đất nông nghiệp | C7: NNP | D7: =SUM(E7:X7) ->  | E7: =IF(E$5="","",HLOOKUP($C7,INDIRECT("'"&E$5&"'"&"!C5:BC58"),54,0)) -> 0 | F7: =IF(F$5="","",HLOOKUP($C7,INDIRECT("'"&F$5&"'"&"!C5:BC58"),54,0)) -> 0 | G7: 0 | H7: 0 | I7: 0 | J7: 0 | K7: 0 | L7: 0 | M7: 0 | N7: 0 | O7: 0 | P7: 0 | Q7: 0 | R7: 0 | S7: 0 | T7: 0 | U7: 0 | V7: 0
A8: 1.1 | B8: Đất trồng lúa | C8: LUA | E8: 0 | F8: =IF(F$5="","",HLOOKUP($C8,INDIRECT("'"&F$5&"'"&"!C5:BC58"),54,0)) -> 0 | G8: 0 | H8: 0 | I8: 0 | J8: 0 | K8: 0 | L8: 0 | M8: 0 | N8: 0 | O8: 0 | P8: 0 | Q8: 0 | R8: 0 | S8: 0 | T8: 0 | U8: 0 | V8: 0
B9: Trong đó: Đất chuyên trồng lúa nước | C9: LUC | E9: 0 | F9: 0 | G9: 0 | H9: 0 | I9: 0 | J9: 0 | K9: 0 | L9: 0 | M9: 0 | N9: 0 | O9: 0 | P9: 0 | Q9: 0 | R9: 0 | S9: 0 | T9: 0 | U9: 0 | V9: 0
A10: 1.2 | B10: Đất trồng cây hàng năm khác | C10: HNK | E10: 0 | F10: 0 | G10: 0 | H10: 0 | I10: 0 | J10: 0 | K10: 0 | L10: 0 | M10: 0 | N10: 0 | O10: 0 | P10: 0 | Q10: 0 | R10: 0 | S10: 0 | T10: 0 | U10: 0 | V10: 0
A11: 1.3 | B11: Đất trồng cây lâu năm | C11: CLN | E11: 0 | F11: 0 | G11: 0 | H11: 0 | I11: 0 | J11: 0 | K11: 0 | L11: 0 | M11: 0 | N11: 0 | O11: 0 | P11: 0 | Q11: 0 | R11: 0 | S11: 0 | T11: 0 | U11: 0 | V11: 0
A12: 1.4 | B12: Đất rừng phòng hộ | C12: RPH | E12: 0 | F12: 0 | G12: 0 | H12: 0 | I12: 0 | J12: 0 | K12: 0 | L12: 0 | M12: 0 | N12: 0 | O12: 0 | P12: 0 | Q12: 0 | R12: 0 | S12: 0 | T12: 0 | U12: 0 | V12: 0
A13: 1.5 | B13: Đất rừng đặc dụng | C13: RDD | E13: 0 | F13: 0 | G13: 0 | H13: 0 | I13: 0 | J13: 0 | K13: 0 | L13: 0 | M13: 0 | N13: 0 | O13: 0 | P13: 0 | Q13: 0 | R13: 0 | S13: 0 | T13: 0 | U13: 0 | V13: 0
A14: 1.6 | B14: Đất rừng sản xuất | C14: RSX | E14: 0 | F14: 0 | G14: 0 | H14: 0 | I14: 0 | J14: 0 | K14: 0 | L14: 0 | M14: 0 | N14: 0 | O14: 0 | P14: 0 | Q14: 0 | R14: 0 | S14: 0 | T14: 0 | U14: 0 | V14: 0
A15: 1.7 | B15: Đất nuôi trồng thuỷ sản | C15: NTS | E15: 0 | F15: 0 | G15: 0 | H15: 0 | I15: 0 | J15: 0 | K15: 0 | L15: 0 | M15: 0 | N15: 0 | O15: 0 | P15: 0 | Q15: 0 | R15: 0 | S15: 0 | T15: 0 | U15: 0 | V15: 0
A16: 1.8 | B16: Đất làm muối | C16: LMU | E16: 0 | F16: 0 | G16: 0 | H16: 0 | I16: 0 | J16: 0 | K16: 0 | L16: 0 | M16: 0 | N16: 0 | O16: =IF(O$5="","",HLOOKUP($C16,INDIRECT("'"&O$5&"'"&"!C5:BC58"),54,0)) -> 0 | P16: 0 | Q16: 0 | R16: 0 | S16: 0 | T16: 0 | U16: 0 | V16: 0
A17: 1.9 | B17: Đất nông nghiệp khác | C17: NKH | E17: 0 | F17: 0 | G17: 0 | H17: 0 | I17: 0 | J17: 0 | K17: 0 | L17: 0 | M17: 0 | N17: 0 | O17: 0 | P17: 0 | Q17: 0 | R17: 0 | S17: 0 | T17: 0 | U17: 0 | V17: 0
A18: 2 | B18: Đất phi nông nghiệp | C18: PNN | E18: 0 | F18: 0 | G18: 0 | H18: 0 | I18: 0 | J18: 0 | K18: 0 | L18: 0 | M18: 0 | N18: 0 | O18: 0 | P18: 0 | Q18: 0 | R18: 0 | S18: 0 | T18: 0 | U18: 0 | V18: 0
A19: 2.1 | B19: Đất quốc phòng | C19: CQP | E19: 0 | F19: 0 | G19: 0 | H19: 0 | I19: 0 | J19: 0 | K19: 0 | L19: 0 | M19: 0 | N19: 0 | O19: 0 | P19: 0 | Q19: 0 | R19: 0 | S19: 0 | T19: 0 | U19: 0 | V19: 0
A20: 2.2 | B20: Đất an ninh | C20: CAN | E20: 0 | F20: 0 | G20: 0 | H20: 0 | I20: 0 | J20: 0 | K20: 0 | L20: 0 | M20: 0 | N20: 0 | O20: 0 | P20: 0 | Q20: 0 | R20: 0 | S20: 0 | T20: 0 | U20: 0 | V20: 0
A21: 2.3 | B21: Đất khu công nghiệp | C21: SKK | E21: 0 | F21: 0 | G21: 0 | H21: 0 | I21: 0 | J21: 0 | K21: 0 | L21: 0 | M21: 0 | N21: 0 | O21: 0 | P21: 0 | Q21: 0 | R21: 0 | S21: 0 | T21: 0 | U21: 0 | V21: 0
A22: 2.4 | B22: Đất khu chế xuất | C22: SKT | E22: 0 | F22: 0 | G22: 0 | H22: 0 | I22: 0 | J22: 0 | K22: 0 | L22: 0 | M22: 0 | N22: 0 | O22: 0 | P22: 0 | Q22: 0 | R22: 0 | S22: 0 | T22: 0 | U22: 0 | V22: 0
A23: 2.5 | B23: Đất cụm công nghiệp | C23: SKN | E23: 0 | F23: 0 | G23: 0 | H23: 0 | I23: 0 | J23: 0 | K23: 0 | L23: 0 | M23: 0 | N23: 0 | O23: 0 | P23: 0 | Q23: 0 | R23: 0 | S23: 0 | T23: 0 | U23: 0 | V23: 0
A24: 2.6 | B24: Đất thương mại dịch vụ | C24: TMD | E24: 0 | F24: 0 | G24: 0 | H24: 0 | I24: 0 | J24: 0 | K24: 0 | L24: 0 | M24: 0 | N24: 0 | O24: 0 | P24: 0 | Q24: 0 | R24: 0 | S24: 0 | T24: 0 | U24: 0 | V24: 0
A25: 2.7 | B25: Đất cơ sở sản xuất phi nông nghiệp | C25: SKC | E25: 0 | F25: 0 | G25: 0 | H25: 0 | I25: =IF(I$5="","",HLOOKUP($C25,INDIRECT("'"&I$5&"'"&"!C5:BC58"),54,0)) -> 0 | J25: 0 | K25: 0 | L25: 0 | M25: 0 | N25: 0 | O25: 0 | P25: 0 | Q25: 0 | R25: 0 | S25: 0 | T25: 0 | U25: 0 | V25: 0
A26: 2.8 | B26: Đất sử dụng cho hoạt động khoáng sản | C26: SKS | E26: 0 | F26: 0 | G26: 0 | H26: 0 | I26: 0 | J26: 0 | K26: 0 | L26: 0 | M26: 0 | N26: 0 | O26: 0 | P26: 0 | Q26: 0 | R26: 0 | S26: 0 | T26: 0 | U26: 0 | V26: 0
A27: 2.9 | B27: Đất phát triển hạ tầng cấp quốc gia, cấp tỉnh, cấp huyện, cấp xã | C27: DHT | E27: 0 | F27: 0 | G27: 0 | H27: 0 | I27: 0 | J27: 0 | K27: 0 | L27: 0 | M27: 0 | N27: 0 | O27: 0 | P27: 0 | Q27: 0 | R27: 0 | S27: 0 | T27: 0 | U27: 0 | V27: 0
A28: 2.10 | B28: Đất có di tích lịch sử - văn hóa | C28: DDT | E28: 0 | F28: 0 | G28: 0 | H28: 0 | I28: 0 | J28: 0 | K28: 0 | L28: 0 | M28: 0 | N28: 0 | O28: 0 | P28: 0 | Q28: 0 | R28: 0 | S28: 0 | T28: 0 | U28: 0 | V28: 0
A29: 2.11 | B29: Đất danh lam thắng cảnh | C29: DDL | E29: 0 | F29: 0 | G29: 0 | H29: 0 | I29: 0 | J29: 0 | K29: 0 | L29: 0 | M29: 0 | N29: 0 | O29: 0 | P29: 0 | Q29: 0 | R29: 0 | S29: 0 | T29: 0 | U29: 0 | V29: 0
A30: 2.12 | B30: Đất bải thải, xử lý chất thải | C30: DRA | E30: 0 | F30: 0 | G30: 0 | H30: 0 | I30: 0 | J30: 0 | K30: 0 | L30: 0 | M30: 0 | N30: 0 | O30: 0 | P30: 0 | Q30: 0 | R30: 0 | S30: 0 | T30: 0 | U30: 0 | V30: 0
A31: 2.13 | B31: Đất ở tại nông thôn | C31: ONT | E31: 0 | F31: 0 | G31: 0 | H31: 0 | I31: 0 | J31: 0 | K31: 0 | L31: 0 | M31: 0 | N31: 0 | O31: 0 | P31: 0 | Q31: 0 | R31: 0 | S31: 0 | T31: 0 | U31: 0 | V31: 0
A32: 2.14 | B32: Đất ở tại đô thị | C32: ODT | E32: 0 | F32: 0 | G32: 0 | H32: 0 | I32: 0 | J32: 0 | K32: 0 | L32: 0 | M32: 0 | N32: 0 | O32: 0 | P32: 0 | Q32: 0 | R32: 0 | S32: 0 | T32: 0 | U32: 0 | V32: 0
A33: 2.15 | B33: Đất xây dựng trụ sở cơ quan | C33: TSC | E33: 0 | F33: 0 | G33: 0 | H33: 0 | I33: 0 | J33: 0 | K33: 0 | L33: 0 | M33: 0 | N33: 0 | O33: 0 | P33: 0 | Q33: 0 | R33: 0 | S33: 0 | T33: 0 | U33: 0 | V33: 0
A34: 2.16 | B34: Đất xây dựng trụ sở của tổ chức sự nghiệp | C34: DTS | E34: 0 | F34: =IF(F$5="","",HLOOKUP($C34,INDIRECT("'"&F$5&"'"&"!C5:BC58"),54,0)) -> 0 | G34: 0 | H34: 0 | I34: 0 | J34: 0 | K34: 0 | L34: 0 | M34: 0 | N34: 0 | O34: 0 | P34: 0 | Q34: 0 | R34: 0 | S34: 0 | T34: 0 | U34: 0 | V34: 0
A35: 2.17 | B35: Đất xây dựng cơ sở ngoại giao | C35: DNG | E35: 0 | F35: 0 | G35: 0 | H35: 0 | I35: 0 | J35: 0 | K35: 0 | L35: 0 | M35: 0 | N35: 0 | O35: 0 | P35: 0 | Q35: 0 | R35: 0 | S35: 0 | T35: 0 | U35: 0 | V35: 0
A36: 2.18 | B36: Đất cơ sở tôn giáo | C36: TON | E36: 0 | F36: 0 | G36: 0 | H36: 0 | I36: 0 | J36: 0 | K36: 0 | L36: 0 | M36: 0 | N36: 0 | O36: 0 | P36: 0 | Q36: 0 | R36: 0 | S36: 0 | T36: 0 | U36: 0 | V36: 0
A37: 2.19 | B37: Đất làm nghĩa trang, nghĩa địa, nhà tang lễ, nhà hỏa táng | C37: NTD | E37: 0 | F37: 0 | G37: 0 | H37: 0 | I37: 0 | J37: 0 | K37: 0 | L37: 0 | M37: 0 | N37: 0 | O37: 0 | P37: 0 | Q37: 0 | R37: 0 | S37: 0 | T37: 0 | U37: 0 | V37: 0
A38: 2.20 | B38: Đất sản xuất vật liệu xây dựng, làm đồ gốm | C38: SKX | E38: 0 | F38: 0 | G38: 0 | H38: 0 | I38: 0 | J38: 0 | K38: 0 | L38: 0 | M38: 0 | N38: 0 | O38: 0 | P38: 0 | Q38: 0 | R38: 0 | S38: 0 | T38: 0 | U38: 0 | V38: 0
A39: 2.21 | B39: Đất sinh hoạt cộng đồng | C39: DSH | E39: 0 | F39: 0 | G39: 0 | H39: 0 | I39: 0 | J39: 0 | K39: 0 | L39: 0 | M39: 0 | N39: 0 | O39: 0 | P39: 0 | Q39: 0 | R39: 0 | S39: 0 | T39: 0 | U39: 0 | V39: 0
A40: 2.22 | B40: Đất khu vui chơi giải trí công cộng | C40: DKV | E40: 0 | F40: 0 | G40: 0 | H40: 0 | I40: 0 | J40: 0 | K40: 0 | L40: 0 | M40: 0 | N40: 0 | O40: 0 | P40: 0 | Q40: 0 | R40: 0 | S40: 0 | T40: 0 | U40: 0 | V40: 0
A41: 2.23 | B41: Đất cơ sở tín ngưỡng | C41: TIN | E41: 0 | F41: 0 | G41: 0 | H41: 0 | I41: 0 | J41: 0 | K41: 0 | L41: 0 | M41: 0 | N41: 0 | O41: 0 | P41: 0 | Q41: 0 | R41: 0 | S41: 0 | T41: 0 | U41: 0 | V41: 0
A42: 2.24 | B42: Đất sông, ngòi, kênh, rạch, suối | C42: SON | E42: 0 | F42: 0 | G42: 0 | H42: 0 | I42: 0 | J42: 0 | K42: 0 | L42: 0 | M42: 0 | N42: 0 | O42: 0 | P42: 0 | Q42: 0 | R42: 0 | S42: 0 | T42: 0 | U42: 0 | V42: 0
A43: 2.25 | B43: Đất có mặt nước chuyên dùng | C43: MNC | E43: 0 | F43: =IF(F$5="","",HLOOKUP($C43,INDIRECT("'"&F$5&"'"&"!C5:BC58"),54,0)) -> 0 | G43: 0 | H43: 0 | I43: 0 | J43: 0 | K43: 0 | L43: 0 | M43: 0 | N43: 0 | O43: 0 | P43: 0 | Q43: 0 | R43: 0 | S43: 0 | T43: 0 | U43: 0 | V43: 0
A44: 2.26 | B44: Đất phi nông nghiệp khác | C44: PNK | E44: 0 | F44: 0 | G44: 0 | H44: 0 | I44: 0 | J44: 0 | K44: 0 | L44: 0 | M44: 0 | N44: 0 | O44: 0 | P44: 0 | Q44: 0 | R44: 0 | S44: 0 | T44: 0 | U44: 0 | V44: 0

Sheet PL01
A1: Phụ lục 01
A2: PHÂN BỔ DIỆN TÍCH CÁC LOẠI ĐẤT TRONG NĂM 2019 CỦA HUYỆN QUẢNG TRẠCH - TỈNH QUẢNG BÌNH
A3: (Kèm theo Tờ trình số /TTr-UBND ngày /12/2018 của UBND huyện Quảng Trạch)
M4: Đơn vị tính: ha
A5: STT | B5: Chỉ tiêu sử dụng đất | C5: Mã | D5: Tổng diện tích | E5: Diện tích phân theo đơn vị hành chính
E6: =HIENTRANG!E3 -> Cảnh Dương | F6: =HIENTRANG!F3 -> Cảnh Hóa | G6: =HIENTRANG!G3 -> Phù Hóa | H6: =HIENTRANG!H3 -> Quảng Châu | I6: =HIENTRANG!I3 -> Quảng Đông | J6: =HIENTRANG!J3 -> Quảng Hợp | K6: =HIENTRANG!K3 -> Quảng Hưng | L6: =HIENTRANG!L3 -> Quảng Kim | M6: =HIENTRANG!M3 -> Quảng Liên | N6: =HIENTRANG!N3 -> Quảng Lưu | O6: =HIENTRANG!O3 -> Quảng Phú | P6: =HIENTRANG!P3 -> Quảng Phương | Q6: =HIENTRANG!Q3 -> Quảng Thạch | R6: =HIENTRANG!R3 -> Quảng Thanh | S6: =HIENTRANG!S3 -> Quảng Tiến | T6: =HIENTRANG!T3 -> Quảng Trường | U6: =HIENTRANG!U3 -> Quảng Tùng | V6: =HIENTRANG!V3 -> Quảng Xuân
A7: -1 | B7: -2 | C7: -3 | D7: (4)=(5)+..+(22) | E7: -5 | F7: -6 | G7: -7 | H7: -8 | I7: -9 | J7: -10 | K7: -11 | L7: -12 | M7: -13 | N7: -14 | O7: -15 | P7: -16 | Q7: -17 | R7: -18 | S7: -19 | T7: -20 | U7: -21 | V7: -22
B8: TỔNG DIỆN TÍCH TỰ NHIÊN | D8: =SUM(E8:V8) -> 44787.864 | E8: =IF(E6="","",E9+E20+E47) -> 156.193 | F8: =IF(F6="","",F9+F20+F47) -> 773.84 | G8: 364.892 | H8: 4100.461 | I8: 2648.48 | J8: 11455.251 | K8: 2101.209 | L8: 3766.377 | M8: 1818.523 | N8: 3927.099 | O8: 1998.255 | P8: 2397.11 | Q8: 4634.326 | R8: 386.453 | S8: 1321.53 | T8: 761.32 | U8: 1010.904 | V8: 1165.641
A9: 1 | B9: Đất nông nghiệp | C9: NNP | D9: =SUM(E9:V9) -> 34539.572 | E9: =IF(E$6="","",VLOOKUP($C9,INDIRECT("'"&E$6&"'"&"!$C$70:$BJ$124"),60,0)) -> 4.608 | F9: =IF(F$6="","",VLOOKUP($C9,INDIRECT("'"&F$6&"'"&"!$C$70:$BJ$124"),60,0)) -> 598.094 | G9: 201.223 | H9: 3087.154 | I9: 1220.987 | J9: 10312.061 | K9: 1009.212 | L9: 3311.21 | M9: 1490.436 | N9: 2794.244 | O9: 1358.22 | P9: 1630.532 | Q9: 4323.363 | R9: 234.784 | S9: 1126.302 | T9: 465.923 | U9: 609.242 | V9: 761.977 | X9: =D9*100/$D$8 -> 77.11814968
A10: 1.1 | B10: Đất trồng lúa | C10: LUA | D10: 3628.468 | E10: 0 | F10: =IF(F$6="","",VLOOKUP($C10,INDIRECT("'"&F$6&"'"&"!$C$70:$BJ$124"),60,0)) -> 55.25 | G10: 102.681 | H10: 396.501 | I10: 18.873 | J10: 223.511 | K10: 349.544 | L10: 232.151 | M10: 104.904 | N10: 336.551 | O10: 289.081 | P10: 535.442 | Q10: 102.453 | R10: 144.95 | S10: 55.202 | T10: 114.682 | U10: 306.841 | V10: 259.851
B11: Trong đó: Đất chuyên trồng lúa nước | C11: LUC | D11: 3401.181 | E11: 0 | F11: 55.25 | G11: 102.681 | H11: 396.501 | I11: 3.751 | J11: 133.541 | K11: 338.151 | L11: 232.151 | M11: 104.904 | N11: 330.201 | O11: 272.391 | P11: 486.701 | Q11: 101.412 | R11: 144.95 | S11: 22.772 | T11: 114.682 | U11: 306.841 | V11: 254.301
A12: 1.2 | B12: Đất trồng cây hàng năm khác | C12: HNK | D12: 2882.212 | E12: 1.144 | F12: 90.052 | G12: 71.064 | H12: 433.32 | I12: 140.586 | J12: 485.216 | K12: 243.51 | L12: 145.215 | M12: 30.164 | N12: 273.826 | O12: 275.659 | P12: 224.24 | Q12: 53.564 | R12: 32.77 | S12: 35.276 | T12: 78.416 | U12: 99.87 | V12: 168.32
A13: 1.3 | B13: Đất trồng cây lâu năm | C13: CLN | D13: 1823.964 | E13: 0 | F13: 4.35 | G13: 10.714 | H13: 654.334 | I13: 22.838 | J13: 51.198 | K13: 191.162 | L13: 0.021 | M13: 62.68 | N13: 157.386 | O13: 38.908 | P13: 121.791 | Q13: 222.531 | R13: 0.86 | S13: 249.984 | T13: 0.77 | U13: 1.186 | V13: 33.251
A14: 1.4 | B14: Đất rừng phòng hộ | C14: RPH | D14: 11023.866 | E14: 3.464 | F14: 0 | G14: 0 | H14: 479.624 | I14: 318.978 | J14: 5087.318 | K14: 38.4 | L14: 1415.13 | M14: 0 | N14: 1004.376 | O14: 20.81 | P14: 293.82 | Q14: 2098.256 | R14: 0 | S14: 0 | T14: 0 | U14: 3.31 | V14: 260.38
A15: 1.5 | B15: Đất rừng đặc dụng | C15: RDD | D15: 0 | E15: 0 | F15: 0 | G15: 0 | H15: 0 | I15: 0 | J15: 0 | K15: 0 | L15: 0 | M15: 0 | N15: 0 | O15: 0 | P15: 0 | Q15: 0 | R15: 0 | S15: 0 | T15: 0 | U15: 0 | V15: 0
A16: 1.6 | B16: Đất rừng sản xuất | C16: RSX | D16: 14924.275 | E16: 0 | F16: 448.442 | G16: 0 | H16: 1101.816 | I16: 719.67 | J16: 4463.619 | K16: 170.316 | L16: 1515.774 | M16: 1287.274 | N16: 1016.456 | O16: 648.749 | P16: 448.739 | Q16: 1844.809 | R16: 51.739 | S16: 784.75 | T16: 238.21 | U16: 183.52 | V16: 0.392
A17: 1.7 | B17: Đất nuôi trồng thuỷ sản | C17: NTS | D17: 145.169 | E17: 0 | F17: 0 | G17: 16.764 | H17: 16.859 | I17: 0.042 | J17: 1.199 | K17: 2.295 | L17: 2.919 | M17: 5.414 | N17: 3.899 | O17: 11.449 | P17: 6.5 | Q17: 1.75 | R17: 4.465 | S17: 1.09 | T17: 33.845 | U17: 9.59 | V17: 27.089
A18: 1.8 | B18: Đất làm muối | C18: LMU | D18: 73.564 | E18: 0 | F18: 0 | G18: 0 | H18: 0 | I18: 0 | J18: 0 | K18: 0 | L18: 0 | M18: 0 | N18: 0 | O18: =IF(O$6="","",VLOOKUP($C18,INDIRECT("'"&O$6&"'"&"!$C$70:$BJ$124"),60,0)) -> 73.564 | P18: 0 | Q18: 0 | R18: 0 | S18: 0 | T18: 0 | U18: 0 | V18: 0
A19: 1.9 | B19: Đất nông nghiệp khác | C19: NKH | D19: 38.054 | E19: 0 | F19: 0 | G19: 0 | H19: 4.7 | I19: 0 | J19: 0 | K19: 13.985 | L19: 0 | M19: 0 | N19: 1.75 | O19: 0 | P19: 0 | Q19: 0 | R19: 0 | S19: 0 | T19: 0 | U19: 4.925 | V19: 12.694
A20: 2 | B20: Đất phi nông nghiệp | C20: PNN | D20: 8586.399 | E20: 123.98 | F20: 171.286 | G20: 161.82 | H20: 923.647 | I20: 1393.505 | J20: 989.682 | K20: 478.207 | L20: 405.753 | M20: 311.353 | N20: 1101.161 | O20: 484.813 | P20: 623.704 | Q20: 269.939 | R20: 144.485 | S20: 123.156 | T20: 277.757 | U20: 359.177 | V20: 242.974 | X20: =D20*100/$D$8 -> 19.17126255
A21: 2.1 | B21: Đất quốc phòng | C21: CQP | D21: 1326.3 | E21: 0.312 | F21: 0 | G21: 0 | H21: 104.572 | I21: 242.706 | J21: 36.802 | K21: 0 | L21: 0 | M21: 0 | N21: 858.39 | O21: 5 | P21: 2.468 | Q21: 43.5 | R21: 0 | S21: 8 | T21: 23.34 | U21: 1.21 | V21: 0
A22: 2.2 | B22: Đất an ninh | C22: CAN | D22: =SUM(E22:V22) -> 5.462 | E22: 0 | F22: 0 | G22: 0 | H22: 0 | I22: 0.526 | J22: 0 | K22: 0 | L22: 0 | M22: 0 | N22: 0 | O22: 1.6 | P22: 3.336 | Q22: 0 | R22: 0 | S22: 0 | T22: 0 | U22: 0 | V22: 0
A23: 2.3 | B23: Đất khu công nghiệp | C23: SKK | D23: 401.072 | E23: 4.21 | F23: 0 | G23: 0 | H23: 0 | I23: 261.892 | J23: 0 | K23: 66.24 | L23: 0 | M23: 0 | N23: 0 | O23: 11.25 | P23: 0 | Q23: 0 | R23: 0 | S23: 0 | T23: 0 | U23: 49.24 | V23: 8.24
A24: 2.4 | B24: Đất khu chế xuất | C24: SKT | D24: 0 | E24: 0 | F24: 0 | G24: 0 | H24: 0 | I24: 0 | J24: 0 | K24: 0 | L24: 0 | M24: 0 | N24: 0 | O24: 0 | P24: 0 | Q24: 0 | R24: 0 | S24: 0 | T24: 0 | U24: 0 | V24: 0
A25: 2.5 | B25: Đất cụm công nghiệp | C25: SKN | D25: 0 | E25: 0 | F25: 0 | G25: 0 | H25: 0 | I25: 0 | J25: 0 | K25: 0 | L25: 0 | M25: 0 | N25: 0 | O25: 0 | P25: 0 | Q25: 0 | R25: 0 | S25: 0 | T25: 0 | U25: 0 | V25: 0
A26: 2.6 | B26: Đất thương mại dịch vụ | C26: TMD | D26: 176.696 | E26: 1 | F26: 0.248 | G26: 0 | H26: 0.06 | I26: 144.354 | J26: 0 | K26: 0.496 | L26: 0 | M26: 0.578 | N26: 0 | O26: 17.7 | P26: 4.44 | Q26: 0.7 | R26: 0 | S26: 0.73 | T26: 1.5 | U26: 4.89 | V26: 0
A27: 2.7 | B27: Đất cơ sở sản xuất phi nông nghiệp | C27: SKC | D27: 93.322 | E27: 5.905 | F27: 8.802 | G27: 0 | H27: 0.112 | I27: =IF(I$6="","",VLOOKUP($C27,INDIRECT("'"&I$6&"'"&"!$C$70:$BJ$124"),60,0)) -> 3.731 | J27: 0 | K27: 3.104 | L27: 0 | M27: 2.953 | N27: 3 | O27: 40.388 | P27: 2.04 | Q27: 0 | R27: 4.056 | S27: 3.24 | T27: 2.851 | U27: 6.84 | V27: 6.3
A28: 2.8 | B28: Đất sử dụng cho hoạt động khoáng sản | C28: SKS | D28: 5.141 | E28: 0 | F28: 0 | G28: 0 | H28: 0 | I28: 5.141 | J28: 0 | K28: 0 | L28: 0 | M28: 0 | N28: 0 | O28: 0 | P28: 0 | Q28: 0 | R28: 0 | S28: 0 | T28: 0 | U28: 0 | V28: 0
A29: 2.9 | B29: Đất phát triển hạ tầng cấp quốc gia, cấp tỉnh, cấp huyện, cấp xã | C29: DHT | D29: 3594.538 | E29: 20.253 | F29: 45.898 | G29: 28.38 | H29: 478.816 | I29: 534.088 | J29: 768.521 | K29: 167.589 | L29: 265.797 | M29: 182.08 | N29: 110.562 | O29: 207.333 | P29: 275.957 | Q29: 142.769 | R29: 48.225 | S29: 52.978 | T29: 55.384 | U29: 97.664 | V29: 112.244
A30: 2.10 | B30: Đất có di tích lịch sử - văn hóa | C30: DDT | D30: 7.83 | E30: 0 | F30: 0.134 | G30: 0 | H30: 0 | I30: 6.07 | J30: 0 | K30: 0 | L30: 0 | M30: 0 | N30: 0.052 | O30: 0.29 | P30: 0.524 | Q30: 0 | R30: 0.09 | S30: 0 | T30: 0 | U30: 0.67 | V30: 0
A31: 2.11 | B31: Đất danh lam thắng cảnh | C31: DDL | D31: 0 | E31: 0 | F31: 0 | G31: 0 | H31: 0 | I31: 0 | J31: 0 | K31: 0 | L31: 0 | M31: 0 | N31: 0 | O31: 0 | P31: 0 | Q31: 0 | R31: 0 | S31: 0 | T31: 0 | U31: 0 | V31: 0
A32: 2.12 | B32: Đất bải thải, xử lý chất thải | C32: DRA | D32: 15.454 | E32: 0 | F32: 0 | G32: 0 | H32: 1.896 | I32: 0 | J32: 0 | K32: 0 | L32: 0 | M32: 0 | N32: 13.474 | O32: 0.084 | P32: 0 | Q32: 0 | R32: 0 | S32: 0 | T32: 0 | U32: 0 | V32: 0
A33: 2.13 | B33: Đất ở tại nông thôn | C33: ONT | D33: 1068.634 | E33: 36.123 | F33: 28.91 | G33: 23.86 | H33: 87.24 | I33: 90.552 | J33: 56.975 | K33: 111.56 | L33: 34.824 | M33: 46.36 | N33: 43.414 | O33: 86.02 | P33: 146.73 | Q33: 37.94 | R33: 32.936 | S33: 36.4 | T33: 35.93 | U33: 72.16 | V33: 60.7
A34: 2.14 | B34: Đất ở tại đô thị | C34: ODT | D34: 0 | E34: 0 | F34: 0 | G34: 0 | H34: 0 | I34: 0 | J34: 0 | K34: 0 | L34: 0 | M34: 0 | N34: 0 | O34: 0 | P34: 0 | Q34: 0 | R34: 0 | S34: 0 | T34: 0 | U34: 0 | V34: 0
A35: 2.15 | B35: Đất xây dựng trụ sở cơ quan | C35: TSC | D35: 13.792 | E35: 0.202 | F35: 0.39 | G35: 0.214 | H35: 0.114 | I35: 0.95 | J35: 0.365 | K35: 0.494 | L35: 0.334 | M35: 0.322 | N35: 0.143 | O35: 0.3 | P35: 7.69 | Q35: 0.434 | R35: 0.08 | S35: 0.57 | T35: 0.25 | U35: 0.42 | V35: 0.52
A36: 2.16 | B36: Đất xây dựng trụ sở của tổ chức sự nghiệp | C36: DTS | D36: 0.57 | E36: 0.03 | F36: =IF(F$6="","",VLOOKUP($C36,INDIRECT("'"&F$6&"'"&"!$C$70:$BJ$124"),60,0)) -> 0 | G36: 0 | H36: 0.3 | I36: 0 | J36: 0 | K36: 0 | L36: 0 | M36: 0 | N36: 0 | O36: 0 | P36: 0.24 | Q36: 0 | R36: 0 | S36: 0 | T36: 0 | U36: 0 | V36: 0
A37: 2.17 | B37: Đất xây dựng cơ sở ngoại giao | C37: DNG | D37: 0 | E37: 0 | F37: 0 | G37: 0 | H37: 0 | I37: 0 | J37: 0 | K37: 0 | L37: 0 | M37: 0 | N37: 0 | O37: 0 | P37: 0 | Q37: 0 | R37: 0 | S37: 0 | T37: 0 | U37: 0 | V37: 0
A38: 2.18 | B38: Đất cơ sở tôn giáo | C38: TON | D38: 10.769 | E38: 0.04 | F38: 2.074 | G38: 0.524 | H38: 0 | I38: 0 | J38: 0.901 | K38: 0 | L38: 0 | M38: 0.81 | N38: 0 | O38: 0.45 | P38: 3.79 | Q38: 0 | R38: 0.31 | S38: 0 | T38: 0.65 | U38: 0 | V38: 1.22
A39: 2.19 | B39: Đất làm nghĩa trang, nghĩa địa, nhà tang lễ, nhà hỏa táng | C39: NTD | D39: 581.601 | E39: 26.756 | F39: 8.046 | G39: 8.306 | H39: 72.156 | I39: 37.8 | J39: 19.066 | K39: 50.16 | L39: 46.98 | M39: 33.835 | N39: 24.414 | O39: 36.27 | P39: 90.83 | Q39: 6.684 | R39: 23.47 | S39: 13.36 | T39: 21.734 | U39: 41.164 | V39: 20.57
A40: 2.20 | B40: Đất sản xuất vật liệu xây dựng, làm đồ gốm | C40: SKX | D40: 92.366 | E40: 0 | F40: 0.09 | G40: 0 | H40: 21.409 | I40: 48.491 | J40: 0 | K40: 0 | L40: 0 | M40: 0 | N40: 0.48 | O40: 0 | P40: 0 | Q40: 0 | R40: 0 | S40: 0 | T40: 0 | U40: 7.611 | V40: 14.285
A41: 2.21 | B41: Đất sinh hoạt cộng đồng | C41: DSH | D41: 16.827 | E41: 0.489 | F41: 0.68 | G41: 0.444 | H41: 1.649 | I41: 3.279 | J41: 0.916 | K41: 1.351 | L41: 0.65 | M41: 0.524 | N41: 1.114 | O41: 1.014 | P41: 1.74 | Q41: 0.664 | R41: 0.204 | S41: 0.164 | T41: 0.61 | U41: 0.45 | V41: 0.885
A42: 2.22 | B42: Đất khu vui chơi giải trí công cộng | C42: DKV | D42: 62.7 | E42: 0 | F42: 0 | G42: 0 | H42: 0 | I42: 0 | J42: 0 | K42: 0 | L42: 0 | M42: 0 | N42: 0 | O42: 0 | P42: 62.7 | Q42: 0 | R42: 0 | S42: 0 | T42: 0 | U42: 0 | V42: 0
A43: 2.23 | B43: Đất cơ sở tín ngưỡng | C43: TIN | D43: 4.142 | E43: 0.038 | F43: 0.106 | G43: 0.586 | H43: 0.181 | I43: 0.04 | J43: 0.16 | K43: 0.32 | L43: 0 | M43: 0.05 | N43: 0 | O43: 0.21 | P43: 0.801 | Q43: 0 | R43: 0.01 | S43: 0.03 | T43: 0.05 | U43: 0.69 | V43: 0.87
A44: 2.24 | B44: Đất sông, ngòi, kênh, rạch, suối | C44: SON | D44: 981.16 | E44: 25.496 | F44: 75.574 | G44: 99.506 | H44: 145.556 | I44: 13.236 | J44: 105.976 | K44: 42.377 | L44: 53.644 | M44: 41.551 | N44: 6.634 | O44: 76.904 | P44: 7.594 | Q44: 34.684 | R44: 32.724 | S44: 5.13 | T44: 131.194 | U44: 69.404 | V44: 13.976
A45: 2.25 | B45: Đất có mặt nước chuyên dùng | C45: MNC | D45: 128.023 | E45: 3.126 | F45: =IF(F$6="","",VLOOKUP($C45,INDIRECT("'"&F$6&"'"&"!$C$70:$BJ$124"),60,0)) -> 0.334 | G45: 0 | H45: 9.586 | I45: 0.649 | J45: 0 | K45: 34.516 | L45: 3.524 | M45: 2.29 | N45: 39.484 | O45: 0 | P45: 12.824 | Q45: 2.564 | R45: 2.38 | S45: 2.554 | T45: 4.264 | U45: 6.764 | V45: 3.164
A46: 2.26 | B46: Đất phi nông nghiệp khác | C46: PNK | D46: 0 | E46: 0 | F46: 0 | G46: 0 | H46: 0 | I46: 0 | J46: 0 | K46: 0 | L46: 0 | M46: 0 | N46: 0 | O46: 0 | P46: 0 | Q46: 0 | R46: 0 | S46: 0 | T46: 0 | U46: 0 | V46: 0
A47: 3 | B47: Đất chưa sử dụng | C47: CSD | D47: 1661.893 | E47: 27.605 | F47: 4.46 | G47: 1.849 | H47: 89.66 | I47: 33.988 | J47: 153.508 | K47: 613.79 | L47: 49.414 | M47: 16.734 | N47: 31.694 | O47: 155.222 | P47: 142.874 | Q47: 41.024 | R47: 7.184 | S47: 72.072 | T47: 17.64 | U47: 42.485 | V47: 160.69 | X47: =D47*100/$D$8 -> 3.710587761
A48: 4 | B48: Đất khu công nghệ cao* | C48: KCN | D48: 0
A49: 5 | B49: Đất khu kinh tế* | C49: KKT | D49: =SUM(E49:V49)-0.01 -> 9080.672 | E49: =E8 -> 156.193 | I49: =I8 -> 2648.48 | K49: =K8 -> 2101.209 | O49: =O8 -> 1998.255 | U49: =U8 -> 1010.904 | V49: =V8 -> 1165.641
A50: 6 | B50: Đất đô thị* | C50: KDT | D50: 0 | E50: =IF(E34>0,E8,"") ->  | F50: =IF(F34>0,F8,"") -> 
B51: Ghi chú: Không tổng hợp khi tính diện tích tự nhiên

Sheet PL03
A1: Phụ lục 03
A2: KẾ HOẠCH CHUYỂN MỤC ĐÍCH SỬ DỤNG ĐẤT NĂM 2019 CỦA HUYỆN QUẢNG TRẠCH - TỈNH QUẢNG BÌNH
A3: (Kèm theo Tờ trình số /TTr-UBND ngày /12/2018 của UBND huyện Quảng Trạch)
M4: Đơn vị tính: ha
A5: STT | B5: Chỉ tiêu sử dụng đất | C5: Mã | D5: Tổng diện tích | E5: Diện tích phân theo đơn vị hành chính
E6: =HIENTRANG!E3 -> Cảnh Dương | F6: =HIENTRANG!F3 -> Cảnh Hóa | G6: =HIENTRANG!G3 -> Phù Hóa | H6: =HIENTRANG!H3 -> Quảng Châu | I6: =HIENTRANG!I3 -> Quảng Đông | J6: =HIENTRANG!J3 -> Quảng Hợp | K6: =HIENTRANG!K3 -> Quảng Hưng | L6: =HIENTRANG!L3 -> Quảng Kim | M6: =HIENTRANG!M3 -> Quảng Liên | N6: =HIENTRANG!N3 -> Quảng Lưu | O6: =HIENTRANG!O3 -> Quảng Phú | P6: =HIENTRANG!P3 -> Quảng Phương | Q6: =HIENTRANG!Q3 -> Quảng Thạch | R6: =HIENTRANG!R3 -> Quảng Thanh | S6: =HIENTRANG!S3 -> Quảng Tiến | T6: =HIENTRANG!T3 -> Quảng Trường | U6: =HIENTRANG!U3 -> Quảng Tùng | V6: =HIENTRANG!V3 -> Quảng Xuân
A7: -1 | B7: -2 | C7: -3 | D7: (4)=(5)+(6)+..+(22) | E7: -5 | F7: -6 | G7: -7 | H7: -8 | I7: -9 | J7: -10 | K7: -11 | L7: -12 | M7: -13 | N7: -14 | O7: -15 | P7: -16 | Q7: -17 | R7: -18 | S7: -19 | T7: -20 | U7: -21 | V7: -22
A8: 1 | B8: Đất nông nghiệp chuyển sang đất phi nông nghiệp | C8: NNP/PNN | D8: =SUM(E8:V8) -> 844.39 | E8: =IF(E$6="","",VLOOKUP(LEFT($C8,3),INDIRECT("'"&E$6&"'"&"!$C$70:$BJ$124"),16,0)) -> 3.58 | F8: =IF(F$6="","",VLOOKUP(LEFT($C8,3),INDIRECT("'"&F$6&"'"&"!$C$70:$BJ$124"),16,0)) -> 4.66 | G8: 0.61 | H8: 62.72 | I8: 385.85 | J8: 20.38 | K8: 108.42 | L8: 5.65 | M8: 2.6 | N8: 7.02 | O8: 59.9 | P8: 81.01 | Q8: 2.71 | R8: 8 | S8: 13.86 | T8: 13.04 | U8: 51.41 | V8: 12.97
A9: 1.1 | B9: Đất lúa nước | C9: LUA/PNN | D9: 125.27 | E9: 0 | F9: =IF(F$6="","",VLOOKUP(LEFT($C9,3),INDIRECT("'"&F$6&"'"&"!$C$70:$BJ$124"),16,0)) -> 1.77 | G9: 0.02 | H9: 1.05 | I9: 95.09 | J9: 1.69 | K9: 4.15 | L9: 2.25 | M9: 0.6 | N9: 0.17 | O9: 8.43 | P9: 0.82 | Q9: 0 | R9: 6.58 | S9: 0.03 | T9: 0.51 | U9: 0.73 | V9: 1.38
B10: Trong đó: Đất chuyên trồng lúa nước | C10: LUC/PNN | D10: 61.06 | E10: 0 | F10: 1.77 | G10: 0.02 | H10: 1.05 | I10: 32.66 | J10: 0.71 | K10: 4.15 | L10: 2.25 | M10: 0.6 | N10: 0 | O10: 8.43 | P10: 0.22 | Q10: 0 | R10: 6.58 | S10: 0 | T10: 0.51 | U10: 0.73 | V10: 1.38
A11: 1.2 | B11: Đất trồng cây hàng năm khác | C11: HNK/PNN | D11: 174.11 | E11: 3.58 | F11: 2.89 | G11: 0.59 | H11: 2.17 | I11: 75.67 | J11: 3.32 | K11: 30.52 | L11: 1.03 | M11: 0.21 | N11: 0.03 | O11: 28.37 | P11: 1.67 | Q11: 2 | R11: 0.44 | S11: 0.59 | T11: 3.02 | U11: 10.9 | V11: 7.11
A12: 1.3 | B12: Đất trồng cây lâu năm | C12: CLN/PNN | D12: 37.99 | E12: 0 | F12: 0 | G12: 0 | H12: 0.01 | I12: 13.98 | J12: 1.13 | K12: 16.82 | L12: 0 | M12: 0.17 | N12: 0.49 | O12: 1.82 | P12: 0.86 | Q12: 0.07 | R12: 0.09 | S12: 0.6 | T12: 0 | U12: 0.5 | V12: 1.45
A13: 1.4 | B13: Đất rừng phòng hộ | C13: RPH/PNN | D13: 39.42 | E13: 0 | F13: 0 | G13: 0 | H13: 0 | I13: 38.28 | J13: 0 | K13: 0 | L13: 0.8 | M13: 0 | N13: 0.11 | O13: 0 | P13: 0 | Q13: 0.23 | R13: 0 | S13: 0 | T13: 0 | U13: 0 | V13: 0
A14: 1.5 | B14: Đất rừng đặc dụng | C14: RDD/PNN | D14: 0 | E14: 0 | F14: 0 | G14: 0 | H14: 0 | I14: 0 | J14: 0 | K14: 0 | L14: 0 | M14: 0 | N14: 0 | O14: 0 | P14: 0 | Q14: 0 | R14: 0 | S14: 0 | T14: 0 | U14: 0 | V14: 0
A15: 1.6 | B15: Đất rừng sản xuất | C15: RSX/PNN | D15: 451.8 | E15: 0 | F15: 0 | G15: 0 | H15: 59.44 | I15: 161.4 | J15: 14.24 | K15: 49.6 | L15: 1.52 | M15: 0.87 | N15: 6.22 | O15: 17.54 | P15: 77.66 | Q15: 0.41 | R15: 0 | S15: 12.64 | T15: 9.51 | U15: 37.75 | V15: 3
A16: 1.7 | B16: Đất nuôi trồng thuỷ sản | C16: NTS/PNN | D16: 15.8 | E16: 0 | F16: 0 | G16: 0 | H16: 0.05 | I16: 1.43 | J16: 0 | K16: 7.33 | L16: 0.05 | M16: 0.75 | N16: 0 | O16: 3.74 | P16: 0 | Q16: 0 | R16: 0.89 | S16: 0 | T16: 0 | U16: 1.53 | V16: 0.03
A17: 1.8 | B17: Đất làm muối | C17: LMU/PNN | D17: 0 | E17: 0 | F17: 0 | G17: 0 | H17: 0 | I17: 0 | J17: 0 | K17: 0 | L17: 0 | M17: 0 | N17: 0 | O17: =IF(O$6="","",VLOOKUP(LEFT($C17,3),INDIRECT("'"&O$6&"'"&"!$C$70:$BJ$124"),16,0)) -> 0 | P17: 0 | Q17: 0 | R17: 0 | S17: 0 | T17: 0 | U17: 0 | V17: 0
A18: 1.9 | B18: Đất nông nghiệp khác | C18: NKH/PNN | D18: 0 | E18: 0 | F18: 0 | G18: 0 | H18: 0 | I18: 0 | J18: 0 | K18: 0 | L18: 0 | M18: 0 | N18: 0 | O18: 0 | P18: 0 | Q18: 0 | R18: 0 | S18: 0 | T18: 0 | U18: 0 | V18: 0
A19: 2 | B19: Chuyển đổi cơ cấu sử dụng đất trong nội bộ đất nông nghiệp | D19: =D22+D24+D28 -> 469.75 | E19: =E22+E24+E28 -> 0 | F19: 0 | G19: 0 | H19: 468 | I19: 0 | J19: 0 | K19: 0 | L19: 0 | M19: 0 | N19: 1.75 | O19: 0 | P19: 0 | Q19: 0 | R19: 0 | S19: 0 | T19: 0 | U19: 0 | V19: 0
A20: 2.1 | B20: Đất chuyên trồng lúa chuyển sang đất trồng cây lâu năm | C20: LUA/CLN | D20: =SUM(E20:V20) -> 0 | E20: =IF(E$6="","",VLOOKUP(LEFT($C20,3),INDIRECT("'"&E$6&"'"&"!$C$70:$BJ$124"),9,0)) -> 0 | F20: =IF(F$6="","",VLOOKUP(LEFT($C20,3),INDIRECT("'"&F$6&"'"&"!$C$70:$BJ$124"),9,0)) -> 0 | G20: 0 | H20: 0 | I20: 0 | J20: 0 | K20: 0 | L20: 0 | M20: 0 | N20: 0 | O20: 0 | P20: 0 | Q20: 0 | R20: 0 | S20: 0 | T20: 0 | U20: 0 | V20: 0
A21: 2.2 | B21: Đất chuyên trồng lúa chuyển sang đất lâm nghiệp | C21: LUA/LNP | D21: 0 | E21: =IF(E$6="","",SUM(INDIRECT("'"&E$6&"'"&"!$L$71:$N$71"))) -> 0 | F21: =IF(F$6="","",SUM(INDIRECT("'"&F$6&"'"&"!$L$71:$N$71"))) -> 0 | G21: 0 | H21: 0 | I21: 0 | J21: 0 | K21: 0 | L21: 0 | M21: 0 | N21: 0 | O21: 0 | P21: 0 | Q21: 0 | R21: 0 | S21: 0 | T21: 0 | U21: 0 | V21: 0
A22: 2.3 | B22: Đất chuyên trồng lúa chuyển sang đất nuôi trồng thuỷ sản | C22: LUA/NTS | D22: 0 | E22: =IF(E$6="","",VLOOKUP(LEFT($C22,3),INDIRECT("'"&E$6&"'"&"!$C$70:$BJ$124"),13,0)) -> 0 | F22: =IF(F$6="","",VLOOKUP(LEFT($C22,3),INDIRECT("'"&F$6&"'"&"!$C$70:$BJ$124"),13,0)) -> 0 | G22: 0 | H22: 0 | I22: 0 | J22: 0 | K22: 0 | L22: 0 | M22: 0 | N22: 0 | O22: 0 | P22: 0 | Q22: 0 | R22: 0 | S22: 0 | T22: 0 | U22: 0 | V22: 0
A23: 2.4 | B23: Đất chuyên trồng lúa chuyển sang đất làm muối | C23: LUA/LMU | D23: 0 | E23: =IF(E$6="","",VLOOKUP(LEFT($C23,3),INDIRECT("'"&E$6&"'"&"!$C$70:$BJ$124"),14,0)) -> 0 | F23: =IF(F$6="","",VLOOKUP(LEFT($C23,3),INDIRECT("'"&F$6&"'"&"!$C$70:$BJ$124"),14,0)) -> 0 | G23: 0 | H23: 0 | I23: 0 | J23: 0 | K23: 0 | L23: 0 | M23: 0 | N23: 0 | O23: 0 | P23: 0 | Q23: 0 | R23: 0 | S23: 0 | T23: 0 | U23: 0 | V23: 0
A24: 2.5 | B24: Đất trồng cây hàng năm khác chuyển sang đất nuôi trồng thủy sản | C24: HNK/NTS | D24: 0 | E24: =IF(E$6="","",VLOOKUP(LEFT($C24,3),INDIRECT("'"&E$6&"'"&"!$C$70:$BJ$124"),13,0)) -> 0 | F24: =IF(F$6="","",VLOOKUP(LEFT($C24,3),INDIRECT("'"&F$6&"'"&"!$C$70:$BJ$124"),13,0)) -> 0 | G24: 0 | H24: 0 | I24: 0 | J24: 0 | K24: 0 | L24: 0 | M24: 0 | N24: 0 | O24: 0 | P24: 0 | Q24: 0 | R24: 0 | S24: 0 | T24: 0 | U24: 0 | V24: 0
A25: 2.6 | B25: Đất trồng cây hàng năm khác chuyển sang đất làm muối | C25: HNK/LMU | D25: 0 | E25: =IF(E$6="","",VLOOKUP(LEFT($C25,3),INDIRECT("'"&E$6&"'"&"!$C$70:$BJ$124"),14,0)) -> 0 | F25: =IF(F$6="","",VLOOKUP(LEFT($C25,3),INDIRECT("'"&F$6&"'"&"!$C$70:$BJ$124"),14,0)) -> 0 | G25: 0 | H25: 0 | I25: 0 | J25: 0 | K25: 0 | L25: 0 | M25: 0 | N25: 0 | O25: 0 | P25: 0 | Q25: 0 | R25: 0 | S25: 0 | T25: 0 | U25: 0 | V25: 0
A26: 2.7 | B26: Đất rừng phòng hộ chuyển sang đất sản xuất nông nghiệp, đất nuôi trồng thủy sản, đất làm muối và đất nông nghiệp khác | C26: RPH/NKR(a) | D26: 0 | E26: =IF(E$6="","",INDIRECT("'"&E$6&"'"&"!$E$77")-SUM(INDIRECT("'"&E$6&"'"&"!$L$77:$N$77"))) -> 0 | F26: =IF(F$6="","",INDIRECT("'"&F$6&"'"&"!$E$77")-SUM(INDIRECT("'"&F$6&"'"&"!$L$77:$N$77"))) -> 0 | G26: 0 | H26: 0 | I26: 0 | J26: 0 | K26: 0 | L26: 0 | M26: 0 | N26: 0 | O26: 0 | P26: 0 | Q26: 0 | R26: 0 | S26: 0 | T26: 0 | U26: 0 | V26: 0
A27: 2.8 | B27: Đất rừng đặc dụng chuyển sang đất sản xuất nông nghiệp, đất nuôi trồng thủy sản, đất làm muối và đất nông nghiệp khác | C27: RDD/NKR(a) | D27: 0 | E27: =IF(E$6="","",INDIRECT("'"&E$6&"'"&"!$E$78")-SUM(INDIRECT("'"&E$6&"'"&"!$L$78:$N$78"))) -> 0 | F27: =IF(F$6="","",INDIRECT("'"&F$6&"'"&"!$E$78")-SUM(INDIRECT("'"&F$6&"'"&"!$L$78:$N$78"))) -> 0 | G27: 0 | H27: 0 | I27: 0 | J27: 0 | K27: 0 | L27: 0 | M27: 0 | N27: 0 | O27: 0 | P27: 0 | Q27: 0 | R27: 0 | S27: 0 | T27: 0 | U27: 0 | V27: 0
A28: 2.9 | B28: Đất rừng sản xuất chuyển sang đất sản xuất nông nghiệp, đất nuôi trồng thủy sản, đất làm muối và đất nông nghiệp khác | C28: RSX/NKR(a) | D28: 469.75 | E28: =IF(E$6="","",INDIRECT("'"&E$6&"'"&"!$E$79")-SUM(INDIRECT("'"&E$6&"'"&"!$L$79:$N$79"))) -> 0 | F28: =IF(F$6="","",INDIRECT("'"&F$6&"'"&"!$E$79")-SUM(INDIRECT("'"&F$6&"'"&"!$L$79:$N$79"))) -> 0 | G28: 0 | H28: 468 | I28: 0 | J28: 0 | K28: 0 | L28: 0 | M28: 0 | N28: 1.75 | O28: 0 | P28: 0 | Q28: 0 | R28: 0 | S28: 0 | T28: 0 | U28: 0 | V28: 0
A29: 3 | B29: Đất phi nông nghiệp không phải là đất ở chuyển sang đất ở | C29: PKO/OTC | D29: 5.74 | E29: =IF(E$6="","",SUM(INDIRECT("'"&E$6&"'"&"!$AP$83:$AQ$83"))-SUM(INDIRECT("'"&E$6&"'"&"!$AP$107:$AQ$108"))) -> 0.57 | F29: =IF(F$6="","",SUM(INDIRECT("'"&F$6&"'"&"!$AP$83:$AQ$83"))-SUM(INDIRECT("'"&F$6&"'"&"!$AP$107:$AQ$108"))) -> 0.04 | G29: 0 | H29: 0.03 | I29: 1.01 | J29: 0 | K29: 2.45 | L29: 0.07 | M29: 0.1 | N29: 0 | O29: 0.08 | P29: 0.31 | Q29: 0 | R29: 0.93 | S29: 0.12 | T29: 0 | U29: 0 | V29: 0.03
B30: Ghi chú: - (a) gồm đất sản xuất nông nghiệp, đất nuôi trồng thủy sản, đất làm muối và đất nông nghiệp khác - PKO là đất phi nông nghiệp không phải là đất ở.

Sheet PL02
A1: Phụ lục 02
A2: KẾ HOẠCH THU HỒI ĐẤT NĂM 2019 CỦA HUYỆN QUẢNG TRẠCH - TỈNH QUẢNG BÌNH
A3: (Kèm theo Tờ trình số /TTr-UBND ngày /12/2018 của UBND huyện Quảng Trạch)
M4: Đơn vị tính: ha
A5: STT | B5: Chỉ tiêu sử dụng đất | C5: Mã | D5: Tổng diện tích | E5: Diện tích phân theo đơn vị hành chính
E6: =HIENTRANG!E3 -> Cảnh Dương | F6: =HIENTRANG!F3 -> Cảnh Hóa | G6: =HIENTRANG!G3 -> Phù Hóa | H6: =HIENTRANG!H3 -> Quảng Châu | I6: =HIENTRANG!I3 -> Quảng Đông | J6: =HIENTRANG!J3 -> Quảng Hợp | K6: =HIENTRANG!K3 -> Quảng Hưng | L6: =HIENTRANG!L3 -> Quảng Kim | M6: =HIENTRANG!M3 -> Quảng Liên | N6: =HIENTRANG!N3 -> Quảng Lưu | O6: =HIENTRANG!O3 -> Quảng Phú | P6: =HIENTRANG!P3 -> Quảng Phương | Q6: =HIENTRANG!Q3 -> Quảng Thạch | R6: =HIENTRANG!R3 -> Quảng Thanh | S6: =HIENTRANG!S3 -> Quảng Tiến | T6: =HIENTRANG!T3 -> Quảng Trường | U6: =HIENTRANG!U3 -> Quảng Tùng | V6: =HIENTRANG!V3 -> Quảng Xuân
A7: -1 | B7: -2 | C7: -3 | D7: (4)=(5)+(6)+...(22) | E7: -5 | F7: -6 | G7: -7 | H7: -8 | I7: -9 | J7: -10 | K7: -11 | L7: -12 | M7: -13 | N7: -14 | O7: -15 | P7: -16 | Q7: -17 | R7: -18 | S7: -19 | T7: -20 | U7: -21 | V7: -22
A8: 1 | B8: Đất nông nghiệp | C8: NNP | D8: =SUM(E8:V8) -> 745.7 | E8: =SUM(E9,E13:E20) -> 3.58 | F8: =SUM(F9,F13:F20) -> 4.66 | G8: 0.61 | H8: 43.72 | I8: 330.28 | J8: 20.38 | K8: 108.42 | L8: 5.65 | M8: 2.5 | N8: 4.02 | O8: 47.7 | P8: 79.91 | Q8: 2.71 | R8: 8 | S8: 10.64 | T8: 11.29 | U8: 48.66 | V8: 12.97
A9: 1.1 | B9: Đất trồng lúa | C9: LUA | D9: 124.93 | E9: =SUM(E10:E12) -> 0 | F9: =SUM(F10:F12) -> 1.77 | G9: 0.02 | H9: 1.05 | I9: 94.75 | J9: 1.69 | K9: 4.15 | L9: 2.25 | M9: 0.6 | N9: 0.17 | O9: 8.43 | P9: 0.82 | Q9: 0 | R9: 6.58 | S9: 0.03 | T9: 0.51 | U9: 0.73 | V9: 1.38
B10: Trong đó: Đất chuyên trồng lúa nước | C10: LUC | D10: 60.72 | E10: =IF(E$6="","",SUMIF(DT!$D$8:$D$838,E$6,DT!$G$8:$G$838)-SUMIFS(DT!$G$8:$G$838,DT!$D$8:$D$838,E$6,DT!$C$8:$C$838,"TMD")-SUMIFS(DT!$G$8:$G$838,DT!$D$8:$D$838,E$6,DT!$C$8:$C$838,"SKC")-SUMIFS(DT!$G$8:$G$838,DT!$D$8:$D$838,E$6,DT!$C$8:$C$838,"SKX")-SUMIFS(DT!$G$8:$G$838,DT!$D$8:$D$838,E$6,DT!$C$8:$C$838,"TIN")-SUMIFS(DT!$G$8:$G$838,DT!$D$8:$D$838,E$6,DT!$C$8:$C$838,$C10)-INDIRECT("'"&E$6&"'"&"!E72")+INDIRECT("'"&E$6&"'"&"!G72")) -> 0 | F10: =IF(F$6="","",SUMIF(DT!$D$8:$D$838,F$6,DT!$G$8:$G$838)-SUMIFS(DT!$G$8:$G$838,DT!$D$8:$D$838,F$6,DT!$C$8:$C$838,"TMD")-SUMIFS(DT!$G$8:$G$838,DT!$D$8:$D$838,F$6,DT!$C$8:$C$838,"SKC")-SUMIFS(DT!$G$8:$G$838,DT!$D$8:$D$838,F$6,DT!$C$8:$C$838,"SKX")-SUMIFS(DT!$G$8:$G$838,DT!$D$8:$D$838,F$6,DT!$C$8:$C$838,"TIN")-SUMIFS(DT!$G$8:$G$838,DT!$D$8:$D$838,F$6,DT!$C$8:$C$838,$C10)-INDIRECT("'"&F$6&"'"&"!E72")+INDIRECT("'"&F$6&"'"&"!G72")) -> 1.77 | G10: =IF(G$6="","",SUMIF(DT!$D$8:$D$838,G$6,DT!$G$8:$G$838)-SUMIFS(DT!$G$8:$G$838,DT!$D$8:$D$838,G$6,DT!$C$8:$C$838,"TMD")-SUMIFS(DT!$G$8:$G$838,DT!$D$8:$D$838,G$6,DT!$C$8:$C$838,"SKC")-SUMIFS(DT!$G$8:$G$838,DT!$D$8:$D$838,G$6,DT!$C$8:$C$838,"SKX")-SUMIFS(DT!$G$8:$G$838,DT!$D$8:$D$838,G$6,DT!$C$8:$C$838,"TIN")-SUMIFS(DT!$G$8:$G$838,DT!$D$8:$D$838,G$6,DT!$C$8:$C$838,$C10)-INDIRECT("'"&G$6&"'"&"!E72")+INDIRECT("'"&G$6&"'"&"!G72")) -> 0.02 | H10: =IF(H$6="","",SUMIF(DT!$D$8:$D$838,H$6,DT!$G$8:$G$838)-SUMIFS(DT!$G$8:$G$838,DT!$D$8:$D$838,H$6,DT!$C$8:$C$838,"TMD")-SUMIFS(DT!$G$8:$G$838,DT!$D$8:$D$838,H$6,DT!$C$8:$C$838,"SKC")-SUMIFS(DT!$G$8:$G$838,DT!$D$8:$D$838,H$6,DT!$C$8:$C$838,"SKX")-SUMIFS(DT!$G$8:$G$838,DT!$D$8:$D$838,H$6,DT!$C$8:$C$838,"TIN")-SUMIFS(DT!$G$8:$G$838,DT!$D$8:$D$838,H$6,DT!$C$8:$C$838,$C10)-INDIRECT("'"&H$6&"'"&"!E72")+INDIRECT("'"&H$6&"'"&"!G72")) -> 1.05 | I10: =IF(I$6="","",SUMIF(DT!$D$8:$D$838,I$6,DT!$G$8:$G$838)-SUMIFS(DT!$G$8:$G$838,DT!$D$8:$D$838,I$6,DT!$C$8:$C$838,"TMD")-SUMIFS(DT!$G$8:$G$838,DT!$D$8:$D$838,I$6,DT!$C$8:$C$838,"SKC")-SUMIFS(DT!$G$8:$G$838,DT!$D$8:$D$838,I$6,DT!$C$8:$C$838,"SKX")-SUMIFS(DT!$G$8:$G$838,DT!$D$8:$D$838,I$6,DT!$C$8:$C$838,"TIN")-SUMIFS(DT!$G$8:$G$838,DT!$D$8:$D$838,I$6,DT!$C$8:$C$838,$C10)-INDIRECT("'"&I$6&"'"&"!E72")+INDIRECT("'"&I$6&"'"&"!G72")) -> 32.32 | J10: =IF(J$6="","",SUMIF(DT!$D$8:$D$838,J$6,DT!$G$8:$G$838)-SUMIFS(DT!$G$8:$G$838,DT!$D$8:$D$838,J$6,DT!$C$8:$C$838,"TMD")-SUMIFS(DT!$G$8:$G$838,DT!$D$8:$D$838,J$6,DT!$C$8:$C$838,"SKC")-SUMIFS(DT!$G$8:$G$838,DT!$D$8:$D$838,J$6,DT!$C$8:$C$838,"SKX")-SUMIFS(DT!$G$8:$G$838,DT!$D$8:$D$838,J$6,DT!$C$8:$C$838,"TIN")-SUMIFS(DT!$G$8:$G$838,DT!$D$8:$D$838,J$6,DT!$C$8:$C$838,$C10)-INDIRECT("'"&J$6&"'"&"!E72")+INDIRECT("'"&J$6&"'"&"!G72")) -> 0.71 | K10: =IF(K$6="","",SUMIF(DT!$D$8:$D$838,K$6,DT!$G$8:$G$838)-SUMIFS(DT!$G$8:$G$838,DT!$D$8:$D$838,K$6,DT!$C$8:$C$838,"TMD")-SUMIFS(DT!$G$8:$G$838,DT!$D$8:$D$838,K$6,DT!$C$8:$C$838,"SKC")-SUMIFS(DT!$G$8:$G$838,DT!$D$8:$D$838,K$6,DT!$C$8:$C$838,"SKX")-SUMIFS(DT!$G$8:$G$838,DT!$D$8:$D$838,K$6,DT!$C$8:$C$838,"TIN")-SUMIFS(DT!$G$8:$G$838,DT!$D$8:$D$838,K$6,DT!$C$8:$C$838,$C10)-INDIRECT("'"&K$6&"'"&"!E72")+INDIRECT("'"&K$6&"'"&"!G72")) -> 4.15 | L10: =IF(L$6="","",SUMIF(DT!$D$8:$D$838,L$6,DT!$G$8:$G$838)-SUMIFS(DT!$G$8:$G$838,DT!$D$8:$D$838,L$6,DT!$C$8:$C$838,"TMD")-SUMIFS(DT!$G$8:$G$838,DT!$D$8:$D$838,L$6,DT!$C$8:$C$838,"SKC")-SUMIFS(DT!$G$8:$G$838,DT!$D$8:$D$838,L$6,DT!$C$8:$C$838,"SKX")-SUMIFS(DT!$G$8:$G$838,DT!$D$8:$D$838,L$6,DT!$C$8:$C$838,"TIN")-SUMIFS(DT!$G$8:$G$838,DT!$D$8:$D$838,L$6,DT!$C$8:$C$838,$C10)-INDIRECT("'"&L$6&"'"&"!E72")+INDIRECT("'"&L$6&"'"&"!G72")) -> 2.25 | M10: =IF(M$6="","",SUMIF(DT!$D$8:$D$838,M$6,DT!$G$8:$G$838)-SUMIFS(DT!$G$8:$G$838,DT!$D$8:$D$838,M$6,DT!$C$8:$C$838,"TMD")-SUMIFS(DT!$G$8:$G$838,DT!$D$8:$D$838,M$6,DT!$C$8:$C$838,"SKC")-SUMIFS(DT!$G$8:$G$838,DT!$D$8:$D$838,M$6,DT!$C$8:$C$838,"SKX")-SUMIFS(DT!$G$8:$G$838,DT!$D$8:$D$838,M$6,DT!$C$8:$C$838,"TIN")-SUMIFS(DT!$G$8:$G$838,DT!$D$8:$D$838,M$6,DT!$C$8:$C$838,$C10)-INDIRECT("'"&M$6&"'"&"!E72")+INDIRECT("'"&M$6&"'"&"!G72")) -> 0.6 | N10: =IF(N$6="","",SUMIF(DT!$D$8:$D$838,N$6,DT!$G$8:$G$838)-SUMIFS(DT!$G$8:$G$838,DT!$D$8:$D$838,N$6,DT!$C$8:$C$838,"TMD")-SUMIFS(DT!$G$8:$G$838,DT!$D$8:$D$838,N$6,DT!$C$8:$C$838,"SKC")-SUMIFS(DT!$G$8:$G$838,DT!$D$8:$D$838,N$6,DT!$C$8:$C$838,"SKX")-SUMIFS(DT!$G$8:$G$838,DT!$D$8:$D$838,N$6,DT!$C$8:$C$838,"TIN")-SUMIFS(DT!$G$8:$G$838,DT!$D$8:$D$838,N$6,DT!$C$8:$C$838,$C10)-INDIRECT("'"&N$6&"'"&"!E72")+INDIRECT("'"&N$6&"'"&"!G72")) -> 0 | O10: =IF(O$6="","",SUMIF(DT!$D$8:$D$838,O$6,DT!$G$8:$G$838)-SUMIFS(DT!$G$8:$G$838,DT!$D$8:$D$838,O$6,DT!$C$8:$C$838,"TMD")-SUMIFS(DT!$G$8:$G$838,DT!$D$8:$D$838,O$6,DT!$C$8:$C$838,"SKC")-SUMIFS(DT!$G$8:$G$838,DT!$D$8:$D$838,O$6,DT!$C$8:$C$838,"SKX")-SUMIFS(DT!$G$8:$G$838,DT!$D$8:$D$838,O$6,DT!$C$8:$C$838,"TIN")-SUMIFS(DT!$G$8:$G$838,DT!$D$8:$D$838,O$6,DT!$C$8:$C$838,$C10)-INDIRECT("'"&O$6&"'"&"!E72")+INDIRECT("'"&O$6&"'"&"!G72")) -> 8.43 | P10: =IF(P$6="","",SUMIF(DT!$D$8:$D$838,P$6,DT!$G$8:$G$838)-SUMIFS(DT!$G$8:$G$838,DT!$D$8:$D$838,P$6,DT!$C$8:$C$838,"TMD")-SUMIFS(DT!$G$8:$G$838,DT!$D$8:$D$838,P$6,DT!$C$8:$C$838,"SKC")-SUMIFS(DT!$G$8:$G$838,DT!$D$8:$D$838,P$6,DT!$C$8:$C$838,"SKX")-SUMIFS(DT!$G$8:$G$838,DT!$D$8:$D$838,P$6,DT!$C$8:$C$838,"TIN")-SUMIFS(DT!$G$8:$G$838,DT!$D$8:$D$838,P$6,DT!$C$8:$C$838,$C10)-INDIRECT("'"&P$6&"'"&"!E72")+INDIRECT("'"&P$6&"'"&"!G72")) -> 0.22 | Q10: =IF(Q$6="","",SUMIF(DT!$D$8:$D$838,Q$6,DT!$G$8:$G$838)-SUMIFS(DT!$G$8:$G$838,DT!$D$8:$D$838,Q$6,DT!$C$8:$C$838,"TMD")-SUMIFS(DT!$G$8:$G$838,DT!$D$8:$D$838,Q$6,DT!$C$8:$C$838,"SKC")-SUMIFS(DT!$G$8:$G$838,DT!$D$8:$D$838,Q$6,DT!$C$8:$C$838,"SKX")-SUMIFS(DT!$G$8:$G$838,DT!$D$8:$D$838,Q$6,DT!$C$8:$C$838,"TIN")-SUMIFS(DT!$G$8:$G$838,DT!$D$8:$D$838,Q$6,DT!$C$8:$C$838,$C10)-INDIRECT("'"&Q$6&"'"&"!E72")+INDIRECT("'"&Q$6&"'"&"!G72")) -> 0 | R10: =IF(R$6="","",SUMIF(DT!$D$8:$D$838,R$6,DT!$G$8:$G$838)-SUMIFS(DT!$G$8:$G$838,DT!$D$8:$D$838,R$6,DT!$C$8:$C$838,"TMD")-SUMIFS(DT!$G$8:$G$838,DT!$D$8:$D$838,R$6,DT!$C$8:$C$838,"SKC")-SUMIFS(DT!$G$8:$G$838,DT!$D$8:$D$838,R$6,DT!$C$8:$C$838,"SKX")-SUMIFS(DT!$G$8:$G$838,DT!$D$8:$D$838,R$6,DT!$C$8:$C$838,"TIN")-SUMIFS(DT!$G$8:$G$838,DT!$D$8:$D$838,R$6,DT!$C$8:$C$838,$C10)-INDIRECT("'"&R$6&"'"&"!E72")+INDIRECT("'"&R$6&"'"&"!G72")) -> 6.58 | S10: =IF(S$6="","",SUMIF(DT!$D$8:$D$838,S$6,DT!$G$8:$G$838)-SUMIFS(DT!$G$8:$G$838,DT!$D$8:$D$838,S$6,DT!$C$8:$C$838,"TMD")-SUMIFS(DT!$G$8:$G$838,DT!$D$8:$D$838,S$6,DT!$C$8:$C$838,"SKC")-SUMIFS(DT!$G$8:$G$838,DT!$D$8:$D$838,S$6,DT!$C$8:$C$838,"SKX")-SUMIFS(DT!$G$8:$G$838,DT!$D$8:$D$838,S$6,DT!$C$8:$C$838,"TIN")-SUMIFS(DT!$G$8:$G$838,DT!$D$8:$D$838,S$6,DT!$C$8:$C$838,$C10)-INDIRECT("'"&S$6&"'"&"!E72")+INDIRECT("'"&S$6&"'"&"!G72")) -> 0 | T10: =IF(T$6="","",SUMIF(DT!$D$8:$D$838,T$6,DT!$G$8:$G$838)-SUMIFS(DT!$G$8:$G$838,DT!$D$8:$D$838,T$6,DT!$C$8:$C$838,"TMD")-SUMIFS(DT!$G$8:$G$838,DT!$D$8:$D$838,T$6,DT!$C$8:$C$838,"SKC")-SUMIFS(DT!$G$8:$G$838,DT!$D$8:$D$838,T$6,DT!$C$8:$C$838,"SKX")-SUMIFS(DT!$G$8:$G$838,DT!$D$8:$D$838,T$6,DT!$C$8:$C$838,"TIN")-SUMIFS(DT!$G$8:$G$838,DT!$D$8:$D$838,T$6,DT!$C$8:$C$838,$C10)-INDIRECT("'"&T$6&"'"&"!E72")+INDIRECT("'"&T$6&"'"&"!G72")) -> 0.51 | U10: =IF(U$6="","",SUMIF(DT!$D$8:$D$838,U$6,DT!$G$8:$G$838)-SUMIFS(DT!$G$8:$G$838,DT!$D$8:$D$838,U$6,DT!$C$8:$C$838,"TMD")-SUMIFS(DT!$G$8:$G$838,DT!$D$8:$D$838,U$6,DT!$C$8:$C$838,"SKC")-SUMIFS(DT!$G$8:$G$838,DT!$D$8:$D$838,U$6,DT!$C$8:$C$838,"SKX")-SUMIFS(DT!$G$8:$G$838,DT!$D$8:$D$838,U$6,DT!$C$8:$C$838,"TIN")-SUMIFS(DT!$G$8:$G$838,DT!$D$8:$D$838,U$6,DT!$C$8:$C$838,$C10)-INDIRECT("'"&U$6&"'"&"!E72")+INDIRECT("'"&U$6&"'"&"!G72")) -> 0.73 | V10: =IF(V$6="","",SUMIF(DT!$D$8:$D$838,V$6,DT!$G$8:$G$838)-SUMIFS(DT!$G$8:$G$838,DT!$D$8:$D$838,V$6,DT!$C$8:$C$838,"TMD")-SUMIFS(DT!$G$8:$G$838,DT!$D$8:$D$838,V$6,DT!$C$8:$C$838,"SKC")-SUMIFS(DT!$G$8:$G$838,DT!$D$8:$D$838,V$6,DT!$C$8:$C$838,"SKX")-SUMIFS(DT!$G$8:$G$838,DT!$D$8:$D$838,V$6,DT!$C$8:$C$838,"TIN")-SUMIFS(DT!$G$8:$G$838,DT!$D$8:$D$838,V$6,DT!$C$8:$C$838,$C10)-INDIRECT("'"&V$6&"'"&"!E72")+INDIRECT("'"&V$6&"'"&"!G72")) -> 1.38
A11: Ẩn | B11: Đất trồng lúa nương | C11: LUN | D11: 0 | E11: =IF(E$6="","",SUMIF(DT!$D$8:$D$838,E$6,DT!$I$8:$I$838)-SUMIFS(DT!$I$8:$I$838,DT!$D$8:$D$838,E$6,DT!$C$8:$C$838,"TMD")-SUMIFS(DT!$I$8:$I$838,DT!$D$8:$D$838,E$6,DT!$C$8:$C$838,"SKC")-SUMIFS(DT!$I$8:$I$838,DT!$D$8:$D$838,E$6,DT!$C$8:$C$838,"SKX")-SUMIFS(DT!$I$8:$I$838,DT!$D$8:$D$838,E$6,DT!$C$8:$C$838,"TIN")-SUMIFS(DT!$I$8:$I$838,DT!$D$8:$D$838,E$6,DT!$C$8:$C$838,$C11)-INDIRECT("'"&E$6&"'"&"!E73")+INDIRECT("'"&E$6&"'"&"!H73")) -> 0 | F11: =IF(F$6="","",SUMIF(DT!$D$8:$D$838,F$6,DT!$I$8:$I$838)-SUMIFS(DT!$I$8:$I$838,DT!$D$8:$D$838,F$6,DT!$C$8:$C$838,"TMD")-SUMIFS(DT!$I$8:$I$838,DT!$D$8:$D$838,F$6,DT!$C$8:$C$838,"SKC")-SUMIFS(DT!$I$8:$I$838,DT!$D$8:$D$838,F$6,DT!$C$8:$C$838,"SKX")-SUMIFS(DT!$I$8:$I$838,DT!$D$8:$D$838,F$6,DT!$C$8:$C$838,"TIN")-SUMIFS(DT!$I$8:$I$838,DT!$D$8:$D$838,F$6,DT!$C$8:$C$838,$C11)-INDIRECT("'"&F$6&"'"&"!E73")+INDIRECT("'"&F$6&"'"&"!H73")) -> 0 | G11: =IF(G$6="","",SUMIF(DT!$D$8:$D$838,G$6,DT!$I$8:$I$838)-SUMIFS(DT!$I$8:$I$838,DT!$D$8:$D$838,G$6,DT!$C$8:$C$838,"TMD")-SUMIFS(DT!$I$8:$I$838,DT!$D$8:$D$838,G$6,DT!$C$8:$C$838,"SKC")-SUMIFS(DT!$I$8:$I$838,DT!$D$8:$D$838,G$6,DT!$C$8:$C$838,"SKX")-SUMIFS(DT!$I$8:$I$838,DT!$D$8:$D$838,G$6,DT!$C$8:$C$838,"TIN")-SUMIFS(DT!$I$8:$I$838,DT!$D$8:$D$838,G$6,DT!$C$8:$C$838,$C11)-INDIRECT("'"&G$6&"'"&"!E73")+INDIRECT("'"&G$6&"'"&"!H73")) -> 0 | H11: =IF(H$6="","",SUMIF(DT!$D$8:$D$838,H$6,DT!$I$8:$I$838)-SUMIFS(DT!$I$8:$I$838,DT!$D$8:$D$838,H$6,DT!$C$8:$C$838,"TMD")-SUMIFS(DT!$I$8:$I$838,DT!$D$8:$D$838,H$6,DT!$C$8:$C$838,"SKC")-SUMIFS(DT!$I$8:$I$838,DT!$D$8:$D$838,H$6,DT!$C$8:$C$838,"SKX")-SUMIFS(DT!$I$8:$I$838,DT!$D$8:$D$838,H$6,DT!$C$8:$C$838,"TIN")-SUMIFS(DT!$I$8:$I$838,DT!$D$8:$D$838,H$6,DT!$C$8:$C$838,$C11)-INDIRECT("'"&H$6&"'"&"!E73")+INDIRECT("'"&H$6&"'"&"!H73")) -> 0 | I11: =IF(I$6="","",SUMIF(DT!$D$8:$D$838,I$6,DT!$I$8:$I$838)-SUMIFS(DT!$I$8:$I$838,DT!$D$8:$D$838,I$6,DT!$C$8:$C$838,"TMD")-SUMIFS(DT!$I$8:$I$838,DT!$D$8:$D$838,I$6,DT!$C$8:$C$838,"SKC")-SUMIFS(DT!$I$8:$I$838,DT!$D$8:$D$838,I$6,DT!$C$8:$C$838,"SKX")-SUMIFS(DT!$I$8:$I$838,DT!$D$8:$D$838,I$6,DT!$C$8:$C$838,"TIN")-SUMIFS(DT!$I$8:$I$838,DT!$D$8:$D$838,I$6,DT!$C$8:$C$838,$C11)-INDIRECT("'"&I$6&"'"&"!E73")+INDIRECT("'"&I$6&"'"&"!H73")) -> 0 | J11: =IF(J$6="","",SUMIF(DT!$D$8:$D$838,J$6,DT!$I$8:$I$838)-SUMIFS(DT!$I$8:$I$838,DT!$D$8:$D$838,J$6,DT!$C$8:$C$838,"TMD")-SUMIFS(DT!$I$8:$I$838,DT!$D$8:$D$838,J$6,DT!$C$8:$C$838,"SKC")-SUMIFS(DT!$I$8:$I$838,DT!$D$8:$D$838,J$6,DT!$C$8:$C$838,"SKX")-SUMIFS(DT!$I$8:$I$838,DT!$D$8:$D$838,J$6,DT!$C$8:$C$838,"TIN")-SUMIFS(DT!$I$8:$I$838,DT!$D$8:$D$838,J$6,DT!$C$8:$C$838,$C11)-INDIRECT("'"&J$6&"'"&"!E73")+INDIRECT("'"&J$6&"'"&"!H73")) -> 0 | K11: =IF(K$6="","",SUMIF(DT!$D$8:$D$838,K$6,DT!$I$8:$I$838)-SUMIFS(DT!$I$8:$I$838,DT!$D$8:$D$838,K$6,DT!$C$8:$C$838,"TMD")-SUMIFS(DT!$I$8:$I$838,DT!$D$8:$D$838,K$6,DT!$C$8:$C$838,"SKC")-SUMIFS(DT!$I$8:$I$838,DT!$D$8:$D$838,K$6,DT!$C$8:$C$838,"SKX")-SUMIFS(DT!$I$8:$I$838,DT!$D$8:$D$838,K$6,DT!$C$8:$C$838,"TIN")-SUMIFS(DT!$I$8:$I$838,DT!$D$8:$D$838,K$6,DT!$C$8:$C$838,$C11)-INDIRECT("'"&K$6&"'"&"!E73")+INDIRECT("'"&K$6&"'"&"!H73")) -> 0 | L11: =IF(L$6="","",SUMIF(DT!$D$8:$D$838,L$6,DT!$I$8:$I$838)-SUMIFS(DT!$I$8:$I$838,DT!$D$8:$D$838,L$6,DT!$C$8:$C$838,"TMD")-SUMIFS(DT!$I$8:$I$838,DT!$D$8:$D$838,L$6,DT!$C$8:$C$838,"SKC")-SUMIFS(DT!$I$8:$I$838,DT!$D$8:$D$838,L$6,DT!$C$8:$C$838,"SKX")-SUMIFS(DT!$I$8:$I$838,DT!$D$8:$D$838,L$6,DT!$C$8:$C$838,"TIN")-SUMIFS(DT!$I$8:$I$838,DT!$D$8:$D$838,L$6,DT!$C$8:$C$838,$C11)-INDIRECT("'"&L$6&"'"&"!E73")+INDIRECT("'"&L$6&"'"&"!H73")) -> 0 | M11: =IF(M$6="","",SUMIF(DT!$D$8:$D$838,M$6,DT!$I$8:$I$838)-SUMIFS(DT!$I$8:$I$838,DT!$D$8:$D$838,M$6,DT!$C$8:$C$838,"TMD")-SUMIFS(DT!$I$8:$I$838,DT!$D$8:$D$838,M$6,DT!$C$8:$C$838,"SKC")-SUMIFS(DT!$I$8:$I$838,DT!$D$8:$D$838,M$6,DT!$C$8:$C$838,"SKX")-SUMIFS(DT!$I$8:$I$838,DT!$D$8:$D$838,M$6,DT!$C$8:$C$838,"TIN")-SUMIFS(DT!$I$8:$I$838,DT!$D$8:$D$838,M$6,DT!$C$8:$C$838,$C11)-INDIRECT("'"&M$6&"'"&"!E73")+INDIRECT("'"&M$6&"'"&"!H73")) -> 0 | N11: =IF(N$6="","",SUMIF(DT!$D$8:$D$838,N$6,DT!$I$8:$I$838)-SUMIFS(DT!$I$8:$I$838,DT!$D$8:$D$838,N$6,DT!$C$8:$C$838,"TMD")-SUMIFS(DT!$I$8:$I$838,DT!$D$8:$D$838,N$6,DT!$C$8:$C$838,"SKC")-SUMIFS(DT!$I$8:$I$838,DT!$D$8:$D$838,N$6,DT!$C$8:$C$838,"SKX")-SUMIFS(DT!$I$8:$I$838,DT!$D$8:$D$838,N$6,DT!$C$8:$C$838,"TIN")-SUMIFS(DT!$I$8:$I$838,DT!$D$8:$D$838,N$6,DT!$C$8:$C$838,$C11)-INDIRECT("'"&N$6&"'"&"!E73")+INDIRECT("'"&N$6&"'"&"!H73")) -> 0 | O11: =IF(O$6="","",SUMIF(DT!$D$8:$D$838,O$6,DT!$I$8:$I$838)-SUMIFS(DT!$I$8:$I$838,DT!$D$8:$D$838,O$6,DT!$C$8:$C$838,"TMD")-SUMIFS(DT!$I$8:$I$838,DT!$D$8:$D$838,O$6,DT!$C$8:$C$838,"SKC")-SUMIFS(DT!$I$8:$I$838,DT!$D$8:$D$838,O$6,DT!$C$8:$C$838,"SKX")-SUMIFS(DT!$I$8:$I$838,DT!$D$8:$D$838,O$6,DT!$C$8:$C$838,"TIN")-SUMIFS(DT!$I$8:$I$838,DT!$D$8:$D$838,O$6,DT!$C$8:$C$838,$C11)-INDIRECT("'"&O$6&"'"&"!E73")+INDIRECT("'"&O$6&"'"&"!H73")) -> 0 | P11: =IF(P$6="","",SUMIF(DT!$D$8:$D$838,P$6,DT!$I$8:$I$838)-SUMIFS(DT!$I$8:$I$838,DT!$D$8:$D$838,P$6,DT!$C$8:$C$838,"TMD")-SUMIFS(DT!$I$8:$I$838,DT!$D$8:$D$838,P$6,DT!$C$8:$C$838,"SKC")-SUMIFS(DT!$I$8:$I$838,DT!$D$8:$D$838,P$6,DT!$C$8:$C$838,"SKX")-SUMIFS(DT!$I$8:$I$838,DT!$D$8:$D$838,P$6,DT!$C$8:$C$838,"TIN")-SUMIFS(DT!$I$8:$I$838,DT!$D$8:$D$838,P$6,DT!$C$8:$C$838,$C11)-INDIRECT("'"&P$6&"'"&"!E73")+INDIRECT("'"&P$6&"'"&"!H73")) -> 0 | Q11: =IF(Q$6="","",SUMIF(DT!$D$8:$D$838,Q$6,DT!$I$8:$I$838)-SUMIFS(DT!$I$8:$I$838,DT!$D$8:$D$838,Q$6,DT!$C$8:$C$838,"TMD")-SUMIFS(DT!$I$8:$I$838,DT!$D$8:$D$838,Q$6,DT!$C$8:$C$838,"SKC")-SUMIFS(DT!$I$8:$I$838,DT!$D$8:$D$838,Q$6,DT!$C$8:$C$838,"SKX")-SUMIFS(DT!$I$8:$I$838,DT!$D$8:$D$838,Q$6,DT!$C$8:$C$838,"TIN")-SUMIFS(DT!$I$8:$I$838,DT!$D$8:$D$838,Q$6,DT!$C$8:$C$838,$C11)-INDIRECT("'"&Q$6&"'"&"!E73")+INDIRECT("'"&Q$6&"'"&"!H73")) -> 0 | R11: =IF(R$6="","",SUMIF(DT!$D$8:$D$838,R$6,DT!$I$8:$I$838)-SUMIFS(DT!$I$8:$I$838,DT!$D$8:$D$838,R$6,DT!$C$8:$C$838,"TMD")-SUMIFS(DT!$I$8:$I$838,DT!$D$8:$D$838,R$6,DT!$C$8:$C$838,"SKC")-SUMIFS(DT!$I$8:$I$838,DT!$D$8:$D$838,R$6,DT!$C$8:$C$838,"SKX")-SUMIFS(DT!$I$8:$I$838,DT!$D$8:$D$838,R$6,DT!$C$8:$C$838,"TIN")-SUMIFS(DT!$I$8:$I$838,DT!$D$8:$D$838,R$6,DT!$C$8:$C$838,$C11)-INDIRECT("'"&R$6&"'"&"!E73")+INDIRECT("'"&R$6&"'"&"!H73")) -> 0 | S11: =IF(S$6="","",SUMIF(DT!$D$8:$D$838,S$6,DT!$I$8:$I$838)-SUMIFS(DT!$I$8:$I$838,DT!$D$8:$D$838,S$6,DT!$C$8:$C$838,"TMD")-SUMIFS(DT!$I$8:$I$838,DT!$D$8:$D$838,S$6,DT!$C$8:$C$838,"SKC")-SUMIFS(DT!$I$8:$I$838,DT!$D$8:$D$838,S$6,DT!$C$8:$C$838,"SKX")-SUMIFS(DT!$I$8:$I$838,DT!$D$8:$D$838,S$6,DT!$C$8:$C$838,"TIN")-SUMIFS(DT!$I$8:$I$838,DT!$D$8:$D$838,S$6,DT!$C$8:$C$838,$C11)-INDIRECT("'"&S$6&"'"&"!E73")+INDIRECT("'"&S$6&"'"&"!H73")) -> 0 | T11: =IF(T$6="","",SUMIF(DT!$D$8:$D$838,T$6,DT!$I$8:$I$838)-SUMIFS(DT!$I$8:$I$838,DT!$D$8:$D$838,T$6,DT!$C$8:$C$838,"TMD")-SUMIFS(DT!$I$8:$I$838,DT!$D$8:$D$838,T$6,DT!$C$8:$C$838,"SKC")-SUMIFS(DT!$I$8:$I$838,DT!$D$8:$D$838,T$6,DT!$C$8:$C$838,"SKX")-SUMIFS(DT!$I$8:$I$838,DT!$D$8:$D$838,T$6,DT!$C$8:$C$838,"TIN")-SUMIFS(DT!$I$8:$I$838,DT!$D$8:$D$838,T$6,DT!$C$8:$C$838,$C11)-INDIRECT("'"&T$6&"'"&"!E73")+INDIRECT("'"&T$6&"'"&"!H73")) -> 0 | U11: =IF(U$6="","",SUMIF(DT!$D$8:$D$838,U$6,DT!$I$8:$I$838)-SUMIFS(DT!$I$8:$I$838,DT!$D$8:$D$838,U$6,DT!$C$8:$C$838,"TMD")-SUMIFS(DT!$I$8:$I$838,DT!$D$8:$D$838,U$6,DT!$C$8:$C$838,"SKC")-SUMIFS(DT!$I$8:$I$838,DT!$D$8:$D$838,U$6,DT!$C$8:$C$838,"SKX")-SUMIFS(DT!$I$8:$I$838,DT!$D$8:$D$838,U$6,DT!$C$8:$C$838,"TIN")-SUMIFS(DT!$I$8:$I$838,DT!$D$8:$D$838,U$6,DT!$C$8:$C$838,$C11)-INDIRECT("'"&U$6&"'"&"!E73")+INDIRECT("'"&U$6&"'"&"!H73")) -> 0 | V11: =IF(V$6="","",SUMIF(DT!$D$8:$D$838,V$6,DT!$I$8:$I$838)-SUMIFS(DT!$I$8:$I$838,DT!$D$8:$D$838,V$6,DT!$C$8:$C$838,"TMD")-SUMIFS(DT!$I$8:$I$838,DT!$D$8:$D$838,V$6,DT!$C$8:$C$838,"SKC")-SUMIFS(DT!$I$8:$I$838,DT!$D$8:$D$838,V$6,DT!$C$8:$C$838,"SKX")-SUMIFS(DT!$I$8:$I$838,DT!$D$8:$D$838,V$6,DT!$C$8:$C$838,"TIN")-SUMIFS(DT!$I$8:$I$838,DT!$D$8:$D$838,V$6,DT!$C$8:$C$838,$C11)-INDIRECT("'"&V$6&"'"&"!E73")+INDIRECT("'"&V$6&"'"&"!H73")) -> 0
A12: Ẩn | B12: Đất trồng lúa nước còn lại | C12: LUK | D12: 64.21 | E12: =IF(E$6="","",SUMIF(DT!$D$8:$D$838,E$6,DT!$K$8:$K$838)-SUMIFS(DT!$K$8:$K$838,DT!$D$8:$D$838,E$6,DT!$C$8:$C$838,"TMD")-SUMIFS(DT!$K$8:$K$838,DT!$D$8:$D$838,E$6,DT!$C$8:$C$838,"SKC")-SUMIFS(DT!$K$8:$K$838,DT!$D$8:$D$838,E$6,DT!$C$8:$C$838,"SKX")-SUMIFS(DT!$K$8:$K$838,DT!$D$8:$D$838,E$6,DT!$C$8:$C$838,"TIN")-SUMIFS(DT!$K$8:$K$838,DT!$D$8:$D$838,E$6,DT!$C$8:$C$838,$C12)-INDIRECT("'"&E$6&"'"&"!E74")+INDIRECT("'"&E$6&"'"&"!I74")) -> 0 | F12: =IF(F$6="","",SUMIF(DT!$D$8:$D$838,F$6,DT!$K$8:$K$838)-SUMIFS(DT!$K$8:$K$838,DT!$D$8:$D$838,F$6,DT!$C$8:$C$838,"TMD")-SUMIFS(DT!$K$8:$K$838,DT!$D$8:$D$838,F$6,DT!$C$8:$C$838,"SKC")-SUMIFS(DT!$K$8:$K$838,DT!$D$8:$D$838,F$6,DT!$C$8:$C$838,"SKX")-SUMIFS(DT!$K$8:$K$838,DT!$D$8:$D$838,F$6,DT!$C$8:$C$838,"TIN")-SUMIFS(DT!$K$8:$K$838,DT!$D$8:$D$838,F$6,DT!$C$8:$C$838,$C12)-INDIRECT("'"&F$6&"'"&"!E74")+INDIRECT("'"&F$6&"'"&"!I74")) -> 0 | G12: =IF(G$6="","",SUMIF(DT!$D$8:$D$838,G$6,DT!$K$8:$K$838)-SUMIFS(DT!$K$8:$K$838,DT!$D$8:$D$838,G$6,DT!$C$8:$C$838,"TMD")-SUMIFS(DT!$K$8:$K$838,DT!$D$8:$D$838,G$6,DT!$C$8:$C$838,"SKC")-SUMIFS(DT!$K$8:$K$838,DT!$D$8:$D$838,G$6,DT!$C$8:$C$838,"SKX")-SUMIFS(DT!$K$8:$K$838,DT!$D$8:$D$838,G$6,DT!$C$8:$C$838,"TIN")-SUMIFS(DT!$K$8:$K$838,DT!$D$8:$D$838,G$6,DT!$C$8:$C$838,$C12)-INDIRECT("'"&G$6&"'"&"!E74")+INDIRECT("'"&G$6&"'"&"!I74")) -> 0 | H12: =IF(H$6="","",SUMIF(DT!$D$8:$D$838,H$6,DT!$K$8:$K$838)-SUMIFS(DT!$K$8:$K$838,DT!$D$8:$D$838,H$6,DT!$C$8:$C$838,"TMD")-SUMIFS(DT!$K$8:$K$838,DT!$D$8:$D$838,H$6,DT!$C$8:$C$838,"SKC")-SUMIFS(DT!$K$8:$K$838,DT!$D$8:$D$838,H$6,DT!$C$8:$C$838,"SKX")-SUMIFS(DT!$K$8:$K$838,DT!$D$8:$D$838,H$6,DT!$C$8:$C$838,"TIN")-SUMIFS(DT!$K$8:$K$838,DT!$D$8:$D$838,H$6,DT!$C$8:$C$838,$C12)-INDIRECT("'"&H$6&"'"&"!E74")+INDIRECT("'"&H$6&"'"&"!I74")) -> 0 | I12: =IF(I$6="","",SUMIF(DT!$D$8:$D$838,I$6,DT!$K$8:$K$838)-SUMIFS(DT!$K$8:$K$838,DT!$D$8:$D$838,I$6,DT!$C$8:$C$838,"TMD")-SUMIFS(DT!$K$8:$K$838,DT!$D$8:$D$838,I$6,DT!$C$8:$C$838,"SKC")-SUMIFS(DT!$K$8:$K$838,DT!$D$8:$D$838,I$6,DT!$C$8:$C$838,"SKX")-SUMIFS(DT!$K$8:$K$838,DT!$D$8:$D$838,I$6,DT!$C$8:$C$838,"TIN")-SUMIFS(DT!$K$8:$K$838,DT!$D$8:$D$838,I$6,DT!$C$8:$C$838,$C12)-INDIRECT("'"&I$6&"'"&"!E74")+INDIRECT("'"&I$6&"'"&"!I74")) -> 62.43 | J12: =IF(J$6="","",SUMIF(DT!$D$8:$D$838,J$6,DT!$K$8:$K$838)-SUMIFS(DT!$K$8:$K$838,DT!$D$8:$D$838,J$6,DT!$C$8:$C$838,"TMD")-SUMIFS(DT!$K$8:$K$838,DT!$D$8:$D$838,J$6,DT!$C$8:$C$838,"SKC")-SUMIFS(DT!$K$8:$K$838,DT!$D$8:$D$838,J$6,DT!$C$8:$C$838,"SKX")-SUMIFS(DT!$K$8:$K$838,DT!$D$8:$D$838,J$6,DT!$C$8:$C$838,"TIN")-SUMIFS(DT!$K$8:$K$838,DT!$D$8:$D$838,J$6,DT!$C$8:$C$838,$C12)-INDIRECT("'"&J$6&"'"&"!E74")+INDIRECT("'"&J$6&"'"&"!I74")) -> 0.98 | K12: =IF(K$6="","",SUMIF(DT!$D$8:$D$838,K$6,DT!$K$8:$K$838)-SUMIFS(DT!$K$8:$K$838,DT!$D$8:$D$838,K$6,DT!$C$8:$C$838,"TMD")-SUMIFS(DT!$K$8:$K$838,DT!$D$8:$D$838,K$6,DT!$C$8:$C$838,"SKC")-SUMIFS(DT!$K$8:$K$838,DT!$D$8:$D$838,K$6,DT!$C$8:$C$838,"SKX")-SUMIFS(DT!$K$8:$K$838,DT!$D$8:$D$838,K$6,DT!$C$8:$C$838,"TIN")-SUMIFS(DT!$K$8:$K$838,DT!$D$8:$D$838,K$6,DT!$C$8:$C$838,$C12)-INDIRECT("'"&K$6&"'"&"!E74")+INDIRECT("'"&K$6&"'"&"!I74")) -> 0 | L12: =IF(L$6="","",SUMIF(DT!$D$8:$D$838,L$6,DT!$K$8:$K$838)-SUMIFS(DT!$K$8:$K$838,DT!$D$8:$D$838,L$6,DT!$C$8:$C$838,"TMD")-SUMIFS(DT!$K$8:$K$838,DT!$D$8:$D$838,L$6,DT!$C$8:$C$838,"SKC")-SUMIFS(DT!$K$8:$K$838,DT!$D$8:$D$838,L$6,DT!$C$8:$C$838,"SKX")-SUMIFS(DT!$K$8:$K$838,DT!$D$8:$D$838,L$6,DT!$C$8:$C$838,"TIN")-SUMIFS(DT!$K$8:$K$838,DT!$D$8:$D$838,L$6,DT!$C$8:$C$838,$C12)-INDIRECT("'"&L$6&"'"&"!E74")+INDIRECT("'"&L$6&"'"&"!I74")) -> 0 | M12: =IF(M$6="","",SUMIF(DT!$D$8:$D$838,M$6,DT!$K$8:$K$838)-SUMIFS(DT!$K$8:$K$838,DT!$D$8:$D$838,M$6,DT!$C$8:$C$838,"TMD")-SUMIFS(DT!$K$8:$K$838,DT!$D$8:$D$838,M$6,DT!$C$8:$C$838,"SKC")-SUMIFS(DT!$K$8:$K$838,DT!$D$8:$D$838,M$6,DT!$C$8:$C$838,"SKX")-SUMIFS(DT!$K$8:$K$838,DT!$D$8:$D$838,M$6,DT!$C$8:$C$838,"TIN")-SUMIFS(DT!$K$8:$K$838,DT!$D$8:$D$838,M$6,DT!$C$8:$C$838,$C12)-INDIRECT("'"&M$6&"'"&"!E74")+INDIRECT("'"&M$6&"'"&"!I74")) -> 0 | N12: =IF(N$6="","",SUMIF(DT!$D$8:$D$838,N$6,DT!$K$8:$K$838)-SUMIFS(DT!$K$8:$K$838,DT!$D$8:$D$838,N$6,DT!$C$8:$C$838,"TMD")-SUMIFS(DT!$K$8:$K$838,DT!$D$8:$D$838,N$6,DT!$C$8:$C$838,"SKC")-SUMIFS(DT!$K$8:$K$838,DT!$D$8:$D$838,N$6,DT!$C$8:$C$838,"SKX")-SUMIFS(DT!$K$8:$K$838,DT!$D$8:$D$838,N$6,DT!$C$8:$C$838,"TIN")-SUMIFS(DT!$K$8:$K$838,DT!$D$8:$D$838,N$6,DT!$C$8:$C$838,$C12)-INDIRECT("'"&N$6&"'"&"!E74")+INDIRECT("'"&N$6&"'"&"!I74")) -> 0.17 | O12: =IF(O$6="","",SUMIF(DT!$D$8:$D$838,O$6,DT!$K$8:$K$838)-SUMIFS(DT!$K$8:$K$838,DT!$D$8:$D$838,O$6,DT!$C$8:$C$838,"TMD")-SUMIFS(DT!$K$8:$K$838,DT!$D$8:$D$838,O$6,DT!$C$8:$C$838,"SKC")-SUMIFS(DT!$K$8:$K$838,DT!$D$8:$D$838,O$6,DT!$C$8:$C$838,"SKX")-SUMIFS(DT!$K$8:$K$838,DT!$D$8:$D$838,O$6,DT!$C$8:$C$838,"TIN")-SUMIFS(DT!$K$8:$K$838,DT!$D$8:$D$838,O$6,DT!$C$8:$C$838,$C12)-INDIRECT("'"&O$6&"'"&"!E74")+INDIRECT("'"&O$6&"'"&"!I74")) -> 0 | P12: =IF(P$6="","",SUMIF(DT!$D$8:$D$838,P$6,DT!$K$8:$K$838)-SUMIFS(DT!$K$8:$K$838,DT!$D$8:$D$838,P$6,DT!$C$8:$C$838,"TMD")-SUMIFS(DT!$K$8:$K$838,DT!$D$8:$D$838,P$6,DT!$C$8:$C$838,"SKC")-SUMIFS(DT!$K$8:$K$838,DT!$D$8:$D$838,P$6,DT!$C$8:$C$838,"SKX")-SUMIFS(DT!$K$8:$K$838,DT!$D$8:$D$838,P$6,DT!$C$8:$C$838,"TIN")-SUMIFS(DT!$K$8:$K$838,DT!$D$8:$D$838,P$6,DT!$C$8:$C$838,$C12)-INDIRECT("'"&P$6&"'"&"!E74")+INDIRECT("'"&P$6&"'"&"!I74")) -> 0.6 | Q12: =IF(Q$6="","",SUMIF(DT!$D$8:$D$838,Q$6,DT!$K$8:$K$838)-SUMIFS(DT!$K$8:$K$838,DT!$D$8:$D$838,Q$6,DT!$C$8:$C$838,"TMD")-SUMIFS(DT!$K$8:$K$838,DT!$D$8:$D$838,Q$6,DT!$C$8:$C$838,"SKC")-SUMIFS(DT!$K$8:$K$838,DT!$D$8:$D$838,Q$6,DT!$C$8:$C$838,"SKX")-SUMIFS(DT!$K$8:$K$838,DT!$D$8:$D$838,Q$6,DT!$C$8:$C$838,"TIN")-SUMIFS(DT!$K$8:$K$838,DT!$D$8:$D$838,Q$6,DT!$C$8:$C$838,$C12)-INDIRECT("'"&Q$6&"'"&"!E74")+INDIRECT("'"&Q$6&"'"&"!I74")) -> 0 | R12: =IF(R$6="","",SUMIF(DT!$D$8:$D$838,R$6,DT!$K$8:$K$838)-SUMIFS(DT!$K$8:$K$838,DT!$D$8:$D$838,R$6,DT!$C$8:$C$838,"TMD")-SUMIFS(DT!$K$8:$K$838,DT!$D$8:$D$838,R$6,DT!$C$8:$C$838,"SKC")-SUMIFS(DT!$K$8:$K$838,DT!$D$8:$D$838,R$6,DT!$C$8:$C$838,"SKX")-SUMIFS(DT!$K$8:$K$838,DT!$D$8:$D$838,R$6,DT!$C$8:$C$838,"TIN")-SUMIFS(DT!$K$8:$K$838,DT!$D$8:$D$838,R$6,DT!$C$8:$C$838,$C12)-INDIRECT("'"&R$6&"'"&"!E74")+INDIRECT("'"&R$6&"'"&"!I74")) -> 0 | S12: =IF(S$6="","",SUMIF(DT!$D$8:$D$838,S$6,DT!$K$8:$K$838)-SUMIFS(DT!$K$8:$K$838,DT!$D$8:$D$838,S$6,DT!$C$8:$C$838,"TMD")-SUMIFS(DT!$K$8:$K$838,DT!$D$8:$D$838,S$6,DT!$C$8:$C$838,"SKC")-SUMIFS(DT!$K$8:$K$838,DT!$D$8:$D$838,S$6,DT!$C$8:$C$838,"SKX")-SUMIFS(DT!$K$8:$K$838,DT!$D$8:$D$838,S$6,DT!$C$8:$C$838,"TIN")-SUMIFS(DT!$K$8:$K$838,DT!$D$8:$D$838,S$6,DT!$C$8:$C$838,$C12)-INDIRECT("'"&S$6&"'"&"!E74")+INDIRECT("'"&S$6&"'"&"!I74")) -> 0.03 | T12: =IF(T$6="","",SUMIF(DT!$D$8:$D$838,T$6,DT!$K$8:$K$838)-SUMIFS(DT!$K$8:$K$838,DT!$D$8:$D$838,T$6,DT!$C$8:$C$838,"TMD")-SUMIFS(DT!$K$8:$K$838,DT!$D$8:$D$838,T$6,DT!$C$8:$C$838,"SKC")-SUMIFS(DT!$K$8:$K$838,DT!$D$8:$D$838,T$6,DT!$C$8:$C$838,"SKX")-SUMIFS(DT!$K$8:$K$838,DT!$D$8:$D$838,T$6,DT!$C$8:$C$838,"TIN")-SUMIFS(DT!$K$8:$K$838,DT!$D$8:$D$838,T$6,DT!$C$8:$C$838,$C12)-INDIRECT("'"&T$6&"'"&"!E74")+INDIRECT("'"&T$6&"'"&"!I74")) -> 0 | U12: =IF(U$6="","",SUMIF(DT!$D$8:$D$838,U$6,DT!$K$8:$K$838)-SUMIFS(DT!$K$8:$K$838,DT!$D$8:$D$838,U$6,DT!$C$8:$C$838,"TMD")-SUMIFS(DT!$K$8:$K$838,DT!$D$8:$D$838,U$6,DT!$C$8:$C$838,"SKC")-SUMIFS(DT!$K$8:$K$838,DT!$D$8:$D$838,U$6,DT!$C$8:$C$838,"SKX")-SUMIFS(DT!$K$8:$K$838,DT!$D$8:$D$838,U$6,DT!$C$8:$C$838,"TIN")-SUMIFS(DT!$K$8:$K$838,DT!$D$8:$D$838,U$6,DT!$C$8:$C$838,$C12)-INDIRECT("'"&U$6&"'"&"!E74")+INDIRECT("'"&U$6&"'"&"!I74")) -> 0 | V12: =IF(V$6="","",SUMIF(DT!$D$8:$D$838,V$6,DT!$K$8:$K$838)-SUMIFS(DT!$K$8:$K$838,DT!$D$8:$D$838,V$6,DT!$C$8:$C$838,"TMD")-SUMIFS(DT!$K$8:$K$838,DT!$D$8:$D$838,V$6,DT!$C$8:$C$838,"SKC")-SUMIFS(DT!$K$8:$K$838,DT!$D$8:$D$838,V$6,DT!$C$8:$C$838,"SKX")-SUMIFS(DT!$K$8:$K$838,DT!$D$8:$D$838,V$6,DT!$C$8:$C$838,"TIN")-SUMIFS(DT!$K$8:$K$838,DT!$D$8:$D$838,V$6,DT!$C$8:$C$838,$C12)-INDIRECT("'"&V$6&"'"&"!E74")+INDIRECT("'"&V$6&"'"&"!I74")) -> 0
A13: 1.2 | B13: Đất trồng cây hàng năm khác | C13: HNK | D13: 158.56 | E13: =IF(E$6="","",SUMIF(DT!$D$8:$D$838,E$6,DT!$M$8:$M$838)-SUMIFS(DT!$M$8:$M$838,DT!$D$8:$D$838,E$6,DT!$C$8:$C$838,"TMD")-SUMIFS(DT!$M$8:$M$838,DT!$D$8:$D$838,E$6,DT!$C$8:$C$838,"SKC")-SUMIFS(DT!$M$8:$M$838,DT!$D$8:$D$838,E$6,DT!$C$8:$C$838,"SKX")-SUMIFS(DT!$M$8:$M$838,DT!$D$8:$D$838,E$6,DT!$C$8:$C$838,"TIN")-SUMIFS(DT!$M$8:$M$838,DT!$D$8:$D$838,E$6,DT!$C$8:$C$838,$C13)-INDIRECT("'"&E$6&"'"&"!E75")+INDIRECT("'"&E$6&"'"&"!J75")) -> 3.58 | F13: =IF(F$6="","",SUMIF(DT!$D$8:$D$838,F$6,DT!$M$8:$M$838)-SUMIFS(DT!$M$8:$M$838,DT!$D$8:$D$838,F$6,DT!$C$8:$C$838,"TMD")-SUMIFS(DT!$M$8:$M$838,DT!$D$8:$D$838,F$6,DT!$C$8:$C$838,"SKC")-SUMIFS(DT!$M$8:$M$838,DT!$D$8:$D$838,F$6,DT!$C$8:$C$838,"SKX")-SUMIFS(DT!$M$8:$M$838,DT!$D$8:$D$838,F$6,DT!$C$8:$C$838,"TIN")-SUMIFS(DT!$M$8:$M$838,DT!$D$8:$D$838,F$6,DT!$C$8:$C$838,$C13)-INDIRECT("'"&F$6&"'"&"!E75")+INDIRECT("'"&F$6&"'"&"!J75")) -> 2.89 | G13: =IF(G$6="","",SUMIF(DT!$D$8:$D$838,G$6,DT!$M$8:$M$838)-SUMIFS(DT!$M$8:$M$838,DT!$D$8:$D$838,G$6,DT!$C$8:$C$838,"TMD")-SUMIFS(DT!$M$8:$M$838,DT!$D$8:$D$838,G$6,DT!$C$8:$C$838,"SKC")-SUMIFS(DT!$M$8:$M$838,DT!$D$8:$D$838,G$6,DT!$C$8:$C$838,"SKX")-SUMIFS(DT!$M$8:$M$838,DT!$D$8:$D$838,G$6,DT!$C$8:$C$838,"TIN")-SUMIFS(DT!$M$8:$M$838,DT!$D$8:$D$838,G$6,DT!$C$8:$C$838,$C13)-INDIRECT("'"&G$6&"'"&"!E75")+INDIRECT("'"&G$6&"'"&"!J75")) -> 0.59 | H13: =IF(H$6="","",SUMIF(DT!$D$8:$D$838,H$6,DT!$M$8:$M$838)-SUMIFS(DT!$M$8:$M$838,DT!$D$8:$D$838,H$6,DT!$C$8:$C$838,"TMD")-SUMIFS(DT!$M$8:$M$838,DT!$D$8:$D$838,H$6,DT!$C$8:$C$838,"SKC")-SUMIFS(DT!$M$8:$M$838,DT!$D$8:$D$838,H$6,DT!$C$8:$C$838,"SKX")-SUMIFS(DT!$M$8:$M$838,DT!$D$8:$D$838,H$6,DT!$C$8:$C$838,"TIN")-SUMIFS(DT!$M$8:$M$838,DT!$D$8:$D$838,H$6,DT!$C$8:$C$838,$C13)-INDIRECT("'"&H$6&"'"&"!E75")+INDIRECT("'"&H$6&"'"&"!J75")) -> 2.17 | I13: =IF(I$6="","",SUMIF(DT!$D$8:$D$838,I$6,DT!$M$8:$M$838)-SUMIFS(DT!$M$8:$M$838,DT!$D$8:$D$838,I$6,DT!$C$8:$C$838,"TMD")-SUMIFS(DT!$M$8:$M$838,DT!$D$8:$D$838,I$6,DT!$C$8:$C$838,"SKC")-SUMIFS(DT!$M$8:$M$838,DT!$D$8:$D$838,I$6,DT!$C$8:$C$838,"SKX")-SUMIFS(DT!$M$8:$M$838,DT!$D$8:$D$838,I$6,DT!$C$8:$C$838,"TIN")-SUMIFS(DT!$M$8:$M$838,DT!$D$8:$D$838,I$6,DT!$C$8:$C$838,$C13)-INDIRECT("'"&I$6&"'"&"!E75")+INDIRECT("'"&I$6&"'"&"!J75")) -> 67.22 | J13: =IF(J$6="","",SUMIF(DT!$D$8:$D$838,J$6,DT!$M$8:$M$838)-SUMIFS(DT!$M$8:$M$838,DT!$D$8:$D$838,J$6,DT!$C$8:$C$838,"TMD")-SUMIFS(DT!$M$8:$M$838,DT!$D$8:$D$838,J$6,DT!$C$8:$C$838,"SKC")-SUMIFS(DT!$M$8:$M$838,DT!$D$8:$D$838,J$6,DT!$C$8:$C$838,"SKX")-SUMIFS(DT!$M$8:$M$838,DT!$D$8:$D$838,J$6,DT!$C$8:$C$838,"TIN")-SUMIFS(DT!$M$8:$M$838,DT!$D$8:$D$838,J$6,DT!$C$8:$C$838,$C13)-INDIRECT("'"&J$6&"'"&"!E75")+INDIRECT("'"&J$6&"'"&"!J75")) -> 3.32 | K13: =IF(K$6="","",SUMIF(DT!$D$8:$D$838,K$6,DT!$M$8:$M$838)-SUMIFS(DT!$M$8:$M$838,DT!$D$8:$D$838,K$6,DT!$C$8:$C$838,"TMD")-SUMIFS(DT!$M$8:$M$838,DT!$D$8:$D$838,K$6,DT!$C$8:$C$838,"SKC")-SUMIFS(DT!$M$8:$M$838,DT!$D$8:$D$838,K$6,DT!$C$8:$C$838,"SKX")-SUMIFS(DT!$M$8:$M$838,DT!$D$8:$D$838,K$6,DT!$C$8:$C$838,"TIN")-SUMIFS(DT!$M$8:$M$838,DT!$D$8:$D$838,K$6,DT!$C$8:$C$838,$C13)-INDIRECT("'"&K$6&"'"&"!E75")+INDIRECT("'"&K$6&"'"&"!J75")) -> 30.52 | L13: =IF(L$6="","",SUMIF(DT!$D$8:$D$838,L$6,DT!$M$8:$M$838)-SUMIFS(DT!$M$8:$M$838,DT!$D$8:$D$838,L$6,DT!$C$8:$C$838,"TMD")-SUMIFS(DT!$M$8:$M$838,DT!$D$8:$D$838,L$6,DT!$C$8:$C$838,"SKC")-SUMIFS(DT!$M$8:$M$838,DT!$D$8:$D$838,L$6,DT!$C$8:$C$838,"SKX")-SUMIFS(DT!$M$8:$M$838,DT!$D$8:$D$838,L$6,DT!$C$8:$C$838,"TIN")-SUMIFS(DT!$M$8:$M$838,DT!$D$8:$D$838,L$6,DT!$C$8:$C$838,$C13)-INDIRECT("'"&L$6&"'"&"!E75")+INDIRECT("'"&L$6&"'"&"!J75")) -> 1.03 | M13: =IF(M$6="","",SUMIF(DT!$D$8:$D$838,M$6,DT!$M$8:$M$838)-SUMIFS(DT!$M$8:$M$838,DT!$D$8:$D$838,M$6,DT!$C$8:$C$838,"TMD")-SUMIFS(DT!$M$8:$M$838,DT!$D$8:$D$838,M$6,DT!$C$8:$C$838,"SKC")-SUMIFS(DT!$M$8:$M$838,DT!$D$8:$D$838,M$6,DT!$C$8:$C$838,"SKX")-SUMIFS(DT!$M$8:$M$838,DT!$D$8:$D$838,M$6,DT!$C$8:$C$838,"TIN")-SUMIFS(DT!$M$8:$M$838,DT!$D$8:$D$838,M$6,DT!$C$8:$C$838,$C13)-INDIRECT("'"&M$6&"'"&"!E75")+INDIRECT("'"&M$6&"'"&"!J75")) -> 0.11 | N13: =IF(N$6="","",SUMIF(DT!$D$8:$D$838,N$6,DT!$M$8:$M$838)-SUMIFS(DT!$M$8:$M$838,DT!$D$8:$D$838,N$6,DT!$C$8:$C$838,"TMD")-SUMIFS(DT!$M$8:$M$838,DT!$D$8:$D$838,N$6,DT!$C$8:$C$838,"SKC")-SUMIFS(DT!$M$8:$M$838,DT!$D$8:$D$838,N$6,DT!$C$8:$C$838,"SKX")-SUMIFS(DT!$M$8:$M$838,DT!$D$8:$D$838,N$6,DT!$C$8:$C$838,"TIN")-SUMIFS(DT!$M$8:$M$838,DT!$D$8:$D$838,N$6,DT!$C$8:$C$838,$C13)-INDIRECT("'"&N$6&"'"&"!E75")+INDIRECT("'"&N$6&"'"&"!J75")) -> 0.03 | O13: =IF(O$6="","",SUMIF(DT!$D$8:$D$838,O$6,DT!$M$8:$M$838)-SUMIFS(DT!$M$8:$M$838,DT!$D$8:$D$838,O$6,DT!$C$8:$C$838,"TMD")-SUMIFS(DT!$M$8:$M$838,DT!$D$8:$D$838,O$6,DT!$C$8:$C$838,"SKC")-SUMIFS(DT!$M$8:$M$838,DT!$D$8:$D$838,O$6,DT!$C$8:$C$838,"SKX")-SUMIFS(DT!$M$8:$M$838,DT!$D$8:$D$838,O$6,DT!$C$8:$C$838,"TIN")-SUMIFS(DT!$M$8:$M$838,DT!$D$8:$D$838,O$6,DT!$C$8:$C$838,$C13)-INDIRECT("'"&O$6&"'"&"!E75")+INDIRECT("'"&O$6&"'"&"!J75")) -> 21.37 | P13: =IF(P$6="","",SUMIF(DT!$D$8:$D$838,P$6,DT!$M$8:$M$838)-SUMIFS(DT!$M$8:$M$838,DT!$D$8:$D$838,P$6,DT!$C$8:$C$838,"TMD")-SUMIFS(DT!$M$8:$M$838,DT!$D$8:$D$838,P$6,DT!$C$8:$C$838,"SKC")-SUMIFS(DT!$M$8:$M$838,DT!$D$8:$D$838,P$6,DT!$C$8:$C$838,"SKX")-SUMIFS(DT!$M$8:$M$838,DT!$D$8:$D$838,P$6,DT!$C$8:$C$838,"TIN")-SUMIFS(DT!$M$8:$M$838,DT!$D$8:$D$838,P$6,DT!$C$8:$C$838,$C13)-INDIRECT("'"&P$6&"'"&"!E75")+INDIRECT("'"&P$6&"'"&"!J75")) -> 1.67 | Q13: =IF(Q$6="","",SUMIF(DT!$D$8:$D$838,Q$6,DT!$M$8:$M$838)-SUMIFS(DT!$M$8:$M$838,DT!$D$8:$D$838,Q$6,DT!$C$8:$C$838,"TMD")-SUMIFS(DT!$M$8:$M$838,DT!$D$8:$D$838,Q$6,DT!$C$8:$C$838,"SKC")-SUMIFS(DT!$M$8:$M$838,DT!$D$8:$D$838,Q$6,DT!$C$8:$C$838,"SKX")-SUMIFS(DT!$M$8:$M$838,DT!$D$8:$D$838,Q$6,DT!$C$8:$C$838,"TIN")-SUMIFS(DT!$M$8:$M$838,DT!$D$8:$D$838,Q$6,DT!$C$8:$C$838,$C13)-INDIRECT("'"&Q$6&"'"&"!E75")+INDIRECT("'"&Q$6&"'"&"!J75")) -> 2 | R13: =IF(R$6="","",SUMIF(DT!$D$8:$D$838,R$6,DT!$M$8:$M$838)-SUMIFS(DT!$M$8:$M$838,DT!$D$8:$D$838,R$6,DT!$C$8:$C$838,"TMD")-SUMIFS(DT!$M$8:$M$838,DT!$D$8:$D$838,R$6,DT!$C$8:$C$838,"SKC")-SUMIFS(DT!$M$8:$M$838,DT!$D$8:$D$838,R$6,DT!$C$8:$C$838,"SKX")-SUMIFS(DT!$M$8:$M$838,DT!$D$8:$D$838,R$6,DT!$C$8:$C$838,"TIN")-SUMIFS(DT!$M$8:$M$838,DT!$D$8:$D$838,R$6,DT!$C$8:$C$838,$C13)-INDIRECT("'"&R$6&"'"&"!E75")+INDIRECT("'"&R$6&"'"&"!J75")) -> 0.44 | S13: =IF(S$6="","",SUMIF(DT!$D$8:$D$838,S$6,DT!$M$8:$M$838)-SUMIFS(DT!$M$8:$M$838,DT!$D$8:$D$838,S$6,DT!$C$8:$C$838,"TMD")-SUMIFS(DT!$M$8:$M$838,DT!$D$8:$D$838,S$6,DT!$C$8:$C$838,"SKC")-SUMIFS(DT!$M$8:$M$838,DT!$D$8:$D$838,S$6,DT!$C$8:$C$838,"SKX")-SUMIFS(DT!$M$8:$M$838,DT!$D$8:$D$838,S$6,DT!$C$8:$C$838,"TIN")-SUMIFS(DT!$M$8:$M$838,DT!$D$8:$D$838,S$6,DT!$C$8:$C$838,$C13)-INDIRECT("'"&S$6&"'"&"!E75")+INDIRECT("'"&S$6&"'"&"!J75")) -> 0.59 | T13: =IF(T$6="","",SUMIF(DT!$D$8:$D$838,T$6,DT!$M$8:$M$838)-SUMIFS(DT!$M$8:$M$838,DT!$D$8:$D$838,T$6,DT!$C$8:$C$838,"TMD")-SUMIFS(DT!$M$8:$M$838,DT!$D$8:$D$838,T$6,DT!$C$8:$C$838,"SKC")-SUMIFS(DT!$M$8:$M$838,DT!$D$8:$D$838,T$6,DT!$C$8:$C$838,"SKX")-SUMIFS(DT!$M$8:$M$838,DT!$D$8:$D$838,T$6,DT!$C$8:$C$838,"TIN")-SUMIFS(DT!$M$8:$M$838,DT!$D$8:$D$838,T$6,DT!$C$8:$C$838,$C13)-INDIRECT("'"&T$6&"'"&"!E75")+INDIRECT("'"&T$6&"'"&"!J75")) -> 3.02 | U13: =IF(U$6="","",SUMIF(DT!$D$8:$D$838,U$6,DT!$M$8:$M$838)-SUMIFS(DT!$M$8:$M$838,DT!$D$8:$D$838,U$6,DT!$C$8:$C$838,"TMD")-SUMIFS(DT!$M$8:$M$838,DT!$D$8:$D$838,U$6,DT!$C$8:$C$838,"SKC")-SUMIFS(DT!$M$8:$M$838,DT!$D$8:$D$838,U$6,DT!$C$8:$C$838,"SKX")-SUMIFS(DT!$M$8:$M$838,DT!$D$8:$D$838,U$6,DT!$C$8:$C$838,"TIN")-SUMIFS(DT!$M$8:$M$838,DT!$D$8:$D$838,U$6,DT!$C$8:$C$838,$C13)-INDIRECT("'"&U$6&"'"&"!E75")+INDIRECT("'"&U$6&"'"&"!J75")) -> 10.9 | V13: =IF(V$6="","",SUMIF(DT!$D$8:$D$838,V$6,DT!$M$8:$M$838)-SUMIFS(DT!$M$8:$M$838,DT!$D$8:$D$838,V$6,DT!$C$8:$C$838,"TMD")-SUMIFS(DT!$M$8:$M$838,DT!$D$8:$D$838,V$6,DT!$C$8:$C$838,"SKC")-SUMIFS(DT!$M$8:$M$838,DT!$D$8:$D$838,V$6,DT!$C$8:$C$838,"SKX")-SUMIFS(DT!$M$8:$M$838,DT!$D$8:$D$838,V$6,DT!$C$8:$C$838,"TIN")-SUMIFS(DT!$M$8:$M$838,DT!$D$8:$D$838,V$6,DT!$C$8:$C$838,$C13)-INDIRECT("'"&V$6&"'"&"!E75")+INDIRECT("'"&V$6&"'"&"!J75")) -> 7.11
A14: 1.3 | B14: Đất trồng cây lâu năm | C14: CLN | D14: 37.5 | E14: =IF(E$6="","",SUMIF(DT!$D$8:$D$838,E$6,DT!$O$8:$O$838)-SUMIFS(DT!$O$8:$O$838,DT!$D$8:$D$838,E$6,DT!$C$8:$C$838,"TMD")-SUMIFS(DT!$O$8:$O$838,DT!$D$8:$D$838,E$6,DT!$C$8:$C$838,"SKC")-SUMIFS(DT!$O$8:$O$838,DT!$D$8:$D$838,E$6,DT!$C$8:$C$838,"SKX")-SUMIFS(DT!$O$8:$O$838,DT!$D$8:$D$838,E$6,DT!$C$8:$C$838,"TIN")-SUMIFS(DT!$O$8:$O$838,DT!$D$8:$D$838,E$6,DT!$C$8:$C$838,$C14)-INDIRECT("'"&E$6&"'"&"!E76")+INDIRECT("'"&E$6&"'"&"!K76")) -> 0 | F14: =IF(F$6="","",SUMIF(DT!$D$8:$D$838,F$6,DT!$O$8:$O$838)-SUMIFS(DT!$O$8:$O$838,DT!$D$8:$D$838,F$6,DT!$C$8:$C$838,"TMD")-SUMIFS(DT!$O$8:$O$838,DT!$D$8:$D$838,F$6,DT!$C$8:$C$838,"SKC")-SUMIFS(DT!$O$8:$O$838,DT!$D$8:$D$838,F$6,DT!$C$8:$C$838,"SKX")-SUMIFS(DT!$O$8:$O$838,DT!$D$8:$D$838,F$6,DT!$C$8:$C$838,"TIN")-SUMIFS(DT!$O$8:$O$838,DT!$D$8:$D$838,F$6,DT!$C$8:$C$838,$C14)-INDIRECT("'"&F$6&"'"&"!E76")+INDIRECT("'"&F$6&"'"&"!K76")) -> 0 | G14: =IF(G$6="","",SUMIF(DT!$D$8:$D$838,G$6,DT!$O$8:$O$838)-SUMIFS(DT!$O$8:$O$838,DT!$D$8:$D$838,G$6,DT!$C$8:$C$838,"TMD")-SUMIFS(DT!$O$8:$O$838,DT!$D$8:$D$838,G$6,DT!$C$8:$C$838,"SKC")-SUMIFS(DT!$O$8:$O$838,DT!$D$8:$D$838,G$6,DT!$C$8:$C$838,"SKX")-SUMIFS(DT!$O$8:$O$838,DT!$D$8:$D$838,G$6,DT!$C$8:$C$838,"TIN")-SUMIFS(DT!$O$8:$O$838,DT!$D$8:$D$838,G$6,DT!$C$8:$C$838,$C14)-INDIRECT("'"&G$6&"'"&"!E76")+INDIRECT("'"&G$6&"'"&"!K76")) -> 0 | H14: =IF(H$6="","",SUMIF(DT!$D$8:$D$838,H$6,DT!$O$8:$O$838)-SUMIFS(DT!$O$8:$O$838,DT!$D$8:$D$838,H$6,DT!$C$8:$C$838,"TMD")-SUMIFS(DT!$O$8:$O$838,DT!$D$8:$D$838,H$6,DT!$C$8:$C$838,"SKC")-SUMIFS(DT!$O$8:$O$838,DT!$D$8:$D$838,H$6,DT!$C$8:$C$838,"SKX")-SUMIFS(DT!$O$8:$O$838,DT!$D$8:$D$838,H$6,DT!$C$8:$C$838,"TIN")-SUMIFS(DT!$O$8:$O$838,DT!$D$8:$D$838,H$6,DT!$C$8:$C$838,$C14)-INDIRECT("'"&H$6&"'"&"!E76")+INDIRECT("'"&H$6&"'"&"!K76")) -> 0.01 | I14: =IF(I$6="","",SUMIF(DT!$D$8:$D$838,I$6,DT!$O$8:$O$838)-SUMIFS(DT!$O$8:$O$838,DT!$D$8:$D$838,I$6,DT!$C$8:$C$838,"TMD")-SUMIFS(DT!$O$8:$O$838,DT!$D$8:$D$838,I$6,DT!$C$8:$C$838,"SKC")-SUMIFS(DT!$O$8:$O$838,DT!$D$8:$D$838,I$6,DT!$C$8:$C$838,"SKX")-SUMIFS(DT!$O$8:$O$838,DT!$D$8:$D$838,I$6,DT!$C$8:$C$838,"TIN")-SUMIFS(DT!$O$8:$O$838,DT!$D$8:$D$838,I$6,DT!$C$8:$C$838,$C14)-INDIRECT("'"&I$6&"'"&"!E76")+INDIRECT("'"&I$6&"'"&"!K76")) -> 13.49 | J14: =IF(J$6="","",SUMIF(DT!$D$8:$D$838,J$6,DT!$O$8:$O$838)-SUMIFS(DT!$O$8:$O$838,DT!$D$8:$D$838,J$6,DT!$C$8:$C$838,"TMD")-SUMIFS(DT!$O$8:$O$838,DT!$D$8:$D$838,J$6,DT!$C$8:$C$838,"SKC")-SUMIFS(DT!$O$8:$O$838,DT!$D$8:$D$838,J$6,DT!$C$8:$C$838,"SKX")-SUMIFS(DT!$O$8:$O$838,DT!$D$8:$D$838,J$6,DT!$C$8:$C$838,"TIN")-SUMIFS(DT!$O$8:$O$838,DT!$D$8:$D$838,J$6,DT!$C$8:$C$838,$C14)-INDIRECT("'"&J$6&"'"&"!E76")+INDIRECT("'"&J$6&"'"&"!K76")) -> 1.13 | K14: =IF(K$6="","",SUMIF(DT!$D$8:$D$838,K$6,DT!$O$8:$O$838)-SUMIFS(DT!$O$8:$O$838,DT!$D$8:$D$838,K$6,DT!$C$8:$C$838,"TMD")-SUMIFS(DT!$O$8:$O$838,DT!$D$8:$D$838,K$6,DT!$C$8:$C$838,"SKC")-SUMIFS(DT!$O$8:$O$838,DT!$D$8:$D$838,K$6,DT!$C$8:$C$838,"SKX")-SUMIFS(DT!$O$8:$O$838,DT!$D$8:$D$838,K$6,DT!$C$8:$C$838,"TIN")-SUMIFS(DT!$O$8:$O$838,DT!$D$8:$D$838,K$6,DT!$C$8:$C$838,$C14)-INDIRECT("'"&K$6&"'"&"!E76")+INDIRECT("'"&K$6&"'"&"!K76")) -> 16.82 | L14: =IF(L$6="","",SUMIF(DT!$D$8:$D$838,L$6,DT!$O$8:$O$838)-SUMIFS(DT!$O$8:$O$838,DT!$D$8:$D$838,L$6,DT!$C$8:$C$838,"TMD")-SUMIFS(DT!$O$8:$O$838,DT!$D$8:$D$838,L$6,DT!$C$8:$C$838,"SKC")-SUMIFS(DT!$O$8:$O$838,DT!$D$8:$D$838,L$6,DT!$C$8:$C$838,"SKX")-SUMIFS(DT!$O$8:$O$838,DT!$D$8:$D$838,L$6,DT!$C$8:$C$838,"TIN")-SUMIFS(DT!$O$8:$O$838,DT!$D$8:$D$838,L$6,DT!$C$8:$C$838,$C14)-INDIRECT("'"&L$6&"'"&"!E76")+INDIRECT("'"&L$6&"'"&"!K76")) -> 0 | M14: =IF(M$6="","",SUMIF(DT!$D$8:$D$838,M$6,DT!$O$8:$O$838)-SUMIFS(DT!$O$8:$O$838,DT!$D$8:$D$838,M$6,DT!$C$8:$C$838,"TMD")-SUMIFS(DT!$O$8:$O$838,DT!$D$8:$D$838,M$6,DT!$C$8:$C$838,"SKC")-SUMIFS(DT!$O$8:$O$838,DT!$D$8:$D$838,M$6,DT!$C$8:$C$838,"SKX")-SUMIFS(DT!$O$8:$O$838,DT!$D$8:$D$838,M$6,DT!$C$8:$C$838,"TIN")-SUMIFS(DT!$O$8:$O$838,DT!$D$8:$D$838,M$6,DT!$C$8:$C$838,$C14)-INDIRECT("'"&M$6&"'"&"!E76")+INDIRECT("'"&M$6&"'"&"!K76")) -> 0.17 | N14: =IF(N$6="","",SUMIF(DT!$D$8:$D$838,N$6,DT!$O$8:$O$838)-SUMIFS(DT!$O$8:$O$838,DT!$D$8:$D$838,N$6,DT!$C$8:$C$838,"TMD")-SUMIFS(DT!$O$8:$O$838,DT!$D$8:$D$838,N$6,DT!$C$8:$C$838,"SKC")-SUMIFS(DT!$O$8:$O$838,DT!$D$8:$D$838,N$6,DT!$C$8:$C$838,"SKX")-SUMIFS(DT!$O$8:$O$838,DT!$D$8:$D$838,N$6,DT!$C$8:$C$838,"TIN")-SUMIFS(DT!$O$8:$O$838,DT!$D$8:$D$838,N$6,DT!$C$8:$C$838,$C14)-INDIRECT("'"&N$6&"'"&"!E76")+INDIRECT("'"&N$6&"'"&"!K76")) -> 0.49 | O14: =IF(O$6="","",SUMIF(DT!$D$8:$D$838,O$6,DT!$O$8:$O$838)-SUMIFS(DT!$O$8:$O$838,DT!$D$8:$D$838,O$6,DT!$C$8:$C$838,"TMD")-SUMIFS(DT!$O$8:$O$838,DT!$D$8:$D$838,O$6,DT!$C$8:$C$838,"SKC")-SUMIFS(DT!$O$8:$O$838,DT!$D$8:$D$838,O$6,DT!$C$8:$C$838,"SKX")-SUMIFS(DT!$O$8:$O$838,DT!$D$8:$D$838,O$6,DT!$C$8:$C$838,"TIN")-SUMIFS(DT!$O$8:$O$838,DT!$D$8:$D$838,O$6,DT!$C$8:$C$838,$C14)-INDIRECT("'"&O$6&"'"&"!E76")+INDIRECT("'"&O$6&"'"&"!K76")) -> 1.82 | P14: =IF(P$6="","",SUMIF(DT!$D$8:$D$838,P$6,DT!$O$8:$O$838)-SUMIFS(DT!$O$8:$O$838,DT!$D$8:$D$838,P$6,DT!$C$8:$C$838,"TMD")-SUMIFS(DT!$O$8:$O$838,DT!$D$8:$D$838,P$6,DT!$C$8:$C$838,"SKC")-SUMIFS(DT!$O$8:$O$838,DT!$D$8:$D$838,P$6,DT!$C$8:$C$838,"SKX")-SUMIFS(DT!$O$8:$O$838,DT!$D$8:$D$838,P$6,DT!$C$8:$C$838,"TIN")-SUMIFS(DT!$O$8:$O$838,DT!$D$8:$D$838,P$6,DT!$C$8:$C$838,$C14)-INDIRECT("'"&P$6&"'"&"!E76")+INDIRECT("'"&P$6&"'"&"!K76")) -> 0.86 | Q14: =IF(Q$6="","",SUMIF(DT!$D$8:$D$838,Q$6,DT!$O$8:$O$838)-SUMIFS(DT!$O$8:$O$838,DT!$D$8:$D$838,Q$6,DT!$C$8:$C$838,"TMD")-SUMIFS(DT!$O$8:$O$838,DT!$D$8:$D$838,Q$6,DT!$C$8:$C$838,"SKC")-SUMIFS(DT!$O$8:$O$838,DT!$D$8:$D$838,Q$6,DT!$C$8:$C$838,"SKX")-SUMIFS(DT!$O$8:$O$838,DT!$D$8:$D$838,Q$6,DT!$C$8:$C$838,"TIN")-SUMIFS(DT!$O$8:$O$838,DT!$D$8:$D$838,Q$6,DT!$C$8:$C$838,$C14)-INDIRECT("'"&Q$6&"'"&"!E76")+INDIRECT("'"&Q$6&"'"&"!K76")) -> 0.07 | R14: =IF(R$6="","",SUMIF(DT!$D$8:$D$838,R$6,DT!$O$8:$O$838)-SUMIFS(DT!$O$8:$O$838,DT!$D$8:$D$838,R$6,DT!$C$8:$C$838,"TMD")-SUMIFS(DT!$O$8:$O$838,DT!$D$8:$D$838,R$6,DT!$C$8:$C$838,"SKC")-SUMIFS(DT!$O$8:$O$838,DT!$D$8:$D$838,R$6,DT!$C$8:$C$838,"SKX")-SUMIFS(DT!$O$8:$O$838,DT!$D$8:$D$838,R$6,DT!$C$8:$C$838,"TIN")-SUMIFS(DT!$O$8:$O$838,DT!$D$8:$D$838,R$6,DT!$C$8:$C$838,$C14)-INDIRECT("'"&R$6&"'"&"!E76")+INDIRECT("'"&R$6&"'"&"!K76")) -> 0.09 | S14: =IF(S$6="","",SUMIF(DT!$D$8:$D$838,S$6,DT!$O$8:$O$838)-SUMIFS(DT!$O$8:$O$838,DT!$D$8:$D$838,S$6,DT!$C$8:$C$838,"TMD")-SUMIFS(DT!$O$8:$O$838,DT!$D$8:$D$838,S$6,DT!$C$8:$C$838,"SKC")-SUMIFS(DT!$O$8:$O$838,DT!$D$8:$D$838,S$6,DT!$C$8:$C$838,"SKX")-SUMIFS(DT!$O$8:$O$838,DT!$D$8:$D$838,S$6,DT!$C$8:$C$838,"TIN")-SUMIFS(DT!$O$8:$O$838,DT!$D$8:$D$838,S$6,DT!$C$8:$C$838,$C14)-INDIRECT("'"&S$6&"'"&"!E76")+INDIRECT("'"&S$6&"'"&"!K76")) -> 0.6 | T14: =IF(T$6="","",SUMIF(DT!$D$8:$D$838,T$6,DT!$O$8:$O$838)-SUMIFS(DT!$O$8:$O$838,DT!$D$8:$D$838,T$6,DT!$C$8:$C$838,"TMD")-SUMIFS(DT!$O$8:$O$838,DT!$D$8:$D$838,T$6,DT!$C$8:$C$838,"SKC")-SUMIFS(DT!$O$8:$O$838,DT!$D$8:$D$838,T$6,DT!$C$8:$C$838,"SKX")-SUMIFS(DT!$O$8:$O$838,DT!$D$8:$D$838,T$6,DT!$C$8:$C$838,"TIN")-SUMIFS(DT!$O$8:$O$838,DT!$D$8:$D$838,T$6,DT!$C$8:$C$838,$C14)-INDIRECT("'"&T$6&"'"&"!E76")+INDIRECT("'"&T$6&"'"&"!K76")) -> 0 | U14: =IF(U$6="","",SUMIF(DT!$D$8:$D$838,U$6,DT!$O$8:$O$838)-SUMIFS(DT!$O$8:$O$838,DT!$D$8:$D$838,U$6,DT!$C$8:$C$838,"TMD")-SUMIFS(DT!$O$8:$O$838,DT!$D$8:$D$838,U$6,DT!$C$8:$C$838,"SKC")-SUMIFS(DT!$O$8:$O$838,DT!$D$8:$D$838,U$6,DT!$C$8:$C$838,"SKX")-SUMIFS(DT!$O$8:$O$838,DT!$D$8:$D$838,U$6,DT!$C$8:$C$838,"TIN")-SUMIFS(DT!$O$8:$O$838,DT!$D$8:$D$838,U$6,DT!$C$8:$C$838,$C14)-INDIRECT("'"&U$6&"'"&"!E76")+INDIRECT("'"&U$6&"'"&"!K76")) -> 0.5 | V14: =IF(V$6="","",SUMIF(DT!$D$8:$D$838,V$6,DT!$O$8:$O$838)-SUMIFS(DT!$O$8:$O$838,DT!$D$8:$D$838,V$6,DT!$C$8:$C$838,"TMD")-SUMIFS(DT!$O$8:$O$838,DT!$D$8:$D$838,V$6,DT!$C$8:$C$838,"SKC")-SUMIFS(DT!$O$8:$O$838,DT!$D$8:$D$838,V$6,DT!$C$8:$C$838,"SKX")-SUMIFS(DT!$O$8:$O$838,DT!$D$8:$D$838,V$6,DT!$C$8:$C$838,"TIN")-SUMIFS(DT!$O$8:$O$838,DT!$D$8:$D$838,V$6,DT!$C$8:$C$838,$C14)-INDIRECT("'"&V$6&"'"&"!E76")+INDIRECT("'"&V$6&"'"&"!K76")) -> 1.45
A15: 1.4 | B15: Đất rừng phòng hộ | C15: RPH | D15: 39.12 | E15: =IF(E$6="","",SUMIF(DT!$D$8:$D$838,E$6,DT!$Q$8:$Q$838)-SUMIFS(DT!$Q$8:$Q$838,DT!$D$8:$D$838,E$6,DT!$C$8:$C$838,"TMD")-SUMIFS(DT!$Q$8:$Q$838,DT!$D$8:$D$838,E$6,DT!$C$8:$C$838,"SKC")-SUMIFS(DT!$Q$8:$Q$838,DT!$D$8:$D$838,E$6,DT!$C$8:$C$838,"SKX")-SUMIFS(DT!$Q$8:$Q$838,DT!$D$8:$D$838,E$6,DT!$C$8:$C$838,"TIN")-SUMIFS(DT!$Q$8:$Q$838,DT!$D$8:$D$838,E$6,DT!$C$8:$C$838,$C15)-INDIRECT("'"&E$6&"'"&"!E77")+INDIRECT("'"&E$6&"'"&"!L77")) -> 0 | F15: =IF(F$6="","",SUMIF(DT!$D$8:$D$838,F$6,DT!$Q$8:$Q$838)-SUMIFS(DT!$Q$8:$Q$838,DT!$D$8:$D$838,F$6,DT!$C$8:$C$838,"TMD")-SUMIFS(DT!$Q$8:$Q$838,DT!$D$8:$D$838,F$6,DT!$C$8:$C$838,"SKC")-SUMIFS(DT!$Q$8:$Q$838,DT!$D$8:$D$838,F$6,DT!$C$8:$C$838,"SKX")-SUMIFS(DT!$Q$8:$Q$838,DT!$D$8:$D$838,F$6,DT!$C$8:$C$838,"TIN")-SUMIFS(DT!$Q$8:$Q$838,DT!$D$8:$D$838,F$6,DT!$C$8:$C$838,$C15)-INDIRECT("'"&F$6&"'"&"!E77")+INDIRECT("'"&F$6&"'"&"!L77")) -> 0 | G15: =IF(G$6="","",SUMIF(DT!$D$8:$D$838,G$6,DT!$Q$8:$Q$838)-SUMIFS(DT!$Q$8:$Q$838,DT!$D$8:$D$838,G$6,DT!$C$8:$C$838,"TMD")-SUMIFS(DT!$Q$8:$Q$838,DT!$D$8:$D$838,G$6,DT!$C$8:$C$838,"SKC")-SUMIFS(DT!$Q$8:$Q$838,DT!$D$8:$D$838,G$6,DT!$C$8:$C$838,"SKX")-SUMIFS(DT!$Q$8:$Q$838,DT!$D$8:$D$838,G$6,DT!$C$8:$C$838,"TIN")-SUMIFS(DT!$Q$8:$Q$838,DT!$D$8:$D$838,G$6,DT!$C$8:$C$838,$C15)-INDIRECT("'"&G$6&"'"&"!E77")+INDIRECT("'"&G$6&"'"&"!L77")) -> 0 | H15: =IF(H$6="","",SUMIF(DT!$D$8:$D$838,H$6,DT!$Q$8:$Q$838)-SUMIFS(DT!$Q$8:$Q$838,DT!$D$8:$D$838,H$6,DT!$C$8:$C$838,"TMD")-SUMIFS(DT!$Q$8:$Q$838,DT!$D$8:$D$838,H$6,DT!$C$8:$C$838,"SKC")-SUMIFS(DT!$Q$8:$Q$838,DT!$D$8:$D$838,H$6,DT!$C$8:$C$838,"SKX")-SUMIFS(DT!$Q$8:$Q$838,DT!$D$8:$D$838,H$6,DT!$C$8:$C$838,"TIN")-SUMIFS(DT!$Q$8:$Q$838,DT!$D$8:$D$838,H$6,DT!$C$8:$C$838,$C15)-INDIRECT("'"&H$6&"'"&"!E77")+INDIRECT("'"&H$6&"'"&"!L77")) -> 0 | I15: =IF(I$6="","",SUMIF(DT!$D$8:$D$838,I$6,DT!$Q$8:$Q$838)-SUMIFS(DT!$Q$8:$Q$838,DT!$D$8:$D$838,I$6,DT!$C$8:$C$838,"TMD")-SUMIFS(DT!$Q$8:$Q$838,DT!$D$8:$D$838,I$6,DT!$C$8:$C$838,"SKC")-SUMIFS(DT!$Q$8:$Q$838,DT!$D$8:$D$838,I$6,DT!$C$8:$C$838,"SKX")-SUMIFS(DT!$Q$8:$Q$838,DT!$D$8:$D$838,I$6,DT!$C$8:$C$838,"TIN")-SUMIFS(DT!$Q$8:$Q$838,DT!$D$8:$D$838,I$6,DT!$C$8:$C$838,$C15)-INDIRECT("'"&I$6&"'"&"!E77")+INDIRECT("'"&I$6&"'"&"!L77")) -> 37.98 | J15: =IF(J$6="","",SUMIF(DT!$D$8:$D$838,J$6,DT!$Q$8:$Q$838)-SUMIFS(DT!$Q$8:$Q$838,DT!$D$8:$D$838,J$6,DT!$C$8:$C$838,"TMD")-SUMIFS(DT!$Q$8:$Q$838,DT!$D$8:$D$838,J$6,DT!$C$8:$C$838,"SKC")-SUMIFS(DT!$Q$8:$Q$838,DT!$D$8:$D$838,J$6,DT!$C$8:$C$838,"SKX")-SUMIFS(DT!$Q$8:$Q$838,DT!$D$8:$D$838,J$6,DT!$C$8:$C$838,"TIN")-SUMIFS(DT!$Q$8:$Q$838,DT!$D$8:$D$838,J$6,DT!$C$8:$C$838,$C15)-INDIRECT("'"&J$6&"'"&"!E77")+INDIRECT("'"&J$6&"'"&"!L77")) -> 0 | K15: =IF(K$6="","",SUMIF(DT!$D$8:$D$838,K$6,DT!$Q$8:$Q$838)-SUMIFS(DT!$Q$8:$Q$838,DT!$D$8:$D$838,K$6,DT!$C$8:$C$838,"TMD")-SUMIFS(DT!$Q$8:$Q$838,DT!$D$8:$D$838,K$6,DT!$C$8:$C$838,"SKC")-SUMIFS(DT!$Q$8:$Q$838,DT!$D$8:$D$838,K$6,DT!$C$8:$C$838,"SKX")-SUMIFS(DT!$Q$8:$Q$838,DT!$D$8:$D$838,K$6,DT!$C$8:$C$838,"TIN")-SUMIFS(DT!$Q$8:$Q$838,DT!$D$8:$D$838,K$6,DT!$C$8:$C$838,$C15)-INDIRECT("'"&K$6&"'"&"!E77")+INDIRECT("'"&K$6&"'"&"!L77")) -> 0 | L15: =IF(L$6="","",SUMIF(DT!$D$8:$D$838,L$6,DT!$Q$8:$Q$838)-SUMIFS(DT!$Q$8:$Q$838,DT!$D$8:$D$838,L$6,DT!$C$8:$C$838,"TMD")-SUMIFS(DT!$Q$8:$Q$838,DT!$D$8:$D$838,L$6,DT!$C$8:$C$838,"SKC")-SUMIFS(DT!$Q$8:$Q$838,DT!$D$8:$D$838,L$6,DT!$C$8:$C$838,"SKX")-SUMIFS(DT!$Q$8:$Q$838,DT!$D$8:$D$838,L$6,DT!$C$8:$C$838,"TIN")-SUMIFS(DT!$Q$8:$Q$838,DT!$D$8:$D$838,L$6,DT!$C$8:$C$838,$C15)-INDIRECT("'"&L$6&"'"&"!E77")+INDIRECT("'"&L$6&"'"&"!L77")) -> 0.8 | M15: =IF(M$6="","",SUMIF(DT!$D$8:$D$838,M$6,DT!$Q$8:$Q$838)-SUMIFS(DT!$Q$8:$Q$838,DT!$D$8:$D$838,M$6,DT!$C$8:$C$838,"TMD")-SUMIFS(DT!$Q$8:$Q$838,DT!$D$8:$D$838,M$6,DT!$C$8:$C$838,"SKC")-SUMIFS(DT!$Q$8:$Q$838,DT!$D$8:$D$838,M$6,DT!$C$8:$C$838,"SKX")-SUMIFS(DT!$Q$8:$Q$838,DT!$D$8:$D$838,M$6,DT!$C$8:$C$838,"TIN")-SUMIFS(DT!$Q$8:$Q$838,DT!$D$8:$D$838,M$6,DT!$C$8:$C$838,$C15)-INDIRECT("'"&M$6&"'"&"!E77")+INDIRECT("'"&M$6&"'"&"!L77")) -> 0 | N15: =IF(N$6="","",SUMIF(DT!$D$8:$D$838,N$6,DT!$Q$8:$Q$838)-SUMIFS(DT!$Q$8:$Q$838,DT!$D$8:$D$838,N$6,DT!$C$8:$C$838,"TMD")-SUMIFS(DT!$Q$8:$Q$838,DT!$D$8:$D$838,N$6,DT!$C$8:$C$838,"SKC")-SUMIFS(DT!$Q$8:$Q$838,DT!$D$8:$D$838,N$6,DT!$C$8:$C$838,"SKX")-SUMIFS(DT!$Q$8:$Q$838,DT!$D$8:$D$838,N$6,DT!$C$8:$C$838,"TIN")-SUMIFS(DT!$Q$8:$Q$838,DT!$D$8:$D$838,N$6,DT!$C$8:$C$838,$C15)-INDIRECT("'"&N$6&"'"&"!E77")+INDIRECT("'"&N$6&"'"&"!L77")) -> 0.11 | O15: =IF(O$6="","",SUMIF(DT!$D$8:$D$838,O$6,DT!$Q$8:$Q$838)-SUMIFS(DT!$Q$8:$Q$838,DT!$D$8:$D$838,O$6,DT!$C$8:$C$838,"TMD")-SUMIFS(DT!$Q$8:$Q$838,DT!$D$8:$D$838,O$6,DT!$C$8:$C$838,"SKC")-SUMIFS(DT!$Q$8:$Q$838,DT!$D$8:$D$838,O$6,DT!$C$8:$C$838,"SKX")-SUMIFS(DT!$Q$8:$Q$838,DT!$D$8:$D$838,O$6,DT!$C$8:$C$838,"TIN")-SUMIFS(DT!$Q$8:$Q$838,DT!$D$8:$D$838,O$6,DT!$C$8:$C$838,$C15)-INDIRECT("'"&O$6&"'"&"!E77")+INDIRECT("'"&O$6&"'"&"!L77")) -> 0 | P15: =IF(P$6="","",SUMIF(DT!$D$8:$D$838,P$6,DT!$Q$8:$Q$838)-SUMIFS(DT!$Q$8:$Q$838,DT!$D$8:$D$838,P$6,DT!$C$8:$C$838,"TMD")-SUMIFS(DT!$Q$8:$Q$838,DT!$D$8:$D$838,P$6,DT!$C$8:$C$838,"SKC")-SUMIFS(DT!$Q$8:$Q$838,DT!$D$8:$D$838,P$6,DT!$C$8:$C$838,"SKX")-SUMIFS(DT!$Q$8:$Q$838,DT!$D$8:$D$838,P$6,DT!$C$8:$C$838,"TIN")-SUMIFS(DT!$Q$8:$Q$838,DT!$D$8:$D$838,P$6,DT!$C$8:$C$838,$C15)-INDIRECT("'"&P$6&"'"&"!E77")+INDIRECT("'"&P$6&"'"&"!L77")) -> 0 | Q15: =IF(Q$6="","",SUMIF(DT!$D$8:$D$838,Q$6,DT!$Q$8:$Q$838)-SUMIFS(DT!$Q$8:$Q$838,DT!$D$8:$D$838,Q$6,DT!$C$8:$C$838,"TMD")-SUMIFS(DT!$Q$8:$Q$838,DT!$D$8:$D$838,Q$6,DT!$C$8:$C$838,"SKC")-SUMIFS(DT!$Q$8:$Q$838,DT!$D$8:$D$838,Q$6,DT!$C$8:$C$838,"SKX")-SUMIFS(DT!$Q$8:$Q$838,DT!$D$8:$D$838,Q$6,DT!$C$8:$C$838,"TIN")-SUMIFS(DT!$Q$8:$Q$838,DT!$D$8:$D$838,Q$6,DT!$C$8:$C$838,$C15)-INDIRECT("'"&Q$6&"'"&"!E77")+INDIRECT("'"&Q$6&"'"&"!L77")) -> 0.23 | R15: =IF(R$6="","",SUMIF(DT!$D$8:$D$838,R$6,DT!$Q$8:$Q$838)-SUMIFS(DT!$Q$8:$Q$838,DT!$D$8:$D$838,R$6,DT!$C$8:$C$838,"TMD")-SUMIFS(DT!$Q$8:$Q$838,DT!$D$8:$D$838,R$6,DT!$C$8:$C$838,"SKC")-SUMIFS(DT!$Q$8:$Q$838,DT!$D$8:$D$838,R$6,DT!$C$8:$C$838,"SKX")-SUMIFS(DT!$Q$8:$Q$838,DT!$D$8:$D$838,R$6,DT!$C$8:$C$838,"TIN")-SUMIFS(DT!$Q$8:$Q$838,DT!$D$8:$D$838,R$6,DT!$C$8:$C$838,$C15)-INDIRECT("'"&R$6&"'"&"!E77")+INDIRECT("'"&R$6&"'"&"!L77")) -> 0 | S15: =IF(S$6="","",SUMIF(DT!$D$8:$D$838,S$6,DT!$Q$8:$Q$838)-SUMIFS(DT!$Q$8:$Q$838,DT!$D$8:$D$838,S$6,DT!$C$8:$C$838,"TMD")-SUMIFS(DT!$Q$8:$Q$838,DT!$D$8:$D$838,S$6,DT!$C$8:$C$838,"SKC")-SUMIFS(DT!$Q$8:$Q$838,DT!$D$8:$D$838,S$6,DT!$C$8:$C$838,"SKX")-SUMIFS(DT!$Q$8:$Q$838,DT!$D$8:$D$838,S$6,DT!$C$8:$C$838,"TIN")-SUMIFS(DT!$Q$8:$Q$838,DT!$D$8:$D$838,S$6,DT!$C$8:$C$838,$C15)-INDIRECT("'"&S$6&"'"&"!E77")+INDIRECT("'"&S$6&"'"&"!L77")) -> 0 | T15: =IF(T$6="","",SUMIF(DT!$D$8:$D$838,T$6,DT!$Q$8:$Q$838)-SUMIFS(DT!$Q$8:$Q$838,DT!$D$8:$D$838,T$6,DT!$C$8:$C$838,"TMD")-SUMIFS(DT!$Q$8:$Q$838,DT!$D$8:$D$838,T$6,DT!$C$8:$C$838,"SKC")-SUMIFS(DT!$Q$8:$Q$838,DT!$D$8:$D$838,T$6,DT!$C$8:$C$838,"SKX")-SUMIFS(DT!$Q$8:$Q$838,DT!$D$8:$D$838,T$6,DT!$C$8:$C$838,"TIN")-SUMIFS(DT!$Q$8:$Q$838,DT!$D$8:$D$838,T$6,DT!$C$8:$C$838,$C15)-INDIRECT("'"&T$6&"'"&"!E77")+INDIRECT("'"&T$6&"'"&"!L77")) -> 0 | U15: =IF(U$6="","",SUMIF(DT!$D$8:$D$838,U$6,DT!$Q$8:$Q$838)-SUMIFS(DT!$Q$8:$Q$838,DT!$D$8:$D$838,U$6,DT!$C$8:$C$838,"TMD")-SUMIFS(DT!$Q$8:$Q$838,DT!$D$8:$D$838,U$6,DT!$C$8:$C$838,"SKC")-SUMIFS(DT!$Q$8:$Q$838,DT!$D$8:$D$838,U$6,DT!$C$8:$C$838,"SKX")-SUMIFS(DT!$Q$8:$Q$838,DT!$D$8:$D$838,U$6,DT!$C$8:$C$838,"TIN")-SUMIFS(DT!$Q$8:$Q$838,DT!$D$8:$D$838,U$6,DT!$C$8:$C$838,$C15)-INDIRECT("'"&U$6&"'"&"!E77")+INDIRECT("'"&U$6&"'"&"!L77")) -> 0 | V15: =IF(V$6="","",SUMIF(DT!$D$8:$D$838,V$6,DT!$Q$8:$Q$838)-SUMIFS(DT!$Q$8:$Q$838,DT!$D$8:$D$838,V$6,DT!$C$8:$C$838,"TMD")-SUMIFS(DT!$Q$8:$Q$838,DT!$D$8:$D$838,V$6,DT!$C$8:$C$838,"SKC")-SUMIFS(DT!$Q$8:$Q$838,DT!$D$8:$D$838,V$6,DT!$C$8:$C$838,"SKX")-SUMIFS(DT!$Q$8:$Q$838,DT!$D$8:$D$838,V$6,DT!$C$8:$C$838,"TIN")-SUMIFS(DT!$Q$8:$Q$838,DT!$D$8:$D$838,V$6,DT!$C$8:$C$838,$C15)-INDIRECT("'"&V$6&"'"&"!E77")+INDIRECT("'"&V$6&"'"&"!L77")) -> 0
A16: 1.5 | B16: Đất rừng đặc dụng | C16: RDD | D16: 0 | E16: =IF(E$6="","",SUMIF(DT!$D$8:$D$838,E$6,DT!$S$8:$S$838)-SUMIFS(DT!$S$8:$S$838,DT!$D$8:$D$838,E$6,DT!$C$8:$C$838,"TMD")-SUMIFS(DT!$S$8:$S$838,DT!$D$8:$D$838,E$6,DT!$C$8:$C$838,"SKC")-SUMIFS(DT!$S$8:$S$838,DT!$D$8:$D$838,E$6,DT!$C$8:$C$838,"SKX")-SUMIFS(DT!$S$8:$S$838,DT!$D$8:$D$838,E$6,DT!$C$8:$C$838,"TIN")-SUMIFS(DT!$S$8:$S$838,DT!$D$8:$D$838,E$6,DT!$C$8:$C$838,$C16)-INDIRECT("'"&E$6&"'"&"!E78")+INDIRECT("'"&E$6&"'"&"!M78")) -> 0 | F16: =IF(F$6="","",SUMIF(DT!$D$8:$D$838,F$6,DT!$S$8:$S$838)-SUMIFS(DT!$S$8:$S$838,DT!$D$8:$D$838,F$6,DT!$C$8:$C$838,"TMD")-SUMIFS(DT!$S$8:$S$838,DT!$D$8:$D$838,F$6,DT!$C$8:$C$838,"SKC")-SUMIFS(DT!$S$8:$S$838,DT!$D$8:$D$838,F$6,DT!$C$8:$C$838,"SKX")-SUMIFS(DT!$S$8:$S$838,DT!$D$8:$D$838,F$6,DT!$C$8:$C$838,"TIN")-SUMIFS(DT!$S$8:$S$838,DT!$D$8:$D$838,F$6,DT!$C$8:$C$838,$C16)-INDIRECT("'"&F$6&"'"&"!E78")+INDIRECT("'"&F$6&"'"&"!M78")) -> 0 | G16: =IF(G$6="","",SUMIF(DT!$D$8:$D$838,G$6,DT!$S$8:$S$838)-SUMIFS(DT!$S$8:$S$838,DT!$D$8:$D$838,G$6,DT!$C$8:$C$838,"TMD")-SUMIFS(DT!$S$8:$S$838,DT!$D$8:$D$838,G$6,DT!$C$8:$C$838,"SKC")-SUMIFS(DT!$S$8:$S$838,DT!$D$8:$D$838,G$6,DT!$C$8:$C$838,"SKX")-SUMIFS(DT!$S$8:$S$838,DT!$D$8:$D$838,G$6,DT!$C$8:$C$838,"TIN")-SUMIFS(DT!$S$8:$S$838,DT!$D$8:$D$838,G$6,DT!$C$8:$C$838,$C16)-INDIRECT("'"&G$6&"'"&"!E78")+INDIRECT("'"&G$6&"'"&"!M78")) -> 0 | H16: =IF(H$6="","",SUMIF(DT!$D$8:$D$838,H$6,DT!$S$8:$S$838)-SUMIFS(DT!$S$8:$S$838,DT!$D$8:$D$838,H$6,DT!$C$8:$C$838,"TMD")-SUMIFS(DT!$S$8:$S$838,DT!$D$8:$D$838,H$6,DT!$C$8:$C$838,"SKC")-SUMIFS(DT!$S$8:$S$838,DT!$D$8:$D$838,H$6,DT!$C$8:$C$838,"SKX")-SUMIFS(DT!$S$8:$S$838,DT!$D$8:$D$838,H$6,DT!$C$8:$C$838,"TIN")-SUMIFS(DT!$S$8:$S$838,DT!$D$8:$D$838,H$6,DT!$C$8:$C$838,$C16)-INDIRECT("'"&H$6&"'"&"!E78")+INDIRECT("'"&H$6&"'"&"!M78")) -> 0 | I16: =IF(I$6="","",SUMIF(DT!$D$8:$D$838,I$6,DT!$S$8:$S$838)-SUMIFS(DT!$S$8:$S$838,DT!$D$8:$D$838,I$6,DT!$C$8:$C$838,"TMD")-SUMIFS(DT!$S$8:$S$838,DT!$D$8:$D$838,I$6,DT!$C$8:$C$838,"SKC")-SUMIFS(DT!$S$8:$S$838,DT!$D$8:$D$838,I$6,DT!$C$8:$C$838,"SKX")-SUMIFS(DT!$S$8:$S$838,DT!$D$8:$D$838,I$6,DT!$C$8:$C$838,"TIN")-SUMIFS(DT!$S$8:$S$838,DT!$D$8:$D$838,I$6,DT!$C$8:$C$838,$C16)-INDIRECT("'"&I$6&"'"&"!E78")+INDIRECT("'"&I$6&"'"&"!M78")) -> 0 | J16: =IF(J$6="","",SUMIF(DT!$D$8:$D$838,J$6,DT!$S$8:$S$838)-SUMIFS(DT!$S$8:$S$838,DT!$D$8:$D$838,J$6,DT!$C$8:$C$838,"TMD")-SUMIFS(DT!$S$8:$S$838,DT!$D$8:$D$838,J$6,DT!$C$8:$C$838,"SKC")-SUMIFS(DT!$S$8:$S$838,DT!$D$8:$D$838,J$6,DT!$C$8:$C$838,"SKX")-SUMIFS(DT!$S$8:$S$838,DT!$D$8:$D$838,J$6,DT!$C$8:$C$838,"TIN")-SUMIFS(DT!$S$8:$S$838,DT!$D$8:$D$838,J$6,DT!$C$8:$C$838,$C16)-INDIRECT("'"&J$6&"'"&"!E78")+INDIRECT("'"&J$6&"'"&"!M78")) -> 0 | K16: =IF(K$6="","",SUMIF(DT!$D$8:$D$838,K$6,DT!$S$8:$S$838)-SUMIFS(DT!$S$8:$S$838,DT!$D$8:$D$838,K$6,DT!$C$8:$C$838,"TMD")-SUMIFS(DT!$S$8:$S$838,DT!$D$8:$D$838,K$6,DT!$C$8:$C$838,"SKC")-SUMIFS(DT!$S$8:$S$838,DT!$D$8:$D$838,K$6,DT!$C$8:$C$838,"SKX")-SUMIFS(DT!$S$8:$S$838,DT!$D$8:$D$838,K$6,DT!$C$8:$C$838,"TIN")-SUMIFS(DT!$S$8:$S$838,DT!$D$8:$D$838,K$6,DT!$C$8:$C$838,$C16)-INDIRECT("'"&K$6&"'"&"!E78")+INDIRECT("'"&K$6&"'"&"!M78")) -> 0 | L16: =IF(L$6="","",SUMIF(DT!$D$8:$D$838,L$6,DT!$S$8:$S$838)-SUMIFS(DT!$S$8:$S$838,DT!$D$8:$D$838,L$6,DT!$C$8:$C$838,"TMD")-SUMIFS(DT!$S$8:$S$838,DT!$D$8:$D$838,L$6,DT!$C$8:$C$838,"SKC")-SUMIFS(DT!$S$8:$S$838,DT!$D$8:$D$838,L$6,DT!$C$8:$C$838,"SKX")-SUMIFS(DT!$S$8:$S$838,DT!$D$8:$D$838,L$6,DT!$C$8:$C$838,"TIN")-SUMIFS(DT!$S$8:$S$838,DT!$D$8:$D$838,L$6,DT!$C$8:$C$838,$C16)-INDIRECT("'"&L$6&"'"&"!E78")+INDIRECT("'"&L$6&"'"&"!M78")) -> 0 | M16: =IF(M$6="","",SUMIF(DT!$D$8:$D$838,M$6,DT!$S$8:$S$838)-SUMIFS(DT!$S$8:$S$838,DT!$D$8:$D$838,M$6,DT!$C$8:$C$838,"TMD")-SUMIFS(DT!$S$8:$S$838,DT!$D$8:$D$838,M$6,DT!$C$8:$C$838,"SKC")-SUMIFS(DT!$S$8:$S$838,DT!$D$8:$D$838,M$6,DT!$C$8:$C$838,"SKX")-SUMIFS(DT!$S$8:$S$838,DT!$D$8:$D$838,M$6,DT!$C$8:$C$838,"TIN")-SUMIFS(DT!$S$8:$S$838,DT!$D$8:$D$838,M$6,DT!$C$8:$C$838,$C16)-INDIRECT("'"&M$6&"'"&"!E78")+INDIRECT("'"&M$6&"'"&"!M78")) -> 0 | N16: =IF(N$6="","",SUMIF(DT!$D$8:$D$838,N$6,DT!$S$8:$S$838)-SUMIFS(DT!$S$8:$S$838,DT!$D$8:$D$838,N$6,DT!$C$8:$C$838,"TMD")-SUMIFS(DT!$S$8:$S$838,DT!$D$8:$D$838,N$6,DT!$C$8:$C$838,"SKC")-SUMIFS(DT!$S$8:$S$838,DT!$D$8:$D$838,N$6,DT!$C$8:$C$838,"SKX")-SUMIFS(DT!$S$8:$S$838,DT!$D$8:$D$838,N$6,DT!$C$8:$C$838,"TIN")-SUMIFS(DT!$S$8:$S$838,DT!$D$8:$D$838,N$6,DT!$C$8:$C$838,$C16)-INDIRECT("'"&N$6&"'"&"!E78")+INDIRECT("'"&N$6&"'"&"!M78")) -> 0 | O16: =IF(O$6="","",SUMIF(DT!$D$8:$D$838,O$6,DT!$S$8:$S$838)-SUMIFS(DT!$S$8:$S$838,DT!$D$8:$D$838,O$6,DT!$C$8:$C$838,"TMD")-SUMIFS(DT!$S$8:$S$838,DT!$D$8:$D$838,O$6,DT!$C$8:$C$838,"SKC")-SUMIFS(DT!$S$8:$S$838,DT!$D$8:$D$838,O$6,DT!$C$8:$C$838,"SKX")-SUMIFS(DT!$S$8:$S$838,DT!$D$8:$D$838,O$6,DT!$C$8:$C$838,"TIN")-SUMIFS(DT!$S$8:$S$838,DT!$D$8:$D$838,O$6,DT!$C$8:$C$838,$C16)-INDIRECT("'"&O$6&"'"&"!E78")+INDIRECT("'"&O$6&"'"&"!M78")) -> 0 | P16: =IF(P$6="","",SUMIF(DT!$D$8:$D$838,P$6,DT!$S$8:$S$838)-SUMIFS(DT!$S$8:$S$838,DT!$D$8:$D$838,P$6,DT!$C$8:$C$838,"TMD")-SUMIFS(DT!$S$8:$S$838,DT!$D$8:$D$838,P$6,DT!$C$8:$C$838,"SKC")-SUMIFS(DT!$S$8:$S$838,DT!$D$8:$D$838,P$6,DT!$C$8:$C$838,"SKX")-SUMIFS(DT!$S$8:$S$838,DT!$D$8:$D$838,P$6,DT!$C$8:$C$838,"TIN")-SUMIFS(DT!$S$8:$S$838,DT!$D$8:$D$838,P$6,DT!$C$8:$C$838,$C16)-INDIRECT("'"&P$6&"'"&"!E78")+INDIRECT("'"&P$6&"'"&"!M78")) -> 0 | Q16: =IF(Q$6="","",SUMIF(DT!$D$8:$D$838,Q$6,DT!$S$8:$S$838)-SUMIFS(DT!$S$8:$S$838,DT!$D$8:$D$838,Q$6,DT!$C$8:$C$838,"TMD")-SUMIFS(DT!$S$8:$S$838,DT!$D$8:$D$838,Q$6,DT!$C$8:$C$838,"SKC")-SUMIFS(DT!$S$8:$S$838,DT!$D$8:$D$838,Q$6,DT!$C$8:$C$838,"SKX")-SUMIFS(DT!$S$8:$S$838,DT!$D$8:$D$838,Q$6,DT!$C$8:$C$838,"TIN")-SUMIFS(DT!$S$8:$S$838,DT!$D$8:$D$838,Q$6,DT!$C$8:$C$838,$C16)-INDIRECT("'"&Q$6&"'"&"!E78")+INDIRECT("'"&Q$6&"'"&"!M78")) -> 0 | R16: =IF(R$6="","",SUMIF(DT!$D$8:$D$838,R$6,DT!$S$8:$S$838)-SUMIFS(DT!$S$8:$S$838,DT!$D$8:$D$838,R$6,DT!$C$8:$C$838,"TMD")-SUMIFS(DT!$S$8:$S$838,DT!$D$8:$D$838,R$6,DT!$C$8:$C$838,"SKC")-SUMIFS(DT!$S$8:$S$838,DT!$D$8:$D$838,R$6,DT!$C$8:$C$838,"SKX")-SUMIFS(DT!$S$8:$S$838,DT!$D$8:$D$838,R$6,DT!$C$8:$C$838,"TIN")-SUMIFS(DT!$S$8:$S$838,DT!$D$8:$D$838,R$6,DT!$C$8:$C$838,$C16)-INDIRECT("'"&R$6&"'"&"!E78")+INDIRECT("'"&R$6&"'"&"!M78")) -> 0 | S16: =IF(S$6="","",SUMIF(DT!$D$8:$D$838,S$6,DT!$S$8:$S$838)-SUMIFS(DT!$S$8:$S$838,DT!$D$8:$D$838,S$6,DT!$C$8:$C$838,"TMD")-SUMIFS(DT!$S$8:$S$838,DT!$D$8:$D$838,S$6,DT!$C$8:$C$838,"SKC")-SUMIFS(DT!$S$8:$S$838,DT!$D$8:$D$838,S$6,DT!$C$8:$C$838,"SKX")-SUMIFS(DT!$S$8:$S$838,DT!$D$8:$D$838,S$6,DT!$C$8:$C$838,"TIN")-SUMIFS(DT!$S$8:$S$838,DT!$D$8:$D$838,S$6,DT!$C$8:$C$838,$C16)-INDIRECT("'"&S$6&"'"&"!E78")+INDIRECT("'"&S$6&"'"&"!M78")) -> 0 | T16: =IF(T$6="","",SUMIF(DT!$D$8:$D$838,T$6,DT!$S$8:$S$838)-SUMIFS(DT!$S$8:$S$838,DT!$D$8:$D$838,T$6,DT!$C$8:$C$838,"TMD")-SUMIFS(DT!$S$8:$S$838,DT!$D$8:$D$838,T$6,DT!$C$8:$C$838,"SKC")-SUMIFS(DT!$S$8:$S$838,DT!$D$8:$D$838,T$6,DT!$C$8:$C$838,"SKX")-SUMIFS(DT!$S$8:$S$838,DT!$D$8:$D$838,T$6,DT!$C$8:$C$838,"TIN")-SUMIFS(DT!$S$8:$S$838,DT!$D$8:$D$838,T$6,DT!$C$8:$C$838,$C16)-INDIRECT("'"&T$6&"'"&"!E78")+INDIRECT("'"&T$6&"'"&"!M78")) -> 0 | U16: =IF(U$6="","",SUMIF(DT!$D$8:$D$838,U$6,DT!$S$8:$S$838)-SUMIFS(DT!$S$8:$S$838,DT!$D$8:$D$838,U$6,DT!$C$8:$C$838,"TMD")-SUMIFS(DT!$S$8:$S$838,DT!$D$8:$D$838,U$6,DT!$C$8:$C$838,"SKC")-SUMIFS(DT!$S$8:$S$838,DT!$D$8:$D$838,U$6,DT!$C$8:$C$838,"SKX")-SUMIFS(DT!$S$8:$S$838,DT!$D$8:$D$838,U$6,DT!$C$8:$C$838,"TIN")-SUMIFS(DT!$S$8:$S$838,DT!$D$8:$D$838,U$6,DT!$C$8:$C$838,$C16)-INDIRECT("'"&U$6&"'"&"!E78")+INDIRECT("'"&U$6&"'"&"!M78")) -> 0 | V16: =IF(V$6="","",SUMIF(DT!$D$8:$D$838,V$6,DT!$S$8:$S$838)-SUMIFS(DT!$S$8:$S$838,DT!$D$8:$D$838,V$6,DT!$C$8:$C$838,"TMD")-SUMIFS(DT!$S$8:$S$838,DT!$D$8:$D$838,V$6,DT!$C$8:$C$838,"SKC")-SUMIFS(DT!$S$8:$S$838,DT!$D$8:$D$838,V$6,DT!$C$8:$C$838,"SKX")-SUMIFS(DT!$S$8:$S$838,DT!$D$8:$D$838,V$6,DT!$C$8:$C$838,"TIN")-SUMIFS(DT!$S$8:$S$838,DT!$D$8:$D$838,V$6,DT!$C$8:$C$838,$C16)-INDIRECT("'"&V$6&"'"&"!E78")+INDIRECT("'"&V$6&"'"&"!M78")) -> 0
A17: 1.6 | B17: Đất rừng sản xuất | C17: RSX | D17: 372.54 | E17: =IF(E$6="","",SUMIF(DT!$D$8:$D$838,E$6,DT!$U$8:$U$838)-SUMIFS(DT!$U$8:$U$838,DT!$D$8:$D$838,E$6,DT!$C$8:$C$838,"TMD")-SUMIFS(DT!$U$8:$U$838,DT!$D$8:$D$838,E$6,DT!$C$8:$C$838,"SKC")-SUMIFS(DT!$U$8:$U$838,DT!$D$8:$D$838,E$6,DT!$C$8:$C$838,"SKX")-SUMIFS(DT!$U$8:$U$838,DT!$D$8:$D$838,E$6,DT!$C$8:$C$838,"TIN")-SUMIFS(DT!$U$8:$U$838,DT!$D$8:$D$838,E$6,DT!$C$8:$C$838,$C17)-INDIRECT("'"&E$6&"'"&"!E79")+INDIRECT("'"&E$6&"'"&"!N79")) -> 0 | F17: =IF(F$6="","",SUMIF(DT!$D$8:$D$838,F$6,DT!$U$8:$U$838)-SUMIFS(DT!$U$8:$U$838,DT!$D$8:$D$838,F$6,DT!$C$8:$C$838,"TMD")-SUMIFS(DT!$U$8:$U$838,DT!$D$8:$D$838,F$6,DT!$C$8:$C$838,"SKC")-SUMIFS(DT!$U$8:$U$838,DT!$D$8:$D$838,F$6,DT!$C$8:$C$838,"SKX")-SUMIFS(DT!$U$8:$U$838,DT!$D$8:$D$838,F$6,DT!$C$8:$C$838,"TIN")-SUMIFS(DT!$U$8:$U$838,DT!$D$8:$D$838,F$6,DT!$C$8:$C$838,$C17)-INDIRECT("'"&F$6&"'"&"!E79")+INDIRECT("'"&F$6&"'"&"!N79")) -> 0 | G17: =IF(G$6="","",SUMIF(DT!$D$8:$D$838,G$6,DT!$U$8:$U$838)-SUMIFS(DT!$U$8:$U$838,DT!$D$8:$D$838,G$6,DT!$C$8:$C$838,"TMD")-SUMIFS(DT!$U$8:$U$838,DT!$D$8:$D$838,G$6,DT!$C$8:$C$838,"SKC")-SUMIFS(DT!$U$8:$U$838,DT!$D$8:$D$838,G$6,DT!$C$8:$C$838,"SKX")-SUMIFS(DT!$U$8:$U$838,DT!$D$8:$D$838,G$6,DT!$C$8:$C$838,"TIN")-SUMIFS(DT!$U$8:$U$838,DT!$D$8:$D$838,G$6,DT!$C$8:$C$838,$C17)-INDIRECT("'"&G$6&"'"&"!E79")+INDIRECT("'"&G$6&"'"&"!N79")) -> 0 | H17: =IF(H$6="","",SUMIF(DT!$D$8:$D$838,H$6,DT!$U$8:$U$838)-SUMIFS(DT!$U$8:$U$838,DT!$D$8:$D$838,H$6,DT!$C$8:$C$838,"TMD")-SUMIFS(DT!$U$8:$U$838,DT!$D$8:$D$838,H$6,DT!$C$8:$C$838,"SKC")-SUMIFS(DT!$U$8:$U$838,DT!$D$8:$D$838,H$6,DT!$C$8:$C$838,"SKX")-SUMIFS(DT!$U$8:$U$838,DT!$D$8:$D$838,H$6,DT!$C$8:$C$838,"TIN")-SUMIFS(DT!$U$8:$U$838,DT!$D$8:$D$838,H$6,DT!$C$8:$C$838,$C17)-INDIRECT("'"&H$6&"'"&"!E79")+INDIRECT("'"&H$6&"'"&"!N79")) -> 40.44 | I17: =IF(I$6="","",SUMIF(DT!$D$8:$D$838,I$6,DT!$U$8:$U$838)-SUMIFS(DT!$U$8:$U$838,DT!$D$8:$D$838,I$6,DT!$C$8:$C$838,"TMD")-SUMIFS(DT!$U$8:$U$838,DT!$D$8:$D$838,I$6,DT!$C$8:$C$838,"SKC")-SUMIFS(DT!$U$8:$U$838,DT!$D$8:$D$838,I$6,DT!$C$8:$C$838,"SKX")-SUMIFS(DT!$U$8:$U$838,DT!$D$8:$D$838,I$6,DT!$C$8:$C$838,"TIN")-SUMIFS(DT!$U$8:$U$838,DT!$D$8:$D$838,I$6,DT!$C$8:$C$838,$C17)-INDIRECT("'"&I$6&"'"&"!E79")+INDIRECT("'"&I$6&"'"&"!N79")) -> 116.16 | J17: =IF(J$6="","",SUMIF(DT!$D$8:$D$838,J$6,DT!$U$8:$U$838)-SUMIFS(DT!$U$8:$U$838,DT!$D$8:$D$838,J$6,DT!$C$8:$C$838,"TMD")-SUMIFS(DT!$U$8:$U$838,DT!$D$8:$D$838,J$6,DT!$C$8:$C$838,"SKC")-SUMIFS(DT!$U$8:$U$838,DT!$D$8:$D$838,J$6,DT!$C$8:$C$838,"SKX")-SUMIFS(DT!$U$8:$U$838,DT!$D$8:$D$838,J$6,DT!$C$8:$C$838,"TIN")-SUMIFS(DT!$U$8:$U$838,DT!$D$8:$D$838,J$6,DT!$C$8:$C$838,$C17)-INDIRECT("'"&J$6&"'"&"!E79")+INDIRECT("'"&J$6&"'"&"!N79")) -> 14.24 | K17: =IF(K$6="","",SUMIF(DT!$D$8:$D$838,K$6,DT!$U$8:$U$838)-SUMIFS(DT!$U$8:$U$838,DT!$D$8:$D$838,K$6,DT!$C$8:$C$838,"TMD")-SUMIFS(DT!$U$8:$U$838,DT!$D$8:$D$838,K$6,DT!$C$8:$C$838,"SKC")-SUMIFS(DT!$U$8:$U$838,DT!$D$8:$D$838,K$6,DT!$C$8:$C$838,"SKX")-SUMIFS(DT!$U$8:$U$838,DT!$D$8:$D$838,K$6,DT!$C$8:$C$838,"TIN")-SUMIFS(DT!$U$8:$U$838,DT!$D$8:$D$838,K$6,DT!$C$8:$C$838,$C17)-INDIRECT("'"&K$6&"'"&"!E79")+INDIRECT("'"&K$6&"'"&"!N79")) -> 49.6 | L17: =IF(L$6="","",SUMIF(DT!$D$8:$D$838,L$6,DT!$U$8:$U$838)-SUMIFS(DT!$U$8:$U$838,DT!$D$8:$D$838,L$6,DT!$C$8:$C$838,"TMD")-SUMIFS(DT!$U$8:$U$838,DT!$D$8:$D$838,L$6,DT!$C$8:$C$838,"SKC")-SUMIFS(DT!$U$8:$U$838,DT!$D$8:$D$838,L$6,DT!$C$8:$C$838,"SKX")-SUMIFS(DT!$U$8:$U$838,DT!$D$8:$D$838,L$6,DT!$C$8:$C$838,"TIN")-SUMIFS(DT!$U$8:$U$838,DT!$D$8:$D$838,L$6,DT!$C$8:$C$838,$C17)-INDIRECT("'"&L$6&"'"&"!E79")+INDIRECT("'"&L$6&"'"&"!N79")) -> 1.52 | M17: =IF(M$6="","",SUMIF(DT!$D$8:$D$838,M$6,DT!$U$8:$U$838)-SUMIFS(DT!$U$8:$U$838,DT!$D$8:$D$838,M$6,DT!$C$8:$C$838,"TMD")-SUMIFS(DT!$U$8:$U$838,DT!$D$8:$D$838,M$6,DT!$C$8:$C$838,"SKC")-SUMIFS(DT!$U$8:$U$838,DT!$D$8:$D$838,M$6,DT!$C$8:$C$838,"SKX")-SUMIFS(DT!$U$8:$U$838,DT!$D$8:$D$838,M$6,DT!$C$8:$C$838,"TIN")-SUMIFS(DT!$U$8:$U$838,DT!$D$8:$D$838,M$6,DT!$C$8:$C$838,$C17)-INDIRECT("'"&M$6&"'"&"!E79")+INDIRECT("'"&M$6&"'"&"!N79")) -> 0.87 | N17: =IF(N$6="","",SUMIF(DT!$D$8:$D$838,N$6,DT!$U$8:$U$838)-SUMIFS(DT!$U$8:$U$838,DT!$D$8:$D$838,N$6,DT!$C$8:$C$838,"TMD")-SUMIFS(DT!$U$8:$U$838,DT!$D$8:$D$838,N$6,DT!$C$8:$C$838,"SKC")-SUMIFS(DT!$U$8:$U$838,DT!$D$8:$D$838,N$6,DT!$C$8:$C$838,"SKX")-SUMIFS(DT!$U$8:$U$838,DT!$D$8:$D$838,N$6,DT!$C$8:$C$838,"TIN")-SUMIFS(DT!$U$8:$U$838,DT!$D$8:$D$838,N$6,DT!$C$8:$C$838,$C17)-INDIRECT("'"&N$6&"'"&"!E79")+INDIRECT("'"&N$6&"'"&"!N79")) -> 3.22 | O17: =IF(O$6="","",SUMIF(DT!$D$8:$D$838,O$6,DT!$U$8:$U$838)-SUMIFS(DT!$U$8:$U$838,DT!$D$8:$D$838,O$6,DT!$C$8:$C$838,"TMD")-SUMIFS(DT!$U$8:$U$838,DT!$D$8:$D$838,O$6,DT!$C$8:$C$838,"SKC")-SUMIFS(DT!$U$8:$U$838,DT!$D$8:$D$838,O$6,DT!$C$8:$C$838,"SKX")-SUMIFS(DT!$U$8:$U$838,DT!$D$8:$D$838,O$6,DT!$C$8:$C$838,"TIN")-SUMIFS(DT!$U$8:$U$838,DT!$D$8:$D$838,O$6,DT!$C$8:$C$838,$C17)-INDIRECT("'"&O$6&"'"&"!E79")+INDIRECT("'"&O$6&"'"&"!N79")) -> 14.34 | P17: =IF(P$6="","",SUMIF(DT!$D$8:$D$838,P$6,DT!$U$8:$U$838)-SUMIFS(DT!$U$8:$U$838,DT!$D$8:$D$838,P$6,DT!$C$8:$C$838,"TMD")-SUMIFS(DT!$U$8:$U$838,DT!$D$8:$D$838,P$6,DT!$C$8:$C$838,"SKC")-SUMIFS(DT!$U$8:$U$838,DT!$D$8:$D$838,P$6,DT!$C$8:$C$838,"SKX")-SUMIFS(DT!$U$8:$U$838,DT!$D$8:$D$838,P$6,DT!$C$8:$C$838,"TIN")-SUMIFS(DT!$U$8:$U$838,DT!$D$8:$D$838,P$6,DT!$C$8:$C$838,$C17)-INDIRECT("'"&P$6&"'"&"!E79")+INDIRECT("'"&P$6&"'"&"!N79")) -> 76.56 | Q17: =IF(Q$6="","",SUMIF(DT!$D$8:$D$838,Q$6,DT!$U$8:$U$838)-SUMIFS(DT!$U$8:$U$838,DT!$D$8:$D$838,Q$6,DT!$C$8:$C$838,"TMD")-SUMIFS(DT!$U$8:$U$838,DT!$D$8:$D$838,Q$6,DT!$C$8:$C$838,"SKC")-SUMIFS(DT!$U$8:$U$838,DT!$D$8:$D$838,Q$6,DT!$C$8:$C$838,"SKX")-SUMIFS(DT!$U$8:$U$838,DT!$D$8:$D$838,Q$6,DT!$C$8:$C$838,"TIN")-SUMIFS(DT!$U$8:$U$838,DT!$D$8:$D$838,Q$6,DT!$C$8:$C$838,$C17)-INDIRECT("'"&Q$6&"'"&"!E79")+INDIRECT("'"&Q$6&"'"&"!N79")) -> 0.41 | R17: =IF(R$6="","",SUMIF(DT!$D$8:$D$838,R$6,DT!$U$8:$U$838)-SUMIFS(DT!$U$8:$U$838,DT!$D$8:$D$838,R$6,DT!$C$8:$C$838,"TMD")-SUMIFS(DT!$U$8:$U$838,DT!$D$8:$D$838,R$6,DT!$C$8:$C$838,"SKC")-SUMIFS(DT!$U$8:$U$838,DT!$D$8:$D$838,R$6,DT!$C$8:$C$838,"SKX")-SUMIFS(DT!$U$8:$U$838,DT!$D$8:$D$838,R$6,DT!$C$8:$C$838,"TIN")-SUMIFS(DT!$U$8:$U$838,DT!$D$8:$D$838,R$6,DT!$C$8:$C$838,$C17)-INDIRECT("'"&R$6&"'"&"!E79")+INDIRECT("'"&R$6&"'"&"!N79")) -> 0 | S17: =IF(S$6="","",SUMIF(DT!$D$8:$D$838,S$6,DT!$U$8:$U$838)-SUMIFS(DT!$U$8:$U$838,DT!$D$8:$D$838,S$6,DT!$C$8:$C$838,"TMD")-SUMIFS(DT!$U$8:$U$838,DT!$D$8:$D$838,S$6,DT!$C$8:$C$838,"SKC")-SUMIFS(DT!$U$8:$U$838,DT!$D$8:$D$838,S$6,DT!$C$8:$C$838,"SKX")-SUMIFS(DT!$U$8:$U$838,DT!$D$8:$D$838,S$6,DT!$C$8:$C$838,"TIN")-SUMIFS(DT!$U$8:$U$838,DT!$D$8:$D$838,S$6,DT!$C$8:$C$838,$C17)-INDIRECT("'"&S$6&"'"&"!E79")+INDIRECT("'"&S$6&"'"&"!N79")) -> 9.42 | T17: =IF(T$6="","",SUMIF(DT!$D$8:$D$838,T$6,DT!$U$8:$U$838)-SUMIFS(DT!$U$8:$U$838,DT!$D$8:$D$838,T$6,DT!$C$8:$C$838,"TMD")-SUMIFS(DT!$U$8:$U$838,DT!$D$8:$D$838,T$6,DT!$C$8:$C$838,"SKC")-SUMIFS(DT!$U$8:$U$838,DT!$D$8:$D$838,T$6,DT!$C$8:$C$838,"SKX")-SUMIFS(DT!$U$8:$U$838,DT!$D$8:$D$838,T$6,DT!$C$8:$C$838,"TIN")-SUMIFS(DT!$U$8:$U$838,DT!$D$8:$D$838,T$6,DT!$C$8:$C$838,$C17)-INDIRECT("'"&T$6&"'"&"!E79")+INDIRECT("'"&T$6&"'"&"!N79")) -> 7.76 | U17: =IF(U$6="","",SUMIF(DT!$D$8:$D$838,U$6,DT!$U$8:$U$838)-SUMIFS(DT!$U$8:$U$838,DT!$D$8:$D$838,U$6,DT!$C$8:$C$838,"TMD")-SUMIFS(DT!$U$8:$U$838,DT!$D$8:$D$838,U$6,DT!$C$8:$C$838,"SKC")-SUMIFS(DT!$U$8:$U$838,DT!$D$8:$D$838,U$6,DT!$C$8:$C$838,"SKX")-SUMIFS(DT!$U$8:$U$838,DT!$D$8:$D$838,U$6,DT!$C$8:$C$838,"TIN")-SUMIFS(DT!$U$8:$U$838,DT!$D$8:$D$838,U$6,DT!$C$8:$C$838,$C17)-INDIRECT("'"&U$6&"'"&"!E79")+INDIRECT("'"&U$6&"'"&"!N79")) -> 35 | V17: =IF(V$6="","",SUMIF(DT!$D$8:$D$838,V$6,DT!$U$8:$U$838)-SUMIFS(DT!$U$8:$U$838,DT!$D$8:$D$838,V$6,DT!$C$8:$C$838,"TMD")-SUMIFS(DT!$U$8:$U$838,DT!$D$8:$D$838,V$6,DT!$C$8:$C$838,"SKC")-SUMIFS(DT!$U$8:$U$838,DT!$D$8:$D$838,V$6,DT!$C$8:$C$838,"SKX")-SUMIFS(DT!$U$8:$U$838,DT!$D$8:$D$838,V$6,DT!$C$8:$C$838,"TIN")-SUMIFS(DT!$U$8:$U$838,DT!$D$8:$D$838,V$6,DT!$C$8:$C$838,$C17)-INDIRECT("'"&V$6&"'"&"!E79")+INDIRECT("'"&V$6&"'"&"!N79")) -> 3
A18: 1.7 | B18: Đất nuôi trồng thuỷ sản | C18: NTS | D18: 13.05 | E18: =IF(E$6="","",SUMIF(DT!$D$8:$D$838,E$6,DT!$W$8:$W$838)-SUMIFS(DT!$W$8:$W$838,DT!$D$8:$D$838,E$6,DT!$C$8:$C$838,"TMD")-SUMIFS(DT!$W$8:$W$838,DT!$D$8:$D$838,E$6,DT!$C$8:$C$838,"SKC")-SUMIFS(DT!$W$8:$W$838,DT!$D$8:$D$838,E$6,DT!$C$8:$C$838,"SKX")-SUMIFS(DT!$W$8:$W$838,DT!$D$8:$D$838,E$6,DT!$C$8:$C$838,"TIN")-SUMIFS(DT!$W$8:$W$838,DT!$D$8:$D$838,E$6,DT!$C$8:$C$838,$C18)-INDIRECT("'"&E$6&"'"&"!E80")+INDIRECT("'"&E$6&"'"&"!O80")) -> 0 | F18: =IF(F$6="","",SUMIF(DT!$D$8:$D$838,F$6,DT!$W$8:$W$838)-SUMIFS(DT!$W$8:$W$838,DT!$D$8:$D$838,F$6,DT!$C$8:$C$838,"TMD")-SUMIFS(DT!$W$8:$W$838,DT!$D$8:$D$838,F$6,DT!$C$8:$C$838,"SKC")-SUMIFS(DT!$W$8:$W$838,DT!$D$8:$D$838,F$6,DT!$C$8:$C$838,"SKX")-SUMIFS(DT!$W$8:$W$838,DT!$D$8:$D$838,F$6,DT!$C$8:$C$838,"TIN")-SUMIFS(DT!$W$8:$W$838,DT!$D$8:$D$838,F$6,DT!$C$8:$C$838,$C18)-INDIRECT("'"&F$6&"'"&"!E80")+INDIRECT("'"&F$6&"'"&"!O80")) -> 0 | G18: =IF(G$6="","",SUMIF(DT!$D$8:$D$838,G$6,DT!$W$8:$W$838)-SUMIFS(DT!$W$8:$W$838,DT!$D$8:$D$838,G$6,DT!$C$8:$C$838,"TMD")-SUMIFS(DT!$W$8:$W$838,DT!$D$8:$D$838,G$6,DT!$C$8:$C$838,"SKC")-SUMIFS(DT!$W$8:$W$838,DT!$D$8:$D$838,G$6,DT!$C$8:$C$838,"SKX")-SUMIFS(DT!$W$8:$W$838,DT!$D$8:$D$838,G$6,DT!$C$8:$C$838,"TIN")-SUMIFS(DT!$W$8:$W$838,DT!$D$8:$D$838,G$6,DT!$C$8:$C$838,$C18)-INDIRECT("'"&G$6&"'"&"!E80")+INDIRECT("'"&G$6&"'"&"!O80")) -> 0 | H18: =IF(H$6="","",SUMIF(DT!$D$8:$D$838,H$6,DT!$W$8:$W$838)-SUMIFS(DT!$W$8:$W$838,DT!$D$8:$D$838,H$6,DT!$C$8:$C$838,"TMD")-SUMIFS(DT!$W$8:$W$838,DT!$D$8:$D$838,H$6,DT!$C$8:$C$838,"SKC")-SUMIFS(DT!$W$8:$W$838,DT!$D$8:$D$838,H$6,DT!$C$8:$C$838,"SKX")-SUMIFS(DT!$W$8:$W$838,DT!$D$8:$D$838,H$6,DT!$C$8:$C$838,"TIN")-SUMIFS(DT!$W$8:$W$838,DT!$D$8:$D$838,H$6,DT!$C$8:$C$838,$C18)-INDIRECT("'"&H$6&"'"&"!E80")+INDIRECT("'"&H$6&"'"&"!O80")) -> 0.05 | I18: =IF(I$6="","",SUMIF(DT!$D$8:$D$838,I$6,DT!$W$8:$W$838)-SUMIFS(DT!$W$8:$W$838,DT!$D$8:$D$838,I$6,DT!$C$8:$C$838,"TMD")-SUMIFS(DT!$W$8:$W$838,DT!$D$8:$D$838,I$6,DT!$C$8:$C$838,"SKC")-SUMIFS(DT!$W$8:$W$838,DT!$D$8:$D$838,I$6,DT!$C$8:$C$838,"SKX")-SUMIFS(DT!$W$8:$W$838,DT!$D$8:$D$838,I$6,DT!$C$8:$C$838,"TIN")-SUMIFS(DT!$W$8:$W$838,DT!$D$8:$D$838,I$6,DT!$C$8:$C$838,$C18)-INDIRECT("'"&I$6&"'"&"!E80")+INDIRECT("'"&I$6&"'"&"!O80")) -> 0.68 | J18: =IF(J$6="","",SUMIF(DT!$D$8:$D$838,J$6,DT!$W$8:$W$838)-SUMIFS(DT!$W$8:$W$838,DT!$D$8:$D$838,J$6,DT!$C$8:$C$838,"TMD")-SUMIFS(DT!$W$8:$W$838,DT!$D$8:$D$838,J$6,DT!$C$8:$C$838,"SKC")-SUMIFS(DT!$W$8:$W$838,DT!$D$8:$D$838,J$6,DT!$C$8:$C$838,"SKX")-SUMIFS(DT!$W$8:$W$838,DT!$D$8:$D$838,J$6,DT!$C$8:$C$838,"TIN")-SUMIFS(DT!$W$8:$W$838,DT!$D$8:$D$838,J$6,DT!$C$8:$C$838,$C18)-INDIRECT("'"&J$6&"'"&"!E80")+INDIRECT("'"&J$6&"'"&"!O80")) -> 0 | K18: =IF(K$6="","",SUMIF(DT!$D$8:$D$838,K$6,DT!$W$8:$W$838)-SUMIFS(DT!$W$8:$W$838,DT!$D$8:$D$838,K$6,DT!$C$8:$C$838,"TMD")-SUMIFS(DT!$W$8:$W$838,DT!$D$8:$D$838,K$6,DT!$C$8:$C$838,"SKC")-SUMIFS(DT!$W$8:$W$838,DT!$D$8:$D$838,K$6,DT!$C$8:$C$838,"SKX")-SUMIFS(DT!$W$8:$W$838,DT!$D$8:$D$838,K$6,DT!$C$8:$C$838,"TIN")-SUMIFS(DT!$W$8:$W$838,DT!$D$8:$D$838,K$6,DT!$C$8:$C$838,$C18)-INDIRECT("'"&K$6&"'"&"!E80")+INDIRECT("'"&K$6&"'"&"!O80")) -> 7.33 | L18: =IF(L$6="","",SUMIF(DT!$D$8:$D$838,L$6,DT!$W$8:$W$838)-SUMIFS(DT!$W$8:$W$838,DT!$D$8:$D$838,L$6,DT!$C$8:$C$838,"TMD")-SUMIFS(DT!$W$8:$W$838,DT!$D$8:$D$838,L$6,DT!$C$8:$C$838,"SKC")-SUMIFS(DT!$W$8:$W$838,DT!$D$8:$D$838,L$6,DT!$C$8:$C$838,"SKX")-SUMIFS(DT!$W$8:$W$838,DT!$D$8:$D$838,L$6,DT!$C$8:$C$838,"TIN")-SUMIFS(DT!$W$8:$W$838,DT!$D$8:$D$838,L$6,DT!$C$8:$C$838,$C18)-INDIRECT("'"&L$6&"'"&"!E80")+INDIRECT("'"&L$6&"'"&"!O80")) -> 0.05 | M18: =IF(M$6="","",SUMIF(DT!$D$8:$D$838,M$6,DT!$W$8:$W$838)-SUMIFS(DT!$W$8:$W$838,DT!$D$8:$D$838,M$6,DT!$C$8:$C$838,"TMD")-SUMIFS(DT!$W$8:$W$838,DT!$D$8:$D$838,M$6,DT!$C$8:$C$838,"SKC")-SUMIFS(DT!$W$8:$W$838,DT!$D$8:$D$838,M$6,DT!$C$8:$C$838,"SKX")-SUMIFS(DT!$W$8:$W$838,DT!$D$8:$D$838,M$6,DT!$C$8:$C$838,"TIN")-SUMIFS(DT!$W$8:$W$838,DT!$D$8:$D$838,M$6,DT!$C$8:$C$838,$C18)-INDIRECT("'"&M$6&"'"&"!E80")+INDIRECT("'"&M$6&"'"&"!O80")) -> 0.75 | N18: =IF(N$6="","",SUMIF(DT!$D$8:$D$838,N$6,DT!$W$8:$W$838)-SUMIFS(DT!$W$8:$W$838,DT!$D$8:$D$838,N$6,DT!$C$8:$C$838,"TMD")-SUMIFS(DT!$W$8:$W$838,DT!$D$8:$D$838,N$6,DT!$C$8:$C$838,"SKC")-SUMIFS(DT!$W$8:$W$838,DT!$D$8:$D$838,N$6,DT!$C$8:$C$838,"SKX")-SUMIFS(DT!$W$8:$W$838,DT!$D$8:$D$838,N$6,DT!$C$8:$C$838,"TIN")-SUMIFS(DT!$W$8:$W$838,DT!$D$8:$D$838,N$6,DT!$C$8:$C$838,$C18)-INDIRECT("'"&N$6&"'"&"!E80")+INDIRECT("'"&N$6&"'"&"!O80")) -> 0 | O18: =IF(O$6="","",SUMIF(DT!$D$8:$D$838,O$6,DT!$W$8:$W$838)-SUMIFS(DT!$W$8:$W$838,DT!$D$8:$D$838,O$6,DT!$C$8:$C$838,"TMD")-SUMIFS(DT!$W$8:$W$838,DT!$D$8:$D$838,O$6,DT!$C$8:$C$838,"SKC")-SUMIFS(DT!$W$8:$W$838,DT!$D$8:$D$838,O$6,DT!$C$8:$C$838,"SKX")-SUMIFS(DT!$W$8:$W$838,DT!$D$8:$D$838,O$6,DT!$C$8:$C$838,"TIN")-SUMIFS(DT!$W$8:$W$838,DT!$D$8:$D$838,O$6,DT!$C$8:$C$838,$C18)-INDIRECT("'"&O$6&"'"&"!E80")+INDIRECT("'"&O$6&"'"&"!O80")) -> 1.74 | P18: =IF(P$6="","",SUMIF(DT!$D$8:$D$838,P$6,DT!$W$8:$W$838)-SUMIFS(DT!$W$8:$W$838,DT!$D$8:$D$838,P$6,DT!$C$8:$C$838,"TMD")-SUMIFS(DT!$W$8:$W$838,DT!$D$8:$D$838,P$6,DT!$C$8:$C$838,"SKC")-SUMIFS(DT!$W$8:$W$838,DT!$D$8:$D$838,P$6,DT!$C$8:$C$838,"SKX")-SUMIFS(DT!$W$8:$W$838,DT!$D$8:$D$838,P$6,DT!$C$8:$C$838,"TIN")-SUMIFS(DT!$W$8:$W$838,DT!$D$8:$D$838,P$6,DT!$C$8:$C$838,$C18)-INDIRECT("'"&P$6&"'"&"!E80")+INDIRECT("'"&P$6&"'"&"!O80")) -> 0 | Q18: =IF(Q$6="","",SUMIF(DT!$D$8:$D$838,Q$6,DT!$W$8:$W$838)-SUMIFS(DT!$W$8:$W$838,DT!$D$8:$D$838,Q$6,DT!$C$8:$C$838,"TMD")-SUMIFS(DT!$W$8:$W$838,DT!$D$8:$D$838,Q$6,DT!$C$8:$C$838,"SKC")-SUMIFS(DT!$W$8:$W$838,DT!$D$8:$D$838,Q$6,DT!$C$8:$C$838,"SKX")-SUMIFS(DT!$W$8:$W$838,DT!$D$8:$D$838,Q$6,DT!$C$8:$C$838,"TIN")-SUMIFS(DT!$W$8:$W$838,DT!$D$8:$D$838,Q$6,DT!$C$8:$C$838,$C18)-INDIRECT("'"&Q$6&"'"&"!E80")+INDIRECT("'"&Q$6&"'"&"!O80")) -> 0 | R18: =IF(R$6="","",SUMIF(DT!$D$8:$D$838,R$6,DT!$W$8:$W$838)-SUMIFS(DT!$W$8:$W$838,DT!$D$8:$D$838,R$6,DT!$C$8:$C$838,"TMD")-SUMIFS(DT!$W$8:$W$838,DT!$D$8:$D$838,R$6,DT!$C$8:$C$838,"SKC")-SUMIFS(DT!$W$8:$W$838,DT!$D$8:$D$838,R$6,DT!$C$8:$C$838,"SKX")-SUMIFS(DT!$W$8:$W$838,DT!$D$8:$D$838,R$6,DT!$C$8:$C$838,"TIN")-SUMIFS(DT!$W$8:$W$838,DT!$D$8:$D$838,R$6,DT!$C$8:$C$838,$C18)-INDIRECT("'"&R$6&"'"&"!E80")+INDIRECT("'"&R$6&"'"&"!O80")) -> 0.89 | S18: =IF(S$6="","",SUMIF(DT!$D$8:$D$838,S$6,DT!$W$8:$W$838)-SUMIFS(DT!$W$8:$W$838,DT!$D$8:$D$838,S$6,DT!$C$8:$C$838,"TMD")-SUMIFS(DT!$W$8:$W$838,DT!$D$8:$D$838,S$6,DT!$C$8:$C$838,"SKC")-SUMIFS(DT!$W$8:$W$838,DT!$D$8:$D$838,S$6,DT!$C$8:$C$838,"SKX")-SUMIFS(DT!$W$8:$W$838,DT!$D$8:$D$838,S$6,DT!$C$8:$C$838,"TIN")-SUMIFS(DT!$W$8:$W$838,DT!$D$8:$D$838,S$6,DT!$C$8:$C$838,$C18)-INDIRECT("'"&S$6&"'"&"!E80")+INDIRECT("'"&S$6&"'"&"!O80")) -> 0 | T18: =IF(T$6="","",SUMIF(DT!$D$8:$D$838,T$6,DT!$W$8:$W$838)-SUMIFS(DT!$W$8:$W$838,DT!$D$8:$D$838,T$6,DT!$C$8:$C$838,"TMD")-SUMIFS(DT!$W$8:$W$838,DT!$D$8:$D$838,T$6,DT!$C$8:$C$838,"SKC")-SUMIFS(DT!$W$8:$W$838,DT!$D$8:$D$838,T$6,DT!$C$8:$C$838,"SKX")-SUMIFS(DT!$W$8:$W$838,DT!$D$8:$D$838,T$6,DT!$C$8:$C$838,"TIN")-SUMIFS(DT!$W$8:$W$838,DT!$D$8:$D$838,T$6,DT!$C$8:$C$838,$C18)-INDIRECT("'"&T$6&"'"&"!E80")+INDIRECT("'"&T$6&"'"&"!O80")) -> 0 | U18: =IF(U$6="","",SUMIF(DT!$D$8:$D$838,U$6,DT!$W$8:$W$838)-SUMIFS(DT!$W$8:$W$838,DT!$D$8:$D$838,U$6,DT!$C$8:$C$838,"TMD")-SUMIFS(DT!$W$8:$W$838,DT!$D$8:$D$838,U$6,DT!$C$8:$C$838,"SKC")-SUMIFS(DT!$W$8:$W$838,DT!$D$8:$D$838,U$6,DT!$C$8:$C$838,"SKX")-SUMIFS(DT!$W$8:$W$838,DT!$D$8:$D$838,U$6,DT!$C$8:$C$838,"TIN")-SUMIFS(DT!$W$8:$W$838,DT!$D$8:$D$838,U$6,DT!$C$8:$C$838,$C18)-INDIRECT("'"&U$6&"'"&"!E80")+INDIRECT("'"&U$6&"'"&"!O80")) -> 1.53 | V18: =IF(V$6="","",SUMIF(DT!$D$8:$D$838,V$6,DT!$W$8:$W$838)-SUMIFS(DT!$W$8:$W$838,DT!$D$8:$D$838,V$6,DT!$C$8:$C$838,"TMD")-SUMIFS(DT!$W$8:$W$838,DT!$D$8:$D$838,V$6,DT!$C$8:$C$838,"SKC")-SUMIFS(DT!$W$8:$W$838,DT!$D$8:$D$838,V$6,DT!$C$8:$C$838,"SKX")-SUMIFS(DT!$W$8:$W$838,DT!$D$8:$D$838,V$6,DT!$C$8:$C$838,"TIN")-SUMIFS(DT!$W$8:$W$838,DT!$D$8:$D$838,V$6,DT!$C$8:$C$838,$C18)-INDIRECT("'"&V$6&"'"&"!E80")+INDIRECT("'"&V$6&"'"&"!O80")) -> 0.03
A19: 1.8 | B19: Đất làm muối | C19: LMU | D19: 0 | E19: =IF(E$6="","",SUMIF(DT!$D$8:$D$838,E$6,DT!$Y$8:$Y$838)-SUMIFS(DT!$Y$8:$Y$838,DT!$D$8:$D$838,E$6,DT!$C$8:$C$838,"TMD")-SUMIFS(DT!$Y$8:$Y$838,DT!$D$8:$D$838,E$6,DT!$C$8:$C$838,"SKC")-SUMIFS(DT!$Y$8:$Y$838,DT!$D$8:$D$838,E$6,DT!$C$8:$C$838,"SKX")-SUMIFS(DT!$Y$8:$Y$838,DT!$D$8:$D$838,E$6,DT!$C$8:$C$838,"TIN")-SUMIFS(DT!$Y$8:$Y$838,DT!$D$8:$D$838,E$6,DT!$C$8:$C$838,$C19)-INDIRECT("'"&E$6&"'"&"!E81")+INDIRECT("'"&E$6&"'"&"!P81")) -> 0 | F19: =IF(F$6="","",SUMIF(DT!$D$8:$D$838,F$6,DT!$Y$8:$Y$838)-SUMIFS(DT!$Y$8:$Y$838,DT!$D$8:$D$838,F$6,DT!$C$8:$C$838,"TMD")-SUMIFS(DT!$Y$8:$Y$838,DT!$D$8:$D$838,F$6,DT!$C$8:$C$838,"SKC")-SUMIFS(DT!$Y$8:$Y$838,DT!$D$8:$D$838,F$6,DT!$C$8:$C$838,"SKX")-SUMIFS(DT!$Y$8:$Y$838,DT!$D$8:$D$838,F$6,DT!$C$8:$C$838,"TIN")-SUMIFS(DT!$Y$8:$Y$838,DT!$D$8:$D$838,F$6,DT!$C$8:$C$838,$C19)-INDIRECT("'"&F$6&"'"&"!E81")+INDIRECT("'"&F$6&"'"&"!P81")) -> 0 | G19: =IF(G$6="","",SUMIF(DT!$D$8:$D$838,G$6,DT!$Y$8:$Y$838)-SUMIFS(DT!$Y$8:$Y$838,DT!$D$8:$D$838,G$6,DT!$C$8:$C$838,"TMD")-SUMIFS(DT!$Y$8:$Y$838,DT!$D$8:$D$838,G$6,DT!$C$8:$C$838,"SKC")-SUMIFS(DT!$Y$8:$Y$838,DT!$D$8:$D$838,G$6,DT!$C$8:$C$838,"SKX")-SUMIFS(DT!$Y$8:$Y$838,DT!$D$8:$D$838,G$6,DT!$C$8:$C$838,"TIN")-SUMIFS(DT!$Y$8:$Y$838,DT!$D$8:$D$838,G$6,DT!$C$8:$C$838,$C19)-INDIRECT("'"&G$6&"'"&"!E81")+INDIRECT("'"&G$6&"'"&"!P81")) -> 0 | H19: =IF(H$6="","",SUMIF(DT!$D$8:$D$838,H$6,DT!$Y$8:$Y$838)-SUMIFS(DT!$Y$8:$Y$838,DT!$D$8:$D$838,H$6,DT!$C$8:$C$838,"TMD")-SUMIFS(DT!$Y$8:$Y$838,DT!$D$8:$D$838,H$6,DT!$C$8:$C$838,"SKC")-SUMIFS(DT!$Y$8:$Y$838,DT!$D$8:$D$838,H$6,DT!$C$8:$C$838,"SKX")-SUMIFS(DT!$Y$8:$Y$838,DT!$D$8:$D$838,H$6,DT!$C$8:$C$838,"TIN")-SUMIFS(DT!$Y$8:$Y$838,DT!$D$8:$D$838,H$6,DT!$C$8:$C$838,$C19)-INDIRECT("'"&H$6&"'"&"!E81")+INDIRECT("'"&H$6&"'"&"!P81")) -> 0 | I19: =IF(I$6="","",SUMIF(DT!$D$8:$D$838,I$6,DT!$Y$8:$Y$838)-SUMIFS(DT!$Y$8:$Y$838,DT!$D$8:$D$838,I$6,DT!$C$8:$C$838,"TMD")-SUMIFS(DT!$Y$8:$Y$838,DT!$D$8:$D$838,I$6,DT!$C$8:$C$838,"SKC")-SUMIFS(DT!$Y$8:$Y$838,DT!$D$8:$D$838,I$6,DT!$C$8:$C$838,"SKX")-SUMIFS(DT!$Y$8:$Y$838,DT!$D$8:$D$838,I$6,DT!$C$8:$C$838,"TIN")-SUMIFS(DT!$Y$8:$Y$838,DT!$D$8:$D$838,I$6,DT!$C$8:$C$838,$C19)-INDIRECT("'"&I$6&"'"&"!E81")+INDIRECT("'"&I$6&"'"&"!P81")) -> 0 | J19: =IF(J$6="","",SUMIF(DT!$D$8:$D$838,J$6,DT!$Y$8:$Y$838)-SUMIFS(DT!$Y$8:$Y$838,DT!$D$8:$D$838,J$6,DT!$C$8:$C$838,"TMD")-SUMIFS(DT!$Y$8:$Y$838,DT!$D$8:$D$838,J$6,DT!$C$8:$C$838,"SKC")-SUMIFS(DT!$Y$8:$Y$838,DT!$D$8:$D$838,J$6,DT!$C$8:$C$838,"SKX")-SUMIFS(DT!$Y$8:$Y$838,DT!$D$8:$D$838,J$6,DT!$C$8:$C$838,"TIN")-SUMIFS(DT!$Y$8:$Y$838,DT!$D$8:$D$838,J$6,DT!$C$8:$C$838,$C19)-INDIRECT("'"&J$6&"'"&"!E81")+INDIRECT("'"&J$6&"'"&"!P81")) -> 0 | K19: =IF(K$6="","",SUMIF(DT!$D$8:$D$838,K$6,DT!$Y$8:$Y$838)-SUMIFS(DT!$Y$8:$Y$838,DT!$D$8:$D$838,K$6,DT!$C$8:$C$838,"TMD")-SUMIFS(DT!$Y$8:$Y$838,DT!$D$8:$D$838,K$6,DT!$C$8:$C$838,"SKC")-SUMIFS(DT!$Y$8:$Y$838,DT!$D$8:$D$838,K$6,DT!$C$8:$C$838,"SKX")-SUMIFS(DT!$Y$8:$Y$838,DT!$D$8:$D$838,K$6,DT!$C$8:$C$838,"TIN")-SUMIFS(DT!$Y$8:$Y$838,DT!$D$8:$D$838,K$6,DT!$C$8:$C$838,$C19)-INDIRECT("'"&K$6&"'"&"!E81")+INDIRECT("'"&K$6&"'"&"!P81")) -> 0 | L19: =IF(L$6="","",SUMIF(DT!$D$8:$D$838,L$6,DT!$Y$8:$Y$838)-SUMIFS(DT!$Y$8:$Y$838,DT!$D$8:$D$838,L$6,DT!$C$8:$C$838,"TMD")-SUMIFS(DT!$Y$8:$Y$838,DT!$D$8:$D$838,L$6,DT!$C$8:$C$838,"SKC")-SUMIFS(DT!$Y$8:$Y$838,DT!$D$8:$D$838,L$6,DT!$C$8:$C$838,"SKX")-SUMIFS(DT!$Y$8:$Y$838,DT!$D$8:$D$838,L$6,DT!$C$8:$C$838,"TIN")-SUMIFS(DT!$Y$8:$Y$838,DT!$D$8:$D$838,L$6,DT!$C$8:$C$838,$C19)-INDIRECT("'"&L$6&"'"&"!E81")+INDIRECT("'"&L$6&"'"&"!P81")) -> 0 | M19: =IF(M$6="","",SUMIF(DT!$D$8:$D$838,M$6,DT!$Y$8:$Y$838)-SUMIFS(DT!$Y$8:$Y$838,DT!$D$8:$D$838,M$6,DT!$C$8:$C$838,"TMD")-SUMIFS(DT!$Y$8:$Y$838,DT!$D$8:$D$838,M$6,DT!$C$8:$C$838,"SKC")-SUMIFS(DT!$Y$8:$Y$838,DT!$D$8:$D$838,M$6,DT!$C$8:$C$838,"SKX")-SUMIFS(DT!$Y$8:$Y$838,DT!$D$8:$D$838,M$6,DT!$C$8:$C$838,"TIN")-SUMIFS(DT!$Y$8:$Y$838,DT!$D$8:$D$838,M$6,DT!$C$8:$C$838,$C19)-INDIRECT("'"&M$6&"'"&"!E81")+INDIRECT("'"&M$6&"'"&"!P81")) -> 0 | N19: =IF(N$6="","",SUMIF(DT!$D$8:$D$838,N$6,DT!$Y$8:$Y$838)-SUMIFS(DT!$Y$8:$Y$838,DT!$D$8:$D$838,N$6,DT!$C$8:$C$838,"TMD")-SUMIFS(DT!$Y$8:$Y$838,DT!$D$8:$D$838,N$6,DT!$C$8:$C$838,"SKC")-SUMIFS(DT!$Y$8:$Y$838,DT!$D$8:$D$838,N$6,DT!$C$8:$C$838,"SKX")-SUMIFS(DT!$Y$8:$Y$838,DT!$D$8:$D$838,N$6,DT!$C$8:$C$838,"TIN")-SUMIFS(DT!$Y$8:$Y$838,DT!$D$8:$D$838,N$6,DT!$C$8:$C$838,$C19)-INDIRECT("'"&N$6&"'"&"!E81")+INDIRECT("'"&N$6&"'"&"!P81")) -> 0 | O19: =IF(O$6="","",SUMIF(DT!$D$8:$D$838,O$6,DT!$Y$8:$Y$838)-SUMIFS(DT!$Y$8:$Y$838,DT!$D$8:$D$838,O$6,DT!$C$8:$C$838,"TMD")-SUMIFS(DT!$Y$8:$Y$838,DT!$D$8:$D$838,O$6,DT!$C$8:$C$838,"SKC")-SUMIFS(DT!$Y$8:$Y$838,DT!$D$8:$D$838,O$6,DT!$C$8:$C$838,"SKX")-SUMIFS(DT!$Y$8:$Y$838,DT!$D$8:$D$838,O$6,DT!$C$8:$C$838,"TIN")-SUMIFS(DT!$Y$8:$Y$838,DT!$D$8:$D$838,O$6,DT!$C$8:$C$838,$C19)-INDIRECT("'"&O$6&"'"&"!E81")+INDIRECT("'"&O$6&"'"&"!P81")) -> 0 | P19: =IF(P$6="","",SUMIF(DT!$D$8:$D$838,P$6,DT!$Y$8:$Y$838)-SUMIFS(DT!$Y$8:$Y$838,DT!$D$8:$D$838,P$6,DT!$C$8:$C$838,"TMD")-SUMIFS(DT!$Y$8:$Y$838,DT!$D$8:$D$838,P$6,DT!$C$8:$C$838,"SKC")-SUMIFS(DT!$Y$8:$Y$838,DT!$D$8:$D$838,P$6,DT!$C$8:$C$838,"SKX")-SUMIFS(DT!$Y$8:$Y$838,DT!$D$8:$D$838,P$6,DT!$C$8:$C$838,"TIN")-SUMIFS(DT!$Y$8:$Y$838,DT!$D$8:$D$838,P$6,DT!$C$8:$C$838,$C19)-INDIRECT("'"&P$6&"'"&"!E81")+INDIRECT("'"&P$6&"'"&"!P81")) -> 0 | Q19: =IF(Q$6="","",SUMIF(DT!$D$8:$D$838,Q$6,DT!$Y$8:$Y$838)-SUMIFS(DT!$Y$8:$Y$838,DT!$D$8:$D$838,Q$6,DT!$C$8:$C$838,"TMD")-SUMIFS(DT!$Y$8:$Y$838,DT!$D$8:$D$838,Q$6,DT!$C$8:$C$838,"SKC")-SUMIFS(DT!$Y$8:$Y$838,DT!$D$8:$D$838,Q$6,DT!$C$8:$C$838,"SKX")-SUMIFS(DT!$Y$8:$Y$838,DT!$D$8:$D$838,Q$6,DT!$C$8:$C$838,"TIN")-SUMIFS(DT!$Y$8:$Y$838,DT!$D$8:$D$838,Q$6,DT!$C$8:$C$838,$C19)-INDIRECT("'"&Q$6&"'"&"!E81")+INDIRECT("'"&Q$6&"'"&"!P81")) -> 0 | R19: =IF(R$6="","",SUMIF(DT!$D$8:$D$838,R$6,DT!$Y$8:$Y$838)-SUMIFS(DT!$Y$8:$Y$838,DT!$D$8:$D$838,R$6,DT!$C$8:$C$838,"TMD")-SUMIFS(DT!$Y$8:$Y$838,DT!$D$8:$D$838,R$6,DT!$C$8:$C$838,"SKC")-SUMIFS(DT!$Y$8:$Y$838,DT!$D$8:$D$838,R$6,DT!$C$8:$C$838,"SKX")-SUMIFS(DT!$Y$8:$Y$838,DT!$D$8:$D$838,R$6,DT!$C$8:$C$838,"TIN")-SUMIFS(DT!$Y$8:$Y$838,DT!$D$8:$D$838,R$6,DT!$C$8:$C$838,$C19)-INDIRECT("'"&R$6&"'"&"!E81")+INDIRECT("'"&R$6&"'"&"!P81")) -> 0 | S19: =IF(S$6="","",SUMIF(DT!$D$8:$D$838,S$6,DT!$Y$8:$Y$838)-SUMIFS(DT!$Y$8:$Y$838,DT!$D$8:$D$838,S$6,DT!$C$8:$C$838,"TMD")-SUMIFS(DT!$Y$8:$Y$838,DT!$D$8:$D$838,S$6,DT!$C$8:$C$838,"SKC")-SUMIFS(DT!$Y$8:$Y$838,DT!$D$8:$D$838,S$6,DT!$C$8:$C$838,"SKX")-SUMIFS(DT!$Y$8:$Y$838,DT!$D$8:$D$838,S$6,DT!$C$8:$C$838,"TIN")-SUMIFS(DT!$Y$8:$Y$838,DT!$D$8:$D$838,S$6,DT!$C$8:$C$838,$C19)-INDIRECT("'"&S$6&"'"&"!E81")+INDIRECT("'"&S$6&"'"&"!P81")) -> 0 | T19: =IF(T$6="","",SUMIF(DT!$D$8:$D$838,T$6,DT!$Y$8:$Y$838)-SUMIFS(DT!$Y$8:$Y$838,DT!$D$8:$D$838,T$6,DT!$C$8:$C$838,"TMD")-SUMIFS(DT!$Y$8:$Y$838,DT!$D$8:$D$838,T$6,DT!$C$8:$C$838,"SKC")-SUMIFS(DT!$Y$8:$Y$838,DT!$D$8:$D$838,T$6,DT!$C$8:$C$838,"SKX")-SUMIFS(DT!$Y$8:$Y$838,DT!$D$8:$D$838,T$6,DT!$C$8:$C$838,"TIN")-SUMIFS(DT!$Y$8:$Y$838,DT!$D$8:$D$838,T$6,DT!$C$8:$C$838,$C19)-INDIRECT("'"&T$6&"'"&"!E81")+INDIRECT("'"&T$6&"'"&"!P81")) -> 0 | U19: =IF(U$6="","",SUMIF(DT!$D$8:$D$838,U$6,DT!$Y$8:$Y$838)-SUMIFS(DT!$Y$8:$Y$838,DT!$D$8:$D$838,U$6,DT!$C$8:$C$838,"TMD")-SUMIFS(DT!$Y$8:$Y$838,DT!$D$8:$D$838,U$6,DT!$C$8:$C$838,"SKC")-SUMIFS(DT!$Y$8:$Y$838,DT!$D$8:$D$838,U$6,DT!$C$8:$C$838,"SKX")-SUMIFS(DT!$Y$8:$Y$838,DT!$D$8:$D$838,U$6,DT!$C$8:$C$838,"TIN")-SUMIFS(DT!$Y$8:$Y$838,DT!$D$8:$D$838,U$6,DT!$C$8:$C$838,$C19)-INDIRECT("'"&U$6&"'"&"!E81")+INDIRECT("'"&U$6&"'"&"!P81")) -> 0 | V19: =IF(V$6="","",SUMIF(DT!$D$8:$D$838,V$6,DT!$Y$8:$Y$838)-SUMIFS(DT!$Y$8:$Y$838,DT!$D$8:$D$838,V$6,DT!$C$8:$C$838,"TMD")-SUMIFS(DT!$Y$8:$Y$838,DT!$D$8:$D$838,V$6,DT!$C$8:$C$838,"SKC")-SUMIFS(DT!$Y$8:$Y$838,DT!$D$8:$D$838,V$6,DT!$C$8:$C$838,"SKX")-SUMIFS(DT!$Y$8:$Y$838,DT!$D$8:$D$838,V$6,DT!$C$8:$C$838,"TIN")-SUMIFS(DT!$Y$8:$Y$838,DT!$D$8:$D$838,V$6,DT!$C$8:$C$838,$C19)-INDIRECT("'"&V$6&"'"&"!E81")+INDIRECT("'"&V$6&"'"&"!P81")) -> 0
A20: 1.9 | B20: Đất nông nghiệp khác | C20: NKH | D20: 0 | E20: =IF(E$6="","",SUMIF(DT!$D$8:$D$838,E$6,DT!$AA$8:$AA$838)-SUMIFS(DT!$AA$8:$AA$838,DT!$D$8:$D$838,E$6,DT!$C$8:$C$838,"TMD")-SUMIFS(DT!$AA$8:$AA$838,DT!$D$8:$D$838,E$6,DT!$C$8:$C$838,"SKC")-SUMIFS(DT!$AA$8:$AA$838,DT!$D$8:$D$838,E$6,DT!$C$8:$C$838,"SKX")-SUMIFS(DT!$AA$8:$AA$838,DT!$D$8:$D$838,E$6,DT!$C$8:$C$838,"TIN")-SUMIFS(DT!$AA$8:$AA$838,DT!$D$8:$D$838,E$6,DT!$C$8:$C$838,$C20)-INDIRECT("'"&E$6&"'"&"!E82")+INDIRECT("'"&E$6&"'"&"!Q82")) -> 0 | F20: =IF(F$6="","",SUMIF(DT!$D$8:$D$838,F$6,DT!$AA$8:$AA$838)-SUMIFS(DT!$AA$8:$AA$838,DT!$D$8:$D$838,F$6,DT!$C$8:$C$838,"TMD")-SUMIFS(DT!$AA$8:$AA$838,DT!$D$8:$D$838,F$6,DT!$C$8:$C$838,"SKC")-SUMIFS(DT!$AA$8:$AA$838,DT!$D$8:$D$838,F$6,DT!$C$8:$C$838,"SKX")-SUMIFS(DT!$AA$8:$AA$838,DT!$D$8:$D$838,F$6,DT!$C$8:$C$838,"TIN")-SUMIFS(DT!$AA$8:$AA$838,DT!$D$8:$D$838,F$6,DT!$C$8:$C$838,$C20)-INDIRECT("'"&F$6&"'"&"!E82")+INDIRECT("'"&F$6&"'"&"!Q82")) -> 0 | G20: =IF(G$6="","",SUMIF(DT!$D$8:$D$838,G$6,DT!$AA$8:$AA$838)-SUMIFS(DT!$AA$8:$AA$838,DT!$D$8:$D$838,G$6,DT!$C$8:$C$838,"TMD")-SUMIFS(DT!$AA$8:$AA$838,DT!$D$8:$D$838,G$6,DT!$C$8:$C$838,"SKC")-SUMIFS(DT!$AA$8:$AA$838,DT!$D$8:$D$838,G$6,DT!$C$8:$C$838,"SKX")-SUMIFS(DT!$AA$8:$AA$838,DT!$D$8:$D$838,G$6,DT!$C$8:$C$838,"TIN")-SUMIFS(DT!$AA$8:$AA$838,DT!$D$8:$D$838,G$6,DT!$C$8:$C$838,$C20)-INDIRECT("'"&G$6&"'"&"!E82")+INDIRECT("'"&G$6&"'"&"!Q82")) -> 0 | H20: =IF(H$6="","",SUMIF(DT!$D$8:$D$838,H$6,DT!$AA$8:$AA$838)-SUMIFS(DT!$AA$8:$AA$838,DT!$D$8:$D$838,H$6,DT!$C$8:$C$838,"TMD")-SUMIFS(DT!$AA$8:$AA$838,DT!$D$8:$D$838,H$6,DT!$C$8:$C$838,"SKC")-SUMIFS(DT!$AA$8:$AA$838,DT!$D$8:$D$838,H$6,DT!$C$8:$C$838,"SKX")-SUMIFS(DT!$AA$8:$AA$838,DT!$D$8:$D$838,H$6,DT!$C$8:$C$838,"TIN")-SUMIFS(DT!$AA$8:$AA$838,DT!$D$8:$D$838,H$6,DT!$C$8:$C$838,$C20)-INDIRECT("'"&H$6&"'"&"!E82")+INDIRECT("'"&H$6&"'"&"!Q82")) -> 0 | I20: =IF(I$6="","",SUMIF(DT!$D$8:$D$838,I$6,DT!$AA$8:$AA$838)-SUMIFS(DT!$AA$8:$AA$838,DT!$D$8:$D$838,I$6,DT!$C$8:$C$838,"TMD")-SUMIFS(DT!$AA$8:$AA$838,DT!$D$8:$D$838,I$6,DT!$C$8:$C$838,"SKC")-SUMIFS(DT!$AA$8:$AA$838,DT!$D$8:$D$838,I$6,DT!$C$8:$C$838,"SKX")-SUMIFS(DT!$AA$8:$AA$838,DT!$D$8:$D$838,I$6,DT!$C$8:$C$838,"TIN")-SUMIFS(DT!$AA$8:$AA$838,DT!$D$8:$D$838,I$6,DT!$C$8:$C$838,$C20)-INDIRECT("'"&I$6&"'"&"!E82")+INDIRECT("'"&I$6&"'"&"!Q82")) -> 0 | J20: =IF(J$6="","",SUMIF(DT!$D$8:$D$838,J$6,DT!$AA$8:$AA$838)-SUMIFS(DT!$AA$8:$AA$838,DT!$D$8:$D$838,J$6,DT!$C$8:$C$838,"TMD")-SUMIFS(DT!$AA$8:$AA$838,DT!$D$8:$D$838,J$6,DT!$C$8:$C$838,"SKC")-SUMIFS(DT!$AA$8:$AA$838,DT!$D$8:$D$838,J$6,DT!$C$8:$C$838,"SKX")-SUMIFS(DT!$AA$8:$AA$838,DT!$D$8:$D$838,J$6,DT!$C$8:$C$838,"TIN")-SUMIFS(DT!$AA$8:$AA$838,DT!$D$8:$D$838,J$6,DT!$C$8:$C$838,$C20)-INDIRECT("'"&J$6&"'"&"!E82")+INDIRECT("'"&J$6&"'"&"!Q82")) -> 0 | K20: =IF(K$6="","",SUMIF(DT!$D$8:$D$838,K$6,DT!$AA$8:$AA$838)-SUMIFS(DT!$AA$8:$AA$838,DT!$D$8:$D$838,K$6,DT!$C$8:$C$838,"TMD")-SUMIFS(DT!$AA$8:$AA$838,DT!$D$8:$D$838,K$6,DT!$C$8:$C$838,"SKC")-SUMIFS(DT!$AA$8:$AA$838,DT!$D$8:$D$838,K$6,DT!$C$8:$C$838,"SKX")-SUMIFS(DT!$AA$8:$AA$838,DT!$D$8:$D$838,K$6,DT!$C$8:$C$838,"TIN")-SUMIFS(DT!$AA$8:$AA$838,DT!$D$8:$D$838,K$6,DT!$C$8:$C$838,$C20)-INDIRECT("'"&K$6&"'"&"!E82")+INDIRECT("'"&K$6&"'"&"!Q82")) -> 0 | L20: =IF(L$6="","",SUMIF(DT!$D$8:$D$838,L$6,DT!$AA$8:$AA$838)-SUMIFS(DT!$AA$8:$AA$838,DT!$D$8:$D$838,L$6,DT!$C$8:$C$838,"TMD")-SUMIFS(DT!$AA$8:$AA$838,DT!$D$8:$D$838,L$6,DT!$C$8:$C$838,"SKC")-SUMIFS(DT!$AA$8:$AA$838,DT!$D$8:$D$838,L$6,DT!$C$8:$C$838,"SKX")-SUMIFS(DT!$AA$8:$AA$838,DT!$D$8:$D$838,L$6,DT!$C$8:$C$838,"TIN")-SUMIFS(DT!$AA$8:$AA$838,DT!$D$8:$D$838,L$6,DT!$C$8:$C$838,$C20)-INDIRECT("'"&L$6&"'"&"!E82")+INDIRECT("'"&L$6&"'"&"!Q82")) -> 0 | M20: =IF(M$6="","",SUMIF(DT!$D$8:$D$838,M$6,DT!$AA$8:$AA$838)-SUMIFS(DT!$AA$8:$AA$838,DT!$D$8:$D$838,M$6,DT!$C$8:$C$838,"TMD")-SUMIFS(DT!$AA$8:$AA$838,DT!$D$8:$D$838,M$6,DT!$C$8:$C$838,"SKC")-SUMIFS(DT!$AA$8:$AA$838,DT!$D$8:$D$838,M$6,DT!$C$8:$C$838,"SKX")-SUMIFS(DT!$AA$8:$AA$838,DT!$D$8:$D$838,M$6,DT!$C$8:$C$838,"TIN")-SUMIFS(DT!$AA$8:$AA$838,DT!$D$8:$D$838,M$6,DT!$C$8:$C$838,$C20)-INDIRECT("'"&M$6&"'"&"!E82")+INDIRECT("'"&M$6&"'"&"!Q82")) -> 0 | N20: =IF(N$6="","",SUMIF(DT!$D$8:$D$838,N$6,DT!$AA$8:$AA$838)-SUMIFS(DT!$AA$8:$AA$838,DT!$D$8:$D$838,N$6,DT!$C$8:$C$838,"TMD")-SUMIFS(DT!$AA$8:$AA$838,DT!$D$8:$D$838,N$6,DT!$C$8:$C$838,"SKC")-SUMIFS(DT!$AA$8:$AA$838,DT!$D$8:$D$838,N$6,DT!$C$8:$C$838,"SKX")-SUMIFS(DT!$AA$8:$AA$838,DT!$D$8:$D$838,N$6,DT!$C$8:$C$838,"TIN")-SUMIFS(DT!$AA$8:$AA$838,DT!$D$8:$D$838,N$6,DT!$C$8:$C$838,$C20)-INDIRECT("'"&N$6&"'"&"!E82")+INDIRECT("'"&N$6&"'"&"!Q82")) -> 0 | O20: =IF(O$6="","",SUMIF(DT!$D$8:$D$838,O$6,DT!$AA$8:$AA$838)-SUMIFS(DT!$AA$8:$AA$838,DT!$D$8:$D$838,O$6,DT!$C$8:$C$838,"TMD")-SUMIFS(DT!$AA$8:$AA$838,DT!$D$8:$D$838,O$6,DT!$C$8:$C$838,"SKC")-SUMIFS(DT!$AA$8:$AA$838,DT!$D$8:$D$838,O$6,DT!$C$8:$C$838,"SKX")-SUMIFS(DT!$AA$8:$AA$838,DT!$D$8:$D$838,O$6,DT!$C$8:$C$838,"TIN")-SUMIFS(DT!$AA$8:$AA$838,DT!$D$8:$D$838,O$6,DT!$C$8:$C$838,$C20)-INDIRECT("'"&O$6&"'"&"!E82")+INDIRECT("'"&O$6&"'"&"!Q82")) -> 0 | P20: =IF(P$6="","",SUMIF(DT!$D$8:$D$838,P$6,DT!$AA$8:$AA$838)-SUMIFS(DT!$AA$8:$AA$838,DT!$D$8:$D$838,P$6,DT!$C$8:$C$838,"TMD")-SUMIFS(DT!$AA$8:$AA$838,DT!$D$8:$D$838,P$6,DT!$C$8:$C$838,"SKC")-SUMIFS(DT!$AA$8:$AA$838,DT!$D$8:$D$838,P$6,DT!$C$8:$C$838,"SKX")-SUMIFS(DT!$AA$8:$AA$838,DT!$D$8:$D$838,P$6,DT!$C$8:$C$838,"TIN")-SUMIFS(DT!$AA$8:$AA$838,DT!$D$8:$D$838,P$6,DT!$C$8:$C$838,$C20)-INDIRECT("'"&P$6&"'"&"!E82")+INDIRECT("'"&P$6&"'"&"!Q82")) -> 0 | Q20: =IF(Q$6="","",SUMIF(DT!$D$8:$D$838,Q$6,DT!$AA$8:$AA$838)-SUMIFS(DT!$AA$8:$AA$838,DT!$D$8:$D$838,Q$6,DT!$C$8:$C$838,"TMD")-SUMIFS(DT!$AA$8:$AA$838,DT!$D$8:$D$838,Q$6,DT!$C$8:$C$838,"SKC")-SUMIFS(DT!$AA$8:$AA$838,DT!$D$8:$D$838,Q$6,DT!$C$8:$C$838,"SKX")-SUMIFS(DT!$AA$8:$AA$838,DT!$D$8:$D$838,Q$6,DT!$C$8:$C$838,"TIN")-SUMIFS(DT!$AA$8:$AA$838,DT!$D$8:$D$838,Q$6,DT!$C$8:$C$838,$C20)-INDIRECT("'"&Q$6&"'"&"!E82")+INDIRECT("'"&Q$6&"'"&"!Q82")) -> 0 | R20: =IF(R$6="","",SUMIF(DT!$D$8:$D$838,R$6,DT!$AA$8:$AA$838)-SUMIFS(DT!$AA$8:$AA$838,DT!$D$8:$D$838,R$6,DT!$C$8:$C$838,"TMD")-SUMIFS(DT!$AA$8:$AA$838,DT!$D$8:$D$838,R$6,DT!$C$8:$C$838,"SKC")-SUMIFS(DT!$AA$8:$AA$838,DT!$D$8:$D$838,R$6,DT!$C$8:$C$838,"SKX")-SUMIFS(DT!$AA$8:$AA$838,DT!$D$8:$D$838,R$6,DT!$C$8:$C$838,"TIN")-SUMIFS(DT!$AA$8:$AA$838,DT!$D$8:$D$838,R$6,DT!$C$8:$C$838,$C20)-INDIRECT("'"&R$6&"'"&"!E82")+INDIRECT("'"&R$6&"'"&"!Q82")) -> 0 | S20: =IF(S$6="","",SUMIF(DT!$D$8:$D$838,S$6,DT!$AA$8:$AA$838)-SUMIFS(DT!$AA$8:$AA$838,DT!$D$8:$D$838,S$6,DT!$C$8:$C$838,"TMD")-SUMIFS(DT!$AA$8:$AA$838,DT!$D$8:$D$838,S$6,DT!$C$8:$C$838,"SKC")-SUMIFS(DT!$AA$8:$AA$838,DT!$D$8:$D$838,S$6,DT!$C$8:$C$838,"SKX")-SUMIFS(DT!$AA$8:$AA$838,DT!$D$8:$D$838,S$6,DT!$C$8:$C$838,"TIN")-SUMIFS(DT!$AA$8:$AA$838,DT!$D$8:$D$838,S$6,DT!$C$8:$C$838,$C20)-INDIRECT("'"&S$6&"'"&"!E82")+INDIRECT("'"&S$6&"'"&"!Q82")) -> 0 | T20: =IF(T$6="","",SUMIF(DT!$D$8:$D$838,T$6,DT!$AA$8:$AA$838)-SUMIFS(DT!$AA$8:$AA$838,DT!$D$8:$D$838,T$6,DT!$C$8:$C$838,"TMD")-SUMIFS(DT!$AA$8:$AA$838,DT!$D$8:$D$838,T$6,DT!$C$8:$C$838,"SKC")-SUMIFS(DT!$AA$8:$AA$838,DT!$D$8:$D$838,T$6,DT!$C$8:$C$838,"SKX")-SUMIFS(DT!$AA$8:$AA$838,DT!$D$8:$D$838,T$6,DT!$C$8:$C$838,"TIN")-SUMIFS(DT!$AA$8:$AA$838,DT!$D$8:$D$838,T$6,DT!$C$8:$C$838,$C20)-INDIRECT("'"&T$6&"'"&"!E82")+INDIRECT("'"&T$6&"'"&"!Q82")) -> 0 | U20: =IF(U$6="","",SUMIF(DT!$D$8:$D$838,U$6,DT!$AA$8:$AA$838)-SUMIFS(DT!$AA$8:$AA$838,DT!$D$8:$D$838,U$6,DT!$C$8:$C$838,"TMD")-SUMIFS(DT!$AA$8:$AA$838,DT!$D$8:$D$838,U$6,DT!$C$8:$C$838,"SKC")-SUMIFS(DT!$AA$8:$AA$838,DT!$D$8:$D$838,U$6,DT!$C$8:$C$838,"SKX")-SUMIFS(DT!$AA$8:$AA$838,DT!$D$8:$D$838,U$6,DT!$C$8:$C$838,"TIN")-SUMIFS(DT!$AA$8:$AA$838,DT!$D$8:$D$838,U$6,DT!$C$8:$C$838,$C20)-INDIRECT("'"&U$6&"'"&"!E82")+INDIRECT("'"&U$6&"'"&"!Q82")) -> 0 | V20: =IF(V$6="","",SUMIF(DT!$D$8:$D$838,V$6,DT!$AA$8:$AA$838)-SUMIFS(DT!$AA$8:$AA$838,DT!$D$8:$D$838,V$6,DT!$C$8:$C$838,"TMD")-SUMIFS(DT!$AA$8:$AA$838,DT!$D$8:$D$838,V$6,DT!$C$8:$C$838,"SKC")-SUMIFS(DT!$AA$8:$AA$838,DT!$D$8:$D$838,V$6,DT!$C$8:$C$838,"SKX")-SUMIFS(DT!$AA$8:$AA$838,DT!$D$8:$D$838,V$6,DT!$C$8:$C$838,"TIN")-SUMIFS(DT!$AA$8:$AA$838,DT!$D$8:$D$838,V$6,DT!$C$8:$C$838,$C20)-INDIRECT("'"&V$6&"'"&"!E82")+INDIRECT("'"&V$6&"'"&"!Q82")) -> 0
A21: 2 | B21: Đất phi nông nghiệp | C21: PNN | D21: 71.85 | E21: =SUM(E22:E30,E42:E58) -> 1.08 | F21: =SUM(F22:F30,F42:F58) -> 0.14 | G21: 0 | H21: 0.38 | I21: 50.32 | J21: 0.3 | K21: 2.35 | L21: 0.3 | M21: 0.12 | N21: 0.18 | O21: 4.63 | P21: 8.89 | Q21: 0.02 | R21: 0.94 | S21: 0.14 | T21: 0 | U21: 1.51 | V21: 0.55
A22: 2.1 | B22: Đất quốc phòng | C22: CQP | D22: 0.41 | E22: =SUMIF(DT!$D$8:$D$838,E$6,DT!$AC$8:$AC$838) -> 0 | F22: =SUMIF(DT!$D$8:$D$838,F$6,DT!$AC$8:$AC$838)-SUMIFS(DT!$AC$8:$AC$838,DT!$D$8:$D$838,F$6,DT!$C$8:$C$838,"TMD")-SUMIFS(DT!$AC$8:$AC$838,DT!$D$8:$D$838,F$6,DT!$C$8:$C$838,"SKC")-SUMIFS(DT!$AC$8:$AC$838,DT!$D$8:$D$838,F$6,DT!$C$8:$C$838,"SKX")-SUMIFS(DT!$AC$8:$AC$838,DT!$D$8:$D$838,F$6,DT!$C$8:$C$838,"TIN")-SUMIFS(DT!$AC$8:$AC$838,DT!$D$8:$D$838,F$6,DT!$C$8:$C$838,$C22) -> 0 | G22: =SUMIF(DT!$D$8:$D$838,G$6,DT!$AC$8:$AC$838)-SUMIFS(DT!$AC$8:$AC$838,DT!$D$8:$D$838,G$6,DT!$C$8:$C$838,"TMD")-SUMIFS(DT!$AC$8:$AC$838,DT!$D$8:$D$838,G$6,DT!$C$8:$C$838,"SKC")-SUMIFS(DT!$AC$8:$AC$838,DT!$D$8:$D$838,G$6,DT!$C$8:$C$838,"SKX")-SUMIFS(DT!$AC$8:$AC$838,DT!$D$8:$D$838,G$6,DT!$C$8:$C$838,"TIN")-SUMIFS(DT!$AC$8:$AC$838,DT!$D$8:$D$838,G$6,DT!$C$8:$C$838,$C22) -> 0 | H22: =SUMIF(DT!$D$8:$D$838,H$6,DT!$AC$8:$AC$838)-SUMIFS(DT!$AC$8:$AC$838,DT!$D$8:$D$838,H$6,DT!$C$8:$C$838,"TMD")-SUMIFS(DT!$AC$8:$AC$838,DT!$D$8:$D$838,H$6,DT!$C$8:$C$838,"SKC")-SUMIFS(DT!$AC$8:$AC$838,DT!$D$8:$D$838,H$6,DT!$C$8:$C$838,"SKX")-SUMIFS(DT!$AC$8:$AC$838,DT!$D$8:$D$838,H$6,DT!$C$8:$C$838,"TIN")-SUMIFS(DT!$AC$8:$AC$838,DT!$D$8:$D$838,H$6,DT!$C$8:$C$838,$C22) -> 0.18 | I22: =SUMIF(DT!$D$8:$D$838,I$6,DT!$AC$8:$AC$838)-SUMIFS(DT!$AC$8:$AC$838,DT!$D$8:$D$838,I$6,DT!$C$8:$C$838,"TMD")-SUMIFS(DT!$AC$8:$AC$838,DT!$D$8:$D$838,I$6,DT!$C$8:$C$838,"SKC")-SUMIFS(DT!$AC$8:$AC$838,DT!$D$8:$D$838,I$6,DT!$C$8:$C$838,"SKX")-SUMIFS(DT!$AC$8:$AC$838,DT!$D$8:$D$838,I$6,DT!$C$8:$C$838,"TIN")-SUMIFS(DT!$AC$8:$AC$838,DT!$D$8:$D$838,I$6,DT!$C$8:$C$838,$C22) -> 0.06 | J22: =SUMIF(DT!$D$8:$D$838,J$6,DT!$AC$8:$AC$838)-SUMIFS(DT!$AC$8:$AC$838,DT!$D$8:$D$838,J$6,DT!$C$8:$C$838,"TMD")-SUMIFS(DT!$AC$8:$AC$838,DT!$D$8:$D$838,J$6,DT!$C$8:$C$838,"SKC")-SUMIFS(DT!$AC$8:$AC$838,DT!$D$8:$D$838,J$6,DT!$C$8:$C$838,"SKX")-SUMIFS(DT!$AC$8:$AC$838,DT!$D$8:$D$838,J$6,DT!$C$8:$C$838,"TIN")-SUMIFS(DT!$AC$8:$AC$838,DT!$D$8:$D$838,J$6,DT!$C$8:$C$838,$C22) -> 0 | K22: =SUMIF(DT!$D$8:$D$838,K$6,DT!$AC$8:$AC$838)-SUMIFS(DT!$AC$8:$AC$838,DT!$D$8:$D$838,K$6,DT!$C$8:$C$838,"TMD")-SUMIFS(DT!$AC$8:$AC$838,DT!$D$8:$D$838,K$6,DT!$C$8:$C$838,"SKC")-SUMIFS(DT!$AC$8:$AC$838,DT!$D$8:$D$838,K$6,DT!$C$8:$C$838,"SKX")-SUMIFS(DT!$AC$8:$AC$838,DT!$D$8:$D$838,K$6,DT!$C$8:$C$838,"TIN")-SUMIFS(DT!$AC$8:$AC$838,DT!$D$8:$D$838,K$6,DT!$C$8:$C$838,$C22) -> 0 | L22: =SUMIF(DT!$D$8:$D$838,L$6,DT!$AC$8:$AC$838)-SUMIFS(DT!$AC$8:$AC$838,DT!$D$8:$D$838,L$6,DT!$C$8:$C$838,"TMD")-SUMIFS(DT!$AC$8:$AC$838,DT!$D$8:$D$838,L$6,DT!$C$8:$C$838,"SKC")-SUMIFS(DT!$AC$8:$AC$838,DT!$D$8:$D$838,L$6,DT!$C$8:$C$838,"SKX")-SUMIFS(DT!$AC$8:$AC$838,DT!$D$8:$D$838,L$6,DT!$C$8:$C$838,"TIN")-SUMIFS(DT!$AC$8:$AC$838,DT!$D$8:$D$838,L$6,DT!$C$8:$C$838,$C22) -> 0 | M22: =SUMIF(DT!$D$8:$D$838,M$6,DT!$AC$8:$AC$838)-SUMIFS(DT!$AC$8:$AC$838,DT!$D$8:$D$838,M$6,DT!$C$8:$C$838,"TMD")-SUMIFS(DT!$AC$8:$AC$838,DT!$D$8:$D$838,M$6,DT!$C$8:$C$838,"SKC")-SUMIFS(DT!$AC$8:$AC$838,DT!$D$8:$D$838,M$6,DT!$C$8:$C$838,"SKX")-SUMIFS(DT!$AC$8:$AC$838,DT!$D$8:$D$838,M$6,DT!$C$8:$C$838,"TIN")-SUMIFS(DT!$AC$8:$AC$838,DT!$D$8:$D$838,M$6,DT!$C$8:$C$838,$C22) -> 0 | N22: =SUMIF(DT!$D$8:$D$838,N$6,DT!$AC$8:$AC$838)-SUMIFS(DT!$AC$8:$AC$838,DT!$D$8:$D$838,N$6,DT!$C$8:$C$838,"TMD")-SUMIFS(DT!$AC$8:$AC$838,DT!$D$8:$D$838,N$6,DT!$C$8:$C$838,"SKC")-SUMIFS(DT!$AC$8:$AC$838,DT!$D$8:$D$838,N$6,DT!$C$8:$C$838,"SKX")-SUMIFS(DT!$AC$8:$AC$838,DT!$D$8:$D$838,N$6,DT!$C$8:$C$838,"TIN")-SUMIFS(DT!$AC$8:$AC$838,DT!$D$8:$D$838,N$6,DT!$C$8:$C$838,$C22) -> 0.17 | O22: =SUMIF(DT!$D$8:$D$838,O$6,DT!$AC$8:$AC$838)-SUMIFS(DT!$AC$8:$AC$838,DT!$D$8:$D$838,O$6,DT!$C$8:$C$838,"TMD")-SUMIFS(DT!$AC$8:$AC$838,DT!$D$8:$D$838,O$6,DT!$C$8:$C$838,"SKC")-SUMIFS(DT!$AC$8:$AC$838,DT!$D$8:$D$838,O$6,DT!$C$8:$C$838,"SKX")-SUMIFS(DT!$AC$8:$AC$838,DT!$D$8:$D$838,O$6,DT!$C$8:$C$838,"TIN")-SUMIFS(DT!$AC$8:$AC$838,DT!$D$8:$D$838,O$6,DT!$C$8:$C$838,$C22) -> 0 | P22: =SUMIF(DT!$D$8:$D$838,P$6,DT!$AC$8:$AC$838)-SUMIFS(DT!$AC$8:$AC$838,DT!$D$8:$D$838,P$6,DT!$C$8:$C$838,"TMD")-SUMIFS(DT!$AC$8:$AC$838,DT!$D$8:$D$838,P$6,DT!$C$8:$C$838,"SKC")-SUMIFS(DT!$AC$8:$AC$838,DT!$D$8:$D$838,P$6,DT!$C$8:$C$838,"SKX")-SUMIFS(DT!$AC$8:$AC$838,DT!$D$8:$D$838,P$6,DT!$C$8:$C$838,"TIN")-SUMIFS(DT!$AC$8:$AC$838,DT!$D$8:$D$838,P$6,DT!$C$8:$C$838,$C22) -> 0 | Q22: =SUMIF(DT!$D$8:$D$838,Q$6,DT!$AC$8:$AC$838)-SUMIFS(DT!$AC$8:$AC$838,DT!$D$8:$D$838,Q$6,DT!$C$8:$C$838,"TMD")-SUMIFS(DT!$AC$8:$AC$838,DT!$D$8:$D$838,Q$6,DT!$C$8:$C$838,"SKC")-SUMIFS(DT!$AC$8:$AC$838,DT!$D$8:$D$838,Q$6,DT!$C$8:$C$838,"SKX")-SUMIFS(DT!$AC$8:$AC$838,DT!$D$8:$D$838,Q$6,DT!$C$8:$C$838,"TIN")-SUMIFS(DT!$AC$8:$AC$838,DT!$D$8:$D$838,Q$6,DT!$C$8:$C$838,$C22) -> 0 | R22: =SUMIF(DT!$D$8:$D$838,R$6,DT!$AC$8:$AC$838)-SUMIFS(DT!$AC$8:$AC$838,DT!$D$8:$D$838,R$6,DT!$C$8:$C$838,"TMD")-SUMIFS(DT!$AC$8:$AC$838,DT!$D$8:$D$838,R$6,DT!$C$8:$C$838,"SKC")-SUMIFS(DT!$AC$8:$AC$838,DT!$D$8:$D$838,R$6,DT!$C$8:$C$838,"SKX")-SUMIFS(DT!$AC$8:$AC$838,DT!$D$8:$D$838,R$6,DT!$C$8:$C$838,"TIN")-SUMIFS(DT!$AC$8:$AC$838,DT!$D$8:$D$838,R$6,DT!$C$8:$C$838,$C22) -> 0 | S22: =SUMIF(DT!$D$8:$D$838,S$6,DT!$AC$8:$AC$838)-SUMIFS(DT!$AC$8:$AC$838,DT!$D$8:$D$838,S$6,DT!$C$8:$C$838,"TMD")-SUMIFS(DT!$AC$8:$AC$838,DT!$D$8:$D$838,S$6,DT!$C$8:$C$838,"SKC")-SUMIFS(DT!$AC$8:$AC$838,DT!$D$8:$D$838,S$6,DT!$C$8:$C$838,"SKX")-SUMIFS(DT!$AC$8:$AC$838,DT!$D$8:$D$838,S$6,DT!$C$8:$C$838,"TIN")-SUMIFS(DT!$AC$8:$AC$838,DT!$D$8:$D$838,S$6,DT!$C$8:$C$838,$C22) -> 0 | T22: =SUMIF(DT!$D$8:$D$838,T$6,DT!$AC$8:$AC$838)-SUMIFS(DT!$AC$8:$AC$838,DT!$D$8:$D$838,T$6,DT!$C$8:$C$838,"TMD")-SUMIFS(DT!$AC$8:$AC$838,DT!$D$8:$D$838,T$6,DT!$C$8:$C$838,"SKC")-SUMIFS(DT!$AC$8:$AC$838,DT!$D$8:$D$838,T$6,DT!$C$8:$C$838,"SKX")-SUMIFS(DT!$AC$8:$AC$838,DT!$D$8:$D$838,T$6,DT!$C$8:$C$838,"TIN")-SUMIFS(DT!$AC$8:$AC$838,DT!$D$8:$D$838,T$6,DT!$C$8:$C$838,$C22) -> 0 | U22: =SUMIF(DT!$D$8:$D$838,U$6,DT!$AC$8:$AC$838)-SUMIFS(DT!$AC$8:$AC$838,DT!$D$8:$D$838,U$6,DT!$C$8:$C$838,"TMD")-SUMIFS(DT!$AC$8:$AC$838,DT!$D$8:$D$838,U$6,DT!$C$8:$C$838,"SKC")-SUMIFS(DT!$AC$8:$AC$838,DT!$D$8:$D$838,U$6,DT!$C$8:$C$838,"SKX")-SUMIFS(DT!$AC$8:$AC$838,DT!$D$8:$D$838,U$6,DT!$C$8:$C$838,"TIN")-SUMIFS(DT!$AC$8:$AC$838,DT!$D$8:$D$838,U$6,DT!$C$8:$C$838,$C22) -> 0 | V22: =SUMIF(DT!$D$8:$D$838,V$6,DT!$AC$8:$AC$838)-SUMIFS(DT!$AC$8:$AC$838,DT!$D$8:$D$838,V$6,DT!$C$8:$C$838,"TMD")-SUMIFS(DT!$AC$8:$AC$838,DT!$D$8:$D$838,V$6,DT!$C$8:$C$838,"SKC")-SUMIFS(DT!$AC$8:$AC$838,DT!$D$8:$D$838,V$6,DT!$C$8:$C$838,"SKX")-SUMIFS(DT!$AC$8:$AC$838,DT!$D$8:$D$838,V$6,DT!$C$8:$C$838,"TIN")-SUMIFS(DT!$AC$8:$AC$838,DT!$D$8:$D$838,V$6,DT!$C$8:$C$838,$C22) -> 0
A23: 2.2 | B23: Đất an ninh | C23: CAN | D23: 0 | E23: =SUMIF(DT!$D$8:$D$838,E$6,DT!$AE$8:$AE$838) -> 0 | F23: =SUMIF(DT!$D$8:$D$838,F$6,DT!$AE$8:$AE$838)-SUMIFS(DT!$AE$8:$AE$838,DT!$D$8:$D$838,F$6,DT!$C$8:$C$838,"TMD")-SUMIFS(DT!$AE$8:$AE$838,DT!$D$8:$D$838,F$6,DT!$C$8:$C$838,"SKC")-SUMIFS(DT!$AE$8:$AE$838,DT!$D$8:$D$838,F$6,DT!$C$8:$C$838,"SKX")-SUMIFS(DT!$AE$8:$AE$838,DT!$D$8:$D$838,F$6,DT!$C$8:$C$838,"TIN")-SUMIFS(DT!$AE$8:$AE$838,DT!$D$8:$D$838,F$6,DT!$C$8:$C$838,$C23) -> 0 | G23: =SUMIF(DT!$D$8:$D$838,G$6,DT!$AE$8:$AE$838)-SUMIFS(DT!$AE$8:$AE$838,DT!$D$8:$D$838,G$6,DT!$C$8:$C$838,"TMD")-SUMIFS(DT!$AE$8:$AE$838,DT!$D$8:$D$838,G$6,DT!$C$8:$C$838,"SKC")-SUMIFS(DT!$AE$8:$AE$838,DT!$D$8:$D$838,G$6,DT!$C$8:$C$838,"SKX")-SUMIFS(DT!$AE$8:$AE$838,DT!$D$8:$D$838,G$6,DT!$C$8:$C$838,"TIN")-SUMIFS(DT!$AE$8:$AE$838,DT!$D$8:$D$838,G$6,DT!$C$8:$C$838,$C23) -> 0 | H23: =SUMIF(DT!$D$8:$D$838,H$6,DT!$AE$8:$AE$838)-SUMIFS(DT!$AE$8:$AE$838,DT!$D$8:$D$838,H$6,DT!$C$8:$C$838,"TMD")-SUMIFS(DT!$AE$8:$AE$838,DT!$D$8:$D$838,H$6,DT!$C$8:$C$838,"SKC")-SUMIFS(DT!$AE$8:$AE$838,DT!$D$8:$D$838,H$6,DT!$C$8:$C$838,"SKX")-SUMIFS(DT!$AE$8:$AE$838,DT!$D$8:$D$838,H$6,DT!$C$8:$C$838,"TIN")-SUMIFS(DT!$AE$8:$AE$838,DT!$D$8:$D$838,H$6,DT!$C$8:$C$838,$C23) -> 0 | I23: =SUMIF(DT!$D$8:$D$838,I$6,DT!$AE$8:$AE$838)-SUMIFS(DT!$AE$8:$AE$838,DT!$D$8:$D$838,I$6,DT!$C$8:$C$838,"TMD")-SUMIFS(DT!$AE$8:$AE$838,DT!$D$8:$D$838,I$6,DT!$C$8:$C$838,"SKC")-SUMIFS(DT!$AE$8:$AE$838,DT!$D$8:$D$838,I$6,DT!$C$8:$C$838,"SKX")-SUMIFS(DT!$AE$8:$AE$838,DT!$D$8:$D$838,I$6,DT!$C$8:$C$838,"TIN")-SUMIFS(DT!$AE$8:$AE$838,DT!$D$8:$D$838,I$6,DT!$C$8:$C$838,$C23) -> 0 | J23: =SUMIF(DT!$D$8:$D$838,J$6,DT!$AE$8:$AE$838)-SUMIFS(DT!$AE$8:$AE$838,DT!$D$8:$D$838,J$6,DT!$C$8:$C$838,"TMD")-SUMIFS(DT!$AE$8:$AE$838,DT!$D$8:$D$838,J$6,DT!$C$8:$C$838,"SKC")-SUMIFS(DT!$AE$8:$AE$838,DT!$D$8:$D$838,J$6,DT!$C$8:$C$838,"SKX")-SUMIFS(DT!$AE$8:$AE$838,DT!$D$8:$D$838,J$6,DT!$C$8:$C$838,"TIN")-SUMIFS(DT!$AE$8:$AE$838,DT!$D$8:$D$838,J$6,DT!$C$8:$C$838,$C23) -> 0 | K23: =SUMIF(DT!$D$8:$D$838,K$6,DT!$AE$8:$AE$838)-SUMIFS(DT!$AE$8:$AE$838,DT!$D$8:$D$838,K$6,DT!$C$8:$C$838,"TMD")-SUMIFS(DT!$AE$8:$AE$838,DT!$D$8:$D$838,K$6,DT!$C$8:$C$838,"SKC")-SUMIFS(DT!$AE$8:$AE$838,DT!$D$8:$D$838,K$6,DT!$C$8:$C$838,"SKX")-SUMIFS(DT!$AE$8:$AE$838,DT!$D$8:$D$838,K$6,DT!$C$8:$C$838,"TIN")-SUMIFS(DT!$AE$8:$AE$838,DT!$D$8:$D$838,K$6,DT!$C$8:$C$838,$C23) -> 0 | L23: =SUMIF(DT!$D$8:$D$838,L$6,DT!$AE$8:$AE$838)-SUMIFS(DT!$AE$8:$AE$838,DT!$D$8:$D$838,L$6,DT!$C$8:$C$838,"TMD")-SUMIFS(DT!$AE$8:$AE$838,DT!$D$8:$D$838,L$6,DT!$C$8:$C$838,"SKC")-SUMIFS(DT!$AE$8:$AE$838,DT!$D$8:$D$838,L$6,DT!$C$8:$C$838,"SKX")-SUMIFS(DT!$AE$8:$AE$838,DT!$D$8:$D$838,L$6,DT!$C$8:$C$838,"TIN")-SUMIFS(DT!$AE$8:$AE$838,DT!$D$8:$D$838,L$6,DT!$C$8:$C$838,$C23) -> 0 | M23: =SUMIF(DT!$D$8:$D$838,M$6,DT!$AE$8:$AE$838)-SUMIFS(DT!$AE$8:$AE$838,DT!$D$8:$D$838,M$6,DT!$C$8:$C$838,"TMD")-SUMIFS(DT!$AE$8:$AE$838,DT!$D$8:$D$838,M$6,DT!$C$8:$C$838,"SKC")-SUMIFS(DT!$AE$8:$AE$838,DT!$D$8:$D$838,M$6,DT!$C$8:$C$838,"SKX")-SUMIFS(DT!$AE$8:$AE$838,DT!$D$8:$D$838,M$6,DT!$C$8:$C$838,"TIN")-SUMIFS(DT!$AE$8:$AE$838,DT!$D$8:$D$838,M$6,DT!$C$8:$C$838,$C23) -> 0 | N23: =SUMIF(DT!$D$8:$D$838,N$6,DT!$AE$8:$AE$838)-SUMIFS(DT!$AE$8:$AE$838,DT!$D$8:$D$838,N$6,DT!$C$8:$C$838,"TMD")-SUMIFS(DT!$AE$8:$AE$838,DT!$D$8:$D$838,N$6,DT!$C$8:$C$838,"SKC")-SUMIFS(DT!$AE$8:$AE$838,DT!$D$8:$D$838,N$6,DT!$C$8:$C$838,"SKX")-SUMIFS(DT!$AE$8:$AE$838,DT!$D$8:$D$838,N$6,DT!$C$8:$C$838,"TIN")-SUMIFS(DT!$AE$8:$AE$838,DT!$D$8:$D$838,N$6,DT!$C$8:$C$838,$C23) -> 0 | O23: =SUMIF(DT!$D$8:$D$838,O$6,DT!$AE$8:$AE$838)-SUMIFS(DT!$AE$8:$AE$838,DT!$D$8:$D$838,O$6,DT!$C$8:$C$838,"TMD")-SUMIFS(DT!$AE$8:$AE$838,DT!$D$8:$D$838,O$6,DT!$C$8:$C$838,"SKC")-SUMIFS(DT!$AE$8:$AE$838,DT!$D$8:$D$838,O$6,DT!$C$8:$C$838,"SKX")-SUMIFS(DT!$AE$8:$AE$838,DT!$D$8:$D$838,O$6,DT!$C$8:$C$838,"TIN")-SUMIFS(DT!$AE$8:$AE$838,DT!$D$8:$D$838,O$6,DT!$C$8:$C$838,$C23) -> 0 | P23: =SUMIF(DT!$D$8:$D$838,P$6,DT!$AE$8:$AE$838)-SUMIFS(DT!$AE$8:$AE$838,DT!$D$8:$D$838,P$6,DT!$C$8:$C$838,"TMD")-SUMIFS(DT!$AE$8:$AE$838,DT!$D$8:$D$838,P$6,DT!$C$8:$C$838,"SKC")-SUMIFS(DT!$AE$8:$AE$838,DT!$D$8:$D$838,P$6,DT!$C$8:$C$838,"SKX")-SUMIFS(DT!$AE$8:$AE$838,DT!$D$8:$D$838,P$6,DT!$C$8:$C$838,"TIN")-SUMIFS(DT!$AE$8:$AE$838,DT!$D$8:$D$838,P$6,DT!$C$8:$C$838,$C23) -> 0 | Q23: =SUMIF(DT!$D$8:$D$838,Q$6,DT!$AE$8:$AE$838)-SUMIFS(DT!$AE$8:$AE$838,DT!$D$8:$D$838,Q$6,DT!$C$8:$C$838,"TMD")-SUMIFS(DT!$AE$8:$AE$838,DT!$D$8:$D$838,Q$6,DT!$C$8:$C$838,"SKC")-SUMIFS(DT!$AE$8:$AE$838,DT!$D$8:$D$838,Q$6,DT!$C$8:$C$838,"SKX")-SUMIFS(DT!$AE$8:$AE$838,DT!$D$8:$D$838,Q$6,DT!$C$8:$C$838,"TIN")-SUMIFS(DT!$AE$8:$AE$838,DT!$D$8:$D$838,Q$6,DT!$C$8:$C$838,$C23) -> 0 | R23: =SUMIF(DT!$D$8:$D$838,R$6,DT!$AE$8:$AE$838)-SUMIFS(DT!$AE$8:$AE$838,DT!$D$8:$D$838,R$6,DT!$C$8:$C$838,"TMD")-SUMIFS(DT!$AE$8:$AE$838,DT!$D$8:$D$838,R$6,DT!$C$8:$C$838,"SKC")-SUMIFS(DT!$AE$8:$AE$838,DT!$D$8:$D$838,R$6,DT!$C$8:$C$838,"SKX")-SUMIFS(DT!$AE$8:$AE$838,DT!$D$8:$D$838,R$6,DT!$C$8:$C$838,"TIN")-SUMIFS(DT!$AE$8:$AE$838,DT!$D$8:$D$838,R$6,DT!$C$8:$C$838,$C23) -> 0 | S23: =SUMIF(DT!$D$8:$D$838,S$6,DT!$AE$8:$AE$838)-SUMIFS(DT!$AE$8:$AE$838,DT!$D$8:$D$838,S$6,DT!$C$8:$C$838,"TMD")-SUMIFS(DT!$AE$8:$AE$838,DT!$D$8:$D$838,S$6,DT!$C$8:$C$838,"SKC")-SUMIFS(DT!$AE$8:$AE$838,DT!$D$8:$D$838,S$6,DT!$C$8:$C$838,"SKX")-SUMIFS(DT!$AE$8:$AE$838,DT!$D$8:$D$838,S$6,DT!$C$8:$C$838,"TIN")-SUMIFS(DT!$AE$8:$AE$838,DT!$D$8:$D$838,S$6,DT!$C$8:$C$838,$C23) -> 0 | T23: =SUMIF(DT!$D$8:$D$838,T$6,DT!$AE$8:$AE$838)-SUMIFS(DT!$AE$8:$AE$838,DT!$D$8:$D$838,T$6,DT!$C$8:$C$838,"TMD")-SUMIFS(DT!$AE$8:$AE$838,DT!$D$8:$D$838,T$6,DT!$C$8:$C$838,"SKC")-SUMIFS(DT!$AE$8:$AE$838,DT!$D$8:$D$838,T$6,DT!$C$8:$C$838,"SKX")-SUMIFS(DT!$AE$8:$AE$838,DT!$D$8:$D$838,T$6,DT!$C$8:$C$838,"TIN")-SUMIFS(DT!$AE$8:$AE$838,DT!$D$8:$D$838,T$6,DT!$C$8:$C$838,$C23) -> 0 | U23: =SUMIF(DT!$D$8:$D$838,U$6,DT!$AE$8:$AE$838)-SUMIFS(DT!$AE$8:$AE$838,DT!$D$8:$D$838,U$6,DT!$C$8:$C$838,"TMD")-SUMIFS(DT!$AE$8:$AE$838,DT!$D$8:$D$838,U$6,DT!$C$8:$C$838,"SKC")-SUMIFS(DT!$AE$8:$AE$838,DT!$D$8:$D$838,U$6,DT!$C$8:$C$838,"SKX")-SUMIFS(DT!$AE$8:$AE$838,DT!$D$8:$D$838,U$6,DT!$C$8:$C$838,"TIN")-SUMIFS(DT!$AE$8:$AE$838,DT!$D$8:$D$838,U$6,DT!$C$8:$C$838,$C23) -> 0 | V23: =SUMIF(DT!$D$8:$D$838,V$6,DT!$AE$8:$AE$838)-SUMIFS(DT!$AE$8:$AE$838,DT!$D$8:$D$838,V$6,DT!$C$8:$C$838,"TMD")-SUMIFS(DT!$AE$8:$AE$838,DT!$D$8:$D$838,V$6,DT!$C$8:$C$838,"SKC")-SUMIFS(DT!$AE$8:$AE$838,DT!$D$8:$D$838,V$6,DT!$C$8:$C$838,"SKX")-SUMIFS(DT!$AE$8:$AE$838,DT!$D$8:$D$838,V$6,DT!$C$8:$C$838,"TIN")-SUMIFS(DT!$AE$8:$AE$838,DT!$D$8:$D$838,V$6,DT!$C$8:$C$838,$C23) -> 0
A24: 2.3 | B24: Đất khu công nghiệp | C24: SKK | D24: 0 | E24: =SUMIF(DT!$D$8:$D$838,E$6,DT!$AG$8:$AG$838) -> 0 | F24: =SUMIF(DT!$D$8:$D$838,F$6,DT!$AG$8:$AG$838)-SUMIFS(DT!$AG$8:$AG$838,DT!$D$8:$D$838,F$6,DT!$C$8:$C$838,"TMD")-SUMIFS(DT!$AG$8:$AG$838,DT!$D$8:$D$838,F$6,DT!$C$8:$C$838,"SKC")-SUMIFS(DT!$AG$8:$AG$838,DT!$D$8:$D$838,F$6,DT!$C$8:$C$838,"SKX")-SUMIFS(DT!$AG$8:$AG$838,DT!$D$8:$D$838,F$6,DT!$C$8:$C$838,"TIN")-SUMIFS(DT!$AG$8:$AG$838,DT!$D$8:$D$838,F$6,DT!$C$8:$C$838,$C24) -> 0 | G24: =SUMIF(DT!$D$8:$D$838,G$6,DT!$AG$8:$AG$838)-SUMIFS(DT!$AG$8:$AG$838,DT!$D$8:$D$838,G$6,DT!$C$8:$C$838,"TMD")-SUMIFS(DT!$AG$8:$AG$838,DT!$D$8:$D$838,G$6,DT!$C$8:$C$838,"SKC")-SUMIFS(DT!$AG$8:$AG$838,DT!$D$8:$D$838,G$6,DT!$C$8:$C$838,"SKX")-SUMIFS(DT!$AG$8:$AG$838,DT!$D$8:$D$838,G$6,DT!$C$8:$C$838,"TIN")-SUMIFS(DT!$AG$8:$AG$838,DT!$D$8:$D$838,G$6,DT!$C$8:$C$838,$C24) -> 0 | H24: =SUMIF(DT!$D$8:$D$838,H$6,DT!$AG$8:$AG$838)-SUMIFS(DT!$AG$8:$AG$838,DT!$D$8:$D$838,H$6,DT!$C$8:$C$838,"TMD")-SUMIFS(DT!$AG$8:$AG$838,DT!$D$8:$D$838,H$6,DT!$C$8:$C$838,"SKC")-SUMIFS(DT!$AG$8:$AG$838,DT!$D$8:$D$838,H$6,DT!$C$8:$C$838,"SKX")-SUMIFS(DT!$AG$8:$AG$838,DT!$D$8:$D$838,H$6,DT!$C$8:$C$838,"TIN")-SUMIFS(DT!$AG$8:$AG$838,DT!$D$8:$D$838,H$6,DT!$C$8:$C$838,$C24) -> 0 | I24: =SUMIF(DT!$D$8:$D$838,I$6,DT!$AG$8:$AG$838)-SUMIFS(DT!$AG$8:$AG$838,DT!$D$8:$D$838,I$6,DT!$C$8:$C$838,"TMD")-SUMIFS(DT!$AG$8:$AG$838,DT!$D$8:$D$838,I$6,DT!$C$8:$C$838,"SKC")-SUMIFS(DT!$AG$8:$AG$838,DT!$D$8:$D$838,I$6,DT!$C$8:$C$838,"SKX")-SUMIFS(DT!$AG$8:$AG$838,DT!$D$8:$D$838,I$6,DT!$C$8:$C$838,"TIN")-SUMIFS(DT!$AG$8:$AG$838,DT!$D$8:$D$838,I$6,DT!$C$8:$C$838,$C24) -> 0 | J24: =SUMIF(DT!$D$8:$D$838,J$6,DT!$AG$8:$AG$838)-SUMIFS(DT!$AG$8:$AG$838,DT!$D$8:$D$838,J$6,DT!$C$8:$C$838,"TMD")-SUMIFS(DT!$AG$8:$AG$838,DT!$D$8:$D$838,J$6,DT!$C$8:$C$838,"SKC")-SUMIFS(DT!$AG$8:$AG$838,DT!$D$8:$D$838,J$6,DT!$C$8:$C$838,"SKX")-SUMIFS(DT!$AG$8:$AG$838,DT!$D$8:$D$838,J$6,DT!$C$8:$C$838,"TIN")-SUMIFS(DT!$AG$8:$AG$838,DT!$D$8:$D$838,J$6,DT!$C$8:$C$838,$C24) -> 0 | K24: =SUMIF(DT!$D$8:$D$838,K$6,DT!$AG$8:$AG$838)-SUMIFS(DT!$AG$8:$AG$838,DT!$D$8:$D$838,K$6,DT!$C$8:$C$838,"TMD")-SUMIFS(DT!$AG$8:$AG$838,DT!$D$8:$D$838,K$6,DT!$C$8:$C$838,"SKC")-SUMIFS(DT!$AG$8:$AG$838,DT!$D$8:$D$838,K$6,DT!$C$8:$C$838,"SKX")-SUMIFS(DT!$AG$8:$AG$838,DT!$D$8:$D$838,K$6,DT!$C$8:$C$838,"TIN")-SUMIFS(DT!$AG$8:$AG$838,DT!$D$8:$D$838,K$6,DT!$C$8:$C$838,$C24) -> 0 | L24: =SUMIF(DT!$D$8:$D$838,L$6,DT!$AG$8:$AG$838)-SUMIFS(DT!$AG$8:$AG$838,DT!$D$8:$D$838,L$6,DT!$C$8:$C$838,"TMD")-SUMIFS(DT!$AG$8:$AG$838,DT!$D$8:$D$838,L$6,DT!$C$8:$C$838,"SKC")-SUMIFS(DT!$AG$8:$AG$838,DT!$D$8:$D$838,L$6,DT!$C$8:$C$838,"SKX")-SUMIFS(DT!$AG$8:$AG$838,DT!$D$8:$D$838,L$6,DT!$C$8:$C$838,"TIN")-SUMIFS(DT!$AG$8:$AG$838,DT!$D$8:$D$838,L$6,DT!$C$8:$C$838,$C24) -> 0 | M24: =SUMIF(DT!$D$8:$D$838,M$6,DT!$AG$8:$AG$838)-SUMIFS(DT!$AG$8:$AG$838,DT!$D$8:$D$838,M$6,DT!$C$8:$C$838,"TMD")-SUMIFS(DT!$AG$8:$AG$838,DT!$D$8:$D$838,M$6,DT!$C$8:$C$838,"SKC")-SUMIFS(DT!$AG$8:$AG$838,DT!$D$8:$D$838,M$6,DT!$C$8:$C$838,"SKX")-SUMIFS(DT!$AG$8:$AG$838,DT!$D$8:$D$838,M$6,DT!$C$8:$C$838,"TIN")-SUMIFS(DT!$AG$8:$AG$838,DT!$D$8:$D$838,M$6,DT!$C$8:$C$838,$C24) -> 0 | N24: =SUMIF(DT!$D$8:$D$838,N$6,DT!$AG$8:$AG$838)-SUMIFS(DT!$AG$8:$AG$838,DT!$D$8:$D$838,N$6,DT!$C$8:$C$838,"TMD")-SUMIFS(DT!$AG$8:$AG$838,DT!$D$8:$D$838,N$6,DT!$C$8:$C$838,"SKC")-SUMIFS(DT!$AG$8:$AG$838,DT!$D$8:$D$838,N$6,DT!$C$8:$C$838,"SKX")-SUMIFS(DT!$AG$8:$AG$838,DT!$D$8:$D$838,N$6,DT!$C$8:$C$838,"TIN")-SUMIFS(DT!$AG$8:$AG$838,DT!$D$8:$D$838,N$6,DT!$C$8:$C$838,$C24) -> 0 | O24: =SUMIF(DT!$D$8:$D$838,O$6,DT!$AG$8:$AG$838)-SUMIFS(DT!$AG$8:$AG$838,DT!$D$8:$D$838,O$6,DT!$C$8:$C$838,"TMD")-SUMIFS(DT!$AG$8:$AG$838,DT!$D$8:$D$838,O$6,DT!$C$8:$C$838,"SKC")-SUMIFS(DT!$AG$8:$AG$838,DT!$D$8:$D$838,O$6,DT!$C$8:$C$838,"SKX")-SUMIFS(DT!$AG$8:$AG$838,DT!$D$8:$D$838,O$6,DT!$C$8:$C$838,"TIN")-SUMIFS(DT!$AG$8:$AG$838,DT!$D$8:$D$838,O$6,DT!$C$8:$C$838,$C24) -> 0 | P24: =SUMIF(DT!$D$8:$D$838,P$6,DT!$AG$8:$AG$838)-SUMIFS(DT!$AG$8:$AG$838,DT!$D$8:$D$838,P$6,DT!$C$8:$C$838,"TMD")-SUMIFS(DT!$AG$8:$AG$838,DT!$D$8:$D$838,P$6,DT!$C$8:$C$838,"SKC")-SUMIFS(DT!$AG$8:$AG$838,DT!$D$8:$D$838,P$6,DT!$C$8:$C$838,"SKX")-SUMIFS(DT!$AG$8:$AG$838,DT!$D$8:$D$838,P$6,DT!$C$8:$C$838,"TIN")-SUMIFS(DT!$AG$8:$AG$838,DT!$D$8:$D$838,P$6,DT!$C$8:$C$838,$C24) -> 0 | Q24: =SUMIF(DT!$D$8:$D$838,Q$6,DT!$AG$8:$AG$838)-SUMIFS(DT!$AG$8:$AG$838,DT!$D$8:$D$838,Q$6,DT!$C$8:$C$838,"TMD")-SUMIFS(DT!$AG$8:$AG$838,DT!$D$8:$D$838,Q$6,DT!$C$8:$C$838,"SKC")-SUMIFS(DT!$AG$8:$AG$838,DT!$D$8:$D$838,Q$6,DT!$C$8:$C$838,"SKX")-SUMIFS(DT!$AG$8:$AG$838,DT!$D$8:$D$838,Q$6,DT!$C$8:$C$838,"TIN")-SUMIFS(DT!$AG$8:$AG$838,DT!$D$8:$D$838,Q$6,DT!$C$8:$C$838,$C24) -> 0 | R24: =SUMIF(DT!$D$8:$D$838,R$6,DT!$AG$8:$AG$838)-SUMIFS(DT!$AG$8:$AG$838,DT!$D$8:$D$838,R$6,DT!$C$8:$C$838,"TMD")-SUMIFS(DT!$AG$8:$AG$838,DT!$D$8:$D$838,R$6,DT!$C$8:$C$838,"SKC")-SUMIFS(DT!$AG$8:$AG$838,DT!$D$8:$D$838,R$6,DT!$C$8:$C$838,"SKX")-SUMIFS(DT!$AG$8:$AG$838,DT!$D$8:$D$838,R$6,DT!$C$8:$C$838,"TIN")-SUMIFS(DT!$AG$8:$AG$838,DT!$D$8:$D$838,R$6,DT!$C$8:$C$838,$C24) -> 0 | S24: =SUMIF(DT!$D$8:$D$838,S$6,DT!$AG$8:$AG$838)-SUMIFS(DT!$AG$8:$AG$838,DT!$D$8:$D$838,S$6,DT!$C$8:$C$838,"TMD")-SUMIFS(DT!$AG$8:$AG$838,DT!$D$8:$D$838,S$6,DT!$C$8:$C$838,"SKC")-SUMIFS(DT!$AG$8:$AG$838,DT!$D$8:$D$838,S$6,DT!$C$8:$C$838,"SKX")-SUMIFS(DT!$AG$8:$AG$838,DT!$D$8:$D$838,S$6,DT!$C$8:$C$838,"TIN")-SUMIFS(DT!$AG$8:$AG$838,DT!$D$8:$D$838,S$6,DT!$C$8:$C$838,$C24) -> 0 | T24: =SUMIF(DT!$D$8:$D$838,T$6,DT!$AG$8:$AG$838)-SUMIFS(DT!$AG$8:$AG$838,DT!$D$8:$D$838,T$6,DT!$C$8:$C$838,"TMD")-SUMIFS(DT!$AG$8:$AG$838,DT!$D$8:$D$838,T$6,DT!$C$8:$C$838,"SKC")-SUMIFS(DT!$AG$8:$AG$838,DT!$D$8:$D$838,T$6,DT!$C$8:$C$838,"SKX")-SUMIFS(DT!$AG$8:$AG$838,DT!$D$8:$D$838,T$6,DT!$C$8:$C$838,"TIN")-SUMIFS(DT!$AG$8:$AG$838,DT!$D$8:$D$838,T$6,DT!$C$8:$C$838,$C24) -> 0 | U24: =SUMIF(DT!$D$8:$D$838,U$6,DT!$AG$8:$AG$838)-SUMIFS(DT!$AG$8:$AG$838,DT!$D$8:$D$838,U$6,DT!$C$8:$C$838,"TMD")-SUMIFS(DT!$AG$8:$AG$838,DT!$D$8:$D$838,U$6,DT!$C$8:$C$838,"SKC")-SUMIFS(DT!$AG$8:$AG$838,DT!$D$8:$D$838,U$6,DT!$C$8:$C$838,"SKX")-SUMIFS(DT!$AG$8:$AG$838,DT!$D$8:$D$838,U$6,DT!$C$8:$C$838,"TIN")-SUMIFS(DT!$AG$8:$AG$838,DT!$D$8:$D$838,U$6,DT!$C$8:$C$838,$C24) -> 0 | V24: =SUMIF(DT!$D$8:$D$838,V$6,DT!$AG$8:$AG$838)-SUMIFS(DT!$AG$8:$AG$838,DT!$D$8:$D$838,V$6,DT!$C$8:$C$838,"TMD")-SUMIFS(DT!$AG$8:$AG$838,DT!$D$8:$D$838,V$6,DT!$C$8:$C$838,"SKC")-SUMIFS(DT!$AG$8:$AG$838,DT!$D$8:$D$838,V$6,DT!$C$8:$C$838,"SKX")-SUMIFS(DT!$AG$8:$AG$838,DT!$D$8:$D$838,V$6,DT!$C$8:$C$838,"TIN")-SUMIFS(DT!$AG$8:$AG$838,DT!$D$8:$D$838,V$6,DT!$C$8:$C$838,$C24) -> 0
A25: 2.4 | B25: Đất khu chế xuất | C25: SKT | D25: 0 | E25: =SUMIF(DT!$D$8:$D$838,E$6,DT!$AI$8:$AI$838) -> 0 | F25: =SUMIF(DT!$D$8:$D$838,F$6,DT!$AI$8:$AI$838)-SUMIFS(DT!$AI$8:$AI$838,DT!$D$8:$D$838,F$6,DT!$C$8:$C$838,"TMD")-SUMIFS(DT!$AI$8:$AI$838,DT!$D$8:$D$838,F$6,DT!$C$8:$C$838,"SKC")-SUMIFS(DT!$AI$8:$AI$838,DT!$D$8:$D$838,F$6,DT!$C$8:$C$838,"SKX")-SUMIFS(DT!$AI$8:$AI$838,DT!$D$8:$D$838,F$6,DT!$C$8:$C$838,"TIN")-SUMIFS(DT!$AI$8:$AI$838,DT!$D$8:$D$838,F$6,DT!$C$8:$C$838,$C25) -> 0 | G25: =SUMIF(DT!$D$8:$D$838,G$6,DT!$AI$8:$AI$838)-SUMIFS(DT!$AI$8:$AI$838,DT!$D$8:$D$838,G$6,DT!$C$8:$C$838,"TMD")-SUMIFS(DT!$AI$8:$AI$838,DT!$D$8:$D$838,G$6,DT!$C$8:$C$838,"SKC")-SUMIFS(DT!$AI$8:$AI$838,DT!$D$8:$D$838,G$6,DT!$C$8:$C$838,"SKX")-SUMIFS(DT!$AI$8:$AI$838,DT!$D$8:$D$838,G$6,DT!$C$8:$C$838,"TIN")-SUMIFS(DT!$AI$8:$AI$838,DT!$D$8:$D$838,G$6,DT!$C$8:$C$838,$C25) -> 0 | H25: =SUMIF(DT!$D$8:$D$838,H$6,DT!$AI$8:$AI$838)-SUMIFS(DT!$AI$8:$AI$838,DT!$D$8:$D$838,H$6,DT!$C$8:$C$838,"TMD")-SUMIFS(DT!$AI$8:$AI$838,DT!$D$8:$D$838,H$6,DT!$C$8:$C$838,"SKC")-SUMIFS(DT!$AI$8:$AI$838,DT!$D$8:$D$838,H$6,DT!$C$8:$C$838,"SKX")-SUMIFS(DT!$AI$8:$AI$838,DT!$D$8:$D$838,H$6,DT!$C$8:$C$838,"TIN")-SUMIFS(DT!$AI$8:$AI$838,DT!$D$8:$D$838,H$6,DT!$C$8:$C$838,$C25) -> 0 | I25: =SUMIF(DT!$D$8:$D$838,I$6,DT!$AI$8:$AI$838)-SUMIFS(DT!$AI$8:$AI$838,DT!$D$8:$D$838,I$6,DT!$C$8:$C$838,"TMD")-SUMIFS(DT!$AI$8:$AI$838,DT!$D$8:$D$838,I$6,DT!$C$8:$C$838,"SKC")-SUMIFS(DT!$AI$8:$AI$838,DT!$D$8:$D$838,I$6,DT!$C$8:$C$838,"SKX")-SUMIFS(DT!$AI$8:$AI$838,DT!$D$8:$D$838,I$6,DT!$C$8:$C$838,"TIN")-SUMIFS(DT!$AI$8:$AI$838,DT!$D$8:$D$838,I$6,DT!$C$8:$C$838,$C25) -> 0 | J25: =SUMIF(DT!$D$8:$D$838,J$6,DT!$AI$8:$AI$838)-SUMIFS(DT!$AI$8:$AI$838,DT!$D$8:$D$838,J$6,DT!$C$8:$C$838,"TMD")-SUMIFS(DT!$AI$8:$AI$838,DT!$D$8:$D$838,J$6,DT!$C$8:$C$838,"SKC")-SUMIFS(DT!$AI$8:$AI$838,DT!$D$8:$D$838,J$6,DT!$C$8:$C$838,"SKX")-SUMIFS(DT!$AI$8:$AI$838,DT!$D$8:$D$838,J$6,DT!$C$8:$C$838,"TIN")-SUMIFS(DT!$AI$8:$AI$838,DT!$D$8:$D$838,J$6,DT!$C$8:$C$838,$C25) -> 0 | K25: =SUMIF(DT!$D$8:$D$838,K$6,DT!$AI$8:$AI$838)-SUMIFS(DT!$AI$8:$AI$838,DT!$D$8:$D$838,K$6,DT!$C$8:$C$838,"TMD")-SUMIFS(DT!$AI$8:$AI$838,DT!$D$8:$D$838,K$6,DT!$C$8:$C$838,"SKC")-SUMIFS(DT!$AI$8:$AI$838,DT!$D$8:$D$838,K$6,DT!$C$8:$C$838,"SKX")-SUMIFS(DT!$AI$8:$AI$838,DT!$D$8:$D$838,K$6,DT!$C$8:$C$838,"TIN")-SUMIFS(DT!$AI$8:$AI$838,DT!$D$8:$D$838,K$6,DT!$C$8:$C$838,$C25) -> 0 | L25: =SUMIF(DT!$D$8:$D$838,L$6,DT!$AI$8:$AI$838)-SUMIFS(DT!$AI$8:$AI$838,DT!$D$8:$D$838,L$6,DT!$C$8:$C$838,"TMD")-SUMIFS(DT!$AI$8:$AI$838,DT!$D$8:$D$838,L$6,DT!$C$8:$C$838,"SKC")-SUMIFS(DT!$AI$8:$AI$838,DT!$D$8:$D$838,L$6,DT!$C$8:$C$838,"SKX")-SUMIFS(DT!$AI$8:$AI$838,DT!$D$8:$D$838,L$6,DT!$C$8:$C$838,"TIN")-SUMIFS(DT!$AI$8:$AI$838,DT!$D$8:$D$838,L$6,DT!$C$8:$C$838,$C25) -> 0 | M25: =SUMIF(DT!$D$8:$D$838,M$6,DT!$AI$8:$AI$838)-SUMIFS(DT!$AI$8:$AI$838,DT!$D$8:$D$838,M$6,DT!$C$8:$C$838,"TMD")-SUMIFS(DT!$AI$8:$AI$838,DT!$D$8:$D$838,M$6,DT!$C$8:$C$838,"SKC")-SUMIFS(DT!$AI$8:$AI$838,DT!$D$8:$D$838,M$6,DT!$C$8:$C$838,"SKX")-SUMIFS(DT!$AI$8:$AI$838,DT!$D$8:$D$838,M$6,DT!$C$8:$C$838,"TIN")-SUMIFS(DT!$AI$8:$AI$838,DT!$D$8:$D$838,M$6,DT!$C$8:$C$838,$C25) -> 0 | N25: =SUMIF(DT!$D$8:$D$838,N$6,DT!$AI$8:$AI$838)-SUMIFS(DT!$AI$8:$AI$838,DT!$D$8:$D$838,N$6,DT!$C$8:$C$838,"TMD")-SUMIFS(DT!$AI$8:$AI$838,DT!$D$8:$D$838,N$6,DT!$C$8:$C$838,"SKC")-SUMIFS(DT!$AI$8:$AI$838,DT!$D$8:$D$838,N$6,DT!$C$8:$C$838,"SKX")-SUMIFS(DT!$AI$8:$AI$838,DT!$D$8:$D$838,N$6,DT!$C$8:$C$838,"TIN")-SUMIFS(DT!$AI$8:$AI$838,DT!$D$8:$D$838,N$6,DT!$C$8:$C$838,$C25) -> 0 | O25: =SUMIF(DT!$D$8:$D$838,O$6,DT!$AI$8:$AI$838)-SUMIFS(DT!$AI$8:$AI$838,DT!$D$8:$D$838,O$6,DT!$C$8:$C$838,"TMD")-SUMIFS(DT!$AI$8:$AI$838,DT!$D$8:$D$838,O$6,DT!$C$8:$C$838,"SKC")-SUMIFS(DT!$AI$8:$AI$838,DT!$D$8:$D$838,O$6,DT!$C$8:$C$838,"SKX")-SUMIFS(DT!$AI$8:$AI$838,DT!$D$8:$D$838,O$6,DT!$C$8:$C$838,"TIN")-SUMIFS(DT!$AI$8:$AI$838,DT!$D$8:$D$838,O$6,DT!$C$8:$C$838,$C25) -> 0 | P25: =SUMIF(DT!$D$8:$D$838,P$6,DT!$AI$8:$AI$838)-SUMIFS(DT!$AI$8:$AI$838,DT!$D$8:$D$838,P$6,DT!$C$8:$C$838,"TMD")-SUMIFS(DT!$AI$8:$AI$838,DT!$D$8:$D$838,P$6,DT!$C$8:$C$838,"SKC")-SUMIFS(DT!$AI$8:$AI$838,DT!$D$8:$D$838,P$6,DT!$C$8:$C$838,"SKX")-SUMIFS(DT!$AI$8:$AI$838,DT!$D$8:$D$838,P$6,DT!$C$8:$C$838,"TIN")-SUMIFS(DT!$AI$8:$AI$838,DT!$D$8:$D$838,P$6,DT!$C$8:$C$838,$C25) -> 0 | Q25: =SUMIF(DT!$D$8:$D$838,Q$6,DT!$AI$8:$AI$838)-SUMIFS(DT!$AI$8:$AI$838,DT!$D$8:$D$838,Q$6,DT!$C$8:$C$838,"TMD")-SUMIFS(DT!$AI$8:$AI$838,DT!$D$8:$D$838,Q$6,DT!$C$8:$C$838,"SKC")-SUMIFS(DT!$AI$8:$AI$838,DT!$D$8:$D$838,Q$6,DT!$C$8:$C$838,"SKX")-SUMIFS(DT!$AI$8:$AI$838,DT!$D$8:$D$838,Q$6,DT!$C$8:$C$838,"TIN")-SUMIFS(DT!$AI$8:$AI$838,DT!$D$8:$D$838,Q$6,DT!$C$8:$C$838,$C25) -> 0 | R25: =SUMIF(DT!$D$8:$D$838,R$6,DT!$AI$8:$AI$838)-SUMIFS(DT!$AI$8:$AI$838,DT!$D$8:$D$838,R$6,DT!$C$8:$C$838,"TMD")-SUMIFS(DT!$AI$8:$AI$838,DT!$D$8:$D$838,R$6,DT!$C$8:$C$838,"SKC")-SUMIFS(DT!$AI$8:$AI$838,DT!$D$8:$D$838,R$6,DT!$C$8:$C$838,"SKX")-SUMIFS(DT!$AI$8:$AI$838,DT!$D$8:$D$838,R$6,DT!$C$8:$C$838,"TIN")-SUMIFS(DT!$AI$8:$AI$838,DT!$D$8:$D$838,R$6,DT!$C$8:$C$838,$C25) -> 0 | S25: =SUMIF(DT!$D$8:$D$838,S$6,DT!$AI$8:$AI$838)-SUMIFS(DT!$AI$8:$AI$838,DT!$D$8:$D$838,S$6,DT!$C$8:$C$838,"TMD")-SUMIFS(DT!$AI$8:$AI$838,DT!$D$8:$D$838,S$6,DT!$C$8:$C$838,"SKC")-SUMIFS(DT!$AI$8:$AI$838,DT!$D$8:$D$838,S$6,DT!$C$8:$C$838,"SKX")-SUMIFS(DT!$AI$8:$AI$838,DT!$D$8:$D$838,S$6,DT!$C$8:$C$838,"TIN")-SUMIFS(DT!$AI$8:$AI$838,DT!$D$8:$D$838,S$6,DT!$C$8:$C$838,$C25) -> 0 | T25: =SUMIF(DT!$D$8:$D$838,T$6,DT!$AI$8:$AI$838)-SUMIFS(DT!$AI$8:$AI$838,DT!$D$8:$D$838,T$6,DT!$C$8:$C$838,"TMD")-SUMIFS(DT!$AI$8:$AI$838,DT!$D$8:$D$838,T$6,DT!$C$8:$C$838,"SKC")-SUMIFS(DT!$AI$8:$AI$838,DT!$D$8:$D$838,T$6,DT!$C$8:$C$838,"SKX")-SUMIFS(DT!$AI$8:$AI$838,DT!$D$8:$D$838,T$6,DT!$C$8:$C$838,"TIN")-SUMIFS(DT!$AI$8:$AI$838,DT!$D$8:$D$838,T$6,DT!$C$8:$C$838,$C25) -> 0 | U25: =SUMIF(DT!$D$8:$D$838,U$6,DT!$AI$8:$AI$838)-SUMIFS(DT!$AI$8:$AI$838,DT!$D$8:$D$838,U$6,DT!$C$8:$C$838,"TMD")-SUMIFS(DT!$AI$8:$AI$838,DT!$D$8:$D$838,U$6,DT!$C$8:$C$838,"SKC")-SUMIFS(DT!$AI$8:$AI$838,DT!$D$8:$D$838,U$6,DT!$C$8:$C$838,"SKX")-SUMIFS(DT!$AI$8:$AI$838,DT!$D$8:$D$838,U$6,DT!$C$8:$C$838,"TIN")-SUMIFS(DT!$AI$8:$AI$838,DT!$D$8:$D$838,U$6,DT!$C$8:$C$838,$C25) -> 0 | V25: =SUMIF(DT!$D$8:$D$838,V$6,DT!$AI$8:$AI$838)-SUMIFS(DT!$AI$8:$AI$838,DT!$D$8:$D$838,V$6,DT!$C$8:$C$838,"TMD")-SUMIFS(DT!$AI$8:$AI$838,DT!$D$8:$D$838,V$6,DT!$C$8:$C$838,"SKC")-SUMIFS(DT!$AI$8:$AI$838,DT!$D$8:$D$838,V$6,DT!$C$8:$C$838,"SKX")-SUMIFS(DT!$AI$8:$AI$838,DT!$D$8:$D$838,V$6,DT!$C$8:$C$838,"TIN")-SUMIFS(DT!$AI$8:$AI$838,DT!$D$8:$D$838,V$6,DT!$C$8:$C$838,$C25) -> 0
A26: 2.5 | B26: Đất cụm công nghiệp | C26: SKN | D26: 0 | E26: =SUMIF(DT!$D$8:$D$838,E$6,DT!$AK$8:$AK$838) -> 0 | F26: =SUMIF(DT!$D$8:$D$838,F$6,DT!$AK$8:$AK$838)-SUMIFS(DT!$AK$8:$AK$838,DT!$D$8:$D$838,F$6,DT!$C$8:$C$838,"TMD")-SUMIFS(DT!$AK$8:$AK$838,DT!$D$8:$D$838,F$6,DT!$C$8:$C$838,"SKC")-SUMIFS(DT!$AK$8:$AK$838,DT!$D$8:$D$838,F$6,DT!$C$8:$C$838,"SKX")-SUMIFS(DT!$AK$8:$AK$838,DT!$D$8:$D$838,F$6,DT!$C$8:$C$838,"TIN")-SUMIFS(DT!$AK$8:$AK$838,DT!$D$8:$D$838,F$6,DT!$C$8:$C$838,$C26) -> 0 | G26: =SUMIF(DT!$D$8:$D$838,G$6,DT!$AK$8:$AK$838)-SUMIFS(DT!$AK$8:$AK$838,DT!$D$8:$D$838,G$6,DT!$C$8:$C$838,"TMD")-SUMIFS(DT!$AK$8:$AK$838,DT!$D$8:$D$838,G$6,DT!$C$8:$C$838,"SKC")-SUMIFS(DT!$AK$8:$AK$838,DT!$D$8:$D$838,G$6,DT!$C$8:$C$838,"SKX")-SUMIFS(DT!$AK$8:$AK$838,DT!$D$8:$D$838,G$6,DT!$C$8:$C$838,"TIN")-SUMIFS(DT!$AK$8:$AK$838,DT!$D$8:$D$838,G$6,DT!$C$8:$C$838,$C26) -> 0 | H26: =SUMIF(DT!$D$8:$D$838,H$6,DT!$AK$8:$AK$838)-SUMIFS(DT!$AK$8:$AK$838,DT!$D$8:$D$838,H$6,DT!$C$8:$C$838,"TMD")-SUMIFS(DT!$AK$8:$AK$838,DT!$D$8:$D$838,H$6,DT!$C$8:$C$838,"SKC")-SUMIFS(DT!$AK$8:$AK$838,DT!$D$8:$D$838,H$6,DT!$C$8:$C$838,"SKX")-SUMIFS(DT!$AK$8:$AK$838,DT!$D$8:$D$838,H$6,DT!$C$8:$C$838,"TIN")-SUMIFS(DT!$AK$8:$AK$838,DT!$D$8:$D$838,H$6,DT!$C$8:$C$838,$C26) -> 0 | I26: =SUMIF(DT!$D$8:$D$838,I$6,DT!$AK$8:$AK$838)-SUMIFS(DT!$AK$8:$AK$838,DT!$D$8:$D$838,I$6,DT!$C$8:$C$838,"TMD")-SUMIFS(DT!$AK$8:$AK$838,DT!$D$8:$D$838,I$6,DT!$C$8:$C$838,"SKC")-SUMIFS(DT!$AK$8:$AK$838,DT!$D$8:$D$838,I$6,DT!$C$8:$C$838,"SKX")-SUMIFS(DT!$AK$8:$AK$838,DT!$D$8:$D$838,I$6,DT!$C$8:$C$838,"TIN")-SUMIFS(DT!$AK$8:$AK$838,DT!$D$8:$D$838,I$6,DT!$C$8:$C$838,$C26) -> 0 | J26: =SUMIF(DT!$D$8:$D$838,J$6,DT!$AK$8:$AK$838)-SUMIFS(DT!$AK$8:$AK$838,DT!$D$8:$D$838,J$6,DT!$C$8:$C$838,"TMD")-SUMIFS(DT!$AK$8:$AK$838,DT!$D$8:$D$838,J$6,DT!$C$8:$C$838,"SKC")-SUMIFS(DT!$AK$8:$AK$838,DT!$D$8:$D$838,J$6,DT!$C$8:$C$838,"SKX")-SUMIFS(DT!$AK$8:$AK$838,DT!$D$8:$D$838,J$6,DT!$C$8:$C$838,"TIN")-SUMIFS(DT!$AK$8:$AK$838,DT!$D$8:$D$838,J$6,DT!$C$8:$C$838,$C26) -> 0 | K26: =SUMIF(DT!$D$8:$D$838,K$6,DT!$AK$8:$AK$838)-SUMIFS(DT!$AK$8:$AK$838,DT!$D$8:$D$838,K$6,DT!$C$8:$C$838,"TMD")-SUMIFS(DT!$AK$8:$AK$838,DT!$D$8:$D$838,K$6,DT!$C$8:$C$838,"SKC")-SUMIFS(DT!$AK$8:$AK$838,DT!$D$8:$D$838,K$6,DT!$C$8:$C$838,"SKX")-SUMIFS(DT!$AK$8:$AK$838,DT!$D$8:$D$838,K$6,DT!$C$8:$C$838,"TIN")-SUMIFS(DT!$AK$8:$AK$838,DT!$D$8:$D$838,K$6,DT!$C$8:$C$838,$C26) -> 0 | L26: =SUMIF(DT!$D$8:$D$838,L$6,DT!$AK$8:$AK$838)-SUMIFS(DT!$AK$8:$AK$838,DT!$D$8:$D$838,L$6,DT!$C$8:$C$838,"TMD")-SUMIFS(DT!$AK$8:$AK$838,DT!$D$8:$D$838,L$6,DT!$C$8:$C$838,"SKC")-SUMIFS(DT!$AK$8:$AK$838,DT!$D$8:$D$838,L$6,DT!$C$8:$C$838,"SKX")-SUMIFS(DT!$AK$8:$AK$838,DT!$D$8:$D$838,L$6,DT!$C$8:$C$838,"TIN")-SUMIFS(DT!$AK$8:$AK$838,DT!$D$8:$D$838,L$6,DT!$C$8:$C$838,$C26) -> 0 | M26: =SUMIF(DT!$D$8:$D$838,M$6,DT!$AK$8:$AK$838)-SUMIFS(DT!$AK$8:$AK$838,DT!$D$8:$D$838,M$6,DT!$C$8:$C$838,"TMD")-SUMIFS(DT!$AK$8:$AK$838,DT!$D$8:$D$838,M$6,DT!$C$8:$C$838,"SKC")-SUMIFS(DT!$AK$8:$AK$838,DT!$D$8:$D$838,M$6,DT!$C$8:$C$838,"SKX")-SUMIFS(DT!$AK$8:$AK$838,DT!$D$8:$D$838,M$6,DT!$C$8:$C$838,"TIN")-SUMIFS(DT!$AK$8:$AK$838,DT!$D$8:$D$838,M$6,DT!$C$8:$C$838,$C26) -> 0 | N26: =SUMIF(DT!$D$8:$D$838,N$6,DT!$AK$8:$AK$838)-SUMIFS(DT!$AK$8:$AK$838,DT!$D$8:$D$838,N$6,DT!$C$8:$C$838,"TMD")-SUMIFS(DT!$AK$8:$AK$838,DT!$D$8:$D$838,N$6,DT!$C$8:$C$838,"SKC")-SUMIFS(DT!$AK$8:$AK$838,DT!$D$8:$D$838,N$6,DT!$C$8:$C$838,"SKX")-SUMIFS(DT!$AK$8:$AK$838,DT!$D$8:$D$838,N$6,DT!$C$8:$C$838,"TIN")-SUMIFS(DT!$AK$8:$AK$838,DT!$D$8:$D$838,N$6,DT!$C$8:$C$838,$C26) -> 0 | O26: =SUMIF(DT!$D$8:$D$838,O$6,DT!$AK$8:$AK$838)-SUMIFS(DT!$AK$8:$AK$838,DT!$D$8:$D$838,O$6,DT!$C$8:$C$838,"TMD")-SUMIFS(DT!$AK$8:$AK$838,DT!$D$8:$D$838,O$6,DT!$C$8:$C$838,"SKC")-SUMIFS(DT!$AK$8:$AK$838,DT!$D$8:$D$838,O$6,DT!$C$8:$C$838,"SKX")-SUMIFS(DT!$AK$8:$AK$838,DT!$D$8:$D$838,O$6,DT!$C$8:$C$838,"TIN")-SUMIFS(DT!$AK$8:$AK$838,DT!$D$8:$D$838,O$6,DT!$C$8:$C$838,$C26) -> 0 | P26: =SUMIF(DT!$D$8:$D$838,P$6,DT!$AK$8:$AK$838)-SUMIFS(DT!$AK$8:$AK$838,DT!$D$8:$D$838,P$6,DT!$C$8:$C$838,"TMD")-SUMIFS(DT!$AK$8:$AK$838,DT!$D$8:$D$838,P$6,DT!$C$8:$C$838,"SKC")-SUMIFS(DT!$AK$8:$AK$838,DT!$D$8:$D$838,P$6,DT!$C$8:$C$838,"SKX")-SUMIFS(DT!$AK$8:$AK$838,DT!$D$8:$D$838,P$6,DT!$C$8:$C$838,"TIN")-SUMIFS(DT!$AK$8:$AK$838,DT!$D$8:$D$838,P$6,DT!$C$8:$C$838,$C26) -> 0 | Q26: =SUMIF(DT!$D$8:$D$838,Q$6,DT!$AK$8:$AK$838)-SUMIFS(DT!$AK$8:$AK$838,DT!$D$8:$D$838,Q$6,DT!$C$8:$C$838,"TMD")-SUMIFS(DT!$AK$8:$AK$838,DT!$D$8:$D$838,Q$6,DT!$C$8:$C$838,"SKC")-SUMIFS(DT!$AK$8:$AK$838,DT!$D$8:$D$838,Q$6,DT!$C$8:$C$838,"SKX")-SUMIFS(DT!$AK$8:$AK$838,DT!$D$8:$D$838,Q$6,DT!$C$8:$C$838,"TIN")-SUMIFS(DT!$AK$8:$AK$838,DT!$D$8:$D$838,Q$6,DT!$C$8:$C$838,$C26) -> 0 | R26: =SUMIF(DT!$D$8:$D$838,R$6,DT!$AK$8:$AK$838)-SUMIFS(DT!$AK$8:$AK$838,DT!$D$8:$D$838,R$6,DT!$C$8:$C$838,"TMD")-SUMIFS(DT!$AK$8:$AK$838,DT!$D$8:$D$838,R$6,DT!$C$8:$C$838,"SKC")-SUMIFS(DT!$AK$8:$AK$838,DT!$D$8:$D$838,R$6,DT!$C$8:$C$838,"SKX")-SUMIFS(DT!$AK$8:$AK$838,DT!$D$8:$D$838,R$6,DT!$C$8:$C$838,"TIN")-SUMIFS(DT!$AK$8:$AK$838,DT!$D$8:$D$838,R$6,DT!$C$8:$C$838,$C26) -> 0 | S26: =SUMIF(DT!$D$8:$D$838,S$6,DT!$AK$8:$AK$838)-SUMIFS(DT!$AK$8:$AK$838,DT!$D$8:$D$838,S$6,DT!$C$8:$C$838,"TMD")-SUMIFS(DT!$AK$8:$AK$838,DT!$D$8:$D$838,S$6,DT!$C$8:$C$838,"SKC")-SUMIFS(DT!$AK$8:$AK$838,DT!$D$8:$D$838,S$6,DT!$C$8:$C$838,"SKX")-SUMIFS(DT!$AK$8:$AK$838,DT!$D$8:$D$838,S$6,DT!$C$8:$C$838,"TIN")-SUMIFS(DT!$AK$8:$AK$838,DT!$D$8:$D$838,S$6,DT!$C$8:$C$838,$C26) -> 0 | T26: =SUMIF(DT!$D$8:$D$838,T$6,DT!$AK$8:$AK$838)-SUMIFS(DT!$AK$8:$AK$838,DT!$D$8:$D$838,T$6,DT!$C$8:$C$838,"TMD")-SUMIFS(DT!$AK$8:$AK$838,DT!$D$8:$D$838,T$6,DT!$C$8:$C$838,"SKC")-SUMIFS(DT!$AK$8:$AK$838,DT!$D$8:$D$838,T$6,DT!$C$8:$C$838,"SKX")-SUMIFS(DT!$AK$8:$AK$838,DT!$D$8:$D$838,T$6,DT!$C$8:$C$838,"TIN")-SUMIFS(DT!$AK$8:$AK$838,DT!$D$8:$D$838,T$6,DT!$C$8:$C$838,$C26) -> 0 | U26: =SUMIF(DT!$D$8:$D$838,U$6,DT!$AK$8:$AK$838)-SUMIFS(DT!$AK$8:$AK$838,DT!$D$8:$D$838,U$6,DT!$C$8:$C$838,"TMD")-SUMIFS(DT!$AK$8:$AK$838,DT!$D$8:$D$838,U$6,DT!$C$8:$C$838,"SKC")-SUMIFS(DT!$AK$8:$AK$838,DT!$D$8:$D$838,U$6,DT!$C$8:$C$838,"SKX")-SUMIFS(DT!$AK$8:$AK$838,DT!$D$8:$D$838,U$6,DT!$C$8:$C$838,"TIN")-SUMIFS(DT!$AK$8:$AK$838,DT!$D$8:$D$838,U$6,DT!$C$8:$C$838,$C26) -> 0 | V26: =SUMIF(DT!$D$8:$D$838,V$6,DT!$AK$8:$AK$838)-SUMIFS(DT!$AK$8:$AK$838,DT!$D$8:$D$838,V$6,DT!$C$8:$C$838,"TMD")-SUMIFS(DT!$AK$8:$AK$838,DT!$D$8:$D$838,V$6,DT!$C$8:$C$838,"SKC")-SUMIFS(DT!$AK$8:$AK$838,DT!$D$8:$D$838,V$6,DT!$C$8:$C$838,"SKX")-SUMIFS(DT!$AK$8:$AK$838,DT!$D$8:$D$838,V$6,DT!$C$8:$C$838,"TIN")-SUMIFS(DT!$AK$8:$AK$838,DT!$D$8:$D$838,V$6,DT!$C$8:$C$838,$C26) -> 0
A27: 2.6 | B27: Đất thương mại dịch vụ | C27: TMD | D27: 0 | E27: =SUMIF(DT!$D$8:$D$838,E$6,DT!$AM$8:$AM$838)-SUMIFS(DT!$AM$8:$AM$838,DT!$D$8:$D$838,E$6,DT!$C$8:$C$838,"TMD")-SUMIFS(DT!$AM$8:$AM$838,DT!$D$8:$D$838,E$6,DT!$C$8:$C$838,"SKC")-SUMIFS(DT!$AM$8:$AM$838,DT!$D$8:$D$838,E$6,DT!$C$8:$C$838,"SKX")-SUMIFS(DT!$AM$8:$AM$838,DT!$D$8:$D$838,E$6,DT!$C$8:$C$838,"TIN")-SUMIFS(DT!$AM$8:$AM$838,DT!$D$8:$D$838,E$6,DT!$C$8:$C$838,$C27) -> 0 | F27: =SUMIF(DT!$D$8:$D$838,F$6,DT!$AM$8:$AM$838)-SUMIFS(DT!$AM$8:$AM$838,DT!$D$8:$D$838,F$6,DT!$C$8:$C$838,"TMD")-SUMIFS(DT!$AM$8:$AM$838,DT!$D$8:$D$838,F$6,DT!$C$8:$C$838,"SKC")-SUMIFS(DT!$AM$8:$AM$838,DT!$D$8:$D$838,F$6,DT!$C$8:$C$838,"SKX")-SUMIFS(DT!$AM$8:$AM$838,DT!$D$8:$D$838,F$6,DT!$C$8:$C$838,"TIN")-SUMIFS(DT!$AM$8:$AM$838,DT!$D$8:$D$838,F$6,DT!$C$8:$C$838,$C27) -> 0 | G27: =SUMIF(DT!$D$8:$D$838,G$6,DT!$AM$8:$AM$838)-SUMIFS(DT!$AM$8:$AM$838,DT!$D$8:$D$838,G$6,DT!$C$8:$C$838,"TMD")-SUMIFS(DT!$AM$8:$AM$838,DT!$D$8:$D$838,G$6,DT!$C$8:$C$838,"SKC")-SUMIFS(DT!$AM$8:$AM$838,DT!$D$8:$D$838,G$6,DT!$C$8:$C$838,"SKX")-SUMIFS(DT!$AM$8:$AM$838,DT!$D$8:$D$838,G$6,DT!$C$8:$C$838,"TIN")-SUMIFS(DT!$AM$8:$AM$838,DT!$D$8:$D$838,G$6,DT!$C$8:$C$838,$C27) -> 0 | H27: =SUMIF(DT!$D$8:$D$838,H$6,DT!$AM$8:$AM$838)-SUMIFS(DT!$AM$8:$AM$838,DT!$D$8:$D$838,H$6,DT!$C$8:$C$838,"TMD")-SUMIFS(DT!$AM$8:$AM$838,DT!$D$8:$D$838,H$6,DT!$C$8:$C$838,"SKC")-SUMIFS(DT!$AM$8:$AM$838,DT!$D$8:$D$838,H$6,DT!$C$8:$C$838,"SKX")-SUMIFS(DT!$AM$8:$AM$838,DT!$D$8:$D$838,H$6,DT!$C$8:$C$838,"TIN")-SUMIFS(DT!$AM$8:$AM$838,DT!$D$8:$D$838,H$6,DT!$C$8:$C$838,$C27) -> 0 | I27: =SUMIF(DT!$D$8:$D$838,I$6,DT!$AM$8:$AM$838)-SUMIFS(DT!$AM$8:$AM$838,DT!$D$8:$D$838,I$6,DT!$C$8:$C$838,"TMD")-SUMIFS(DT!$AM$8:$AM$838,DT!$D$8:$D$838,I$6,DT!$C$8:$C$838,"SKC")-SUMIFS(DT!$AM$8:$AM$838,DT!$D$8:$D$838,I$6,DT!$C$8:$C$838,"SKX")-SUMIFS(DT!$AM$8:$AM$838,DT!$D$8:$D$838,I$6,DT!$C$8:$C$838,"TIN")-SUMIFS(DT!$AM$8:$AM$838,DT!$D$8:$D$838,I$6,DT!$C$8:$C$838,$C27) -> 0 | J27: =SUMIF(DT!$D$8:$D$838,J$6,DT!$AM$8:$AM$838)-SUMIFS(DT!$AM$8:$AM$838,DT!$D$8:$D$838,J$6,DT!$C$8:$C$838,"TMD")-SUMIFS(DT!$AM$8:$AM$838,DT!$D$8:$D$838,J$6,DT!$C$8:$C$838,"SKC")-SUMIFS(DT!$AM$8:$AM$838,DT!$D$8:$D$838,J$6,DT!$C$8:$C$838,"SKX")-SUMIFS(DT!$AM$8:$AM$838,DT!$D$8:$D$838,J$6,DT!$C$8:$C$838,"TIN")-SUMIFS(DT!$AM$8:$AM$838,DT!$D$8:$D$838,J$6,DT!$C$8:$C$838,$C27) -> 0 | K27: =SUMIF(DT!$D$8:$D$838,K$6,DT!$AM$8:$AM$838)-SUMIFS(DT!$AM$8:$AM$838,DT!$D$8:$D$838,K$6,DT!$C$8:$C$838,"TMD")-SUMIFS(DT!$AM$8:$AM$838,DT!$D$8:$D$838,K$6,DT!$C$8:$C$838,"SKC")-SUMIFS(DT!$AM$8:$AM$838,DT!$D$8:$D$838,K$6,DT!$C$8:$C$838,"SKX")-SUMIFS(DT!$AM$8:$AM$838,DT!$D$8:$D$838,K$6,DT!$C$8:$C$838,"TIN")-SUMIFS(DT!$AM$8:$AM$838,DT!$D$8:$D$838,K$6,DT!$C$8:$C$838,$C27) -> 0 | L27: =SUMIF(DT!$D$8:$D$838,L$6,DT!$AM$8:$AM$838)-SUMIFS(DT!$AM$8:$AM$838,DT!$D$8:$D$838,L$6,DT!$C$8:$C$838,"TMD")-SUMIFS(DT!$AM$8:$AM$838,DT!$D$8:$D$838,L$6,DT!$C$8:$C$838,"SKC")-SUMIFS(DT!$AM$8:$AM$838,DT!$D$8:$D$838,L$6,DT!$C$8:$C$838,"SKX")-SUMIFS(DT!$AM$8:$AM$838,DT!$D$8:$D$838,L$6,DT!$C$8:$C$838,"TIN")-SUMIFS(DT!$AM$8:$AM$838,DT!$D$8:$D$838,L$6,DT!$C$8:$C$838,$C27) -> 0 | M27: =SUMIF(DT!$D$8:$D$838,M$6,DT!$AM$8:$AM$838)-SUMIFS(DT!$AM$8:$AM$838,DT!$D$8:$D$838,M$6,DT!$C$8:$C$838,"TMD")-SUMIFS(DT!$AM$8:$AM$838,DT!$D$8:$D$838,M$6,DT!$C$8:$C$838,"SKC")-SUMIFS(DT!$AM$8:$AM$838,DT!$D$8:$D$838,M$6,DT!$C$8:$C$838,"SKX")-SUMIFS(DT!$AM$8:$AM$838,DT!$D$8:$D$838,M$6,DT!$C$8:$C$838,"TIN")-SUMIFS(DT!$AM$8:$AM$838,DT!$D$8:$D$838,M$6,DT!$C$8:$C$838,$C27) -> 0 | N27: =SUMIF(DT!$D$8:$D$838,N$6,DT!$AM$8:$AM$838)-SUMIFS(DT!$AM$8:$AM$838,DT!$D$8:$D$838,N$6,DT!$C$8:$C$838,"TMD")-SUMIFS(DT!$AM$8:$AM$838,DT!$D$8:$D$838,N$6,DT!$C$8:$C$838,"SKC")-SUMIFS(DT!$AM$8:$AM$838,DT!$D$8:$D$838,N$6,DT!$C$8:$C$838,"SKX")-SUMIFS(DT!$AM$8:$AM$838,DT!$D$8:$D$838,N$6,DT!$C$8:$C$838,"TIN")-SUMIFS(DT!$AM$8:$AM$838,DT!$D$8:$D$838,N$6,DT!$C$8:$C$838,$C27) -> 0 | O27: =SUMIF(DT!$D$8:$D$838,O$6,DT!$AM$8:$AM$838)-SUMIFS(DT!$AM$8:$AM$838,DT!$D$8:$D$838,O$6,DT!$C$8:$C$838,"TMD")-SUMIFS(DT!$AM$8:$AM$838,DT!$D$8:$D$838,O$6,DT!$C$8:$C$838,"SKC")-SUMIFS(DT!$AM$8:$AM$838,DT!$D$8:$D$838,O$6,DT!$C$8:$C$838,"SKX")-SUMIFS(DT!$AM$8:$AM$838,DT!$D$8:$D$838,O$6,DT!$C$8:$C$838,"TIN")-SUMIFS(DT!$AM$8:$AM$838,DT!$D$8:$D$838,O$6,DT!$C$8:$C$838,$C27) -> 0 | P27: =SUMIF(DT!$D$8:$D$838,P$6,DT!$AM$8:$AM$838)-SUMIFS(DT!$AM$8:$AM$838,DT!$D$8:$D$838,P$6,DT!$C$8:$C$838,"TMD")-SUMIFS(DT!$AM$8:$AM$838,DT!$D$8:$D$838,P$6,DT!$C$8:$C$838,"SKC")-SUMIFS(DT!$AM$8:$AM$838,DT!$D$8:$D$838,P$6,DT!$C$8:$C$838,"SKX")-SUMIFS(DT!$AM$8:$AM$838,DT!$D$8:$D$838,P$6,DT!$C$8:$C$838,"TIN")-SUMIFS(DT!$AM$8:$AM$838,DT!$D$8:$D$838,P$6,DT!$C$8:$C$838,$C27) -> 0 | Q27: =SUMIF(DT!$D$8:$D$838,Q$6,DT!$AM$8:$AM$838)-SUMIFS(DT!$AM$8:$AM$838,DT!$D$8:$D$838,Q$6,DT!$C$8:$C$838,"TMD")-SUMIFS(DT!$AM$8:$AM$838,DT!$D$8:$D$838,Q$6,DT!$C$8:$C$838,"SKC")-SUMIFS(DT!$AM$8:$AM$838,DT!$D$8:$D$838,Q$6,DT!$C$8:$C$838,"SKX")-SUMIFS(DT!$AM$8:$AM$838,DT!$D$8:$D$838,Q$6,DT!$C$8:$C$838,"TIN")-SUMIFS(DT!$AM$8:$AM$838,DT!$D$8:$D$838,Q$6,DT!$C$8:$C$838,$C27) -> 0 | R27: =SUMIF(DT!$D$8:$D$838,R$6,DT!$AM$8:$AM$838)-SUMIFS(DT!$AM$8:$AM$838,DT!$D$8:$D$838,R$6,DT!$C$8:$C$838,"TMD")-SUMIFS(DT!$AM$8:$AM$838,DT!$D$8:$D$838,R$6,DT!$C$8:$C$838,"SKC")-SUMIFS(DT!$AM$8:$AM$838,DT!$D$8:$D$838,R$6,DT!$C$8:$C$838,"SKX")-SUMIFS(DT!$AM$8:$AM$838,DT!$D$8:$D$838,R$6,DT!$C$8:$C$838,"TIN")-SUMIFS(DT!$AM$8:$AM$838,DT!$D$8:$D$838,R$6,DT!$C$8:$C$838,$C27) -> 0 | S27: =SUMIF(DT!$D$8:$D$838,S$6,DT!$AM$8:$AM$838)-SUMIFS(DT!$AM$8:$AM$838,DT!$D$8:$D$838,S$6,DT!$C$8:$C$838,"TMD")-SUMIFS(DT!$AM$8:$AM$838,DT!$D$8:$D$838,S$6,DT!$C$8:$C$838,"SKC")-SUMIFS(DT!$AM$8:$AM$838,DT!$D$8:$D$838,S$6,DT!$C$8:$C$838,"SKX")-SUMIFS(DT!$AM$8:$AM$838,DT!$D$8:$D$838,S$6,DT!$C$8:$C$838,"TIN")-SUMIFS(DT!$AM$8:$AM$838,DT!$D$8:$D$838,S$6,DT!$C$8:$C$838,$C27) -> 0 | T27: =SUMIF(DT!$D$8:$D$838,T$6,DT!$AM$8:$AM$838)-SUMIFS(DT!$AM$8:$AM$838,DT!$D$8:$D$838,T$6,DT!$C$8:$C$838,"TMD")-SUMIFS(DT!$AM$8:$AM$838,DT!$D$8:$D$838,T$6,DT!$C$8:$C$838,"SKC")-SUMIFS(DT!$AM$8:$AM$838,DT!$D$8:$D$838,T$6,DT!$C$8:$C$838,"SKX")-SUMIFS(DT!$AM$8:$AM$838,DT!$D$8:$D$838,T$6,DT!$C$8:$C$838,"TIN")-SUMIFS(DT!$AM$8:$AM$838,DT!$D$8:$D$838,T$6,DT!$C$8:$C$838,$C27) -> 0 | U27: =SUMIF(DT!$D$8:$D$838,U$6,DT!$AM$8:$AM$838)-SUMIFS(DT!$AM$8:$AM$838,DT!$D$8:$D$838,U$6,DT!$C$8:$C$838,"TMD")-SUMIFS(DT!$AM$8:$AM$838,DT!$D$8:$D$838,U$6,DT!$C$8:$C$838,"SKC")-SUMIFS(DT!$AM$8:$AM$838,DT!$D$8:$D$838,U$6,DT!$C$8:$C$838,"SKX")-SUMIFS(DT!$AM$8:$AM$838,DT!$D$8:$D$838,U$6,DT!$C$8:$C$838,"TIN")-SUMIFS(DT!$AM$8:$AM$838,DT!$D$8:$D$838,U$6,DT!$C$8:$C$838,$C27) -> 0 | V27: =SUMIF(DT!$D$8:$D$838,V$6,DT!$AM$8:$AM$838)-SUMIFS(DT!$AM$8:$AM$838,DT!$D$8:$D$838,V$6,DT!$C$8:$C$838,"TMD")-SUMIFS(DT!$AM$8:$AM$838,DT!$D$8:$D$838,V$6,DT!$C$8:$C$838,"SKC")-SUMIFS(DT!$AM$8:$AM$838,DT!$D$8:$D$838,V$6,DT!$C$8:$C$838,"SKX")-SUMIFS(DT!$AM$8:$AM$838,DT!$D$8:$D$838,V$6,DT!$C$8:$C$838,"TIN")-SUMIFS(DT!$AM$8:$AM$838,DT!$D$8:$D$838,V$6,DT!$C$8:$C$838,$C27) -> 0
A28: 2.7 | B28: Đất cơ sở sản xuất phi nông nghiệp | C28: SKC | D28: 7.62 | E28: =SUMIF(DT!$D$8:$D$838,E$6,DT!$AO$8:$AO$838)-SUMIFS(DT!$AO$8:$AO$838,DT!$D$8:$D$838,E$6,DT!$C$8:$C$838,"TMD")-SUMIFS(DT!$AO$8:$AO$838,DT!$D$8:$D$838,E$6,DT!$C$8:$C$838,"SKC")-SUMIFS(DT!$AO$8:$AO$838,DT!$D$8:$D$838,E$6,DT!$C$8:$C$838,"SKX")-SUMIFS(DT!$AO$8:$AO$838,DT!$D$8:$D$838,E$6,DT!$C$8:$C$838,"TIN")-SUMIFS(DT!$AO$8:$AO$838,DT!$D$8:$D$838,E$6,DT!$C$8:$C$838,$C28) -> 0.5 | F28: =SUMIF(DT!$D$8:$D$838,F$6,DT!$AO$8:$AO$838)-SUMIFS(DT!$AO$8:$AO$838,DT!$D$8:$D$838,F$6,DT!$C$8:$C$838,"TMD")-SUMIFS(DT!$AO$8:$AO$838,DT!$D$8:$D$838,F$6,DT!$C$8:$C$838,"SKC")-SUMIFS(DT!$AO$8:$AO$838,DT!$D$8:$D$838,F$6,DT!$C$8:$C$838,"SKX")-SUMIFS(DT!$AO$8:$AO$838,DT!$D$8:$D$838,F$6,DT!$C$8:$C$838,"TIN")-SUMIFS(DT!$AO$8:$AO$838,DT!$D$8:$D$838,F$6,DT!$C$8:$C$838,$C28) -> 0 | G28: =SUMIF(DT!$D$8:$D$838,G$6,DT!$AO$8:$AO$838)-SUMIFS(DT!$AO$8:$AO$838,DT!$D$8:$D$838,G$6,DT!$C$8:$C$838,"TMD")-SUMIFS(DT!$AO$8:$AO$838,DT!$D$8:$D$838,G$6,DT!$C$8:$C$838,"SKC")-SUMIFS(DT!$AO$8:$AO$838,DT!$D$8:$D$838,G$6,DT!$C$8:$C$838,"SKX")-SUMIFS(DT!$AO$8:$AO$838,DT!$D$8:$D$838,G$6,DT!$C$8:$C$838,"TIN")-SUMIFS(DT!$AO$8:$AO$838,DT!$D$8:$D$838,G$6,DT!$C$8:$C$838,$C28) -> 0 | H28: =SUMIF(DT!$D$8:$D$838,H$6,DT!$AO$8:$AO$838)-SUMIFS(DT!$AO$8:$AO$838,DT!$D$8:$D$838,H$6,DT!$C$8:$C$838,"TMD")-SUMIFS(DT!$AO$8:$AO$838,DT!$D$8:$D$838,H$6,DT!$C$8:$C$838,"SKC")-SUMIFS(DT!$AO$8:$AO$838,DT!$D$8:$D$838,H$6,DT!$C$8:$C$838,"SKX")-SUMIFS(DT!$AO$8:$AO$838,DT!$D$8:$D$838,H$6,DT!$C$8:$C$838,"TIN")-SUMIFS(DT!$AO$8:$AO$838,DT!$D$8:$D$838,H$6,DT!$C$8:$C$838,$C28) -> 0 | I28: =SUMIF(DT!$D$8:$D$838,I$6,DT!$AO$8:$AO$838)-SUMIFS(DT!$AO$8:$AO$838,DT!$D$8:$D$838,I$6,DT!$C$8:$C$838,"TMD")-SUMIFS(DT!$AO$8:$AO$838,DT!$D$8:$D$838,I$6,DT!$C$8:$C$838,"SKC")-SUMIFS(DT!$AO$8:$AO$838,DT!$D$8:$D$838,I$6,DT!$C$8:$C$838,"SKX")-SUMIFS(DT!$AO$8:$AO$838,DT!$D$8:$D$838,I$6,DT!$C$8:$C$838,"TIN")-SUMIFS(DT!$AO$8:$AO$838,DT!$D$8:$D$838,I$6,DT!$C$8:$C$838,$C28) -> 3.5 | J28: =SUMIF(DT!$D$8:$D$838,J$6,DT!$AO$8:$AO$838)-SUMIFS(DT!$AO$8:$AO$838,DT!$D$8:$D$838,J$6,DT!$C$8:$C$838,"TMD")-SUMIFS(DT!$AO$8:$AO$838,DT!$D$8:$D$838,J$6,DT!$C$8:$C$838,"SKC")-SUMIFS(DT!$AO$8:$AO$838,DT!$D$8:$D$838,J$6,DT!$C$8:$C$838,"SKX")-SUMIFS(DT!$AO$8:$AO$838,DT!$D$8:$D$838,J$6,DT!$C$8:$C$838,"TIN")-SUMIFS(DT!$AO$8:$AO$838,DT!$D$8:$D$838,J$6,DT!$C$8:$C$838,$C28) -> 0 | K28: =SUMIF(DT!$D$8:$D$838,K$6,DT!$AO$8:$AO$838)-SUMIFS(DT!$AO$8:$AO$838,DT!$D$8:$D$838,K$6,DT!$C$8:$C$838,"TMD")-SUMIFS(DT!$AO$8:$AO$838,DT!$D$8:$D$838,K$6,DT!$C$8:$C$838,"SKC")-SUMIFS(DT!$AO$8:$AO$838,DT!$D$8:$D$838,K$6,DT!$C$8:$C$838,"SKX")-SUMIFS(DT!$AO$8:$AO$838,DT!$D$8:$D$838,K$6,DT!$C$8:$C$838,"TIN")-SUMIFS(DT!$AO$8:$AO$838,DT!$D$8:$D$838,K$6,DT!$C$8:$C$838,$C28) -> 0.5 | L28: =SUMIF(DT!$D$8:$D$838,L$6,DT!$AO$8:$AO$838)-SUMIFS(DT!$AO$8:$AO$838,DT!$D$8:$D$838,L$6,DT!$C$8:$C$838,"TMD")-SUMIFS(DT!$AO$8:$AO$838,DT!$D$8:$D$838,L$6,DT!$C$8:$C$838,"SKC")-SUMIFS(DT!$AO$8:$AO$838,DT!$D$8:$D$838,L$6,DT!$C$8:$C$838,"SKX")-SUMIFS(DT!$AO$8:$AO$838,DT!$D$8:$D$838,L$6,DT!$C$8:$C$838,"TIN")-SUMIFS(DT!$AO$8:$AO$838,DT!$D$8:$D$838,L$6,DT!$C$8:$C$838,$C28) -> 0 | M28: =SUMIF(DT!$D$8:$D$838,M$6,DT!$AO$8:$AO$838)-SUMIFS(DT!$AO$8:$AO$838,DT!$D$8:$D$838,M$6,DT!$C$8:$C$838,"TMD")-SUMIFS(DT!$AO$8:$AO$838,DT!$D$8:$D$838,M$6,DT!$C$8:$C$838,"SKC")-SUMIFS(DT!$AO$8:$AO$838,DT!$D$8:$D$838,M$6,DT!$C$8:$C$838,"SKX")-SUMIFS(DT!$AO$8:$AO$838,DT!$D$8:$D$838,M$6,DT!$C$8:$C$838,"TIN")-SUMIFS(DT!$AO$8:$AO$838,DT!$D$8:$D$838,M$6,DT!$C$8:$C$838,$C28) -> 0 | N28: =SUMIF(DT!$D$8:$D$838,N$6,DT!$AO$8:$AO$838)-SUMIFS(DT!$AO$8:$AO$838,DT!$D$8:$D$838,N$6,DT!$C$8:$C$838,"TMD")-SUMIFS(DT!$AO$8:$AO$838,DT!$D$8:$D$838,N$6,DT!$C$8:$C$838,"SKC")-SUMIFS(DT!$AO$8:$AO$838,DT!$D$8:$D$838,N$6,DT!$C$8:$C$838,"SKX")-SUMIFS(DT!$AO$8:$AO$838,DT!$D$8:$D$838,N$6,DT!$C$8:$C$838,"TIN")-SUMIFS(DT!$AO$8:$AO$838,DT!$D$8:$D$838,N$6,DT!$C$8:$C$838,$C28) -> 0 | O28: =SUMIF(DT!$D$8:$D$838,O$6,DT!$AO$8:$AO$838)-SUMIFS(DT!$AO$8:$AO$838,DT!$D$8:$D$838,O$6,DT!$C$8:$C$838,"TMD")-SUMIFS(DT!$AO$8:$AO$838,DT!$D$8:$D$838,O$6,DT!$C$8:$C$838,"SKC")-SUMIFS(DT!$AO$8:$AO$838,DT!$D$8:$D$838,O$6,DT!$C$8:$C$838,"SKX")-SUMIFS(DT!$AO$8:$AO$838,DT!$D$8:$D$838,O$6,DT!$C$8:$C$838,"TIN")-SUMIFS(DT!$AO$8:$AO$838,DT!$D$8:$D$838,O$6,DT!$C$8:$C$838,$C28) -> 3 | P28: =SUMIF(DT!$D$8:$D$838,P$6,DT!$AO$8:$AO$838)-SUMIFS(DT!$AO$8:$AO$838,DT!$D$8:$D$838,P$6,DT!$C$8:$C$838,"TMD")-SUMIFS(DT!$AO$8:$AO$838,DT!$D$8:$D$838,P$6,DT!$C$8:$C$838,"SKC")-SUMIFS(DT!$AO$8:$AO$838,DT!$D$8:$D$838,P$6,DT!$C$8:$C$838,"SKX")-SUMIFS(DT!$AO$8:$AO$838,DT!$D$8:$D$838,P$6,DT!$C$8:$C$838,"TIN")-SUMIFS(DT!$AO$8:$AO$838,DT!$D$8:$D$838,P$6,DT!$C$8:$C$838,$C28) -> 0 | Q28: =SUMIF(DT!$D$8:$D$838,Q$6,DT!$AO$8:$AO$838)-SUMIFS(DT!$AO$8:$AO$838,DT!$D$8:$D$838,Q$6,DT!$C$8:$C$838,"TMD")-SUMIFS(DT!$AO$8:$AO$838,DT!$D$8:$D$838,Q$6,DT!$C$8:$C$838,"SKC")-SUMIFS(DT!$AO$8:$AO$838,DT!$D$8:$D$838,Q$6,DT!$C$8:$C$838,"SKX")-SUMIFS(DT!$AO$8:$AO$838,DT!$D$8:$D$838,Q$6,DT!$C$8:$C$838,"TIN")-SUMIFS(DT!$AO$8:$AO$838,DT!$D$8:$D$838,Q$6,DT!$C$8:$C$838,$C28) -> 0 | R28: =SUMIF(DT!$D$8:$D$838,R$6,DT!$AO$8:$AO$838)-SUMIFS(DT!$AO$8:$AO$838,DT!$D$8:$D$838,R$6,DT!$C$8:$C$838,"TMD")-SUMIFS(DT!$AO$8:$AO$838,DT!$D$8:$D$838,R$6,DT!$C$8:$C$838,"SKC")-SUMIFS(DT!$AO$8:$AO$838,DT!$D$8:$D$838,R$6,DT!$C$8:$C$838,"SKX")-SUMIFS(DT!$AO$8:$AO$838,DT!$D$8:$D$838,R$6,DT!$C$8:$C$838,"TIN")-SUMIFS(DT!$AO$8:$AO$838,DT!$D$8:$D$838,R$6,DT!$C$8:$C$838,$C28) -> 0 | S28: =SUMIF(DT!$D$8:$D$838,S$6,DT!$AO$8:$AO$838)-SUMIFS(DT!$AO$8:$AO$838,DT!$D$8:$D$838,S$6,DT!$C$8:$C$838,"TMD")-SUMIFS(DT!$AO$8:$AO$838,DT!$D$8:$D$838,S$6,DT!$C$8:$C$838,"SKC")-SUMIFS(DT!$AO$8:$AO$838,DT!$D$8:$D$838,S$6,DT!$C$8:$C$838,"SKX")-SUMIFS(DT!$AO$8:$AO$838,DT!$D$8:$D$838,S$6,DT!$C$8:$C$838,"TIN")-SUMIFS(DT!$AO$8:$AO$838,DT!$D$8:$D$838,S$6,DT!$C$8:$C$838,$C28) -> 0.12 | T28: =SUMIF(DT!$D$8:$D$838,T$6,DT!$AO$8:$AO$838)-SUMIFS(DT!$AO$8:$AO$838,DT!$D$8:$D$838,T$6,DT!$C$8:$C$838,"TMD")-SUMIFS(DT!$AO$8:$AO$838,DT!$D$8:$D$838,T$6,DT!$C$8:$C$838,"SKC")-SUMIFS(DT!$AO$8:$AO$838,DT!$D$8:$D$838,T$6,DT!$C$8:$C$838,"SKX")-SUMIFS(DT!$AO$8:$AO$838,DT!$D$8:$D$838,T$6,DT!$C$8:$C$838,"TIN")-SUMIFS(DT!$AO$8:$AO$838,DT!$D$8:$D$838,T$6,DT!$C$8:$C$838,$C28) -> 0 | U28: =SUMIF(DT!$D$8:$D$838,U$6,DT!$AO$8:$AO$838)-SUMIFS(DT!$AO$8:$AO$838,DT!$D$8:$D$838,U$6,DT!$C$8:$C$838,"TMD")-SUMIFS(DT!$AO$8:$AO$838,DT!$D$8:$D$838,U$6,DT!$C$8:$C$838,"SKC")-SUMIFS(DT!$AO$8:$AO$838,DT!$D$8:$D$838,U$6,DT!$C$8:$C$838,"SKX")-SUMIFS(DT!$AO$8:$AO$838,DT!$D$8:$D$838,U$6,DT!$C$8:$C$838,"TIN")-SUMIFS(DT!$AO$8:$AO$838,DT!$D$8:$D$838,U$6,DT!$C$8:$C$838,$C28) -> 0 | V28: =SUMIF(DT!$D$8:$D$838,V$6,DT!$AO$8:$AO$838)-SUMIFS(DT!$AO$8:$AO$838,DT!$D$8:$D$838,V$6,DT!$C$8:$C$838,"TMD")-SUMIFS(DT!$AO$8:$AO$838,DT!$D$8:$D$838,V$6,DT!$C$8:$C$838,"SKC")-SUMIFS(DT!$AO$8:$AO$838,DT!$D$8:$D$838,V$6,DT!$C$8:$C$838,"SKX")-SUMIFS(DT!$AO$8:$AO$838,DT!$D$8:$D$838,V$6,DT!$C$8:$C$838,"TIN")-SUMIFS(DT!$AO$8:$AO$838,DT!$D$8:$D$838,V$6,DT!$C$8:$C$838,$C28) -> 0
A29: 2.8 | B29: Đất sử dụng cho hoạt động khoáng sản | C29: SKS | D29: 0 | E29: =SUMIF(DT!$D$8:$D$838,E$6,DT!$AQ$8:$AQ$838) -> 0 | F29: =SUMIF(DT!$D$8:$D$838,F$6,DT!$AQ$8:$AQ$838)-SUMIFS(DT!$AQ$8:$AQ$838,DT!$D$8:$D$838,F$6,DT!$C$8:$C$838,"TMD")-SUMIFS(DT!$AQ$8:$AQ$838,DT!$D$8:$D$838,F$6,DT!$C$8:$C$838,"SKC")-SUMIFS(DT!$AQ$8:$AQ$838,DT!$D$8:$D$838,F$6,DT!$C$8:$C$838,"SKX")-SUMIFS(DT!$AQ$8:$AQ$838,DT!$D$8:$D$838,F$6,DT!$C$8:$C$838,"TIN")-SUMIFS(DT!$AQ$8:$AQ$838,DT!$D$8:$D$838,F$6,DT!$C$8:$C$838,$C29) -> 0 | G29: =SUMIF(DT!$D$8:$D$838,G$6,DT!$AQ$8:$AQ$838)-SUMIFS(DT!$AQ$8:$AQ$838,DT!$D$8:$D$838,G$6,DT!$C$8:$C$838,"TMD")-SUMIFS(DT!$AQ$8:$AQ$838,DT!$D$8:$D$838,G$6,DT!$C$8:$C$838,"SKC")-SUMIFS(DT!$AQ$8:$AQ$838,DT!$D$8:$D$838,G$6,DT!$C$8:$C$838,"SKX")-SUMIFS(DT!$AQ$8:$AQ$838,DT!$D$8:$D$838,G$6,DT!$C$8:$C$838,"TIN")-SUMIFS(DT!$AQ$8:$AQ$838,DT!$D$8:$D$838,G$6,DT!$C$8:$C$838,$C29) -> 0 | H29: =SUMIF(DT!$D$8:$D$838,H$6,DT!$AQ$8:$AQ$838)-SUMIFS(DT!$AQ$8:$AQ$838,DT!$D$8:$D$838,H$6,DT!$C$8:$C$838,"TMD")-SUMIFS(DT!$AQ$8:$AQ$838,DT!$D$8:$D$838,H$6,DT!$C$8:$C$838,"SKC")-SUMIFS(DT!$AQ$8:$AQ$838,DT!$D$8:$D$838,H$6,DT!$C$8:$C$838,"SKX")-SUMIFS(DT!$AQ$8:$AQ$838,DT!$D$8:$D$838,H$6,DT!$C$8:$C$838,"TIN")-SUMIFS(DT!$AQ$8:$AQ$838,DT!$D$8:$D$838,H$6,DT!$C$8:$C$838,$C29) -> 0 | I29: =SUMIF(DT!$D$8:$D$838,I$6,DT!$AQ$8:$AQ$838)-SUMIFS(DT!$AQ$8:$AQ$838,DT!$D$8:$D$838,I$6,DT!$C$8:$C$838,"TMD")-SUMIFS(DT!$AQ$8:$AQ$838,DT!$D$8:$D$838,I$6,DT!$C$8:$C$838,"SKC")-SUMIFS(DT!$AQ$8:$AQ$838,DT!$D$8:$D$838,I$6,DT!$C$8:$C$838,"SKX")-SUMIFS(DT!$AQ$8:$AQ$838,DT!$D$8:$D$838,I$6,DT!$C$8:$C$838,"TIN")-SUMIFS(DT!$AQ$8:$AQ$838,DT!$D$8:$D$838,I$6,DT!$C$8:$C$838,$C29) -> 0 | J29: =SUMIF(DT!$D$8:$D$838,J$6,DT!$AQ$8:$AQ$838)-SUMIFS(DT!$AQ$8:$AQ$838,DT!$D$8:$D$838,J$6,DT!$C$8:$C$838,"TMD")-SUMIFS(DT!$AQ$8:$AQ$838,DT!$D$8:$D$838,J$6,DT!$C$8:$C$838,"SKC")-SUMIFS(DT!$AQ$8:$AQ$838,DT!$D$8:$D$838,J$6,DT!$C$8:$C$838,"SKX")-SUMIFS(DT!$AQ$8:$AQ$838,DT!$D$8:$D$838,J$6,DT!$C$8:$C$838,"TIN")-SUMIFS(DT!$AQ$8:$AQ$838,DT!$D$8:$D$838,J$6,DT!$C$8:$C$838,$C29) -> 0 | K29: =SUMIF(DT!$D$8:$D$838,K$6,DT!$AQ$8:$AQ$838)-SUMIFS(DT!$AQ$8:$AQ$838,DT!$D$8:$D$838,K$6,DT!$C$8:$C$838,"TMD")-SUMIFS(DT!$AQ$8:$AQ$838,DT!$D$8:$D$838,K$6,DT!$C$8:$C$838,"SKC")-SUMIFS(DT!$AQ$8:$AQ$838,DT!$D$8:$D$838,K$6,DT!$C$8:$C$838,"SKX")-SUMIFS(DT!$AQ$8:$AQ$838,DT!$D$8:$D$838,K$6,DT!$C$8:$C$838,"TIN")-SUMIFS(DT!$AQ$8:$AQ$838,DT!$D$8:$D$838,K$6,DT!$C$8:$C$838,$C29) -> 0 | L29: =SUMIF(DT!$D$8:$D$838,L$6,DT!$AQ$8:$AQ$838)-SUMIFS(DT!$AQ$8:$AQ$838,DT!$D$8:$D$838,L$6,DT!$C$8:$C$838,"TMD")-SUMIFS(DT!$AQ$8:$AQ$838,DT!$D$8:$D$838,L$6,DT!$C$8:$C$838,"SKC")-SUMIFS(DT!$AQ$8:$AQ$838,DT!$D$8:$D$838,L$6,DT!$C$8:$C$838,"SKX")-SUMIFS(DT!$AQ$8:$AQ$838,DT!$D$8:$D$838,L$6,DT!$C$8:$C$838,"TIN")-SUMIFS(DT!$AQ$8:$AQ$838,DT!$D$8:$D$838,L$6,DT!$C$8:$C$838,$C29) -> 0 | M29: =SUMIF(DT!$D$8:$D$838,M$6,DT!$AQ$8:$AQ$838)-SUMIFS(DT!$AQ$8:$AQ$838,DT!$D$8:$D$838,M$6,DT!$C$8:$C$838,"TMD")-SUMIFS(DT!$AQ$8:$AQ$838,DT!$D$8:$D$838,M$6,DT!$C$8:$C$838,"SKC")-SUMIFS(DT!$AQ$8:$AQ$838,DT!$D$8:$D$838,M$6,DT!$C$8:$C$838,"SKX")-SUMIFS(DT!$AQ$8:$AQ$838,DT!$D$8:$D$838,M$6,DT!$C$8:$C$838,"TIN")-SUMIFS(DT!$AQ$8:$AQ$838,DT!$D$8:$D$838,M$6,DT!$C$8:$C$838,$C29) -> 0 | N29: =SUMIF(DT!$D$8:$D$838,N$6,DT!$AQ$8:$AQ$838)-SUMIFS(DT!$AQ$8:$AQ$838,DT!$D$8:$D$838,N$6,DT!$C$8:$C$838,"TMD")-SUMIFS(DT!$AQ$8:$AQ$838,DT!$D$8:$D$838,N$6,DT!$C$8:$C$838,"SKC")-SUMIFS(DT!$AQ$8:$AQ$838,DT!$D$8:$D$838,N$6,DT!$C$8:$C$838,"SKX")-SUMIFS(DT!$AQ$8:$AQ$838,DT!$D$8:$D$838,N$6,DT!$C$8:$C$838,"TIN")-SUMIFS(DT!$AQ$8:$AQ$838,DT!$D$8:$D$838,N$6,DT!$C$8:$C$838,$C29) -> 0 | O29: =SUMIF(DT!$D$8:$D$838,O$6,DT!$AQ$8:$AQ$838)-SUMIFS(DT!$AQ$8:$AQ$838,DT!$D$8:$D$838,O$6,DT!$C$8:$C$838,"TMD")-SUMIFS(DT!$AQ$8:$AQ$838,DT!$D$8:$D$838,O$6,DT!$C$8:$C$838,"SKC")-SUMIFS(DT!$AQ$8:$AQ$838,DT!$D$8:$D$838,O$6,DT!$C$8:$C$838,"SKX")-SUMIFS(DT!$AQ$8:$AQ$838,DT!$D$8:$D$838,O$6,DT!$C$8:$C$838,"TIN")-SUMIFS(DT!$AQ$8:$AQ$838,DT!$D$8:$D$838,O$6,DT!$C$8:$C$838,$C29) -> 0 | P29: =SUMIF(DT!$D$8:$D$838,P$6,DT!$AQ$8:$AQ$838)-SUMIFS(DT!$AQ$8:$AQ$838,DT!$D$8:$D$838,P$6,DT!$C$8:$C$838,"TMD")-SUMIFS(DT!$AQ$8:$AQ$838,DT!$D$8:$D$838,P$6,DT!$C$8:$C$838,"SKC")-SUMIFS(DT!$AQ$8:$AQ$838,DT!$D$8:$D$838,P$6,DT!$C$8:$C$838,"SKX")-SUMIFS(DT!$AQ$8:$AQ$838,DT!$D$8:$D$838,P$6,DT!$C$8:$C$838,"TIN")-SUMIFS(DT!$AQ$8:$AQ$838,DT!$D$8:$D$838,P$6,DT!$C$8:$C$838,$C29) -> 0 | Q29: =SUMIF(DT!$D$8:$D$838,Q$6,DT!$AQ$8:$AQ$838)-SUMIFS(DT!$AQ$8:$AQ$838,DT!$D$8:$D$838,Q$6,DT!$C$8:$C$838,"TMD")-SUMIFS(DT!$AQ$8:$AQ$838,DT!$D$8:$D$838,Q$6,DT!$C$8:$C$838,"SKC")-SUMIFS(DT!$AQ$8:$AQ$838,DT!$D$8:$D$838,Q$6,DT!$C$8:$C$838,"SKX")-SUMIFS(DT!$AQ$8:$AQ$838,DT!$D$8:$D$838,Q$6,DT!$C$8:$C$838,"TIN")-SUMIFS(DT!$AQ$8:$AQ$838,DT!$D$8:$D$838,Q$6,DT!$C$8:$C$838,$C29) -> 0 | R29: =SUMIF(DT!$D$8:$D$838,R$6,DT!$AQ$8:$AQ$838)-SUMIFS(DT!$AQ$8:$AQ$838,DT!$D$8:$D$838,R$6,DT!$C$8:$C$838,"TMD")-SUMIFS(DT!$AQ$8:$AQ$838,DT!$D$8:$D$838,R$6,DT!$C$8:$C$838,"SKC")-SUMIFS(DT!$AQ$8:$AQ$838,DT!$D$8:$D$838,R$6,DT!$C$8:$C$838,"SKX")-SUMIFS(DT!$AQ$8:$AQ$838,DT!$D$8:$D$838,R$6,DT!$C$8:$C$838,"TIN")-SUMIFS(DT!$AQ$8:$AQ$838,DT!$D$8:$D$838,R$6,DT!$C$8:$C$838,$C29) -> 0 | S29: =SUMIF(DT!$D$8:$D$838,S$6,DT!$AQ$8:$AQ$838)-SUMIFS(DT!$AQ$8:$AQ$838,DT!$D$8:$D$838,S$6,DT!$C$8:$C$838,"TMD")-SUMIFS(DT!$AQ$8:$AQ$838,DT!$D$8:$D$838,S$6,DT!$C$8:$C$838,"SKC")-SUMIFS(DT!$AQ$8:$AQ$838,DT!$D$8:$D$838,S$6,DT!$C$8:$C$838,"SKX")-SUMIFS(DT!$AQ$8:$AQ$838,DT!$D$8:$D$838,S$6,DT!$C$8:$C$838,"TIN")-SUMIFS(DT!$AQ$8:$AQ$838,DT!$D$8:$D$838,S$6,DT!$C$8:$C$838,$C29) -> 0 | T29: =SUMIF(DT!$D$8:$D$838,T$6,DT!$AQ$8:$AQ$838)-SUMIFS(DT!$AQ$8:$AQ$838,DT!$D$8:$D$838,T$6,DT!$C$8:$C$838,"TMD")-SUMIFS(DT!$AQ$8:$AQ$838,DT!$D$8:$D$838,T$6,DT!$C$8:$C$838,"SKC")-SUMIFS(DT!$AQ$8:$AQ$838,DT!$D$8:$D$838,T$6,DT!$C$8:$C$838,"SKX")-SUMIFS(DT!$AQ$8:$AQ$838,DT!$D$8:$D$838,T$6,DT!$C$8:$C$838,"TIN")-SUMIFS(DT!$AQ$8:$AQ$838,DT!$D$8:$D$838,T$6,DT!$C$8:$C$838,$C29) -> 0 | U29: =SUMIF(DT!$D$8:$D$838,U$6,DT!$AQ$8:$AQ$838)-SUMIFS(DT!$AQ$8:$AQ$838,DT!$D$8:$D$838,U$6,DT!$C$8:$C$838,"TMD")-SUMIFS(DT!$AQ$8:$AQ$838,DT!$D$8:$D$838,U$6,DT!$C$8:$C$838,"SKC")-SUMIFS(DT!$AQ$8:$AQ$838,DT!$D$8:$D$838,U$6,DT!$C$8:$C$838,"SKX")-SUMIFS(DT!$AQ$8:$AQ$838,DT!$D$8:$D$838,U$6,DT!$C$8:$C$838,"TIN")-SUMIFS(DT!$AQ$8:$AQ$838,DT!$D$8:$D$838,U$6,DT!$C$8:$C$838,$C29) -> 0 | V29: =SUMIF(DT!$D$8:$D$838,V$6,DT!$AQ$8:$AQ$838)-SUMIFS(DT!$AQ$8:$AQ$838,DT!$D$8:$D$838,V$6,DT!$C$8:$C$838,"TMD")-SUMIFS(DT!$AQ$8:$AQ$838,DT!$D$8:$D$838,V$6,DT!$C$8:$C$838,"SKC")-SUMIFS(DT!$AQ$8:$AQ$838,DT!$D$8:$D$838,V$6,DT!$C$8:$C$838,"SKX")-SUMIFS(DT!$AQ$8:$AQ$838,DT!$D$8:$D$838,V$6,DT!$C$8:$C$838,"TIN")-SUMIFS(DT!$AQ$8:$AQ$838,DT!$D$8:$D$838,V$6,DT!$C$8:$C$838,$C29) -> 0
A30: 2.9 | B30: Đất phát triển hạ tầng cấp quốc gia, cấp tỉnh, cấp huyện, cấp xã | C30: DHT | D30: 34.88 | E30: =SUM(E31:E41) -> 0.11 | F30: =SUM(F31:F41) -> 0.1 | G30: 0 | H30: 0.15 | I30: 23.18 | J30: 0.04 | K30: 0.32 | L30: 0.25 | M30: 0.11 | N30: 0 | O30: 0.71 | P30: 8.89 | Q30: 0.02 | R30: 0.94 | S30: 0.02 | T30: 0 | U30: 0 | V30: 0.04
A31: Ẩn | B31: Đất giao thông | C31: DGT | D31: 21.37 | E31: =SUMIF(DT!$D$8:$D$838,E$6,DT!$AU$8:$AU$838) -> 0.11 | F31: =SUMIF(DT!$D$8:$D$838,F$6,DT!$AU$8:$AU$838) -> 0.1 | G31: =SUMIF(DT!$D$8:$D$838,G$6,DT!$AU$8:$AU$838) -> 0 | H31: =SUMIF(DT!$D$8:$D$838,H$6,DT!$AU$8:$AU$838) -> 0.11 | I31: =SUMIF(DT!$D$8:$D$838,I$6,DT!$AU$8:$AU$838) -> 18.82 | J31: =SUMIF(DT!$D$8:$D$838,J$6,DT!$AU$8:$AU$838) -> 0.01 | K31: =SUMIF(DT!$D$8:$D$838,K$6,DT!$AU$8:$AU$838) -> 0.29 | L31: =SUMIF(DT!$D$8:$D$838,L$6,DT!$AU$8:$AU$838) -> 0.13 | M31: =SUMIF(DT!$D$8:$D$838,M$6,DT!$AU$8:$AU$838) -> 0.11 | N31: =SUMIF(DT!$D$8:$D$838,N$6,DT!$AU$8:$AU$838) -> 0 | O31: =SUMIF(DT!$D$8:$D$838,O$6,DT!$AU$8:$AU$838) -> 0.64 | P31: =SUMIF(DT!$D$8:$D$838,P$6,DT!$AU$8:$AU$838) -> 0.33 | Q31: =SUMIF(DT!$D$8:$D$838,Q$6,DT!$AU$8:$AU$838) -> 0.01 | R31: =SUMIF(DT!$D$8:$D$838,R$6,DT!$AU$8:$AU$838) -> 0.66 | S31: =SUMIF(DT!$D$8:$D$838,S$6,DT!$AU$8:$AU$838) -> 0.01 | T31: =SUMIF(DT!$D$8:$D$838,T$6,DT!$AU$8:$AU$838) -> 0 | U31: =SUMIF(DT!$D$8:$D$838,U$6,DT!$AU$8:$AU$838) -> 0 | V31: =SUMIF(DT!$D$8:$D$838,V$6,DT!$AU$8:$AU$838) -> 0.04
A32: Ẩn | B32: Đất thuỷ lợi | C32: DTL | D32: 11.81 | E32: =SUMIF(DT!$D$8:$D$838,E$6,DT!$AW$8:$AW$838) -> 0 | F32: =SUMIF(DT!$D$8:$D$838,F$6,DT!$AW$8:$AW$838) -> 0 | G32: =SUMIF(DT!$D$8:$D$838,G$6,DT!$AW$8:$AW$838) -> 0 | H32: =SUMIF(DT!$D$8:$D$838,H$6,DT!$AW$8:$AW$838) -> 0.01 | I32: =SUMIF(DT!$D$8:$D$838,I$6,DT!$AW$8:$AW$838) -> 2.84 | J32: =SUMIF(DT!$D$8:$D$838,J$6,DT!$AW$8:$AW$838) -> 0.03 | K32: =SUMIF(DT!$D$8:$D$838,K$6,DT!$AW$8:$AW$838) -> 0.03 | L32: =SUMIF(DT!$D$8:$D$838,L$6,DT!$AW$8:$AW$838) -> 0.04 | M32: =SUMIF(DT!$D$8:$D$838,M$6,DT!$AW$8:$AW$838) -> 0 | N32: =SUMIF(DT!$D$8:$D$838,N$6,DT!$AW$8:$AW$838) -> 0 | O32: =SUMIF(DT!$D$8:$D$838,O$6,DT!$AW$8:$AW$838) -> 0.02 | P32: =SUMIF(DT!$D$8:$D$838,P$6,DT!$AW$8:$AW$838) -> 8.56 | Q32: =SUMIF(DT!$D$8:$D$838,Q$6,DT!$AW$8:$AW$838) -> 0.01 | R32: =SUMIF(DT!$D$8:$D$838,R$6,DT!$AW$8:$AW$838) -> 0.26 | S32: =SUMIF(DT!$D$8:$D$838,S$6,DT!$AW$8:$AW$838) -> 0.01 | T32: =SUMIF(DT!$D$8:$D$838,T$6,DT!$AW$8:$AW$838) -> 0 | U32: =SUMIF(DT!$D$8:$D$838,U$6,DT!$AW$8:$AW$838) -> 0 | V32: =SUMIF(DT!$D$8:$D$838,V$6,DT!$AW$8:$AW$838) -> 0
A33: Ẩn | B33: Đất công trình năng lượng | C33: DNL | D33: 0 | E33: =SUMIF(DT!$D$8:$D$838,E$6,DT!$AY$8:$AY$838) -> 0 | F33: =SUMIF(DT!$D$8:$D$838,F$6,DT!$AY$8:$AY$838) -> 0 | G33: =SUMIF(DT!$D$8:$D$838,G$6,DT!$AY$8:$AY$838) -> 0 | H33: =SUMIF(DT!$D$8:$D$838,H$6,DT!$AY$8:$AY$838) -> 0 | I33: =SUMIF(DT!$D$8:$D$838,I$6,DT!$AY$8:$AY$838) -> 0 | J33: =SUMIF(DT!$D$8:$D$838,J$6,DT!$AY$8:$AY$838) -> 0 | K33: =SUMIF(DT!$D$8:$D$838,K$6,DT!$AY$8:$AY$838) -> 0 | L33: =SUMIF(DT!$D$8:$D$838,L$6,DT!$AY$8:$AY$838) -> 0 | M33: =SUMIF(DT!$D$8:$D$838,M$6,DT!$AY$8:$AY$838) -> 0 | N33: =SUMIF(DT!$D$8:$D$838,N$6,DT!$AY$8:$AY$838) -> 0 | O33: =SUMIF(DT!$D$8:$D$838,O$6,DT!$AY$8:$AY$838) -> 0 | P33: =SUMIF(DT!$D$8:$D$838,P$6,DT!$AY$8:$AY$838) -> 0 | Q33: =SUMIF(DT!$D$8:$D$838,Q$6,DT!$AY$8:$AY$838) -> 0 | R33: =SUMIF(DT!$D$8:$D$838,R$6,DT!$AY$8:$AY$838) -> 0 | S33: =SUMIF(DT!$D$8:$D$838,S$6,DT!$AY$8:$AY$838) -> 0 | T33: =SUMIF(DT!$D$8:$D$838,T$6,DT!$AY$8:$AY$838) -> 0 | U33: =SUMIF(DT!$D$8:$D$838,U$6,DT!$AY$8:$AY$838) -> 0 | V33: =SUMIF(DT!$D$8:$D$838,V$6,DT!$AY$8:$AY$838) -> 0
A34: Ẩn | B34: Đất công trình bưu chính viễn thông | C34: DBV | D34: 0 | E34: =SUMIF(DT!$D$8:$D$838,E$6,DT!$BA$8:$BA$838) -> 0 | F34: =SUMIF(DT!$D$8:$D$838,F$6,DT!$BA$8:$BA$838) -> 0 | G34: =SUMIF(DT!$D$8:$D$838,G$6,DT!$BA$8:$BA$838) -> 0 | H34: =SUMIF(DT!$D$8:$D$838,H$6,DT!$BA$8:$BA$838) -> 0 | I34: =SUMIF(DT!$D$8:$D$838,I$6,DT!$BA$8:$BA$838) -> 0 | J34: =SUMIF(DT!$D$8:$D$838,J$6,DT!$BA$8:$BA$838) -> 0 | K34: =SUMIF(DT!$D$8:$D$838,K$6,DT!$BA$8:$BA$838) -> 0 | L34: =SUMIF(DT!$D$8:$D$838,L$6,DT!$BA$8:$BA$838) -> 0 | M34: =SUMIF(DT!$D$8:$D$838,M$6,DT!$BA$8:$BA$838) -> 0 | N34: =SUMIF(DT!$D$8:$D$838,N$6,DT!$BA$8:$BA$838) -> 0 | O34: =SUMIF(DT!$D$8:$D$838,O$6,DT!$BA$8:$BA$838) -> 0 | P34: =SUMIF(DT!$D$8:$D$838,P$6,DT!$BA$8:$BA$838) -> 0 | Q34: =SUMIF(DT!$D$8:$D$838,Q$6,DT!$BA$8:$BA$838) -> 0 | R34: =SUMIF(DT!$D$8:$D$838,R$6,DT!$BA$8:$BA$838) -> 0 | S34: =SUMIF(DT!$D$8:$D$838,S$6,DT!$BA$8:$BA$838) -> 0 | T34: =SUMIF(DT!$D$8:$D$838,T$6,DT!$BA$8:$BA$838) -> 0 | U34: =SUMIF(DT!$D$8:$D$838,U$6,DT!$BA$8:$BA$838) -> 0 | V34: =SUMIF(DT!$D$8:$D$838,V$6,DT!$BA$8:$BA$838) -> 0
A35: Ẩn | B35: Đất cơ sở văn hoá | C35: DVH | D35: 0 | E35: =SUMIF(DT!$D$8:$D$838,E$6,DT!$BC$8:$BC$838) -> 0 | F35: =SUMIF(DT!$D$8:$D$838,F$6,DT!$BC$8:$BC$838) -> 0 | G35: =SUMIF(DT!$D$8:$D$838,G$6,DT!$BC$8:$BC$838) -> 0 | H35: =SUMIF(DT!$D$8:$D$838,H$6,DT!$BC$8:$BC$838) -> 0 | I35: =SUMIF(DT!$D$8:$D$838,I$6,DT!$BC$8:$BC$838) -> 0 | J35: =SUMIF(DT!$D$8:$D$838,J$6,DT!$BC$8:$BC$838) -> 0 | K35: =SUMIF(DT!$D$8:$D$838,K$6,DT!$BC$8:$BC$838) -> 0 | L35: =SUMIF(DT!$D$8:$D$838,L$6,DT!$BC$8:$BC$838) -> 0 | M35: =SUMIF(DT!$D$8:$D$838,M$6,DT!$BC$8:$BC$838) -> 0 | N35: =SUMIF(DT!$D$8:$D$838,N$6,DT!$BC$8:$BC$838) -> 0 | O35: =SUMIF(DT!$D$8:$D$838,O$6,DT!$BC$8:$BC$838) -> 0 | P35: =SUMIF(DT!$D$8:$D$838,P$6,DT!$BC$8:$BC$838) -> 0 | Q35: =SUMIF(DT!$D$8:$D$838,Q$6,DT!$BC$8:$BC$838) -> 0 | R35: =SUMIF(DT!$D$8:$D$838,R$6,DT!$BC$8:$BC$838) -> 0 | S35: =SUMIF(DT!$D$8:$D$838,S$6,DT!$BC$8:$BC$838) -> 0 | T35: =SUMIF(DT!$D$8:$D$838,T$6,DT!$BC$8:$BC$838) -> 0 | U35: =SUMIF(DT!$D$8:$D$838,U$6,DT!$BC$8:$BC$838) -> 0 | V35: =SUMIF(DT!$D$8:$D$838,V$6,DT!$BC$8:$BC$838) -> 0
A36: Ẩn | B36: Đất cơ sở y tế | C36: DYT | D36: 0 | E36: =SUMIF(DT!$D$8:$D$838,E$6,DT!$BE$8:$BE$838) -> 0 | F36: =SUMIF(DT!$D$8:$D$838,F$6,DT!$BE$8:$BE$838) -> 0 | G36: =SUMIF(DT!$D$8:$D$838,G$6,DT!$BE$8:$BE$838) -> 0 | H36: =SUMIF(DT!$D$8:$D$838,H$6,DT!$BE$8:$BE$838) -> 0 | I36: =SUMIF(DT!$D$8:$D$838,I$6,DT!$BE$8:$BE$838) -> 0 | J36: =SUMIF(DT!$D$8:$D$838,J$6,DT!$BE$8:$BE$838) -> 0 | K36: =SUMIF(DT!$D$8:$D$838,K$6,DT!$BE$8:$BE$838) -> 0 | L36: =SUMIF(DT!$D$8:$D$838,L$6,DT!$BE$8:$BE$838) -> 0 | M36: =SUMIF(DT!$D$8:$D$838,M$6,DT!$BE$8:$BE$838) -> 0 | N36: =SUMIF(DT!$D$8:$D$838,N$6,DT!$BE$8:$BE$838) -> 0 | O36: =SUMIF(DT!$D$8:$D$838,O$6,DT!$BE$8:$BE$838) -> 0 | P36: =SUMIF(DT!$D$8:$D$838,P$6,DT!$BE$8:$BE$838) -> 0 | Q36: =SUMIF(DT!$D$8:$D$838,Q$6,DT!$BE$8:$BE$838) -> 0 | R36: =SUMIF(DT!$D$8:$D$838,R$6,DT!$BE$8:$BE$838) -> 0 | S36: =SUMIF(DT!$D$8:$D$838,S$6,DT!$BE$8:$BE$838) -> 0 | T36: =SUMIF(DT!$D$8:$D$838,T$6,DT!$BE$8:$BE$838) -> 0 | U36: =SUMIF(DT!$D$8:$D$838,U$6,DT!$BE$8:$BE$838) -> 0 | V36: =SUMIF(DT!$D$8:$D$838,V$6,DT!$BE$8:$BE$838) -> 0
A37: Ẩn | B37: Đất cơ sở giáo dục - đào tạo | C37: DGD | D37: 0.62 | E37: =SUMIF(DT!$D$8:$D$838,E$6,DT!$BG$8:$BG$838) -> 0 | F37: =SUMIF(DT!$D$8:$D$838,F$6,DT!$BG$8:$BG$838) -> 0 | G37: =SUMIF(DT!$D$8:$D$838,G$6,DT!$BG$8:$BG$838) -> 0 | H37: =SUMIF(DT!$D$8:$D$838,H$6,DT!$BG$8:$BG$838) -> 0.03 | I37: =SUMIF(DT!$D$8:$D$838,I$6,DT!$BG$8:$BG$838) -> 0.52 | J37: =SUMIF(DT!$D$8:$D$838,J$6,DT!$BG$8:$BG$838) -> 0 | K37: =SUMIF(DT!$D$8:$D$838,K$6,DT!$BG$8:$BG$838) -> 0 | L37: =SUMIF(DT!$D$8:$D$838,L$6,DT!$BG$8:$BG$838) -> 0 | M37: =SUMIF(DT!$D$8:$D$838,M$6,DT!$BG$8:$BG$838) -> 0 | N37: =SUMIF(DT!$D$8:$D$838,N$6,DT!$BG$8:$BG$838) -> 0 | O37: =SUMIF(DT!$D$8:$D$838,O$6,DT!$BG$8:$BG$838) -> 0.05 | P37: =SUMIF(DT!$D$8:$D$838,P$6,DT!$BG$8:$BG$838) -> 0 | Q37: =SUMIF(DT!$D$8:$D$838,Q$6,DT!$BG$8:$BG$838) -> 0 | R37: =SUMIF(DT!$D$8:$D$838,R$6,DT!$BG$8:$BG$838) -> 0.02 | S37: =SUMIF(DT!$D$8:$D$838,S$6,DT!$BG$8:$BG$838) -> 0 | T37: =SUMIF(DT!$D$8:$D$838,T$6,DT!$BG$8:$BG$838) -> 0 | U37: =SUMIF(DT!$D$8:$D$838,U$6,DT!$BG$8:$BG$838) -> 0 | V37: =SUMIF(DT!$D$8:$D$838,V$6,DT!$BG$8:$BG$838) -> 0
A38: Ẩn | B38: Đất cơ sở thể dục - thể thao | C38: DTT | D38: 1.08 | E38: =SUMIF(DT!$D$8:$D$838,E$6,DT!$BI$8:$BI$838) -> 0 | F38: =SUMIF(DT!$D$8:$D$838,F$6,DT!$BI$8:$BI$838) -> 0 | G38: =SUMIF(DT!$D$8:$D$838,G$6,DT!$BI$8:$BI$838) -> 0 | H38: =SUMIF(DT!$D$8:$D$838,H$6,DT!$BI$8:$BI$838) -> 0 | I38: =SUMIF(DT!$D$8:$D$838,I$6,DT!$BI$8:$BI$838) -> 1 | J38: =SUMIF(DT!$D$8:$D$838,J$6,DT!$BI$8:$BI$838) -> 0 | K38: =SUMIF(DT!$D$8:$D$838,K$6,DT!$BI$8:$BI$838) -> 0 | L38: =SUMIF(DT!$D$8:$D$838,L$6,DT!$BI$8:$BI$838) -> 0.08 | M38: =SUMIF(DT!$D$8:$D$838,M$6,DT!$BI$8:$BI$838) -> 0 | N38: =SUMIF(DT!$D$8:$D$838,N$6,DT!$BI$8:$BI$838) -> 0 | O38: =SUMIF(DT!$D$8:$D$838,O$6,DT!$BI$8:$BI$838) -> 0 | P38: =SUMIF(DT!$D$8:$D$838,P$6,DT!$BI$8:$BI$838) -> 0 | Q38: =SUMIF(DT!$D$8:$D$838,Q$6,DT!$BI$8:$BI$838) -> 0 | R38: =SUMIF(DT!$D$8:$D$838,R$6,DT!$BI$8:$BI$838) -> 0 | S38: =SUMIF(DT!$D$8:$D$838,S$6,DT!$BI$8:$BI$838) -> 0 | T38: =SUMIF(DT!$D$8:$D$838,T$6,DT!$BI$8:$BI$838) -> 0 | U38: =SUMIF(DT!$D$8:$D$838,U$6,DT!$BI$8:$BI$838) -> 0 | V38: =SUMIF(DT!$D$8:$D$838,V$6,DT!$BI$8:$BI$838) -> 0
A39: Ẩn | B39: Đất cơ sở nghiên cứu khoa học | C39: DKH | D39: 0 | E39: =SUMIF(DT!$D$8:$D$838,E$6,DT!$BK$8:$BK$838) -> 0 | F39: =SUMIF(DT!$D$8:$D$838,F$6,DT!$BK$8:$BK$838) -> 0 | G39: =SUMIF(DT!$D$8:$D$838,G$6,DT!$BK$8:$BK$838) -> 0 | H39: =SUMIF(DT!$D$8:$D$838,H$6,DT!$BK$8:$BK$838) -> 0 | I39: =SUMIF(DT!$D$8:$D$838,I$6,DT!$BK$8:$BK$838) -> 0 | J39: =SUMIF(DT!$D$8:$D$838,J$6,DT!$BK$8:$BK$838) -> 0 | K39: =SUMIF(DT!$D$8:$D$838,K$6,DT!$BK$8:$BK$838) -> 0 | L39: =SUMIF(DT!$D$8:$D$838,L$6,DT!$BK$8:$BK$838) -> 0 | M39: =SUMIF(DT!$D$8:$D$838,M$6,DT!$BK$8:$BK$838) -> 0 | N39: =SUMIF(DT!$D$8:$D$838,N$6,DT!$BK$8:$BK$838) -> 0 | O39: =SUMIF(DT!$D$8:$D$838,O$6,DT!$BK$8:$BK$838) -> 0 | P39: =SUMIF(DT!$D$8:$D$838,P$6,DT!$BK$8:$BK$838) -> 0 | Q39: =SUMIF(DT!$D$8:$D$838,Q$6,DT!$BK$8:$BK$838) -> 0 | R39: =SUMIF(DT!$D$8:$D$838,R$6,DT!$BK$8:$BK$838) -> 0 | S39: =SUMIF(DT!$D$8:$D$838,S$6,DT!$BK$8:$BK$838) -> 0 | T39: =SUMIF(DT!$D$8:$D$838,T$6,DT!$BK$8:$BK$838) -> 0 | U39: =SUMIF(DT!$D$8:$D$838,U$6,DT!$BK$8:$BK$838) -> 0 | V39: =SUMIF(DT!$D$8:$D$838,V$6,DT!$BK$8:$BK$838) -> 0
A40: Ẩn | B40: Đất cơ sở dịch vụ về xã hội | C40: DXH | D40: =SUM(E40:V40) -> 0 | E40: =SUMIF(DT!$D$8:$D$838,E$6,DT!$BM$8:$BM$838)-SUMIFS(DT!$BM$8:$BM$838,DT!$D$8:$D$838,E$6,DT!$C$8:$C$838,"TMD")-SUMIFS(DT!$BM$8:$BM$838,DT!$D$8:$D$838,E$6,DT!$C$8:$C$838,"SKC")-SUMIFS(DT!$BM$8:$BM$838,DT!$D$8:$D$838,E$6,DT!$C$8:$C$838,"SKX")-SUMIFS(DT!$BM$8:$BM$838,DT!$D$8:$D$838,E$6,DT!$C$8:$C$838,"TIN")-SUMIFS(DT!$BM$8:$BM$838,DT!$D$8:$D$838,E$6,DT!$C$8:$C$838,$C40) -> 0 | F40: =SUMIF(DT!$D$8:$D$838,F$6,DT!$BM$8:$BM$838)-SUMIFS(DT!$BM$8:$BM$838,DT!$D$8:$D$838,F$6,DT!$C$8:$C$838,"TMD")-SUMIFS(DT!$BM$8:$BM$838,DT!$D$8:$D$838,F$6,DT!$C$8:$C$838,"SKC")-SUMIFS(DT!$BM$8:$BM$838,DT!$D$8:$D$838,F$6,DT!$C$8:$C$838,"SKX")-SUMIFS(DT!$BM$8:$BM$838,DT!$D$8:$D$838,F$6,DT!$C$8:$C$838,"TIN")-SUMIFS(DT!$BM$8:$BM$838,DT!$D$8:$D$838,F$6,DT!$C$8:$C$838,$C40) -> 0 | G40: =SUMIF(DT!$D$8:$D$838,G$6,DT!$BM$8:$BM$838)-SUMIFS(DT!$BM$8:$BM$838,DT!$D$8:$D$838,G$6,DT!$C$8:$C$838,"TMD")-SUMIFS(DT!$BM$8:$BM$838,DT!$D$8:$D$838,G$6,DT!$C$8:$C$838,"SKC")-SUMIFS(DT!$BM$8:$BM$838,DT!$D$8:$D$838,G$6,DT!$C$8:$C$838,"SKX")-SUMIFS(DT!$BM$8:$BM$838,DT!$D$8:$D$838,G$6,DT!$C$8:$C$838,"TIN")-SUMIFS(DT!$BM$8:$BM$838,DT!$D$8:$D$838,G$6,DT!$C$8:$C$838,$C40) -> 0 | H40: =SUMIF(DT!$D$8:$D$838,H$6,DT!$BM$8:$BM$838)-SUMIFS(DT!$BM$8:$BM$838,DT!$D$8:$D$838,H$6,DT!$C$8:$C$838,"TMD")-SUMIFS(DT!$BM$8:$BM$838,DT!$D$8:$D$838,H$6,DT!$C$8:$C$838,"SKC")-SUMIFS(DT!$BM$8:$BM$838,DT!$D$8:$D$838,H$6,DT!$C$8:$C$838,"SKX")-SUMIFS(DT!$BM$8:$BM$838,DT!$D$8:$D$838,H$6,DT!$C$8:$C$838,"TIN")-SUMIFS(DT!$BM$8:$BM$838,DT!$D$8:$D$838,H$6,DT!$C$8:$C$838,$C40) -> 0 | I40: =SUMIF(DT!$D$8:$D$838,I$6,DT!$BM$8:$BM$838)-SUMIFS(DT!$BM$8:$BM$838,DT!$D$8:$D$838,I$6,DT!$C$8:$C$838,"TMD")-SUMIFS(DT!$BM$8:$BM$838,DT!$D$8:$D$838,I$6,DT!$C$8:$C$838,"SKC")-SUMIFS(DT!$BM$8:$BM$838,DT!$D$8:$D$838,I$6,DT!$C$8:$C$838,"SKX")-SUMIFS(DT!$BM$8:$BM$838,DT!$D$8:$D$838,I$6,DT!$C$8:$C$838,"TIN")-SUMIFS(DT!$BM$8:$BM$838,DT!$D$8:$D$838,I$6,DT!$C$8:$C$838,$C40) -> 0 | J40: =SUMIF(DT!$D$8:$D$838,J$6,DT!$BM$8:$BM$838)-SUMIFS(DT!$BM$8:$BM$838,DT!$D$8:$D$838,J$6,DT!$C$8:$C$838,"TMD")-SUMIFS(DT!$BM$8:$BM$838,DT!$D$8:$D$838,J$6,DT!$C$8:$C$838,"SKC")-SUMIFS(DT!$BM$8:$BM$838,DT!$D$8:$D$838,J$6,DT!$C$8:$C$838,"SKX")-SUMIFS(DT!$BM$8:$BM$838,DT!$D$8:$D$838,J$6,DT!$C$8:$C$838,"TIN")-SUMIFS(DT!$BM$8:$BM$838,DT!$D$8:$D$838,J$6,DT!$C$8:$C$838,$C40) -> 0 | K40: =SUMIF(DT!$D$8:$D$838,K$6,DT!$BM$8:$BM$838)-SUMIFS(DT!$BM$8:$BM$838,DT!$D$8:$D$838,K$6,DT!$C$8:$C$838,"TMD")-SUMIFS(DT!$BM$8:$BM$838,DT!$D$8:$D$838,K$6,DT!$C$8:$C$838,"SKC")-SUMIFS(DT!$BM$8:$BM$838,DT!$D$8:$D$838,K$6,DT!$C$8:$C$838,"SKX")-SUMIFS(DT!$BM$8:$BM$838,DT!$D$8:$D$838,K$6,DT!$C$8:$C$838,"TIN")-SUMIFS(DT!$BM$8:$BM$838,DT!$D$8:$D$838,K$6,DT!$C$8:$C$838,$C40) -> 0 | L40: =SUMIF(DT!$D$8:$D$838,L$6,DT!$BM$8:$BM$838)-SUMIFS(DT!$BM$8:$BM$838,DT!$D$8:$D$838,L$6,DT!$C$8:$C$838,"TMD")-SUMIFS(DT!$BM$8:$BM$838,DT!$D$8:$D$838,L$6,DT!$C$8:$C$838,"SKC")-SUMIFS(DT!$BM$8:$BM$838,DT!$D$8:$D$838,L$6,DT!$C$8:$C$838,"SKX")-SUMIFS(DT!$BM$8:$BM$838,DT!$D$8:$D$838,L$6,DT!$C$8:$C$838,"TIN")-SUMIFS(DT!$BM$8:$BM$838,DT!$D$8:$D$838,L$6,DT!$C$8:$C$838,$C40) -> 0 | M40: =SUMIF(DT!$D$8:$D$838,M$6,DT!$BM$8:$BM$838)-SUMIFS(DT!$BM$8:$BM$838,DT!$D$8:$D$838,M$6,DT!$C$8:$C$838,"TMD")-SUMIFS(DT!$BM$8:$BM$838,DT!$D$8:$D$838,M$6,DT!$C$8:$C$838,"SKC")-SUMIFS(DT!$BM$8:$BM$838,DT!$D$8:$D$838,M$6,DT!$C$8:$C$838,"SKX")-SUMIFS(DT!$BM$8:$BM$838,DT!$D$8:$D$838,M$6,DT!$C$8:$C$838,"TIN")-SUMIFS(DT!$BM$8:$BM$838,DT!$D$8:$D$838,M$6,DT!$C$8:$C$838,$C40) -> 0 | N40: =SUMIF(DT!$D$8:$D$838,N$6,DT!$BM$8:$BM$838)-SUMIFS(DT!$BM$8:$BM$838,DT!$D$8:$D$838,N$6,DT!$C$8:$C$838,"TMD")-SUMIFS(DT!$BM$8:$BM$838,DT!$D$8:$D$838,N$6,DT!$C$8:$C$838,"SKC")-SUMIFS(DT!$BM$8:$BM$838,DT!$D$8:$D$838,N$6,DT!$C$8:$C$838,"SKX")-SUMIFS(DT!$BM$8:$BM$838,DT!$D$8:$D$838,N$6,DT!$C$8:$C$838,"TIN")-SUMIFS(DT!$BM$8:$BM$838,DT!$D$8:$D$838,N$6,DT!$C$8:$C$838,$C40) -> 0 | O40: =SUMIF(DT!$D$8:$D$838,O$6,DT!$BM$8:$BM$838)-SUMIFS(DT!$BM$8:$BM$838,DT!$D$8:$D$838,O$6,DT!$C$8:$C$838,"TMD")-SUMIFS(DT!$BM$8:$BM$838,DT!$D$8:$D$838,O$6,DT!$C$8:$C$838,"SKC")-SUMIFS(DT!$BM$8:$BM$838,DT!$D$8:$D$838,O$6,DT!$C$8:$C$838,"SKX")-SUMIFS(DT!$BM$8:$BM$838,DT!$D$8:$D$838,O$6,DT!$C$8:$C$838,"TIN")-SUMIFS(DT!$BM$8:$BM$838,DT!$D$8:$D$838,O$6,DT!$C$8:$C$838,$C40) -> 0 | P40: =SUMIF(DT!$D$8:$D$838,P$6,DT!$BM$8:$BM$838)-SUMIFS(DT!$BM$8:$BM$838,DT!$D$8:$D$838,P$6,DT!$C$8:$C$838,"TMD")-SUMIFS(DT!$BM$8:$BM$838,DT!$D$8:$D$838,P$6,DT!$C$8:$C$838,"SKC")-SUMIFS(DT!$BM$8:$BM$838,DT!$D$8:$D$838,P$6,DT!$C$8:$C$838,"SKX")-SUMIFS(DT!$BM$8:$BM$838,DT!$D$8:$D$838,P$6,DT!$C$8:$C$838,"TIN")-SUMIFS(DT!$BM$8:$BM$838,DT!$D$8:$D$838,P$6,DT!$C$8:$C$838,$C40) -> 0 | Q40: =SUMIF(DT!$D$8:$D$838,Q$6,DT!$BM$8:$BM$838)-SUMIFS(DT!$BM$8:$BM$838,DT!$D$8:$D$838,Q$6,DT!$C$8:$C$838,"TMD")-SUMIFS(DT!$BM$8:$BM$838,DT!$D$8:$D$838,Q$6,DT!$C$8:$C$838,"SKC")-SUMIFS(DT!$BM$8:$BM$838,DT!$D$8:$D$838,Q$6,DT!$C$8:$C$838,"SKX")-SUMIFS(DT!$BM$8:$BM$838,DT!$D$8:$D$838,Q$6,DT!$C$8:$C$838,"TIN")-SUMIFS(DT!$BM$8:$BM$838,DT!$D$8:$D$838,Q$6,DT!$C$8:$C$838,$C40) -> 0 | R40: =SUMIF(DT!$D$8:$D$838,R$6,DT!$BM$8:$BM$838)-SUMIFS(DT!$BM$8:$BM$838,DT!$D$8:$D$838,R$6,DT!$C$8:$C$838,"TMD")-SUMIFS(DT!$BM$8:$BM$838,DT!$D$8:$D$838,R$6,DT!$C$8:$C$838,"SKC")-SUMIFS(DT!$BM$8:$BM$838,DT!$D$8:$D$838,R$6,DT!$C$8:$C$838,"SKX")-SUMIFS(DT!$BM$8:$BM$838,DT!$D$8:$D$838,R$6,DT!$C$8:$C$838,"TIN")-SUMIFS(DT!$BM$8:$BM$838,DT!$D$8:$D$838,R$6,DT!$C$8:$C$838,$C40) -> 0 | S40: =SUMIF(DT!$D$8:$D$838,S$6,DT!$BM$8:$BM$838)-SUMIFS(DT!$BM$8:$BM$838,DT!$D$8:$D$838,S$6,DT!$C$8:$C$838,"TMD")-SUMIFS(DT!$BM$8:$BM$838,DT!$D$8:$D$838,S$6,DT!$C$8:$C$838,"SKC")-SUMIFS(DT!$BM$8:$BM$838,DT!$D$8:$D$838,S$6,DT!$C$8:$C$838,"SKX")-SUMIFS(DT!$BM$8:$BM$838,DT!$D$8:$D$838,S$6,DT!$C$8:$C$838,"TIN")-SUMIFS(DT!$BM$8:$BM$838,DT!$D$8:$D$838,S$6,DT!$C$8:$C$838,$C40) -> 0 | T40: =SUMIF(DT!$D$8:$D$838,T$6,DT!$BM$8:$BM$838)-SUMIFS(DT!$BM$8:$BM$838,DT!$D$8:$D$838,T$6,DT!$C$8:$C$838,"TMD")-SUMIFS(DT!$BM$8:$BM$838,DT!$D$8:$D$838,T$6,DT!$C$8:$C$838,"SKC")-SUMIFS(DT!$BM$8:$BM$838,DT!$D$8:$D$838,T$6,DT!$C$8:$C$838,"SKX")-SUMIFS(DT!$BM$8:$BM$838,DT!$D$8:$D$838,T$6,DT!$C$8:$C$838,"TIN")-SUMIFS(DT!$BM$8:$BM$838,DT!$D$8:$D$838,T$6,DT!$C$8:$C$838,$C40) -> 0 | U40: =SUMIF(DT!$D$8:$D$838,U$6,DT!$BM$8:$BM$838)-SUMIFS(DT!$BM$8:$BM$838,DT!$D$8:$D$838,U$6,DT!$C$8:$C$838,"TMD")-SUMIFS(DT!$BM$8:$BM$838,DT!$D$8:$D$838,U$6,DT!$C$8:$C$838,"SKC")-SUMIFS(DT!$BM$8:$BM$838,DT!$D$8:$D$838,U$6,DT!$C$8:$C$838,"SKX")-SUMIFS(DT!$BM$8:$BM$838,DT!$D$8:$D$838,U$6,DT!$C$8:$C$838,"TIN")-SUMIFS(DT!$BM$8:$BM$838,DT!$D$8:$D$838,U$6,DT!$C$8:$C$838,$C40) -> 0 | V40: =SUMIF(DT!$D$8:$D$838,V$6,DT!$BM$8:$BM$838)-SUMIFS(DT!$BM$8:$BM$838,DT!$D$8:$D$838,V$6,DT!$C$8:$C$838,"TMD")-SUMIFS(DT!$BM$8:$BM$838,DT!$D$8:$D$838,V$6,DT!$C$8:$C$838,"SKC")-SUMIFS(DT!$BM$8:$BM$838,DT!$D$8:$D$838,V$6,DT!$C$8:$C$838,"SKX")-SUMIFS(DT!$BM$8:$BM$838,DT!$D$8:$D$838,V$6,DT!$C$8:$C$838,"TIN")-SUMIFS(DT!$BM$8:$BM$838,DT!$D$8:$D$838,V$6,DT!$C$8:$C$838,$C40) -> 0
A41: Ẩn | B41: Đất chợ | C41: DCH | D41: 0 | E41: =SUMIF(DT!$D$8:$D$838,E$6,DT!$BO$8:$BO$838) -> 0 | F41: =SUMIF(DT!$D$8:$D$838,F$6,DT!$BO$8:$BO$838) -> 0 | G41: =SUMIF(DT!$D$8:$D$838,G$6,DT!$BO$8:$BO$838) -> 0 | H41: =SUMIF(DT!$D$8:$D$838,H$6,DT!$BO$8:$BO$838) -> 0 | I41: =SUMIF(DT!$D$8:$D$838,I$6,DT!$BO$8:$BO$838) -> 0 | J41: =SUMIF(DT!$D$8:$D$838,J$6,DT!$BO$8:$BO$838) -> 0 | K41: =SUMIF(DT!$D$8:$D$838,K$6,DT!$BO$8:$BO$838) -> 0 | L41: =SUMIF(DT!$D$8:$D$838,L$6,DT!$BO$8:$BO$838) -> 0 | M41: =SUMIF(DT!$D$8:$D$838,M$6,DT!$BO$8:$BO$838) -> 0 | N41: =SUMIF(DT!$D$8:$D$838,N$6,DT!$BO$8:$BO$838) -> 0 | O41: =SUMIF(DT!$D$8:$D$838,O$6,DT!$BO$8:$BO$838) -> 0 | P41: =SUMIF(DT!$D$8:$D$838,P$6,DT!$BO$8:$BO$838) -> 0 | Q41: =SUMIF(DT!$D$8:$D$838,Q$6,DT!$BO$8:$BO$838) -> 0 | R41: =SUMIF(DT!$D$8:$D$838,R$6,DT!$BO$8:$BO$838) -> 0 | S41: =SUMIF(DT!$D$8:$D$838,S$6,DT!$BO$8:$BO$838) -> 0 | T41: =SUMIF(DT!$D$8:$D$838,T$6,DT!$BO$8:$BO$838) -> 0 | U41: =SUMIF(DT!$D$8:$D$838,U$6,DT!$BO$8:$BO$838) -> 0 | V41: =SUMIF(DT!$D$8:$D$838,V$6,DT!$BO$8:$BO$838) -> 0
A42: 2.10 | B42: Đất có di tích lịch sử - văn hóa | C42: DDT | D42: 0 | E42: =SUMIF(DT!$D$8:$D$838,E$6,DT!$BQ$8:$BQ$838) -> 0 | F42: =SUMIF(DT!$D$8:$D$838,F$6,DT!$BQ$8:$BQ$838) -> 0 | G42: =SUMIF(DT!$D$8:$D$838,G$6,DT!$BQ$8:$BQ$838) -> 0 | H42: =SUMIF(DT!$D$8:$D$838,H$6,DT!$BQ$8:$BQ$838) -> 0 | I42: =SUMIF(DT!$D$8:$D$838,I$6,DT!$BQ$8:$BQ$838) -> 0 | J42: =SUMIF(DT!$D$8:$D$838,J$6,DT!$BQ$8:$BQ$838) -> 0 | K42: =SUMIF(DT!$D$8:$D$838,K$6,DT!$BQ$8:$BQ$838) -> 0 | L42: =SUMIF(DT!$D$8:$D$838,L$6,DT!$BQ$8:$BQ$838) -> 0 | M42: =SUMIF(DT!$D$8:$D$838,M$6,DT!$BQ$8:$BQ$838) -> 0 | N42: =SUMIF(DT!$D$8:$D$838,N$6,DT!$BQ$8:$BQ$838) -> 0 | O42: =SUMIF(DT!$D$8:$D$838,O$6,DT!$BQ$8:$BQ$838) -> 0 | P42: =SUMIF(DT!$D$8:$D$838,P$6,DT!$BQ$8:$BQ$838) -> 0 | Q42: =SUMIF(DT!$D$8:$D$838,Q$6,DT!$BQ$8:$BQ$838) -> 0 | R42: =SUMIF(DT!$D$8:$D$838,R$6,DT!$BQ$8:$BQ$838) -> 0 | S42: =SUMIF(DT!$D$8:$D$838,S$6,DT!$BQ$8:$BQ$838) -> 0 | T42: =SUMIF(DT!$D$8:$D$838,T$6,DT!$BQ$8:$BQ$838) -> 0 | U42: =SUMIF(DT!$D$8:$D$838,U$6,DT!$BQ$8:$BQ$838) -> 0 | V42: =SUMIF(DT!$D$8:$D$838,V$6,DT!$BQ$8:$BQ$838) -> 0
A43: 2.11 | B43: Đất danh lam thắng cảnh | C43: DDL | D43: 0 | E43: =SUMIF(DT!$D$8:$D$838,E$6,DT!$BS$8:$BS$838) -> 0 | F43: =SUMIF(DT!$D$8:$D$838,F$6,DT!$BS$8:$BS$838) -> 0 | G43: =SUMIF(DT!$D$8:$D$838,G$6,DT!$BS$8:$BS$838) -> 0 | H43: =SUMIF(DT!$D$8:$D$838,H$6,DT!$BS$8:$BS$838) -> 0 | I43: =SUMIF(DT!$D$8:$D$838,I$6,DT!$BS$8:$BS$838) -> 0 | J43: =SUMIF(DT!$D$8:$D$838,J$6,DT!$BS$8:$BS$838) -> 0 | K43: =SUMIF(DT!$D$8:$D$838,K$6,DT!$BS$8:$BS$838) -> 0 | L43: =SUMIF(DT!$D$8:$D$838,L$6,DT!$BS$8:$BS$838) -> 0 | M43: =SUMIF(DT!$D$8:$D$838,M$6,DT!$BS$8:$BS$838) -> 0 | N43: =SUMIF(DT!$D$8:$D$838,N$6,DT!$BS$8:$BS$838) -> 0 | O43: =SUMIF(DT!$D$8:$D$838,O$6,DT!$BS$8:$BS$838) -> 0 | P43: =SUMIF(DT!$D$8:$D$838,P$6,DT!$BS$8:$BS$838) -> 0 | Q43: =SUMIF(DT!$D$8:$D$838,Q$6,DT!$BS$8:$BS$838) -> 0 | R43: =SUMIF(DT!$D$8:$D$838,R$6,DT!$BS$8:$BS$838) -> 0 | S43: =SUMIF(DT!$D$8:$D$838,S$6,DT!$BS$8:$BS$838) -> 0 | T43: =SUMIF(DT!$D$8:$D$838,T$6,DT!$BS$8:$BS$838) -> 0 | U43: =SUMIF(DT!$D$8:$D$838,U$6,DT!$BS$8:$BS$838) -> 0 | V43: =SUMIF(DT!$D$8:$D$838,V$6,DT!$BS$8:$BS$838) -> 0
